Workbook

Sheet 波形
F2: T(ns) | G2: TW(ns) | H2: tr(ns) | I2: 線長(m)
B3: R | C3: 85 | F3: 10 | G3: 1 | H3: 0.2 | I3: 0.15
B5: R11 | C5: C11 | L5: C12 | M5: R12
B6: =Temp!A2 -> 10000 | C6: 1 | L6: =C6 -> 1 | M6: =Temp!B2 -> 42.5
B7: R21 | C7: C21 | L7: C22 | M7: R22
B8: =Temp!A4 -> 10000 | C8: =C6 -> 1 | L8: =L6 -> 1 | M8: =Temp!B4 -> 42.5
B9: R31 | C9: C31 | L9: C32 | M9: R32
B10: =Temp!A6 -> 10000 | C10: =C6 -> 1 | I10: ξ23 | L10: =L6 -> 1 | M10: =Temp!B6 -> 42.5
B11: R41 | C11: C41 | L11: C42 | M11: R42
B12: =Temp!A8 -> 10000 | C12: =C6 -> 1 | L12: =L6 -> 1 | M12: =Temp!B8 -> 42.5
Q42: max | R42: =MAX(-MIN(Temp!N4:N131),MAX(Temp!N4:N131)) -> 0.07613169947

Sheet ReadMe
B2: 差動伝送のクロストーク解析ツール
B4: 1. 何ができるか
B5: 表面層(MicroStrip)と中間層(Strip)に対して, ペア間のクロストーク係数 ξ23 を与えて,
B6: 4本線路の差動クロストークを解析して表示します.
B7: 4本線路のうち, 加害者線路2本に差動信号を加え, 残り2本の受動線路のクロストークを解析します.
B8: 解析には128点のFFTを用いています. 要望があれば, 上位の1024点のFFTを用いたものを(たぶん)有償で準備する予定です.
B9: 線路の1本のインピーダンスは50Ω, 差動インピーダンスは 85Ωです.
B10: 断面図の決定方法は, 「断面図」のシートを参照ください.
B12: 2. 使い方
B13: 以下は順不同です.
B14: (1)波形シートの右上のプルダウンメニューから, StripかMicrostripを選択し, ペア間のクロストーク係数 ξ23 を選びます.
B15: (2)順方向遠端クロストークか逆方向近端クロストークを選択します.
B16: (3)信号周期 T, パルス幅 TW, 信号の立ち上がり tr, 配線長 をそれぞれ数値で記入します.
B17: (4)加害者信号は, 逆方向は, v11-v12(近端)を, 順方向は, v21-v22(遠端)を表示します.
B18: (5)終端抵抗を数値で記入します.通常は85Ωです. この値の1/2が遠端の終端抵抗となります.
B19: (6)ドライバの種類を選びます. 電流源/電圧源/整合
B20: ドライバの出力抵抗は, 電圧源ドライバ(例えば, PECL)の場合には5Ω, 電流源ドライバ(例えばLVDS)の場合
B21: には10kΩ, 整合(例えばCML)の場合にはZdiff/2としています.
B22: 電圧振幅は, 能動線路の遠端の電圧が±1になるように正規化しています. 差動信号としてはその倍の2となります.
B23: (7)静電容量の値を記入
B24: 遠端, 近端の静電容量は, 初期設定では, C11だけ入力すると, 全て同じ値になるように設定しています.
B25: 各端子の値は, 独立に設定出来るので, 異なる値にしたい場合は, それぞれに入力下さい. (単位 : pF)
B26: 4本の線路に順に#1から#4までの番号を与えます.
B27: #1と#2とが能動(加害者)線路, #3と#4とが受動(被害者)線路です.
B28: 抵抗の最初のサフィックスが線路の番号, 2番目のサフィックスが, 1=近端, 2=遠端を表します.
B30: 計算は, 128点FFTを用いています.
B32: 3. 波形の意味
B33: 電圧波形も, 抵抗と同じサフィックスで表します.
B34: 近端は, v31-v41が, 遠端は, v32-v42が差動のクロストークです.
B35: 実際の線路には損失を含みますが, 本解析は無損失線路のモデルを使用しているので, 損失は含みません.
B36: グラフの軸ラベルは省略しています. 横軸は時間[ns], 縦軸は振幅[正規化}です.
B38: 4. 画面のサイズ調整
B39: 「サイズ」ボタンを押すことによって, 表示範囲を画面にきっちり収まるように設定します.
B40: 「サイズ」ボタンはマクロを使っています. マクロを有効にしてください.
B41: セキュリティレベルを低くしたくない方は, 手動で画面サイズを調整して下さい.
B42: なお, このマクロは編集しないで下さい.
B44: 5. 参考文献
B45: 拙著, 「ボード設計者のための分布定数回路のすべて 第3版」
B46: http://radioy.a.la9.jp/book/book.htm
B47: MWE2016ワークショップ (2016 Microwave Workshops and Exhibition)
B48: http://apmc-mwe.org/mwe2016/pdf/WS_01/WE3B-1_1.pdf
B56: v.1.0 2023/9/20 初版
B57: v.2.1 2023/10/15 レイアウトを変更, 加害者信号を自動で選択するように変更

Sheet 断面図

Sheet Temp (hidden)
A1: R11 | B1: R12 | D1: 1 | F1: -1.5 | G1: =F1+$F$1 -> -3 | H1: =G1+$F$1 -> -4.5
A2: =IF(定数!S1=1,5,IF(定数!S1=2,10000,波形!C3/2)) -> 10000 | B2: =波形!C3/2 -> 42.5 | D2: 1 | J2: t | K2: =iFFT128!L2 -> v21-v22 | L2: =iFFT128!W2 -> v32 | M2: =iFFT128!AH2 -> v42 | N2: =L2&"-"&M2 -> v32-v42
A3: R21 | B3: R22 | D3: 1
A4: =Temp!A2 -> 10000 | B4: =B2 -> 42.5 | J4: 0 | K4: =iFFT128!L4 -> -1.000454371 | L4: =iFFT128!W4 -> -0.0007601065387 | M4: =iFFT128!AH4 -> -0.0002514184882 | N4: =L4-M4 -> -0.0005086880505
A5: R31 | B5: R32 | D5: 0 | E5: 0 | F5: =F$1 -> -1.5 | G5: =G$1 -> -3 | H5: =H$1 -> -4.5 | J5: =J4+定数!$B$10 -> 0.078125 | K5: =iFFT128!L5 -> -0.9979538846 | L5: =iFFT128!W5 -> -0.001845156938 | M5: =iFFT128!AH5 -> 0.001789860392 | N5: -0.003635017331
A6: =IF(定数!O1=1,波形!C3/2,Temp!A2) -> 10000 | B6: =IF(定数!O1=1,Temp!A2,Temp!B2) -> 42.5 | D6: =D5+$D$1 -> 1 | E6: 0 | F6: =F5 -> -1.5 | G6: =G5 -> -3 | H6: =H5 -> -4.5 | J6: =J5+定数!$B$10 -> 0.15625 | K6: =iFFT128!L6 -> -1.002699168 | L6: =iFFT128!W6 -> 0.0005280721639 | M6: =iFFT128!AH6 -> -0.0004748774731 | N6: 0.001002949637
A7: R41 | B7: R42 | D7: =D6 -> 1 | E7: =定数!A38 -> 0.4465208 | F7: =定数!A39+F1 -> -0.9517059 | G7: =定数!A40+G1 -> -2.451712 | H7: =定数!A41+H1 -> -4.053488 | J7: =J6+定数!$B$10 -> 0.234375 | K7: =iFFT128!L7 -> -0.9986404676 | L7: =iFFT128!W7 -> 0.0004677326789 | M7: =iFFT128!AH7 -> 0.0001363239474 | N7: 0.0003314087315
A8: =Temp!A6 -> 10000 | B8: =B6 -> 42.5 | D8: =D7+$D$2 -> 2 | E8: =E7 -> 0.4465208 | F8: =F7 -> -0.9517059 | G8: =G7 -> -2.451712 | H8: =H7 -> -4.053488 | J8: =J7+定数!$B$10 -> 0.3125 | K8: =iFFT128!L8 -> -1.001667562 | L8: =iFFT128!W8 -> -0.0002631917119 | M8: =iFFT128!AH8 -> -0.001103446987 | N8: 0.0008402552749
D9: =D8 -> 2 | E9: 0 | F9: =F5 -> -1.5 | G9: =G5 -> -3 | H9: =H5 -> -4.5 | J9: =J8+定数!$B$10 -> 0.390625 | K9: =iFFT128!L9 -> -0.9975030683 | L9: =iFFT128!W9 -> 3.631098887e-05 | M9: =iFFT128!AH9 -> 0.0002465039206 | N9: -0.0002101929317
D10: =D9+$D$1 -> 3 | E10: 0 | F10: =F5 -> -1.5 | G10: =G5 -> -3 | H10: =H5 -> -4.5 | J10: =J9+定数!$B$10 -> 0.46875 | K10: =iFFT128!L10 -> -1.002462918 | L10: =iFFT128!W10 -> -0.0004714772543 | M10: =iFFT128!AH10 -> -0.0005389321305 | N10: 6.745487618e-05
J11: =J10+定数!$B$10 -> 0.546875 | K11: =iFFT128!L11 -> -0.9968950834 | L11: =iFFT128!W11 -> 4.743924051e-05 | M11: =iFFT128!AH11 -> 0.0002911355091 | N11: -0.0002436962686
D12: =D10+$D$3 -> 4 | E12: 0 | F12: =F$1 -> -1.5 | G12: =G$1 -> -3 | H12: =H$1 -> -4.5 | J12: =J11+定数!$B$10 -> 0.625 | K12: =iFFT128!L12 -> -1.003614778 | L12: =iFFT128!W12 -> -0.0001937482408 | M12: =iFFT128!AH12 -> -0.0005693259743 | N12: 0.0003755777335
D13: =D12+$D$1 -> 5 | E13: 0 | F13: =F12 -> -1.5 | G13: =G12 -> -3 | H13: =H12 -> -4.5 | J13: =J12+定数!$B$10 -> 0.703125 | K13: =iFFT128!L13 -> -0.9957874242 | L13: =iFFT128!W13 -> 0.0002145520445 | M13: =iFFT128!AH13 -> 0.001184894932 | N13: -0.000970342887
D14: =D13 -> 5 | E14: =定数!B38 -> 0.6388358 | F14: =定数!B39+F1 -> -1.1969031 | G14: =定数!B40+G1 -> -3.3030958 | H14: =定数!B41+H1 -> -5.1388693 | J14: =J13+定数!$B$10 -> 0.78125 | K14: =iFFT128!L14 -> -1.005303133 | L14: =iFFT128!W14 -> 0.0001765324913 | M14: =iFFT128!AH14 -> -0.001062344027 | N14: 0.001238876519
D15: =D14+$D$2 -> 6 | E15: =E14 -> 0.6388358 | F15: =F14 -> -1.1969031 | G15: =G14 -> -3.3030958 | H15: =H14 -> -5.1388693 | J15: =J14+定数!$B$10 -> 0.859375 | K15: =iFFT128!L15 -> -0.9926731871 | L15: =iFFT128!W15 -> 0.0006803170731 | M15: =iFFT128!AH15 -> 0.0008217754983 | N15: -0.0001414584252
D16: =D15 -> 6 | E16: 0 | F16: =F12 -> -1.5 | G16: =G12 -> -3 | H16: =H12 -> -4.5 | J16: =J15+定数!$B$10 -> 0.9375 | K16: =iFFT128!L16 -> -1.012055796 | L16: =iFFT128!W16 -> -0.0007165634819 | M16: =iFFT128!AH16 -> -0.001270451058 | N16: 0.0005538875765
D17: =D16+$D$1 -> 7 | E17: 0 | F17: =F12 -> -1.5 | G17: =G12 -> -3 | H17: =H12 -> -4.5 | J17: =J16+定数!$B$10 -> 1.015625 | K17: =iFFT128!L17 -> -0.8183609878 | L17: =iFFT128!W17 -> 0.02463714059 | M17: =iFFT128!AH17 -> 0.008091690585 | N17: 0.01654545
J18: =J17+定数!$B$10 -> 1.09375 | K18: =iFFT128!L18 -> -0.2022183212 | L18: =iFFT128!W18 -> 0.05178784262 | M18: =iFFT128!AH18 -> 0.02646166381 | N18: 0.02532617881
D19: =D17+$D$3 -> 8 | E19: 0 | F19: =F$1 -> -1.5 | G19: =G$1 -> -3 | H19: =H$1 -> -4.5 | J19: =J18+定数!$B$10 -> 1.171875 | K19: =iFFT128!L19 -> 0.5301243461 | L19: =iFFT128!W19 -> 0.0349453247 | M19: =iFFT128!AH19 -> 0.03492772285 | N19: 1.760184932e-05
D20: =D19+$D$1 -> 9 | E20: 0 | F20: =F19 -> -1.5 | G20: =G19 -> -3 | H20: =H19 -> -4.5 | J20: =J19+定数!$B$10 -> 1.25 | K20: =iFFT128!L20 -> 0.9100511679 | L20: =iFFT128!W20 -> -0.01654654062 | M20: =iFFT128!AH20 -> 0.01837518895 | N20: -0.03492172957
D21: =D20 -> 9 | E21: =定数!C38 -> -0.2933451 | F21: =定数!C39+F1 -> -0.8565646 | G21: =定数!C40+G1 -> -3.6433784 | H21: =定数!C41+H1 -> -4.2067361 | J21: =J20+定数!$B$10 -> 1.328125 | K21: =iFFT128!L21 -> 0.9734620608 | L21: =iFFT128!W21 -> -0.04780250397 | M21: =iFFT128!AH21 -> 0.001249923291 | N21: -0.04905242726
D22: =D21+$D$2 -> 10 | E22: =E21 -> -0.2933451 | F22: =F21 -> -0.8565646 | G22: =G21 -> -3.6433784 | H22: =H21 -> -4.2067361 | J22: =J21+定数!$B$10 -> 1.40625 | K22: =iFFT128!L22 -> 0.9921817468 | L22: =iFFT128!W22 -> -0.05573329048 | M22: =iFFT128!AH22 -> -0.004308707235 | N22: -0.05142458325
D23: =D22 -> 10 | E23: 0 | F23: =F19 -> -1.5 | G23: =G19 -> -3 | H23: =H19 -> -4.5 | J23: =J22+定数!$B$10 -> 1.484375 | K23: =iFFT128!L23 -> 0.9913170774 | L23: =iFFT128!W23 -> -0.05913192716 | M23: =iFFT128!AH23 -> -0.006235642382 | N23: -0.05289628478
D24: =D23+$D$1 -> 11 | E24: 0 | F24: =F19 -> -1.5 | G24: =G19 -> -3 | H24: =H19 -> -4.5 | J24: =J23+定数!$B$10 -> 1.5625 | K24: =iFFT128!L24 -> 0.9931026694 | L24: =iFFT128!W24 -> -0.05944928483 | M24: =iFFT128!AH24 -> -0.00696799369 | N24: -0.05248129114
J25: =J24+定数!$B$10 -> 1.640625 | K25: =iFFT128!L25 -> 0.9937201102 | L25: =iFFT128!W25 -> -0.06007699475 | M25: =iFFT128!AH25 -> -0.006900817904 | N25: -0.05317617685
D26: =D24+$D$3 -> 12 | E26: 0 | F26: =F$1 -> -1.5 | G26: =G$1 -> -3 | H26: =H$1 -> -4.5 | J26: =J25+定数!$B$10 -> 1.71875 | K26: =iFFT128!L26 -> 0.9914758704 | L26: =iFFT128!W26 -> -0.05933052189 | M26: =iFFT128!AH26 -> -0.007724504479 | N26: -0.05160601741
D27: =D26+$D$1 -> 13 | E27: 0 | F27: =F26 -> -1.5 | G27: =G26 -> -3 | H27: =H26 -> -4.5 | J27: =J26+定数!$B$10 -> 1.796875 | K27: =iFFT128!L27 -> 0.9956295833 | L27: =iFFT128!W27 -> -0.06057305998 | M27: =iFFT128!AH27 -> -0.005999419409 | N27: -0.05457364057
D28: =D27 -> 13 | E28: =定数!D38 -> 0.5352961 | F28: =定数!D39+F1 -> -1.961972 | G28: =定数!D40+G1 -> -3.4620628 | H28: =定数!D41+H1 -> -3.9647077 | J28: =J27+定数!$B$10 -> 1.875 | K28: =iFFT128!L28 -> 0.9888628666 | L28: =iFFT128!W28 -> -0.05944358959 | M28: =iFFT128!AH28 -> -0.007833251534 | N28: -0.05161033805
D29: =D28+$D$2 -> 14 | E29: =E28 -> 0.5352961 | F29: =F28 -> -1.961972 | G29: =G28 -> -3.4620628 | H29: =H28 -> -3.9647077 | J29: =J28+定数!$B$10 -> 1.953125 | K29: =iFFT128!L29 -> 0.9960096269 | L29: =iFFT128!W29 -> -0.06190880038 | M29: =iFFT128!AH29 -> -0.006165034121 | N29: -0.05574376626
D30: =D29 -> 14 | E30: 0 | F30: =F26 -> -1.5 | G30: =G26 -> -3 | H30: =H26 -> -4.5 | J30: =J29+定数!$B$10 -> 2.03125 | K30: =iFFT128!L30 -> 0.7196890239 | L30: =iFFT128!W30 -> -0.09154025327 | M30: =iFFT128!AH30 -> -0.01891145387 | N30: -0.0726287994
D31: =D30+$D$1 -> 15 | E31: 0 | F31: =F26 -> -1.5 | G31: =G26 -> -3 | H31: =H26 -> -4.5 | J31: =J30+定数!$B$10 -> 2.109375 | K31: =iFFT128!L31 -> 0.04064840164 | L31: =iFFT128!W31 -> -0.1127219118 | M31: =iFFT128!AH31 -> -0.03659021236 | N31: -0.07613169947
J32: =J31+定数!$B$10 -> 2.1875 | K32: =iFFT128!L32 -> -0.6498231591 | L32: =iFFT128!W32 -> -0.08550993184 | M32: =iFFT128!AH32 -> -0.04076784445 | N32: -0.04474208739
J33: =J32+定数!$B$10 -> 2.265625 | K33: =iFFT128!L33 -> -0.9440271509 | L33: =iFFT128!W33 -> -0.03432875685 | M33: =iFFT128!AH33 -> -0.02076477665 | N33: -0.0135639802
J34: =J33+定数!$B$10 -> 2.34375 | K34: =iFFT128!L34 -> -0.984079272 | L34: =iFFT128!W34 -> -0.009446626326 | M34: =iFFT128!AH34 -> -0.006930076042 | N34: -0.002516550284
J35: =J34+定数!$B$10 -> 2.421875 | K35: =iFFT128!L35 -> -1.001061525 | L35: =iFFT128!W35 -> -0.003314786708 | M35: =iFFT128!AH35 -> -0.001882585181 | N35: -0.001432201527
J36: =J35+定数!$B$10 -> 2.5 | K36: =iFFT128!L36 -> -0.9972056261 | L36: =iFFT128!W36 -> -0.000379690667 | M36: =iFFT128!AH36 -> -0.001080520147 | N36: =L36-M36 -> 0.0007008294804
J37: =J36+定数!$B$10 -> 2.578125 | K37: =iFFT128!L37 -> -1.001481123 | L37: =iFFT128!W37 -> -0.0006420986313 | M37: =iFFT128!AH37 -> 0.0004592026115 | N37: -0.001101301243
J38: =J37+定数!$B$10 -> 2.65625 | K38: =iFFT128!L38 -> -0.9990738021 | L38: =iFFT128!W38 -> 0.0007021139692 | M38: =iFFT128!AH38 -> -0.0008533480297 | N38: 0.001555461999
J39: =J38+定数!$B$10 -> 2.734375 | K39: =iFFT128!L39 -> -1.000336851 | L39: =iFFT128!W39 -> -0.0009959264595 | M39: =iFFT128!AH39 -> 0.001244845084 | N39: -0.002240771543
J40: =J39+定数!$B$10 -> 2.8125 | K40: =iFFT128!L40 -> -1.000402266 | L40: =iFFT128!W40 -> 0.001146502582 | M40: =iFFT128!AH40 -> -0.001868518511 | N40: 0.003015021093
J41: =J40+定数!$B$10 -> 2.890625 | K41: =iFFT128!L41 -> -0.9887601209 | L41: =iFFT128!W41 -> -0.0003221793238 | M41: =iFFT128!AH41 -> 0.003500745875 | N41: -0.003822925199
J42: =J41+定数!$B$10 -> 2.96875 | K42: =iFFT128!L42 -> -1.039077769 | L42: =iFFT128!W42 -> -0.01622023071 | M42: =iFFT128!AH42 -> 0.001273395051 | N42: -0.01749362576
J43: =J42+定数!$B$10 -> 3.046875 | K43: =iFFT128!L43 -> -1.143392029 | L43: =iFFT128!W43 -> -0.01233874563 | M43: =iFFT128!AH43 -> -0.01800446071 | N43: 0.005665715087
J44: =J43+定数!$B$10 -> 3.125 | K44: =iFFT128!L44 -> -1.175890195 | L44: =iFFT128!W44 -> 0.02222982543 | M44: =iFFT128!AH44 -> -0.03037122095 | N44: 0.05260104638
J45: =J44+定数!$B$10 -> 3.203125 | K45: =iFFT128!L45 -> -1.098193361 | L45: =iFFT128!W45 -> 0.05468686383 | M45: =iFFT128!AH45 -> -0.0149388933 | N45: 0.06962575713
J46: =J45+定数!$B$10 -> 3.28125 | K46: =iFFT128!L46 -> -1.025140973 | L46: =iFFT128!W46 -> 0.0605141304 | M46: =iFFT128!AH46 -> 0.00605018287 | N46: 0.05446394753
J47: =J46+定数!$B$10 -> 3.359375 | K47: =iFFT128!L47 -> -1.007354568 | L47: =iFFT128!W47 -> 0.06334068672 | M47: =iFFT128!AH47 -> 0.01094143842 | N47: 0.0523992483
J48: =J47+定数!$B$10 -> 3.4375 | K48: =iFFT128!L48 -> -0.9970342411 | L48: =iFFT128!W48 -> 0.06563153164 | M48: =iFFT128!AH48 -> 0.01363356182 | N48: 0.05199796982
J49: =J48+定数!$B$10 -> 3.515625 | K49: =iFFT128!L49 -> -0.9991931498 | L49: =iFFT128!W49 -> 0.0642990411 | M49: =iFFT128!AH49 -> 0.01266889031 | N49: 0.05163015078
J50: =J49+定数!$B$10 -> 3.59375 | K50: =iFFT128!L50 -> -0.9955523445 | L50: =iFFT128!W50 -> 0.0645069851 | M50: =iFFT128!AH50 -> 0.01211544481 | N50: 0.05239154029
J51: =J50+定数!$B$10 -> 3.671875 | K51: =iFFT128!L51 -> -0.9979973794 | L51: =iFFT128!W51 -> 0.06294137887 | M51: =iFFT128!AH51 -> 0.01230266727 | N51: 0.0506387116
J52: =J51+定数!$B$10 -> 3.75 | K52: =iFFT128!L52 -> -0.9956971967 | L52: =iFFT128!W52 -> 0.06480090176 | M52: =iFFT128!AH52 -> 0.01086527838 | N52: 0.05393562338
J53: =J52+定数!$B$10 -> 3.828125 | K53: =iFFT128!L53 -> -0.9985495049 | L53: =iFFT128!W53 -> 0.06119738464 | M53: =iFFT128!AH53 -> 0.01330864595 | N53: 0.04788873869
J54: =J53+定数!$B$10 -> 3.90625 | K54: =iFFT128!L54 -> -1.005929541 | L54: =iFFT128!W54 -> 0.06645794483 | M54: =iFFT128!AH54 -> 0.006905756565 | N54: 0.05955218826
J55: =J54+定数!$B$10 -> 3.984375 | K55: =iFFT128!L55 -> -0.9369857684 | L55: =iFFT128!W55 -> 0.08151817825 | M55: =iFFT128!AH55 -> 0.01348984452 | N55: 0.06802833373
J56: =J55+定数!$B$10 -> 4.0625 | K56: =iFFT128!L56 -> -0.8380940023 | L56: =iFFT128!W56 -> 0.0707932072 | M56: =iFFT128!AH56 -> 0.0335739744 | N56: 0.0372192328
J57: =J56+定数!$B$10 -> 4.140625 | K57: =iFFT128!L57 -> -0.8290164873 | L57: =iFFT128!W57 -> 0.03301635564 | M57: =iFFT128!AH57 -> 0.04133065919 | N57: -0.008314303548
J58: =J57+定数!$B$10 -> 4.21875 | K58: =iFFT128!L58 -> -0.9186366848 | L58: =iFFT128!W58 -> 0.005787217449 | M58: =iFFT128!AH58 -> 0.02135071153 | N58: -0.01556349408
J59: =J58+定数!$B$10 -> 4.296875 | K59: =iFFT128!L59 -> -0.9771056233 | L59: =iFFT128!W59 -> 0.002805971663 | M59: =iFFT128!AH59 -> 0.003759327897 | N59: -0.0009533562341
J60: =J59+定数!$B$10 -> 4.375 | K60: =iFFT128!L60 -> -0.9925841346 | L60: =iFFT128!W60 -> -0.0008795828626 | M60: =iFFT128!AH60 -> 0.0001134757634 | N60: -0.000993058626
J61: =J60+定数!$B$10 -> 4.453125 | K61: =iFFT128!L61 -> -0.9991965745 | L61: =iFFT128!W61 -> -0.001949908299 | M61: =iFFT128!AH61 -> -0.002064527575 | N61: 0.0001146192762
J62: =J61+定数!$B$10 -> 4.53125 | K62: =iFFT128!L62 -> -0.9985839949 | L62: =iFFT128!W62 -> -0.0008672780019 | M62: =iFFT128!AH62 -> -0.0007923643692 | N62: -7.491363269e-05
J63: =J62+定数!$B$10 -> 4.609375 | K63: =iFFT128!L63 -> -1.000571964 | L63: =iFFT128!W63 -> -0.001047863654 | M63: =iFFT128!AH63 -> -0.0004064614764 | N63: -0.0006414021778
J64: =J63+定数!$B$10 -> 4.6875 | K64: =iFFT128!L64 -> -0.9991485316 | L64: =iFFT128!W64 -> 0.0007352609804 | M64: =iFFT128!AH64 -> -0.000636116037 | N64: 0.001371377017
J65: =J64+定数!$B$10 -> 4.765625 | K65: =iFFT128!L65 -> -1.000692003 | L65: =iFFT128!W65 -> -0.001977180641 | M65: =iFFT128!AH65 -> 0.001066025143 | N65: -0.003043205784
J66: =J65+定数!$B$10 -> 4.84375 | K66: =iFFT128!L66 -> -1.003750753 | L66: =iFFT128!W66 -> 0.00183188932 | M66: =iFFT128!AH66 -> -0.002150531764 | N66: 0.003982421084
J67: =J66+定数!$B$10 -> 4.921875 | K67: =iFFT128!L67 -> -0.9876813547 | L67: =iFFT128!W67 -> 0.005534538342 | M67: =iFFT128!AH67 -> -0.002186559135 | N67: 0.007721097477
J68: =J67+定数!$B$10 -> 5 | K68: =iFFT128!L68 -> -0.9765268975 | L68: =iFFT128!W68 -> -0.002073070636 | M68: =iFFT128!AH68 -> 0.008989887729 | N68: =L68-M68 -> -0.01106295837
J69: =J68+定数!$B$10 -> 5.078125 | K69: =iFFT128!L69 -> -0.9922079721 | L69: =iFFT128!W69 -> -0.01339700584 | M69: =iFFT128!AH69 -> 0.01084517188 | N69: -0.02424217773
J70: =J69+定数!$B$10 -> 5.15625 | K70: =iFFT128!L70 -> -1.015612388 | L70: =iFFT128!W70 -> -0.0114420781 | M70: =iFFT128!AH70 -> -0.002492936065 | N70: -0.008949142039
J71: =J70+定数!$B$10 -> 5.234375 | K71: =iFFT128!L71 -> -1.01255593 | L71: =iFFT128!W71 -> -0.001808522307 | M71: =iFFT128!AH71 -> -0.0108802017 | N71: 0.009071679394
J72: =J71+定数!$B$10 -> 5.3125 | K72: =iFFT128!L72 -> -1.003177724 | L72: =iFFT128!W72 -> -0.0002743242195 | M72: =iFFT128!AH72 -> -0.004196441858 | N72: 0.003922117639
J73: =J72+定数!$B$10 -> 5.390625 | K73: =iFFT128!L73 -> -0.9999140002 | L73: =iFFT128!W73 -> -0.001331781758 | M73: =iFFT128!AH73 -> -0.00416862876 | N73: 0.002836847002
J74: =J73+定数!$B$10 -> 5.46875 | K74: =iFFT128!L74 -> -0.9960661389 | L74: =iFFT128!W74 -> -0.004687023867 | M74: =iFFT128!AH74 -> -0.004984276111 | N74: 0.0002972522445
J75: =J74+定数!$B$10 -> 5.546875 | K75: =iFFT128!L75 -> -0.9969551145 | L75: =iFFT128!W75 -> -0.005320232724 | M75: =iFFT128!AH75 -> -0.006143214636 | N75: 0.0008229819118
J76: =J75+定数!$B$10 -> 5.625 | K76: =iFFT128!L76 -> -0.9951996203 | L76: =iFFT128!W76 -> -0.004591321081 | M76: =iFFT128!AH76 -> -0.005454317085 | N76: 0.0008629960036
J77: =J76+定数!$B$10 -> 5.703125 | K77: =iFFT128!L77 -> -0.9972095105 | L77: =iFFT128!W77 -> -0.005160924074 | M77: =iFFT128!AH77 -> -0.004940464859 | N77: -0.0002204592153
J78: =J77+定数!$B$10 -> 5.78125 | K78: =iFFT128!L78 -> -0.9941727607 | L78: =iFFT128!W78 -> -0.002315257927 | M78: =iFFT128!AH78 -> -0.006379211724 | N78: 0.004063953797
J79: =J78+定数!$B$10 -> 5.859375 | K79: =iFFT128!L79 -> -0.9938488725 | L79: =iFFT128!W79 -> -0.00761599137 | M79: =iFFT128!AH79 -> -0.001883899647 | N79: -0.005732091723
J80: =J79+定数!$B$10 -> 5.9375 | K80: =iFFT128!L80 -> -1.012526402 | L80: =iFFT128!W80 -> -0.009059989792 | M80: =iFFT128!AH80 -> -0.004863216965 | N80: -0.004196772827
J81: =J80+定数!$B$10 -> 6.015625 | K81: =iFFT128!L81 -> -1.018270748 | L81: =iFFT128!W81 -> 0.0001674860342 | M81: =iFFT128!AH81 -> -0.01569592927 | N81: 0.01586341531
J82: =J81+定数!$B$10 -> 6.09375 | K82: =iFFT128!L82 -> -0.9987844557 | L82: =iFFT128!W82 -> 0.01024882705 | M82: =iFFT128!AH82 -> -0.01438348093 | N82: 0.02463230798
J83: =J82+定数!$B$10 -> 6.171875 | K83: =iFFT128!L83 -> -0.9783031001 | L83: =iFFT128!W83 -> 0.004929272352 | M83: =iFFT128!AH83 -> 0.000506720772 | N83: 0.00442255158
J84: =J83+定数!$B$10 -> 6.25 | K84: =iFFT128!L84 -> -0.9865614088 | L84: =iFFT128!W84 -> -0.003325433148 | M84: =iFFT128!AH84 -> 0.004832401191 | N84: -0.00815783434
J85: =J84+定数!$B$10 -> 6.328125 | K85: =iFFT128!L85 -> -0.9930198472 | L85: =iFFT128!W85 -> -0.003990072965 | M85: =iFFT128!AH85 -> -0.001629932117 | N85: -0.002360140848
J86: =J85+定数!$B$10 -> 6.40625 | K86: =iFFT128!L86 -> -0.9978034108 | L86: =iFFT128!W86 -> -0.002353771969 | M86: =iFFT128!AH86 -> -0.0006564124309 | N86: -0.001697359538
J87: =J86+定数!$B$10 -> 6.484375 | K87: =iFFT128!L87 -> -0.9992321499 | L87: =iFFT128!W87 -> 0.0007951998769 | M87: =iFFT128!AH87 -> 4.440875545e-05 | N87: 0.0007507911214
J88: =J87+定数!$B$10 -> 6.5625 | K88: =iFFT128!L88 -> -1.000189857 | L88: =iFFT128!W88 -> 0.000921671677 | M88: =iFFT128!AH88 -> 0.0009906541195 | N88: -6.898244247e-05
J89: =J88+定数!$B$10 -> 6.640625 | K89: =iFFT128!L89 -> -0.9999368347 | L89: =iFFT128!W89 -> 9.49809305e-05 | M89: =iFFT128!AH89 -> 0.0002476329072 | N89: -0.0001526519766
J90: =J89+定数!$B$10 -> 6.71875 | K90: =iFFT128!L90 -> -0.9998834843 | L90: =iFFT128!W90 -> 0.001228728639 | M90: =iFFT128!AH90 -> -0.0004365087639 | N90: 0.001665237403
J91: =J90+定数!$B$10 -> 6.796875 | K91: =iFFT128!L91 -> -0.9990755277 | L91: =iFFT128!W91 -> -0.001801599369 | M91: =iFFT128!AH91 -> 0.001213710051 | N91: -0.003015309421
J92: =J91+定数!$B$10 -> 6.875 | K92: =iFFT128!L92 -> -1.00380668 | L92: =iFFT128!W92 -> -0.0007989876401 | M92: =iFFT128!AH92 -> 0.0004821418241 | N92: -0.001281129464
J93: =J92+定数!$B$10 -> 6.953125 | K93: =iFFT128!L93 -> -1.002277594 | L93: =iFFT128!W93 -> 0.002949804664 | M93: =iFFT128!AH93 -> -0.003451357778 | N93: 0.006401162443
J94: =J93+定数!$B$10 -> 7.03125 | K94: =iFFT128!L94 -> -0.9970359498 | L94: =iFFT128!W94 -> 0.00312405402 | M94: =iFFT128!AH94 -> -0.002665723151 | N94: 0.005789777172
J95: =J94+定数!$B$10 -> 7.109375 | K95: =iFFT128!L95 -> -0.9948716395 | L95: =iFFT128!W95 -> -0.00168424205 | M95: =iFFT128!AH95 -> 0.003457914233 | N95: -0.005142156283
J96: =J95+定数!$B$10 -> 7.1875 | K96: =iFFT128!L96 -> -1.001290027 | L96: =iFFT128!W96 -> -0.002097725679 | M96: =iFFT128!AH96 -> 0.004348208087 | N96: -0.006445933766
J97: =J96+定数!$B$10 -> 7.265625 | K97: =iFFT128!L97 -> -1.002057462 | L97: =iFFT128!W97 -> 0.0005085486615 | M97: =iFFT128!AH97 -> 0.0003510617808 | N97: 0.0001574868807
J98: =J97+定数!$B$10 -> 7.34375 | K98: =iFFT128!L98 -> -1.001227893 | L98: =iFFT128!W98 -> -0.0007144987996 | M98: =iFFT128!AH98 -> -0.0007266260134 | N98: 1.212721374e-05
J99: =J98+定数!$B$10 -> 7.421875 | K99: =iFFT128!L99 -> -1.000322765 | L99: =iFFT128!W99 -> 0.0003174839632 | M99: =iFFT128!AH99 -> -0.0009351054184 | N99: 0.001252589382
J100: =J99+定数!$B$10 -> 7.5 | K100: =iFFT128!L100 -> -1.000547418 | L100: =iFFT128!W100 -> 0.0002529243054 | M100: =iFFT128!AH100 -> 0.0006015340897 | N100: =L100-M100 -> -0.0003486097843
J101: =J100+定数!$B$10 -> 7.578125 | K101: =iFFT128!L101 -> -1.000281869 | L101: =iFFT128!W101 -> 0.001805347153 | M101: =iFFT128!AH101 -> 0.0008727390622 | N101: 0.0009326080905
J102: =J101+定数!$B$10 -> 7.65625 | K102: =iFFT128!L102 -> -1.000428162 | L102: =iFFT128!W102 -> 0.00135300413 | M102: =iFFT128!AH102 -> 0.001243795847 | N102: 0.0001092082832
J103: =J102+定数!$B$10 -> 7.734375 | K103: =iFFT128!L103 -> -1.000700633 | L103: =iFFT128!W103 -> 0.0002087625876 | M103: =iFFT128!AH103 -> 0.001245672592 | N103: -0.001036910004
J104: =J103+定数!$B$10 -> 7.8125 | K104: =iFFT128!L104 -> -1.000617511 | L104: =iFFT128!W104 -> 0.003164484571 | M104: =iFFT128!AH104 -> -0.0009066197705 | N104: 0.004071104342
J105: =J104+定数!$B$10 -> 7.890625 | K105: =iFFT128!L105 -> -0.995839714 | L105: =iFFT128!W105 -> 0.0008174742371 | M105: =iFFT128!AH105 -> 0.001112282951 | N105: -0.0002948087143
J106: =J105+定数!$B$10 -> 7.96875 | K106: =iFFT128!L106 -> -0.9991647451 | L106: =iFFT128!W106 -> -0.002413850622 | M106: =iFFT128!AH106 -> 0.004416593814 | N106: -0.006830444437
J107: =J106+定数!$B$10 -> 8.046875 | K107: =iFFT128!L107 -> -1.004004933 | L107: =iFFT128!W107 -> -0.001619547088 | M107: =iFFT128!AH107 -> 0.002478569718 | N107: -0.004098116806
J108: =J107+定数!$B$10 -> 8.125 | K108: =iFFT128!L108 -> -1.004755761 | L108: =iFFT128!W108 -> 0.00348478587 | M108: =iFFT128!AH108 -> -0.003846424153 | N108: 0.007331210024
J109: =J108+定数!$B$10 -> 8.203125 | K109: =iFFT128!L109 -> -0.997806176 | L109: =iFFT128!W109 -> 0.002180873583 | M109: =iFFT128!AH109 -> -0.002657222868 | N109: 0.004838096451
J110: =J109+定数!$B$10 -> 8.28125 | K110: =iFFT128!L110 -> -0.9988693281 | L110: =iFFT128!W110 -> 0.0006724501291 | M110: =iFFT128!AH110 -> 0.000598539187 | N110: 7.391094203e-05
J111: =J110+定数!$B$10 -> 8.359375 | K111: =iFFT128!L111 -> -0.9987399935 | L111: =iFFT128!W111 -> 0.001485124481 | M111: =iFFT128!AH111 -> 0.001764422848 | N111: -0.0002792983672
J112: =J111+定数!$B$10 -> 8.4375 | K112: =iFFT128!L112 -> -1.000501285 | L112: =iFFT128!W112 -> 0.0006330176314 | M112: =iFFT128!AH112 -> 0.001186394852 | N112: -0.0005533772207
J113: =J112+定数!$B$10 -> 8.515625 | K113: =iFFT128!L113 -> -0.9990985141 | L113: =iFFT128!W113 -> 0.0003813348919 | M113: =iFFT128!AH113 -> 0.0002052719747 | N113: 0.0001760629172
J114: =J113+定数!$B$10 -> 8.59375 | K114: =iFFT128!L114 -> -1.000623346 | L114: =iFFT128!W114 -> -0.0008201205877 | M114: =iFFT128!AH114 -> -0.0005868684053 | N114: -0.0002332521825
J115: =J114+定数!$B$10 -> 8.671875 | K115: =iFFT128!L115 -> -0.9991548152 | L115: =iFFT128!W115 -> -0.0006367738511 | M115: =iFFT128!AH115 -> 7.333647868e-05 | N115: -0.0007101103298
J116: =J115+定数!$B$10 -> 8.75 | K116: =iFFT128!L116 -> -1.000738605 | L116: =iFFT128!W116 -> 0.0008126327999 | M116: =iFFT128!AH116 -> -0.0009906999339 | N116: 0.001803332734
J117: =J116+定数!$B$10 -> 8.828125 | K117: =iFFT128!L117 -> -0.9986900951 | L117: =iFFT128!W117 -> -0.0003229072669 | M117: =iFFT128!AH117 -> 0.0006695628438 | N117: -0.0009924701107
J118: =J117+定数!$B$10 -> 8.90625 | K118: =iFFT128!L118 -> -1.000655981 | L118: =iFFT128!W118 -> -0.001330213004 | M118: =iFFT128!AH118 -> 0.000667114152 | N118: -0.001997327156
J119: =J118+定数!$B$10 -> 8.984375 | K119: =iFFT128!L119 -> -1.00013923 | L119: =iFFT128!W119 -> 0.0001601209071 | M119: =iFFT128!AH119 -> 0.0003681471395 | N119: -0.0002080262324
J120: =J119+定数!$B$10 -> 9.0625 | K120: =iFFT128!L120 -> -1.001453577 | L120: =iFFT128!W120 -> 0.00179989267 | M120: =iFFT128!AH120 -> -0.001717839944 | N120: 0.003517732613
J121: =J120+定数!$B$10 -> 9.140625 | K121: =iFFT128!L121 -> -0.9983319001 | L121: =iFFT128!W121 -> -0.0001714503805 | M121: =iFFT128!AH121 -> -0.0001489388167 | N121: -2.251156385e-05
J122: =J121+定数!$B$10 -> 9.21875 | K122: =iFFT128!L122 -> -1.000062745 | L122: =iFFT128!W122 -> -0.0009419523671 | M122: =iFFT128!AH122 -> 2.148501129e-05 | N122: -0.0009634373784
J123: =J122+定数!$B$10 -> 9.296875 | K123: =iFFT128!L123 -> -0.9993520656 | L123: =iFFT128!W123 -> 0.0001888140023 | M123: =iFFT128!AH123 -> 0.0005985050777 | N123: -0.0004096910754
J124: =J123+定数!$B$10 -> 9.375 | K124: =iFFT128!L124 -> -1.001148018 | L124: =iFFT128!W124 -> -0.0002949260322 | M124: =iFFT128!AH124 -> 0.0001344712424 | N124: -0.0004293972745
J125: =J124+定数!$B$10 -> 9.453125 | K125: =iFFT128!L125 -> -0.9990986559 | L125: =iFFT128!W125 -> 0.0003676109288 | M125: =iFFT128!AH125 -> -5.639660021e-05 | N125: 0.000424007529
J126: =J125+定数!$B$10 -> 9.53125 | K126: =iFFT128!L126 -> -1.001115847 | L126: =iFFT128!W126 -> -0.0002667450194 | M126: =iFFT128!AH126 -> 0.0001156316683 | N126: -0.0003823766877
J127: =J126+定数!$B$10 -> 9.609375 | K127: =iFFT128!L127 -> -0.9987282816 | L127: =iFFT128!W127 -> 0.0002766460246 | M127: =iFFT128!AH127 -> -0.0001685173318 | N127: 0.0004451633564
J128: =J127+定数!$B$10 -> 9.6875 | K128: =iFFT128!L128 -> -1.001107004 | L128: =iFFT128!W128 -> -0.0004632876614 | M128: =iFFT128!AH128 -> -0.000541079266 | N128: 7.779160461e-05
J129: =J128+定数!$B$10 -> 9.765625 | K129: =iFFT128!L129 -> -0.9986943549 | L129: =iFFT128!W129 -> -0.00115107341 | M129: =iFFT128!AH129 -> 0.0006393461154 | N129: -0.001790419525
J130: =J129+定数!$B$10 -> 9.84375 | K130: =iFFT128!L130 -> -1.001906485 | L130: =iFFT128!W130 -> 0.0005655715491 | M130: =iFFT128!AH130 -> -0.001061359622 | N130: 0.001626931171
J131: =J130+定数!$B$10 -> 9.921875 | K131: =iFFT128!L131 -> -0.9984011661 | L131: =iFFT128!W131 -> 0.001110309126 | M131: =iFFT128!AH131 -> -0.0005975965244 | N131: 0.001707905651

Sheet GE (hidden)
A1: =OFFSET(Data!A3,0,定数!$X$1) -> ***** キャパシタンス(F/m) *****
A2: =OFFSET(Data!A4,0,定数!$X$1) -> 1.338041E-010 -1.562925E-011 -7.430538E-013 -3.298989E-013
A3: =OFFSET(Data!A5,0,定数!$X$1) -> -1.562925E-011 1.368889E-010 -1.658577E-011 -7.432751E-013
A4: =OFFSET(Data!A6,0,定数!$X$1) -> -7.430538E-013 -1.658577E-011 1.368882E-010 -1.563119E-011
A5: =OFFSET(Data!A7,0,定数!$X$1) -> -3.298989E-013 -7.432751E-013 -1.563119E-011 1.338055E-010
A6: =OFFSET(Data!A8,0,定数!$X$1) -> 0
A7: =OFFSET(Data!A9,0,定数!$X$1) -> ***** インダクタンス(H/m) *****
A8: =OFFSET(Data!A10,0,定数!$X$1) -> 3.246550E-007 5.382879E-008 1.666131E-008 7.324458E-009
A9: =OFFSET(Data!A11,0,定数!$X$1) -> 5.382879E-008 3.219591E-007 5.560033E-008 1.666212E-008
A10: =OFFSET(Data!A12,0,定数!$X$1) -> 1.666131E-008 5.560033E-008 3.219615E-007 5.383261E-008
A11: =OFFSET(Data!A13,0,定数!$X$1) -> 7.324458E-009 1.666212E-008 5.383261E-008 3.246531E-007
A12: =OFFSET(Data!A14,0,定数!$X$1) -> 0
A13: =OFFSET(Data!A15,0,定数!$X$1) -> ***** 抵抗(Ω/m) *****
A14: =OFFSET(Data!A16,0,定数!$X$1) -> 3.333333E+000 3.333333E+000 3.333333E+000 3.333333E+000
A15: =OFFSET(Data!A17,0,定数!$X$1) -> 0
A16: =OFFSET(Data!A18,0,定数!$X$1) -> ***** 面積(μm^2) *****
A17: =OFFSET(Data!A19,0,定数!$X$1) -> 5.040000E+003 5.040000E+003 5.040000E+003 5.040000E+003
A18: =OFFSET(Data!A20,0,定数!$X$1) -> 0
A19: =OFFSET(Data!A21,0,定数!$X$1) -> ***** 特性インピーダンス(Ω) *****
A20: =OFFSET(Data!A22,0,定数!$X$1) -> 4.958017E+001 6.998157E+000 1.757240E+000 6.799772E-001
A21: =OFFSET(Data!A23,0,定数!$X$1) -> 6.998157E+000 4.917173E+001 7.289819E+000 1.757381E+000
A22: =OFFSET(Data!A24,0,定数!$X$1) -> 1.757240E+000 7.289819E+000 4.917212E+001 6.998803E+000
A23: =OFFSET(Data!A25,0,定数!$X$1) -> 6.799772E-001 1.757381E+000 6.998803E+000 4.957985E+001
A24: =OFFSET(Data!A26,0,定数!$X$1) -> 0
A25: =OFFSET(Data!A27,0,定数!$X$1) -> ***** 近端クロストーク係数 *****
A26: =OFFSET(Data!A28,0,定数!$X$1) -> 1.000000E+000 1.423207E-001 3.573652E-002 1.371479E-002
A27: =OFFSET(Data!A29,0,定数!$X$1) -> 1.411483E-001 1.000000E+000 1.482511E-001 3.544546E-002
A28: =OFFSET(Data!A30,0,定数!$X$1) -> 3.544240E-002 1.482522E-001 1.000000E+000 1.411623E-001
A29: =OFFSET(Data!A31,0,定数!$X$1) -> 1.371470E-002 3.573965E-002 1.423327E-001 1.000000E+000
A30: =OFFSET(Data!A32,0,定数!$X$1) -> 0
A31: =OFFSET(Data!A33,0,定数!$X$1) -> ***** 伝搬モード *****
A32: =OFFSET(Data!A34,0,定数!$X$1) -> 4.465208E-001 6.388358E-001 -2.933451E-001 5.352961E-001
A33: =OFFSET(Data!A35,0,定数!$X$1) -> 5.482941E-001 3.030969E-001 6.434354E-001 -4.619720E-001
A34: =OFFSET(Data!A36,0,定数!$X$1) -> 5.482880E-001 -3.030958E-001 -6.433784E-001 -4.620628E-001
A35: =OFFSET(Data!A37,0,定数!$X$1) -> 4.465120E-001 -6.388693E-001 2.932639E-001 5.352923E-001
A36: =OFFSET(Data!A38,0,定数!$X$1) -> 0
A37: =OFFSET(Data!A39,0,定数!$X$1) -> ***** 伝搬モードの遅延時間(s/m) *****
A38: =OFFSET(Data!A40,0,定数!$X$1) -> 6.848024E-009 6.517415E-009 6.313553E-009 6.366206E-009
A39: =OFFSET(Data!A41,0,定数!$X$1) -> 0
A40: =OFFSET(Data!A42,0,定数!$X$1) -> ***** 伝搬モードの特性インピーダンス(Ω) *****
A41: =OFFSET(Data!A43,0,定数!$X$1) -> 6.252701E+001 5.166094E+001 3.912120E+001 4.419472E+001

Sheet 定数 (hidden)
A1: T(ns) | B1: =波形!F3 -> 10 | C1: =B1*0.000000001 -> 1e-08 | O1: 2 | Q1: 3 | S1: 2 | U1: 1 | X1: =X3-1 -> 5 | Y1: =OFFSET(Data!A1,0,定数!$X$1) -> 0.15
A2: TW(ns) | B2: =波形!G3 -> 1 | C2: =B2*0.000000001 -> 1e-09 | O2: 逆方向近端 | Q2: v11 | S2: 電圧源 | U2: Microstrip
A3: TW/2 | C3: =C2/2 -> 5e-10 | O3: 順方向遠端 | Q3: v21 | S3: 電流源 | U3: Strip | X3: 6
A4: tr(ns) | B4: =波形!H3 -> 0.2 | C4: =B4*0.000000001 -> 2e-10 | Q4: v11-v21 | S4: 整合 | X4: 0 | Y4: 0.025
A5: tr/2 | C5: =C4/2 -> 1e-10 | Q5: v12 | X5: =X4+1 -> 1 | Y5: 0.05
A6: Vin | B6: =(1+A13/B13)*B2/B1 -> 23.6294118 | Q6: v22 | X6: 2 | Y6: 0.075
A7: DC | B7: =(1+A13/B13)*(2*B2/B1-1)/2 -> -94.51764719 | Q7: v12-v22 | X7: 3 | Y7: 0.1
A8: Δω | B8: =2*PI()/C1 -> 628318530.7 | X8: 4 | Y8: 0.125
A9: length | B9: =波形!I3 -> 0.15 | X9: 5 | Y9: 0.15
A10: Δt(ns) | B10: =B1/128 -> 0.078125 | X10: 6 | Y10: 0.175
O11: -1 | P11: +1 | Q11: -2 | R11: +2 | S11: -3 | T11: +3 | U11: -4 | V11: +4 | X11: 7 | Y11: 0.2
A12: R | D12: 1e-06 | O12: 係数 | X12: 8 | Y12: 0.225
A13: =Temp!A2+$D$12*(2*RAND()-1) -> 10000 | B13: =Temp!B2+$D$12*(2*RAND()-1) -> 42.49999994 | O13: =A38+A50*$A13/A$65 -> 74.36881889 | P13: =A38-A50*$A13/A$65 -> -73.47577729 | Q13: =B38+B50*$A13/$B$65 -> 125.1937865 | R13: =B38-B50*$A13/$B$65 -> -123.9161149 | S13: =C38+C50*$A13/$C$65 -> -77.78674411 | T13: =C38-C50*$A13/$C$65 -> 77.20005391 | U13: =D38+D50*$A13/$D$65 -> 124.646606 | V13: =D38-D50*$A13/$D$65 -> -123.5760138 | X13: 9 | Y13: 0.25
A14: =Temp!A4+$D$12*(2*RAND()-1) -> 9999.999999 | B14: =Temp!B4+$D$12*(2*RAND()-1) -> 42.49999911 | O14: =A39+A51*$A14/A$65 -> 86.19483562 | P14: =A39-A51*$A14/A$65 -> -85.09824742 | Q14: =B39+B51*$A14/$B$65 -> 57.08636942 | R14: =B39-B51*$A14/$B$65 -> -56.48017562 | S14: =C39+C51*$A14/$C$65 -> 163.9696719 | T14: =C39-C51*$A14/$C$65 -> -162.6828011 | U14: =D39+D51*$A14/$D$65 -> -101.5258453 | V14: =D39-D51*$A14/$D$65 -> 100.6019013 | X14: 10 | Y14: 0.275
A15: =Temp!A6+$D$12*(2*RAND()-1) -> 10000 | B15: =Temp!B6+$D$12*(2*RAND()-1) -> 42.49999954 | O15: =A40+A52*$A15/A$65 -> 86.19199998 | P15: =A40-A52*$A15/A$65 -> -85.09542398 | Q15: =B40+B52*$A15/$B$65 -> -57.08288425 | R15: =B40-B52*$A15/$B$65 -> 56.47669265 | S15: =C40+C52*$A15/$C$65 -> -163.9569661 | T15: =C40-C52*$A15/$C$65 -> 162.6702093 | U15: =D40+D52*$A15/$D$65 -> -101.548681 | V15: =D40-D52*$A15/$D$65 -> 100.6245554 | X15: 11 | Y15: 0.3
A16: =Temp!A8+$D$12*(2*RAND()-1) -> 10000 | B16: =Temp!B8+$D$12*(2*RAND()-1) -> 42.50000002 | O16: =A41+A53*$A16/A$65 -> 74.36642375 | P16: =A41-A53*$A16/A$65 -> -73.47339975 | Q16: =B41+B53*$A16/$B$65 -> -125.2013287 | R16: =B41-B53*$A16/$B$65 -> 123.9235901 | S16: =C41+C53*$A16/$C$65 -> 77.77042694 | T16: =C41-C53*$A16/$C$65 -> -77.18389914 | U16: =D41+D53*$A16/$D$65 -> 124.650711 | V16: =D41-D53*$A16/$D$65 -> -123.5801264
O17: =A38-A50*$B13/A$65 -> 0.1323510335 | P17: =A38+A50*$B13/A$65 -> 0.7606905665 | Q17: =B38-B50*$B13/B$65 -> 0.1094772602 | R17: =B38+B50*$B13/B$65 -> 1.16819434 | S17: =C38-C50*$B13/C$65 -> 0.03600184536 | T17: =C38+C50*$B13/C$65 -> -0.6226920454 | U17: =D38-D50*$B13/D$65 -> 0.007823033688 | V17: =D38+D50*$B13/D$65 -> 1.062769166
A18: C(pF) | D18: C(F) | O18: =A39-A51*$B14/A$65 -> 0.1842963062 | P18: =A39+A51*$B14/A$65 -> 0.9122918938 | Q18: =B39-B51*$B14/B$65 -> 0.06176799682 | R18: =B39+B51*$B14/B$65 -> 0.5444258032 | S18: =C39-C51*$B14/C$65 -> -0.05070109051 | T18: =C39+C51*$B14/C$65 -> 1.337571891 | U18: =D39-D51*$B14/D$65 -> -0.03245054728 | V18: =D39+D51*$B14/D$65 -> -0.8914934527
A19: =波形!C6 -> 1 | B19: =波形!L6 -> 1 | D19: =A19*0.000000000001 -> 1e-12 | E19: 1e-12 | O19: =A40-A52*$B15/A$65 -> 0.1843022281 | P19: =A40+A52*$B15/A$65 -> 0.9122737719 | Q19: =B40-B52*$B15/B$65 -> -0.06178170172 | R19: =B40+B52*$B15/B$65 -> -0.5444098983 | S19: =C40-C52*$B15/C$65 -> 0.05070433993 | T19: =C40+C52*$B15/C$65 -> -1.33746114 | U19: =D40-D52*$B15/D$65 -> -0.03244467745 | V19: =D40+D52*$B15/D$65 -> -0.8916809225
A20: =波形!C8 -> 1 | B20: =波形!L8 -> 1 | D20: 1e-12 | E20: 1e-12 | O20: =A41-A53*$B16/A$65 -> 0.132352375 | P20: =A41+A53*$B16/A$65 -> 0.760671625 | Q20: =B41-B53*$B16/B$65 -> -0.1094788472 | R20: =B41+B53*$B16/B$65 -> -1.168259753 | S20: =C41-C53*$B16/C$65 -> -0.03601404306 | T20: =C41+C53*$B16/C$65 -> 0.6225418431 | U20: =D41-D53*$B16/D$65 -> 0.007801770545 | V20: =D41+D53*$B16/D$65 -> 1.062782829
A21: =波形!C10 -> 1 | B21: =波形!L10 -> 1 | D21: 1e-12 | E21: 1e-12
A22: =波形!C12 -> 1 | B22: =波形!L12 -> 1 | D22: 1e-12 | E22: 1e-12 | O22: aCR
N23: 1 | O23: =A38*$A25 -> 4.465208e-09 | P23: =O23 -> 4.465208e-09 | Q23: =B38*$A25 -> 6.388358e-09 | R23: =Q23 -> 6.388358e-09 | S23: =C38*$A25 -> -2.933451e-09 | T23: =S23 -> -2.933451e-09 | U23: =D38*$A25 -> 5.352961e-09 | V23: =U23 -> 5.352961e-09
A24: CR | N24: =N23+1 -> 2 | O24: =A39*$A26 -> 5.482941e-09 | P24: 5.482941e-09 | Q24: =B39*$A26 -> 3.030969e-09 | R24: 3.030969e-09 | S24: =C39*$A26 -> 6.434353999e-09 | T24: 6.434353999e-09 | U24: =D39*$A26 -> -4.61972e-09 | V24: -4.61972e-09
A25: =A13*D19 -> 1e-08 | B25: 4.249999994e-11 | N25: =N24+1 -> 3 | O25: =A40*$A27 -> 5.48288e-09 | P25: 5.48288e-09 | Q25: =B40*$A27 -> -3.030958e-09 | R25: -3.030958e-09 | S25: =C40*$A27 -> -6.433784e-09 | T25: -6.433784e-09 | U25: =D40*$A27 -> -4.620628e-09 | V25: -4.620628e-09
A26: 9.999999999e-09 | B26: 4.249999911e-11 | N26: 4 | O26: =A41*$A28 -> 4.46512e-09 | P26: 4.46512e-09 | Q26: =B41*$A28 -> -6.388693e-09 | R26: -6.388693e-09 | S26: =C41*$A28 -> 2.932639e-09 | T26: 2.932639e-09 | U26: =D41*$A28 -> 5.352923e-09 | V26: 5.352923e-09
A27: 1e-08 | B27: 4.249999954e-11 | N27: 5 | O27: =A38*$B25 -> 1.897713398e-11 | P27: 1.897713398e-11 | Q27: =B38*$B25 -> 2.715052146e-11 | R27: 2.715052146e-11 | S27: =C38*$B25 -> -1.246716673e-11 | T27: -1.246716673e-11 | U27: =D38*$B25 -> 2.275008422e-11 | V27: 2.275008422e-11
A28: 1e-08 | B28: 4.250000002e-11 | N28: 6 | O28: =A39*$B26 -> 2.330249876e-11 | P28: 2.330249876e-11 | Q28: =B39*$B26 -> 1.288161798e-11 | R28: 1.288161798e-11 | S28: =C39*$B26 -> 2.734600393e-11 | T28: 2.734600393e-11 | U28: =D39*$B26 -> -1.963380959e-11 | V28: -1.963380959e-11
N29: 7 | O29: =A40*$B27 -> 2.330223975e-11 | P29: 2.330223975e-11 | Q29: =B40*$B27 -> -1.288157136e-11 | R29: -1.288157136e-11 | S29: =C40*$B27 -> -2.73435817e-11 | T29: -2.73435817e-11 | U29: =D40*$B27 -> -1.963766879e-11 | V29: -1.963766879e-11
A30: V | D30: Vcomplex | N30: 8 | O30: =A41*$B28 -> 1.897676001e-11 | P30: 1.897676001e-11 | Q30: =B41*$B28 -> -2.715194526e-11 | R30: -2.715194526e-11 | S30: =C41*$B28 -> 1.246371576e-11 | T30: 1.246371576e-11 | U30: =D41*$B28 -> 2.274992276e-11 | V30: 2.274992276e-11
A31: 1 | B31: 0 | D31: =COMPLEX(A31,0) -> 1 | E31: =COMPLEX(B31,0) -> 0
A32: -1 | B32: 0 | D32: =COMPLEX(A32,0) -> -1 | E32: 0
A33: 0 | B33: 0 | D33: 0 | E33: 0
A34: 0 | B34: 0 | D34: 0 | E34: 0
A37: aij | F37: complex
A38: =VALUE(MID(GE!$A32,A$70,14)) -> 0.4465208 | B38: =VALUE(MID(GE!$A32,B$70,14)) -> 0.6388358 | C38: =VALUE(MID(GE!$A32,C$70,14)) -> -0.2933451 | D38: =VALUE(MID(GE!$A32,D$70,14)) -> 0.5352961 | F38: =COMPLEX(A38,0) -> 0.4465208 | G38: 0.6388358 | H38: -0.2933451 | I38: 0.5352961
A39: =VALUE(MID(GE!$A33,A$70,14)) -> 0.5482941 | B39: =VALUE(MID(GE!$A33,B$70,14)) -> 0.3030969 | C39: =VALUE(MID(GE!$A33,C$70,14)) -> 0.6434354 | D39: =VALUE(MID(GE!$A33,D$70,14)) -> -0.461972 | F39: 0.5482941 | G39: 0.3030969 | H39: 0.6434354 | I39: -0.461972
A40: =VALUE(MID(GE!$A34,A$70,14)) -> 0.548288 | B40: =VALUE(MID(GE!$A34,B$70,14)) -> -0.3030958 | C40: =VALUE(MID(GE!$A34,C$70,14)) -> -0.6433784 | D40: =VALUE(MID(GE!$A34,D$70,14)) -> -0.4620628 | F40: 0.548288 | G40: -0.3030958 | H40: -0.6433784 | I40: -0.4620628
A41: =VALUE(MID(GE!$A35,A$70,14)) -> 0.446512 | B41: =VALUE(MID(GE!$A35,B$70,14)) -> -0.6388693 | C41: =VALUE(MID(GE!$A35,C$70,14)) -> 0.2932639 | D41: =VALUE(MID(GE!$A35,D$70,14)) -> 0.5352923 | F41: 0.446512 | G41: -0.6388693 | H41: 0.2932639 | I41: 0.5352923
A43: transpose
A44: =TRANSPOSE(A38:D41) -> 0.4465208 | B44: 0.5482941 | C44: 0.548288 | D44: 0.446512
A45: 0.6388358 | B45: 0.3030969 | C45: -0.3030958 | D45: -0.6388693
A46: -0.2933451 | B46: 0.6434354 | C46: -0.6433784 | D46: 0.2932639
A47: 0.5352961 | B47: -0.461972 | C47: -0.4620628 | D47: 0.5352923
A49: inverse=bij
A50: =MINVERSE(A44:D47) -> 0.4622140272 | B50: 0.6434625835 | C50: -0.3031634761 | D50: 0.5485064589
A51: 0.5355222158 | B51: 0.2933477235 | C51: 0.6389518363 | D51: -0.4466489585
A52: 0.5355045235 | B52: -0.2933297244 | C52: -0.6389023525 | D52: -0.4467494786
A53: 0.4621991061 | B53: -0.6435013743 | C53: 0.3030999591 | D53: 0.5485246175
A55: Δ | B55: =MDETERM(A77:D80) -> 1.000808236e-26
A57: td/m
A58: =VALUE(MID(GE!$A38,A$70,14)) -> 6.848024e-09 | B58: =VALUE(MID(GE!$A38,B$70,14)) -> 6.517415e-09 | C58: =VALUE(MID(GE!$A38,C$70,14)) -> 6.313553e-09 | D58: =VALUE(MID(GE!$A38,D$70,14)) -> 6.366206e-09
A60: τ
A61: =A58*$B$9 -> 1.0272036e-09 | B61: =B58*$B$9 -> 9.7761225e-10 | C61: =C58*$B$9 -> 9.4703295e-10 | D61: =D58*$B$9 -> 9.549309e-10
A63: =MID(GE!$A40,13,9) -> 特性インピーダンス
A64: Z1 | B64: Z2 | C64: Z3 | D64: Z4
A65: =VALUE(MID(GE!$A41,A$70,14)) -> 62.52701 | B65: =VALUE(MID(GE!$A41,B$70,14)) -> 51.66094 | C65: =VALUE(MID(GE!$A41,C$70,14)) -> 39.1212 | D65: =VALUE(MID(GE!$A41,D$70,14)) -> 44.19472
A69: =MID(GE!$A1,7,7) -> キャパシタンス
A70: 4 | B70: =A70+17 -> 21 | C70: =B70+17 -> 38 | D70: =C70+17 -> 55
A71: =VALUE(MID(GE!$A2,A$70,14)) -> 1.338041e-10 | B71: =VALUE(MID(GE!$A2,B$70,14)) -> -1.562925e-11 | C71: =VALUE(MID(GE!$A2,C$70,14)) -> -7.430538e-13 | D71: =VALUE(MID(GE!$A2,D$70,14)) -> -3.298989e-13
A72: =VALUE(MID(GE!$A3,A$70,14)) -> -1.562925e-11 | B72: =VALUE(MID(GE!$A3,B$70,14)) -> 1.368889e-10 | C72: =VALUE(MID(GE!$A3,C$70,14)) -> -1.658577e-11 | D72: =VALUE(MID(GE!$A3,D$70,14)) -> -7.432751e-13
A73: =VALUE(MID(GE!$A4,A$70,14)) -> -7.430538e-13 | B73: =VALUE(MID(GE!$A4,B$70,14)) -> -1.658577e-11 | C73: =VALUE(MID(GE!$A4,C$70,14)) -> 1.368882e-10 | D73: =VALUE(MID(GE!$A4,D$70,14)) -> -1.563119e-11
A74: =VALUE(MID(GE!$A5,A$70,14)) -> -3.298989e-13 | B74: =VALUE(MID(GE!$A5,B$70,14)) -> -7.432751e-13 | C74: =VALUE(MID(GE!$A5,C$70,14)) -> -1.563119e-11 | D74: =VALUE(MID(GE!$A5,D$70,14)) -> 1.338055e-10
A76: =MID(GE!$A7,7,7) -> インダクタンス
A77: =VALUE(MID(GE!$A8,A$70,14)) -> 3.24655e-07 | B77: =VALUE(MID(GE!$A8,B$70,14)) -> 5.382879e-08 | C77: =VALUE(MID(GE!$A8,C$70,14)) -> 1.666131e-08 | D77: =VALUE(MID(GE!$A8,D$70,14)) -> 7.324458e-09
A78: =VALUE(MID(GE!$A9,A$70,14)) -> 5.382879e-08 | B78: =VALUE(MID(GE!$A9,B$70,14)) -> 3.219591e-07 | C78: =VALUE(MID(GE!$A9,C$70,14)) -> 5.560033e-08 | D78: =VALUE(MID(GE!$A9,D$70,14)) -> 1.666212e-08
A79: =VALUE(MID(GE!$A10,A$70,14)) -> 1.666131e-08 | B79: =VALUE(MID(GE!$A10,B$70,14)) -> 5.560033e-08 | C79: =VALUE(MID(GE!$A10,C$70,14)) -> 3.219615e-07 | D79: =VALUE(MID(GE!$A10,D$70,14)) -> 5.383261e-08
A80: =VALUE(MID(GE!$A11,A$70,14)) -> 7.324458e-09 | B80: =VALUE(MID(GE!$A11,B$70,14)) -> 1.666212e-08 | C80: =VALUE(MID(GE!$A11,C$70,14)) -> 5.383261e-08 | D80: =VALUE(MID(GE!$A11,D$70,14)) -> 3.246531e-07

Sheet 計算 (hidden)
D1: ωTW/2 | E1: ωtr/2 | F1: sinc | G1: Vin | I1: A11 | J1: A12 | K1: A21 | L1: A22 | M1: A31 | N1: A32 | O1: A41 | P1: A42 | R1: exp(jωτ1) | S1: exp(jωτ2) | T1: exp(jωτ3) | U1: exp(jωτ4) | W1: Near End | AA1: Far End | AF1: Near End | AJ1: Far End | AO1: =定数!O1 -> 2 | AQ1: =定数!O1-1 -> 1
A2: n | B2: ω | W2: mode1 | X2: mode2 | Y2: mode3 | Z2: mode4 | AA2: mode1 | AB2: mode2 | AC2: mode3 | AD2: mode4 | AF2: V11 | AG2: V21 | AH2: V31 | AI2: V41 | AJ2: V12 | AK2: V22 | AL2: V32 | AM2: V42 | AO2: =IF($AO$1=1,"v11-v12","v21-v22") -> v21-v22 | AQ2: =IF($AQ$1=0,AH2,AL2) -> V32 | AR2: =IF($AQ$1=0,AI2,AM2) -> V42
A4: 0 | B4: =A4*定数!$B$8 -> 0 | F4: =定数!$B$6 -> 23.6294118 | G4: =COMPLEX(定数!B7,0) -> -94.5176471868841 | I4: =IMSUB(掃き出し!LZ4,IMPRODUCT(P4,掃き出し!LY4)) -> 0.0446078952401397 | J4: =IMSUB(掃き出し!MB4,IMPRODUCT(P4,掃き出し!MA4)) -> -0.0152846239421769 | K4: =IMSUB(掃き出し!MD4,IMPRODUCT(P4,掃き出し!MC4)) -> -0.151644559916489 | L4: =IMSUB(掃き出し!MF4,IMPRODUCT(P4,掃き出し!ME4)) -> 0.0115986136120776 | M4: =IMSUB(掃き出し!MH4,IMPRODUCT(P4,掃き出し!MG4)) -> 0.360884129880819 | N4: =IMSUB(掃き出し!MJ4,IMPRODUCT(P4,掃き出し!MI4)) -> 0.0159619901148177 | O4: =IMSUB(掃き出し!ML4,IMPRODUCT(P4,掃き出し!MK4)) -> -0.406438067658524 | P4: =IMDIV(掃き出し!MN4,掃き出し!MM4) -> 0.00837590416815734 | R4: =IMEXP(COMPLEX(0,計算!$B4*定数!A$61)) -> 1 | S4: =IMEXP(COMPLEX(0,計算!$B4*定数!B$61)) -> 1 | T4: =IMEXP(COMPLEX(0,計算!$B4*定数!C$61)) -> 1 | U4: =IMEXP(COMPLEX(0,計算!$B4*定数!D$61)) -> 1 | W4: =IMSUM(I4,J4) -> 0.0293232712979628 | X4: =IMSUM(K4,L4) -> -0.140045946304411 | Y4: =IMSUM(M4,N4) -> 0.376846119995637 | Z4: =IMSUM(O4,P4) -> -0.398062163490367 | AA4: =IMSUM(IMDIV(I4,R4),IMPRODUCT(J4,R4)) -> 0.0293232712979628 | AB4: =IMSUM(IMDIV(K4,S4),IMPRODUCT(L4,S4)) -> -0.140045946304411 | AC4: =IMSUM(IMDIV(M4,T4),IMPRODUCT(N4,T4)) -> 0.376846119995637 | AD4: =IMSUM(IMDIV(O4,U4),IMPRODUCT(P4,U4)) -> -0.398062163490367 | AF4: =IMSUM(IMPRODUCT(定数!$F$38,計算!W4),IMPRODUCT(定数!$G$38,計算!X4),IMPRODUCT(定数!$H$38,計算!Y4),IMPRODUCT(定数!$I$38,計算!Z4)) -> -0.40000000001424 | AG4: =IMSUM(IMPRODUCT(定数!$F$39,計算!W4),IMPRODUCT(定数!$G$39,計算!X4),IMPRODUCT(定数!$H$39,計算!Y4),IMPRODUCT(定数!$I$39,計算!Z4)) -> 0.399999992212752 | AH4: =IMSUM(IMPRODUCT(定数!$F$40,計算!W4),IMPRODUCT(定数!$G$40,計算!X4),IMPRODUCT(定数!$H$40,計算!Y4),IMPRODUCT(定数!$I$40,計算!Z4)) -> 1.27259036641902E-11 | AI4: =IMSUM(IMPRODUCT(定数!$F$41,計算!W4),IMPRODUCT(定数!$G$41,計算!X4),IMPRODUCT(定数!$H$41,計算!Y4),IMPRODUCT(定数!$I$41,計算!Z4)) -> 9.18556897211431E-12 | AJ4: =IMSUM(IMPRODUCT(定数!$F$38,計算!AA4),IMPRODUCT(定数!$G$38,計算!AB4),IMPRODUCT(定数!$H$38,計算!AC4),IMPRODUCT(定数!$I$38,計算!AD4)) -> -0.40000000001424 | AK4: =IMSUM(IMPRODUCT(定数!$F$39,計算!AA4),IMPRODUCT(定数!$G$39,計算!AB4),IMPRODUCT(定数!$H$39,計算!AC4),IMPRODUCT(定数!$I$39,計算!AD4)) -> 0.399999992212752 | AL4: =IMSUM(IMPRODUCT(定数!$F$40,計算!AA4),IMPRODUCT(定数!$G$40,計算!AB4),IMPRODUCT(定数!$H$40,計算!AC4),IMPRODUCT(定数!$I$40,計算!AD4)) -> 1.27259036641902E-11 | AM4: =IMSUM(IMPRODUCT(定数!$F$41,計算!AA4),IMPRODUCT(定数!$G$41,計算!AB4),IMPRODUCT(定数!$H$41,計算!AC4),IMPRODUCT(定数!$I$41,計算!AD4)) -> 9.18556897211431E-12 | AO4: =IF($AO$1=1,IMSUB(AF4,AG4),IMSUB(AJ4,AK4)) -> -0.799999992226992 | AQ4: =IF($AQ$1=0,AH4,AL4) -> 1.27259036641902E-11 | AR4: =IF($AQ$1=0,AI4,AM4) -> 9.18556897211431E-12
A5: =A4+1 -> 1 | B5: =A5*定数!$B$8 -> 628318530.7 | D5: =B5*定数!$C$3 -> 0.3141592654 | E5: =B5*定数!$C$5 -> 0.06283185307 | F5: =定数!$B$6*SIN(D5)*SIN(E5)/(D5*E5) -> 23.22734713 | G5: =IMPRODUCT(COMPLEX(F5,0),IMEXP(COMPLEX(0,-(D5+E5)))) -> 21.596241188142-8.55055677113639i | I5: =IMSUB(掃き出し!LZ5,IMPRODUCT(P5,掃き出し!LY5)) -> -0.0132816713783552+0.00188223264070138i | J5: =IMSUB(掃き出し!MB5,IMPRODUCT(P5,掃き出し!MA5)) -> 0.00041434216334925-0.00417484587288374i | K5: =IMSUB(掃き出し!MD5,IMPRODUCT(P5,掃き出し!MC5)) -> 0.0363965153618129-0.0128846252663378i | L5: =IMSUB(掃き出し!MF5,IMPRODUCT(P5,掃き出し!ME5)) -> -0.00058208481355456+0.00302350217787891i | M5: =IMSUB(掃き出し!MH5,IMPRODUCT(P5,掃き出し!MG5)) -> -0.0765100458139231+0.0366879389501852i | N5: =IMSUB(掃き出し!MJ5,IMPRODUCT(P5,掃き出し!MI5)) -> 0.00135547137999703+0.00367527133850061i | O5: =IMSUB(掃き出し!ML5,IMPRODUCT(P5,掃き出し!MK5)) -> 0.0924606535417434-0.0379401876490303i | P5: =IMDIV(掃き出し!MN5,掃き出し!MM5) -> -0.0013255559454471+0.00212847145783657i | R5: =IMEXP(COMPLEX(0,計算!$B5*定数!A$61)) -> 0.798852572792623+0.601526863026587i | S5: =IMEXP(COMPLEX(0,計算!$B5*定数!B$61)) -> 0.817204845280224+0.576347326575326i | T5: =IMEXP(COMPLEX(0,計算!$B5*定数!C$61)) -> 0.828127001775084+0.560540514977294i | U5: =IMEXP(COMPLEX(0,計算!$B5*定数!D$61)) -> 0.825335174474081+0.564643117177424i | W5: -0.0128673292150059-0.00229261323218236i | X5: 0.0358144305482583-0.00986112308845889i | Y5: -0.0751545744339261+0.0403632102886858i | Z5: 0.0911350975962963-0.0358117161911937i | AA5: -0.00663560361099459+0.00640706008276384i | AB5: 0.0200991194516949-0.0293710749193642i | AC5: -0.0437325946918216+0.0770726414252399i | AD5: 0.0525925090961308-0.0825124067039773i | AF5: =IMSUM(IMPRODUCT(定数!$F$38,計算!W5),IMPRODUCT(定数!$G$38,計算!X5),IMPRODUCT(定数!$H$38,計算!Y5),IMPRODUCT(定数!$I$38,計算!Z5)) -> 0.0879644987250875-0.0383335599215472i | AG5: =IMSUM(IMPRODUCT(定数!$F$39,計算!W5),IMPRODUCT(定数!$G$39,計算!X5),IMPRODUCT(定数!$H$39,計算!Y5),IMPRODUCT(定数!$I$39,計算!Z5)) -> -0.0866588147863822+0.038269226362245i | AH5: =IMSUM(IMPRODUCT(定数!$F$40,計算!W5),IMPRODUCT(定数!$G$40,計算!X5),IMPRODUCT(定数!$H$40,計算!Y5),IMPRODUCT(定数!$I$40,計算!Z5)) -> -0.0116675142008436-0.00768970313074178i | AI5: =IMSUM(IMPRODUCT(定数!$F$41,計算!W5),IMPRODUCT(定数!$G$41,計算!X5),IMPRODUCT(定数!$H$41,計算!Y5),IMPRODUCT(定数!$I$41,計算!Z5)) -> -0.00188236467500271-0.00205637397594184i | AJ5: =IMSUM(IMPRODUCT(定数!$F$38,計算!AA5),IMPRODUCT(定数!$G$38,計算!AB5),IMPRODUCT(定数!$H$38,計算!AC5),IMPRODUCT(定数!$I$38,計算!AD5)) -> 0.0508584093928601-0.0826798597655722i | AK5: =IMSUM(IMPRODUCT(定数!$F$39,計算!AA5),IMPRODUCT(定数!$G$39,計算!AB5),IMPRODUCT(定数!$H$39,計算!AC5),IMPRODUCT(定数!$I$39,計算!AD5)) -> -0.0499816476820364+0.0823203588983535i | AL5: =IMSUM(IMPRODUCT(定数!$F$40,計算!AA5),IMPRODUCT(定数!$G$40,計算!AB5),IMPRODUCT(定数!$H$40,計算!AC5),IMPRODUCT(定数!$I$40,計算!AD5)) -> -0.00589461573348303+0.000954204560636947i | AM5: =IMSUM(IMPRODUCT(定数!$F$41,計算!AA5),IMPRODUCT(定数!$G$41,計算!AB5),IMPRODUCT(定数!$H$41,計算!AC5),IMPRODUCT(定数!$I$41,計算!AD5)) -> -0.00047641313387722+0.0000594747302168491i | AO5: =IF($AO$1=1,IMSUB(AF5,AG5),IMSUB(AJ5,AK5)) -> 0.100840057074896-0.165000218663926i | AQ5: -0.00589461573348303+0.000954204560636947i | AR5: -0.00047641313387722+0.0000594747302168491i
A6: 2 | B6: =A6*定数!$B$8 -> 1256637061 | D6: =B6*定数!$C$3 -> 0.6283185307 | E6: =B6*定数!$C$5 -> 0.1256637061 | F6: =定数!$B$6*SIN(D6)*SIN(E6)/(D6*E6) -> 22.04692925 | G6: 16.0715197516535-15.0921616102831i | I6: =IMSUB(掃き出し!LZ6,IMPRODUCT(P6,掃き出し!LY6)) -> -0.0141472366576012+0.0113408273717954i | J6: =IMSUB(掃き出し!MB6,IMPRODUCT(P6,掃き出し!MA6)) -> -0.00510235036332195+0.00014741720612961i | K6: =IMSUB(掃き出し!MD6,IMPRODUCT(P6,掃き出し!MC6)) -> 0.0293713663548281-0.0272520329014386i | L6: =IMSUB(掃き出し!MF6,IMPRODUCT(P6,掃き出し!ME6)) -> 0.00332130403679612+0.00086589068283282i | M6: =IMSUB(掃き出し!MH6,IMPRODUCT(P6,掃き出し!MG6)) -> -0.052830030205363+0.0553254312103845i | N6: =IMSUB(掃き出し!MJ6,IMPRODUCT(P6,掃き出し!MI6)) -> 0.00328449496944885-0.00218919706018424i | O6: =IMSUB(掃き出し!ML6,IMPRODUCT(P6,掃き出し!MK6)) -> 0.0691145409830124-0.0677135958925828i | P6: =IMDIV(掃き出し!MN6,掃き出し!MM6) -> 0.00223837873918174+0.00250728211211555i | R6: =IMEXP(COMPLEX(0,計算!$B6*定数!A$61)) -> 0.27633086611479+0.961062564265329i | S6: =IMEXP(COMPLEX(0,計算!$B6*定数!B$61)) -> 0.335647518298944+0.941987655683322i | T6: =IMEXP(COMPLEX(0,計算!$B6*定数!C$61)) -> 0.371588662137979+0.928397472083217i | U6: =IMEXP(COMPLEX(0,計算!$B6*定数!D$61)) -> 0.362356300448321+0.932039651262437i | W6: -0.0192495870209232+0.011488244577925i | X6: 0.0326926703916242-0.0263861422186058i | Y6: -0.0495455352359142+0.0531362341502003i | Z6: 0.0713529197221941-0.0652063137804672i | AA6: 0.00543831242284465+0.0118672581898249i | AB6: -0.0155135232363165-0.0333952802865253i | AC6: 0.0349858763409785+0.0718414054783686i | AD6: -0.039593462630121-0.0859591535628727i | AF6: =IMSUM(IMPRODUCT(定数!$F$38,計算!W6),IMPRODUCT(定数!$G$38,計算!X6),IMPRODUCT(定数!$H$38,計算!Y6),IMPRODUCT(定数!$I$38,計算!Z6)) -> 0.0650187868867538-0.0622186114960804i | AG6: =IMSUM(IMPRODUCT(定数!$F$39,計算!W6),IMPRODUCT(定数!$G$39,計算!X6),IMPRODUCT(定数!$H$39,計算!Y6),IMPRODUCT(定数!$I$39,計算!Z6)) -> -0.0654877902552216+0.0626146040767325i | AH6: =IMSUM(IMPRODUCT(定数!$F$40,計算!W6),IMPRODUCT(定数!$G$40,計算!X6),IMPRODUCT(定数!$H$40,計算!Y6),IMPRODUCT(定数!$I$40,計算!Z6)) -> -0.0215563313427997+0.0102391021413035i | AI6: =IMSUM(IMPRODUCT(定数!$F$41,計算!W6),IMPRODUCT(定数!$G$41,計算!X6),IMPRODUCT(定数!$H$41,計算!Y6),IMPRODUCT(定数!$I$41,計算!Z6)) -> -0.00581676342917716+0.00266543685201245i | AJ6: =IMSUM(IMPRODUCT(定数!$F$38,計算!AA6),IMPRODUCT(定数!$G$38,計算!AB6),IMPRODUCT(定数!$H$38,計算!AC6),IMPRODUCT(定数!$I$38,計算!AD6)) -> -0.0389394359390238-0.0831230469130389i | AK6: =IMSUM(IMPRODUCT(定数!$F$39,計算!AA6),IMPRODUCT(定数!$G$39,計算!AB6),IMPRODUCT(定数!$H$39,計算!AC6),IMPRODUCT(定数!$I$39,計算!AD6)) -> 0.0390819162703672+0.0823207672794645i | AL6: =IMSUM(IMPRODUCT(定数!$F$40,計算!AA6),IMPRODUCT(定数!$G$40,計算!AB6),IMPRODUCT(定数!$H$40,計算!AC6),IMPRODUCT(定数!$I$40,計算!AD6)) -> 0.00346935423953909+0.0101259631235182i | AM6: =IMSUM(IMPRODUCT(定数!$F$41,計算!AA6),IMPRODUCT(定数!$G$41,計算!AB6),IMPRODUCT(定数!$H$41,計算!AC6),IMPRODUCT(定数!$I$41,計算!AD6)) -> 0.00140540435150007+0.0016893102641557i | AO6: -0.078021352209391-0.165443814192503i | AQ6: 0.00346935423953909+0.0101259631235182i | AR6: 0.00140540435150007+0.0016893102641557i
A7: 3 | B7: =A7*定数!$B$8 -> 1884955592 | D7: =B7*定数!$C$3 -> 0.9424777961 | E7: =B7*定数!$C$5 -> 0.1884955592 | F7: =定数!$B$6*SIN(D7)*SIN(E7)/(D7*E7) -> 20.16343811 | G7: 8.58517439268337-18.2444242698715i | I7: =IMSUB(掃き出し!LZ7,IMPRODUCT(P7,掃き出し!LY7)) -> -0.00106024168236914+0.0157821773257548i | J7: =IMSUB(掃き出し!MB7,IMPRODUCT(P7,掃き出し!MA7)) -> 0.00174118288887493+0.00426840393339904i | K7: =IMSUB(掃き出し!MD7,IMPRODUCT(P7,掃き出し!MC7)) -> 0.0117469113243953-0.0359615332354829i | L7: =IMSUB(掃き出し!MF7,IMPRODUCT(P7,掃き出し!ME7)) -> 0.00065325229813574-0.00335649329660127i | M7: =IMSUB(掃き出し!MH7,IMPRODUCT(P7,掃き出し!MG7)) -> -0.0296946479518435+0.0658950553469559i | N7: =IMSUB(掃き出し!MJ7,IMPRODUCT(P7,掃き出し!MI7)) -> -0.00294384695134329-0.00311670631542472i | O7: =IMSUB(掃き出し!ML7,IMPRODUCT(P7,掃き出し!MK7)) -> 0.0337115512204823-0.0854926508692826i | P7: =IMDIV(掃き出し!MN7,掃き出し!MM7) -> 0.00340556118013486-0.00238263911590217i | R7: =IMEXP(COMPLEX(0,計算!$B7*定数!A$61)) -> -0.357357326117+0.933967741129483i | S7: =IMEXP(COMPLEX(0,計算!$B7*定数!B$61)) -> -0.268619288759854+0.963246426261811i | T7: =IMEXP(COMPLEX(0,計算!$B7*定数!C$61)) -> -0.212681792435201+0.977121515046389i | U7: =IMEXP(COMPLEX(0,計算!$B7*定数!D$61)) -> -0.227204373569476+0.973847099205467i | W7: 0.00068094120650579+0.0200505812591538i | X7: 0.012400163622531-0.0393180265320842i | Y7: -0.0326384949031868+0.0627783490315312i | Z7: 0.0371171124006172-0.0878752899851848i | AA7: 0.0105101535983355-0.00454878192711339i | AB7: -0.0347376113320415-0.00012434708872208i | AC7: 0.0743744907099625+0.0127869714041645i | AD7: -0.0893696141326518-0.00954775027602214i | AF7: =IMSUM(IMPRODUCT(定数!$F$38,計算!W7),IMPRODUCT(定数!$G$38,計算!X7),IMPRODUCT(定数!$H$38,計算!Y7),IMPRODUCT(定数!$I$38,計算!Z7)) -> 0.0376687109227492-0.0816197824396707i | AG7: =IMSUM(IMPRODUCT(定数!$F$39,計算!W7),IMPRODUCT(定数!$G$39,計算!X7),IMPRODUCT(定数!$H$39,計算!Y7),IMPRODUCT(定数!$I$39,計算!Z7)) -> -0.034016022473912+0.0800661790354508i | AH7: =IMSUM(IMPRODUCT(定数!$F$40,計算!W7),IMPRODUCT(定数!$G$40,計算!X7),IMPRODUCT(定数!$H$40,計算!Y7),IMPRODUCT(定数!$I$40,計算!Z7)) -> 0.000463380124407317+0.0231242905904005i | AI7: =IMSUM(IMPRODUCT(定数!$F$41,計算!W7),IMPRODUCT(定数!$G$41,計算!X7),IMPRODUCT(定数!$H$41,計算!Y7),IMPRODUCT(定数!$I$41,計算!Z7)) -> 0.0026787767274337+0.00544356261033298i | AJ7: =IMSUM(IMPRODUCT(定数!$F$38,計算!AA7),IMPRODUCT(定数!$G$38,計算!AB7),IMPRODUCT(定数!$H$38,計算!AC7),IMPRODUCT(定数!$I$38,計算!AD7)) -> -0.0871552258510186-0.010972432008802i | AK7: =IMSUM(IMPRODUCT(定数!$F$39,計算!AA7),IMPRODUCT(定数!$G$39,計算!AB7),IMPRODUCT(定数!$H$39,計算!AC7),IMPRODUCT(定数!$I$39,計算!AD7)) -> 0.0843752324597649+0.0101066238408031i | AL7: =IMSUM(IMPRODUCT(定数!$F$40,計算!AA7),IMPRODUCT(定数!$G$40,計算!AB7),IMPRODUCT(定数!$H$40,計算!AC7),IMPRODUCT(定数!$I$40,計算!AD7)) -> 0.00973484850016056-0.00627155444153681i | AM7: =IMSUM(IMPRODUCT(定数!$F$41,計算!AA7),IMPRODUCT(定数!$G$41,計算!AB7),IMPRODUCT(定数!$H$41,計算!AC7),IMPRODUCT(定数!$I$41,計算!AD7)) -> 0.000858190045811072-0.00331252428021411i | AO7: -0.171530458310784-0.0210790558496051i | AQ7: 0.00973484850016056-0.00627155444153681i | AR7: 0.000858190045811072-0.00331252428021411i
A8: 4 | B8: =A8*定数!$B$8 -> 2513274123 | D8: =B8*定数!$C$3 -> 1.256637061 | E8: =B8*定数!$C$5 -> 0.2513274123 | F8: =定数!$B$6*SIN(D8)*SIN(E8)/(D8*E8) -> 17.69569556 | G8: 1.11112191779525-17.660777149398i | I8: =IMSUB(掃き出し!LZ8,IMPRODUCT(P8,掃き出し!LY8)) -> 0.00356175632776636+0.0086181705673494i | J8: =IMSUB(掃き出し!MB8,IMPRODUCT(P8,掃き出し!MA8)) -> 0.0028164021828181-0.00151546605222718i | K8: =IMSUB(掃き出し!MD8,IMPRODUCT(P8,掃き出し!MC8)) -> -0.00467700487489793-0.0300194497099857i | L8: =IMSUB(掃き出し!MF8,IMPRODUCT(P8,掃き出し!ME8)) -> -0.00282155015228039-0.000517784337676889i | M8: =IMSUB(掃き出し!MH8,IMPRODUCT(P8,掃き出し!MG8)) -> 0.00035526617837621+0.0685137455770017i | N8: =IMSUB(掃き出し!MJ8,IMPRODUCT(P8,掃き出し!MI8)) -> -0.00264985539562229+0.00383492641256146i | O8: =IMSUB(掃き出し!ML8,IMPRODUCT(P8,掃き出し!MK8)) -> -0.00701180338881415-0.0802190014024253i | P8: =IMDIV(掃き出し!MN8,掃き出し!MM8) -> -0.00259274073508235-0.00384040225668872i | R8: =IMEXP(COMPLEX(0,計算!$B8*定数!A$61)) -> -0.847282504864505+0.531142501547871i | S8: =IMEXP(COMPLEX(0,計算!$B8*定数!B$61)) -> -0.774681486919514+0.632351637796702i | T8: =IMEXP(COMPLEX(0,計算!$B8*定数!C$61)) -> -0.723843732341014+0.689963949167368i | U8: =IMEXP(COMPLEX(0,計算!$B8*定数!D$61)) -> -0.737395823050806+0.675460879805208i | W8: 0.00637815851058446+0.00710270451512222i | X8: -0.00749855502717832-0.0305372340476626i | Y8: -0.00229458921724608+0.0723486719895632i | Z8: -0.0096045441238965-0.084059403659114i | AA8: -0.0000216970153718501-0.00641388653797208i | AB8: -0.0128464346577074+0.0248299297111572i | AC8: 0.0462869775213801-0.0544425583117652i | AD8: -0.044508405058+0.0649699570943762i | AF8: =IMSUM(IMPRODUCT(定数!$F$38,計算!W8),IMPRODUCT(定数!$G$38,計算!X8),IMPRODUCT(定数!$H$38,計算!Y8),IMPRODUCT(定数!$I$38,計算!Z8)) -> -0.00641053346736624-0.0825565724070649i | AG8: =IMSUM(IMPRODUCT(定数!$F$39,計算!W8),IMPRODUCT(定数!$G$39,計算!X8),IMPRODUCT(定数!$H$39,計算!Y8),IMPRODUCT(定数!$I$39,計算!Z8)) -> 0.00418492842417138+0.0800234175335455i | AH8: =IMSUM(IMPRODUCT(定数!$F$40,計算!W8),IMPRODUCT(定数!$G$40,計算!X8),IMPRODUCT(定数!$H$40,計算!Y8),IMPRODUCT(定数!$I$40,計算!Z8)) -> 0.0116840399981182+0.00544318563094136i | AI8: =IMSUM(IMPRODUCT(定数!$F$41,計算!W8),IMPRODUCT(定数!$G$41,計算!X8),IMPRODUCT(定数!$H$41,計算!Y8),IMPRODUCT(定数!$I$41,計算!Z8)) -> 0.00182436221682341-0.00109835367541285i | AJ8: =IMSUM(IMPRODUCT(定数!$F$38,計算!AA8),IMPRODUCT(定数!$G$38,計算!AB8),IMPRODUCT(定数!$H$38,計算!AC8),IMPRODUCT(定数!$I$38,計算!AD8)) -> -0.0456196842248404+0.0637469366249339i | AK8: =IMSUM(IMPRODUCT(定数!$F$39,計算!AA8),IMPRODUCT(定数!$G$39,計算!AB8),IMPRODUCT(定数!$H$39,計算!AC8),IMPRODUCT(定数!$I$39,計算!AD8)) -> 0.0464387059313949-0.0610353917273271i | AL8: =IMSUM(IMPRODUCT(定数!$F$40,計算!AA8),IMPRODUCT(定数!$G$40,計算!AB8),IMPRODUCT(定数!$H$40,計算!AC8),IMPRODUCT(定数!$I$40,計算!AD8)) -> -0.00533255909734655-0.0060355386642557i | AM8: =IMSUM(IMPRODUCT(定数!$F$41,計算!AA8),IMPRODUCT(定数!$G$41,計算!AB8),IMPRODUCT(定数!$H$41,計算!AC8),IMPRODUCT(定数!$I$41,計算!AD8)) -> -0.00205320222615866+0.0000849236680051033i | AO8: -0.0920583901562353+0.124782328352261i | AQ8: -0.00533255909734655-0.0060355386642557i | AR8: -0.00205320222615866+0.0000849236680051033i
A9: 5 | B9: =A9*定数!$B$8 -> 3141592654 | D9: =B9*定数!$C$3 -> 1.570796327 | E9: =B9*定数!$C$5 -> 0.3141592654 | F9: =定数!$B$6*SIN(D9)*SIN(E9)/(D9*E9) -> 14.79672237 | G9: -4.57243867402811-14.0725192317996i | I9: =IMSUB(掃き出し!LZ9,IMPRODUCT(P9,掃き出し!LY9)) -> 0.00301586241199141+0.00605791384371902i | J9: =IMSUB(掃き出し!MB9,IMPRODUCT(P9,掃き出し!MA9)) -> -0.00091340764775653-0.00225688853866261i | K9: =IMSUB(掃き出し!MD9,IMPRODUCT(P9,掃き出し!MC9)) -> -0.0113386864368722-0.0201651162573427i | L9: =IMSUB(掃き出し!MF9,IMPRODUCT(P9,掃き出し!ME9)) -> -0.00069052471505454+0.00227904185047106i | M9: =IMSUB(掃き出し!MH9,IMPRODUCT(P9,掃き出し!MG9)) -> 0.0268999934340967+0.0491757273139387i | N9: =IMSUB(掃き出し!MJ9,IMPRODUCT(P9,掃き出し!MI9)) -> 0.00405846931540793+0.00158265515218171i | O9: =IMSUB(掃き出し!ML9,IMPRODUCT(P9,掃き出し!MK9)) -> -0.0309078123229699-0.0544976661501051i | P9: =IMDIV(掃き出し!MN9,掃き出し!MM9) -> -0.00367169431611703+0.00248567976967137i | R9: =IMEXP(COMPLEX(0,計算!$B9*定数!A$61)) -> -0.996350291669373-0.0853586333674312i | S9: =IMEXP(COMPLEX(0,計算!$B9*定数!B$61)) -> -0.997527640559173+0.0702752183948877i | T9: =IMEXP(COMPLEX(0,計算!$B9*定数!C$61)) -> -0.986187287199293+0.165634038067355i | U9: =IMEXP(COMPLEX(0,計算!$B9*定数!D$61)) -> -0.989993046978713+0.141116146963427i | W9: 0.00210245476423488+0.00380102530505641i | X9: -0.0120292111519267-0.0178860744068716i | Y9: 0.0309584627495046+0.0507583824661204i | Z9: -0.0345795066390869-0.0520119863804337i | AA9: -0.00280452158564744-0.00345175554890398i | AB9: 0.0104222025054536+0.0185901554924573i | AC9: -0.0226478096686115-0.0538406053822788i | AD9: 0.0261922009233674+0.0553349609075492i | AF9: =IMSUM(IMPRODUCT(定数!$F$38,計算!W9),IMPRODUCT(定数!$G$38,計算!X9),IMPRODUCT(定数!$H$38,計算!Y9),IMPRODUCT(定数!$I$38,計算!Z9)) -> -0.034337689341247-0.0524605640356009i | AG9: =IMSUM(IMPRODUCT(定数!$F$39,計算!W9),IMPRODUCT(定数!$G$39,計算!X9),IMPRODUCT(定数!$H$39,計算!Y9),IMPRODUCT(定数!$I$39,計算!Z9)) -> 0.0334012816368374+0.0533506875404039i | AH9: =IMSUM(IMPRODUCT(定数!$F$40,計算!W9),IMPRODUCT(定数!$G$40,計算!X9),IMPRODUCT(定数!$H$40,計算!Y9),IMPRODUCT(定数!$I$40,計算!Z9)) -> 0.000858651525274153-0.00111879224346646i | AI9: =IMSUM(IMPRODUCT(定数!$F$41,計算!W9),IMPRODUCT(定数!$G$41,計算!X9),IMPRODUCT(定数!$H$41,計算!Y9),IMPRODUCT(定数!$I$41,計算!Z9)) -> -0.000807279127906017+0.000168052629632452i | AJ9: =IMSUM(IMPRODUCT(定数!$F$38,計算!AA9),IMPRODUCT(定数!$G$38,計算!AB9),IMPRODUCT(定数!$H$38,計算!AC9),IMPRODUCT(定数!$I$38,計算!AD9)) -> 0.0260700058500077+0.0557492427444361i | AK9: =IMSUM(IMPRODUCT(定数!$F$39,計算!AA9),IMPRODUCT(定数!$G$39,計算!AB9),IMPRODUCT(定数!$H$39,計算!AC9),IMPRODUCT(定数!$I$39,計算!AD9)) -> -0.0250512312863747-0.0564641127225955i | AL9: =IMSUM(IMPRODUCT(定数!$F$40,計算!AA9),IMPRODUCT(定数!$G$40,計算!AB9),IMPRODUCT(定数!$H$40,計算!AC9),IMPRODUCT(定数!$I$40,計算!AD9)) -> -0.00222794148602182+0.00154450137354099i | AM9: =IMSUM(IMPRODUCT(定数!$F$41,計算!AA9),IMPRODUCT(定数!$G$41,計算!AB9),IMPRODUCT(定数!$H$41,計算!AC9),IMPRODUCT(定数!$I$41,計算!AD9)) -> -0.00053197927691122+0.000412942681834391i | AO9: 0.0511212371363824+0.112213355467032i | AQ9: -0.00222794148602182+0.00154450137354099i | AR9: -0.00053197927691122+0.000412942681834391i
A10: 6 | B10: =A10*定数!$B$8 -> 3769911184 | D10: =B10*定数!$C$3 -> 1.884955592 | E10: =B10*定数!$C$5 -> 0.3769911184 | F10: =定数!$B$6*SIN(D10)*SIN(E10)/(D10*E10) -> 11.6418441 | G10: -7.42079071221014-8.97019504691032i | I10: =IMSUB(掃き出し!LZ10,IMPRODUCT(P10,掃き出し!LY10)) -> 0.00419811071892568+0.00557311579354442i | J10: =IMSUB(掃き出し!MB10,IMPRODUCT(P10,掃き出し!MA10)) -> -0.00214726721129297+0.00061516595038001i | K10: =IMSUB(掃き出し!MD10,IMPRODUCT(P10,掃き出し!MC10)) -> -0.0131147676167364-0.0125558624496733i | L10: =IMSUB(掃き出し!MF10,IMPRODUCT(P10,掃き出し!ME10)) -> 0.00191588289637633+0.00085790478300991i | M10: =IMSUB(掃き出し!MH10,IMPRODUCT(P10,掃き出し!MG10)) -> 0.0311025695962962+0.024705871994639i | N10: =IMSUB(掃き出し!MJ10,IMPRODUCT(P10,掃き出し!MI10)) -> 0.000913822114917116-0.00338865692626207i | O10: =IMSUB(掃き出し!ML10,IMPRODUCT(P10,掃き出し!MK10)) -> -0.0351184838875668-0.0305231814158639i | P10: =IMDIV(掃き出し!MN10,掃き出し!MM10) -> 0.00199600330711946+0.00336281998382205i | R10: =IMEXP(COMPLEX(0,計算!$B10*定数!A$61)) -> -0.744591482941009-0.66752042929914i | S10: =IMEXP(COMPLEX(0,計算!$B10*定数!B$61)) -> -0.855687355412295-0.517493139845846i | T10: =IMEXP(COMPLEX(0,計算!$B10*定数!C$61)) -> -0.909532910333101-0.415631910494129i | U10: =IMEXP(COMPLEX(0,計算!$B10*定数!D$61)) -> -0.8967563452618-0.442524640254868i | W10: 0.00205084350763271+0.00618828174392443i | X10: -0.0111988847203601-0.0116979576666634i | Y10: 0.0320163917112133+0.0213172150683769i | Z10: -0.0331224805804473-0.0271603614320418i | AA10: -0.00483657341638089-0.000372072480520626i | AB10: 0.0165242765723347+0.00223153593155589i | AC10: -0.0407969446612911-0.00684130187022709i | AD10: 0.0446981852103988+0.00793215135971493i | AF10: =IMSUM(IMPRODUCT(定数!$F$38,計算!W10),IMPRODUCT(定数!$G$38,計算!X10),IMPRODUCT(定数!$H$38,計算!Y10),IMPRODUCT(定数!$I$38,計算!Z10)) -> -0.0333606905009403-0.0255020137645434i | AG10: =IMSUM(IMPRODUCT(定数!$F$39,計算!W10),IMPRODUCT(定数!$G$39,計算!X10),IMPRODUCT(定数!$H$39,計算!Y10),IMPRODUCT(定数!$I$39,計算!Z10)) -> 0.0336322565590314+0.0261109609601249i | AH10: =IMSUM(IMPRODUCT(定数!$F$40,計算!W10),IMPRODUCT(定数!$G$40,計算!X10),IMPRODUCT(定数!$H$40,計算!Y10),IMPRODUCT(定数!$I$40,計算!Z10)) -> -0.000775200944448358+0.00577331938730932i | AI10: =IMSUM(IMPRODUCT(定数!$F$41,計算!W10),IMPRODUCT(定数!$G$41,計算!X10),IMPRODUCT(定数!$H$41,計算!Y10),IMPRODUCT(定数!$I$41,計算!Z10)) -> -0.000270607036097662+0.00194944537227615i | AJ10: =IMSUM(IMPRODUCT(定数!$F$38,計算!AA10),IMPRODUCT(定数!$G$38,計算!AB10),IMPRODUCT(定数!$H$38,計算!AC10),IMPRODUCT(定数!$I$38,計算!AD10)) -> 0.0442910168439327+0.00751235900912125i | AK10: =IMSUM(IMPRODUCT(定数!$F$39,計算!AA10),IMPRODUCT(定数!$G$39,計算!AB10),IMPRODUCT(定数!$H$39,計算!AC10),IMPRODUCT(定数!$I$39,計算!AD10)) -> -0.0445429160895353-0.00759400115608917i | AL10: =IMSUM(IMPRODUCT(定数!$F$40,計算!AA10),IMPRODUCT(定数!$G$40,計算!AB10),IMPRODUCT(定数!$H$40,計算!AC10),IMPRODUCT(定数!$I$40,計算!AD10)) -> -0.00206576962459919-0.000143978260713351i | AM10: =IMSUM(IMPRODUCT(定数!$F$41,計算!AA10),IMPRODUCT(定数!$G$41,計算!AB10),IMPRODUCT(定数!$H$41,計算!AC10),IMPRODUCT(定数!$I$41,計算!AD10)) -> -0.000754117808422959+0.000647918051809654i | AO10: 0.088833932933468+0.0151063601652104i | AQ10: -0.00206576962459919-0.000143978260713351i | AR10: -0.000754117808422959+0.000647918051809654i
A11: 7 | B11: =A11*定数!$B$8 -> 4398229715 | D11: =B11*定数!$C$3 -> 2.199114858 | E11: =B11*定数!$C$5 -> 0.4398229715 | F11: =定数!$B$6*SIN(D11)*SIN(E11)/(D11*E11) -> 8.415293539 | G11: -7.3743779429451-4.05409858116178i | I11: =IMSUB(掃き出し!LZ11,IMPRODUCT(P11,掃き出し!LY11)) -> 0.00684339998577384+0.00209056351354567i | J11: =IMSUB(掃き出し!MB11,IMPRODUCT(P11,掃き出し!MA11)) -> 0.0009826825701001+0.00192119834215582i | K11: =IMSUB(掃き出し!MD11,IMPRODUCT(P11,掃き出し!MC11)) -> -0.0135994420641487-0.0058723248213387i | L11: =IMSUB(掃き出し!MF11,IMPRODUCT(P11,掃き出し!ME11)) -> 0.00081574439680532-0.0017033628438861i | M11: =IMSUB(掃き出し!MH11,IMPRODUCT(P11,掃き出し!MG11)) -> 0.0258565548526637+0.0101187866985186i | N11: =IMSUB(掃き出し!MJ11,IMPRODUCT(P11,掃き出し!MI11)) -> -0.00267182659320974-0.000746728745155665i | O11: =IMSUB(掃き出し!ML11,IMPRODUCT(P11,掃き出し!MK11)) -> -0.0323141878336828-0.0135869260911924i | P11: =IMDIV(掃き出し!MN11,掃き出し!MM11) -> 0.00301685827801021-0.00152456165041537i | R11: =IMEXP(COMPLEX(0,計算!$B11*定数!A$61)) -> -0.193287351984434-0.981142191307073i | S11: =IMEXP(COMPLEX(0,計算!$B11*定数!B$61)) -> -0.40101606521673-0.916071020957486i | T11: =IMEXP(COMPLEX(0,計算!$B11*定数!C$61)) -> -0.520230236900536-0.85402605382647i | U11: =IMEXP(COMPLEX(0,計算!$B11*定数!D$61)) -> -0.490256062376067-0.871578449311084i | W11: 0.00782608255587394+0.00401176185570149i | X11: -0.0127836976673434-0.0075756876652248i | Y11: 0.023184728259454+0.00937205795336294i | Z11: -0.0292973295556726-0.0151114877416078i | AA11: -0.00167885408902498+0.00497477430196496i | AB11: 0.00894553339249625-0.0101673621197593i | AC11: -0.0213408299520419+0.019488353098952i | AD11: 0.0248764903204156-0.0233852799057229i | AF11: =IMSUM(IMPRODUCT(定数!$F$38,計算!W11),IMPRODUCT(定数!$G$38,計算!X11),IMPRODUCT(定数!$H$38,計算!Y11),IMPRODUCT(定数!$I$38,計算!Z11)) -> -0.0271560477638692-0.0138866531077622i | AG11: =IMSUM(IMPRODUCT(定数!$F$39,計算!W11),IMPRODUCT(定数!$G$39,計算!X11),IMPRODUCT(定数!$H$39,計算!Y11),IMPRODUCT(定数!$I$39,計算!Z11)) -> 0.0288687165889959+0.0129148559823996i | AH11: =IMSUM(IMPRODUCT(定数!$F$40,計算!W11),IMPRODUCT(定数!$G$40,計算!X11),IMPRODUCT(定数!$H$40,計算!Y11),IMPRODUCT(定数!$I$40,計算!Z11)) -> 0.00678628497885109+0.00544843668509136i | AI11: =IMSUM(IMPRODUCT(定数!$F$41,計算!W11),IMPRODUCT(定数!$G$41,計算!X11),IMPRODUCT(定数!$H$41,計算!Y11),IMPRODUCT(定数!$I$41,計算!Z11)) -> 0.00277816066242939+0.00129059732221596i | AJ11: =IMSUM(IMPRODUCT(定数!$F$38,計算!AA11),IMPRODUCT(定数!$G$38,計算!AB11),IMPRODUCT(定数!$H$38,計算!AC11),IMPRODUCT(定数!$I$38,計算!AD11)) -> 0.0245415998568783-0.0225087967321225i | AK11: =IMSUM(IMPRODUCT(定数!$F$39,計算!AA11),IMPRODUCT(定数!$G$39,計算!AB11),IMPRODUCT(定数!$H$39,計算!AC11),IMPRODUCT(定数!$I$39,計算!AD11)) -> -0.0234328297944883+0.0229887842590945i | AL11: =IMSUM(IMPRODUCT(定数!$F$40,計算!AA11),IMPRODUCT(定数!$G$40,計算!AB11),IMPRODUCT(定数!$H$40,計算!AC11),IMPRODUCT(定数!$I$40,計算!AD11)) -> -0.001396120893196+0.0040763762846372i | AM11: =IMSUM(IMPRODUCT(定数!$F$41,計算!AA11),IMPRODUCT(定数!$G$41,計算!AB11),IMPRODUCT(定数!$H$41,計算!AC11),IMPRODUCT(定数!$I$41,計算!AD11)) -> 0.000593043544980959+0.00191418211091367i | AO11: 0.0479744296513666-0.045497580991217i | AQ11: -0.001396120893196+0.0040763762846372i | AR11: 0.000593043544980959+0.00191418211091367i
A12: 8 | B12: =A12*定数!$B$8 -> 5026548246 | D12: =B12*定数!$C$3 -> 2.513274123 | E12: =B12*定数!$C$5 -> 0.5026548246 | F12: =定数!$B$6*SIN(D12)*SIN(E12)/(D12*E12) -> 5.296474878 | G12: -5.25471059156516-0.663824322946617i | I12: =IMSUB(掃き出し!LZ12,IMPRODUCT(P12,掃き出し!LY12)) -> 0.00321190026965047-0.00201159420127988i | J12: =IMSUB(掃き出し!MB12,IMPRODUCT(P12,掃き出し!MA12)) -> 0.00081308167269516-0.000953575905883983i | K12: =IMSUB(掃き出し!MD12,IMPRODUCT(P12,掃き出し!MC12)) -> -0.0101291942700724+0.00136895830985196i | L12: =IMSUB(掃き出し!MF12,IMPRODUCT(P12,掃き出し!ME12)) -> -0.00134165705070092-0.00037906916209537i | M12: =IMSUB(掃き出し!MH12,IMPRODUCT(P12,掃き出し!MG12)) -> 0.0192193427422564+0.000867557920295938i | N12: =IMSUB(掃き出し!MJ12,IMPRODUCT(P12,掃き出し!MI12)) -> -0.000549023539363479+0.00208340947285834i | O12: =IMSUB(掃き出し!ML12,IMPRODUCT(P12,掃き出し!MK12)) -> -0.0247119598828105+0.00051144314236338i | P12: =IMDIV(掃き出し!MN12,掃き出し!MM12) -> -0.0012738993254154-0.00236898831178371i | R12: =IMEXP(COMPLEX(0,計算!$B12*定数!A$61)) -> 0.43577528609894-0.900055498302959i | S12: =IMEXP(COMPLEX(0,計算!$B12*定数!B$61)) -> 0.200262812351657-0.979742214048678i | T12: =IMEXP(COMPLEX(0,計算!$B12*定数!C$61)) -> 0.0478994976987284-0.998852160292107i | U12: =IMEXP(COMPLEX(0,計算!$B12*定数!D$61)) -> 0.0875051997055498-0.996164062805165i | W12: 0.00402498194234563-0.00296517010716386i | X12: -0.0114708513207733+0.00098988914775659i | Y12: 0.0186703192028929+0.00295096739315428i | Z12: -0.0259858592082259-0.00185754516942033i | AA12: 0.00270626284154493+0.00086692201583966i | AB12: -0.00400980125114937-0.00841128318669606i | AC12: 0.00210875486156496+0.0198870252216991i | AD12: -0.00514328009953106-0.0235106984901404i | AF12: =IMSUM(IMPRODUCT(定数!$F$38,計算!W12),IMPRODUCT(定数!$G$38,計算!X12),IMPRODUCT(定数!$H$38,計算!Y12),IMPRODUCT(定数!$I$38,計算!Z12)) -> -0.0249177280662225-0.00255162201257461i | AG12: =IMSUM(IMPRODUCT(定数!$F$39,計算!W12),IMPRODUCT(定数!$G$39,計算!X12),IMPRODUCT(定数!$H$39,計算!Y12),IMPRODUCT(定数!$I$39,計算!Z12)) -> 0.022747978030491+0.00143113779878298i | AH12: =IMSUM(IMPRODUCT(定数!$F$40,計算!W12),IMPRODUCT(定数!$G$40,計算!X12),IMPRODUCT(定数!$H$40,計算!Y12),IMPRODUCT(定数!$I$40,計算!Z12)) -> 0.00567863492686774-0.0029660845886182i | AI12: =IMSUM(IMPRODUCT(定数!$F$41,計算!W12),IMPRODUCT(定数!$G$41,計算!X12),IMPRODUCT(定数!$H$41,計算!Y12),IMPRODUCT(定数!$I$41,計算!Z12)) -> 0.000690877771385-0.00208531124139844i | AJ12: =IMSUM(IMPRODUCT(定数!$F$38,計算!AA12),IMPRODUCT(定数!$G$38,計算!AB12),IMPRODUCT(定数!$H$38,計算!AC12),IMPRODUCT(定数!$I$38,計算!AD12)) -> -0.00472497262532994-0.023405276723959i | AK12: =IMSUM(IMPRODUCT(定数!$F$39,計算!AA12),IMPRODUCT(定数!$G$39,計算!AB12),IMPRODUCT(定数!$H$39,計算!AC12),IMPRODUCT(定数!$I$39,計算!AD12)) -> 0.00400136854222237+0.0215831947987564i | AL12: =IMSUM(IMPRODUCT(定数!$F$40,計算!AA12),IMPRODUCT(定数!$G$40,計算!AB12),IMPRODUCT(定数!$H$40,計算!AC12),IMPRODUCT(定数!$I$40,計算!AD12)) -> 0.00371895643407082+0.00109328425113249i | AM12: =IMSUM(IMPRODUCT(定数!$F$41,計算!AA12),IMPRODUCT(定数!$G$41,計算!AB12),IMPRODUCT(定数!$H$41,計算!AC12),IMPRODUCT(定数!$I$41,計算!AD12)) -> 0.00163538119318912-0.00099214760875708i | AO12: -0.00872634116755231-0.0449884715227154i | AQ12: 0.00371895643407082+0.00109328425113249i | AR12: 0.00163538119318912-0.00099214760875708i
A13: 9 | B13: =A13*定数!$B$8 -> 5654866776 | D13: =B13*定数!$C$3 -> 2.827433388 | E13: =B13*定数!$C$5 -> 0.5654866776 | F13: =定数!$B$6*SIN(D13)*SIN(E13)/(D13*E13) -> 2.447061829 | G13: -2.37018288147473+0.608559530053352i | I13: =IMSUB(掃き出し!LZ13,IMPRODUCT(P13,掃き出し!LY13)) -> 0.00067002427657085-0.00086423201091302i | J13: =IMSUB(掃き出し!MB13,IMPRODUCT(P13,掃き出し!MA13)) -> -0.000362623916493731-0.000266868482727347i | K13: =IMSUB(掃き出し!MD13,IMPRODUCT(P13,掃き出し!MC13)) -> -0.00327419672630716+0.00256617960326195i | L13: =IMSUB(掃き出し!MF13,IMPRODUCT(P13,掃き出し!ME13)) -> -0.00008317299925071+0.00059111563460026i | M13: =IMSUB(掃き出し!MH13,IMPRODUCT(P13,掃き出し!MG13)) -> 0.00893814429236303-0.00435074957414756i | N13: =IMSUB(掃き出し!MJ13,IMPRODUCT(P13,掃き出し!MI13)) -> 0.00122133377436174+0.000099272969676119i | O13: =IMSUB(掃き出し!ML13,IMPRODUCT(P13,掃き出し!MK13)) -> -0.00973361106847215+0.00623369505702612i | P13: =IMDIV(掃き出し!MN13,掃き出し!MM13) -> -0.00111838662589508+0.000868744694751531i | R13: =IMEXP(COMPLEX(0,計算!$B13*定数!A$61)) -> 0.889527768903592-0.456881109643853i | S13: =IMEXP(COMPLEX(0,計算!$B13*定数!B$61)) -> 0.728327546383166-0.685229147934818i | T13: =IMEXP(COMPLEX(0,計算!$B13*定数!C$61)) -> 0.599563971732097-0.800326835612073i | U13: =IMEXP(COMPLEX(0,計算!$B13*定数!D$61)) -> 0.634698300908806-0.772760031849134i | W13: 0.000307400360077119-0.00113110049364037i | X13: -0.00335736972555787+0.00315729523786221i | Y13: 0.0101594780667248-0.00425147660447144i | Z13: -0.0108519976943672+0.00710243975177765i | AA13: 0.000546365268077797-0.000534347846194601i | AB13: -0.0037986362548795+0.000112962624268759i | AC13: 0.00965272948131142+0.00362693834418694i | AD13: -0.0110335637109015-0.00214959467187286i | AF13: =IMSUM(IMPRODUCT(定数!$F$38,計算!W13),IMPRODUCT(定数!$G$38,計算!X13),IMPRODUCT(定数!$H$38,計算!Y13),IMPRODUCT(定数!$I$38,計算!Z13)) -> -0.0107968124722556+0.00656099146111308i | AG13: =IMSUM(IMPRODUCT(定数!$F$39,計算!W13),IMPRODUCT(定数!$G$39,計算!X13),IMPRODUCT(定数!$H$39,計算!Y13),IMPRODUCT(定数!$I$39,計算!Z13)) -> 0.0107012243603142-0.00567988817478624i | AH13: =IMSUM(IMPRODUCT(定数!$F$40,計算!W13),IMPRODUCT(定数!$G$40,計算!X13),IMPRODUCT(定数!$H$40,計算!Y13),IMPRODUCT(定数!$I$40,計算!Z13)) -> -0.000335935711661947-0.00212359673652855i | AI13: =IMSUM(IMPRODUCT(定数!$F$41,計算!W13),IMPRODUCT(定数!$G$41,計算!X13),IMPRODUCT(定数!$H$41,計算!Y13),IMPRODUCT(定数!$I$41,計算!Z13)) -> -0.000547404249613234+0.0000329277584317305i | AJ13: =IMSUM(IMPRODUCT(定数!$F$38,計算!AA13),IMPRODUCT(定数!$G$38,計算!AB13),IMPRODUCT(定数!$H$38,計算!AC13),IMPRODUCT(定数!$I$38,計算!AD13)) -> -0.010920545892716-0.00238104709501993i | AK13: =IMSUM(IMPRODUCT(定数!$F$39,計算!AA13),IMPRODUCT(定数!$G$39,計算!AB13),IMPRODUCT(定数!$H$39,計算!AC13),IMPRODUCT(定数!$I$39,計算!AD13)) -> 0.0104563193294024+0.00306801192383723i | AL13: =IMSUM(IMPRODUCT(定数!$F$40,計算!AA13),IMPRODUCT(定数!$G$40,計算!AB13),IMPRODUCT(定数!$H$40,計算!AC13),IMPRODUCT(定数!$I$40,計算!AD13)) -> 0.000338757907604119-0.00166746106469817i | AM13: =IMSUM(IMPRODUCT(定数!$F$41,計算!AA13),IMPRODUCT(定数!$G$41,計算!AB13),IMPRODUCT(定数!$H$41,計算!AC13),IMPRODUCT(定数!$I$41,計算!AD13)) -> -0.000404593868981197-0.000397772470291559i | AO13: -0.0213768652221184-0.00544905901885716i | AQ13: 0.000338757907604119-0.00166746106469817i | AR13: -0.000404593868981197-0.000397772470291559i
A14: 10 | B14: =A14*定数!$B$8 -> 6283185307 | D14: =B14*定数!$C$3 -> 3.141592654 | E14: =B14*定数!$C$5 -> 0.6283185307 | F14: =定数!$B$6*SIN(D14)*SIN(E14)/(D14*E14) -> 8.620462597e-16 | G14: -6.97410074014886E-16+5.06698078231179E-16i | I14: =IMSUB(掃き出し!LZ14,IMPRODUCT(P14,掃き出し!LY14)) -> 2.31481773712555E-19-2.82887080608265E-19i | J14: =IMSUB(掃き出し!MB14,IMPRODUCT(P14,掃き出し!MA14)) -> -1.03811853117597E-19+1.04812293395833E-19i | K14: =IMSUB(掃き出し!MD14,IMPRODUCT(P14,掃き出し!MC14)) -> -6.72893475294278E-19+1.06050789442646E-18i | L14: =IMSUB(掃き出し!MF14,IMPRODUCT(P14,掃き出し!ME14)) -> 1.92707315269157E-19+3.9557811925347E-20i | M14: =IMSUB(掃き出し!MH14,IMPRODUCT(P14,掃き出し!MG14)) -> 1.73496550532492E-18-2.68227397882655E-18i | N14: =IMSUB(掃き出し!MJ14,IMPRODUCT(P14,掃き出し!MI14)) -> -5.4411123013239E-20-4.26131099332601E-19i | O14: =IMSUB(掃き出し!ML14,IMPRODUCT(P14,掃き出し!MK14)) -> -1.81772720250804E-18+2.98521323167772E-18i | P14: =IMDIV(掃き出し!MN14,掃き出し!MM14) -> 3.21755196486043E-19+3.50328644158009E-19i | R14: =IMEXP(COMPLEX(0,計算!$B14*定数!A$61)) -> 0.985427807419289+0.170094198504278i | S14: =IMEXP(COMPLEX(0,計算!$B14*定数!B$61)) -> 0.990122787359102-0.140202945590466i | T14: =IMEXP(COMPLEX(0,計算!$B14*定数!C$61)) -> 0.945130730867004-0.32669236533902i | U14: =IMEXP(COMPLEX(0,計算!$B14*定数!D$61)) -> 0.960172466132393-0.279408008620438i | W14: 1.27669920594958E-19-1.78074787212432E-19i | X14: -4.80186160025121E-19+1.10006570635181E-18i | Y14: 1.68055438231168E-18-3.10840507815915E-18i | Z14: -1.495972006022E-18+3.33554187583573E-18i | AA14: 5.9864075643447E-20-2.32511347838671E-19i | AB14: -6.18583468082822E-19+9.6784034290878E-19i | AC14: 2.32540824546065E-18-2.35327348015711E-18i | AD14: -2.17259898583073E-18+2.60490695222765E-18i | AF14: =IMSUM(IMPRODUCT(定数!$F$38,計算!W14),IMPRODUCT(定数!$G$38,計算!X14),IMPRODUCT(定数!$H$38,計算!Y14),IMPRODUCT(定数!$I$38,計算!Z14)) -> -1.54352320847599E-18+3.32058521513855E-18i | AG14: =IMSUM(IMPRODUCT(定数!$F$39,計算!W14),IMPRODUCT(定数!$G$39,計算!X14),IMPRODUCT(定数!$H$39,計算!Y14),IMPRODUCT(定数!$I$39,計算!Z14)) -> 1.69688308845363E-18-3.30519566608673E-18i | AH14: =IMSUM(IMPRODUCT(定数!$F$40,計算!W14),IMPRODUCT(定数!$G$40,計算!X14),IMPRODUCT(定数!$H$40,計算!Y14),IMPRODUCT(定数!$I$40,計算!Z14)) -> -1.74457082035628E-19+2.75893028216029E-20i | AI14: =IMSUM(IMPRODUCT(定数!$F$41,計算!W14),IMPRODUCT(定数!$G$41,計算!X14),IMPRODUCT(定数!$H$41,計算!Y14),IMPRODUCT(定数!$I$41,計算!Z14)) -> 5.58459839893169E-20+9.15961493028796E-20i | AJ14: =IMSUM(IMPRODUCT(定数!$F$38,計算!AA14),IMPRODUCT(定数!$G$38,計算!AB14),IMPRODUCT(定数!$H$38,計算!AC14),IMPRODUCT(定数!$I$38,計算!AD14)) -> -2.21357358803652E-18+2.59918768344279E-18i | AK14: =IMSUM(IMPRODUCT(定数!$F$39,計算!AA14),IMPRODUCT(定数!$G$39,計算!AB14),IMPRODUCT(定数!$H$39,計算!AC14),IMPRODUCT(定数!$I$39,計算!AD14)) -> 2.34526227117356E-18-2.55170873012119E-18i | AL14: =IMSUM(IMPRODUCT(定数!$F$40,計算!AA14),IMPRODUCT(定数!$G$40,計算!AB14),IMPRODUCT(定数!$H$40,計算!AC14),IMPRODUCT(定数!$I$40,計算!AD14)) -> -2.71927460209439E-19-1.1041679854984E-19i | AM14: =IMSUM(IMPRODUCT(定数!$F$41,計算!AA14),IMPRODUCT(定数!$G$41,計算!AB14),IMPRODUCT(定数!$H$41,計算!AC14),IMPRODUCT(定数!$I$41,計算!AD14)) -> -5.90932015577002E-20-1.78861141455501E-20i | AO14: -4.55883585921008E-18+5.15089641356398E-18i | AQ14: -2.71927460209439E-19-1.1041679854984E-19i | AR14: -5.90932015577002E-20-1.78861141455501E-20i
A15: 11 | B15: =A15*定数!$B$8 -> 6911503838 | D15: =B15*定数!$C$3 -> 3.455751919 | E15: =B15*定数!$C$5 -> 0.6911503838 | F15: =定数!$B$6*SIN(D15)*SIN(E15)/(D15*E15) -> -1.948716076 | G15: 1.0441742895253-1.64535540215379i | I15: =IMSUB(掃き出し!LZ15,IMPRODUCT(P15,掃き出し!LY15)) -> -0.000527614592238187+0.00107311336325566i | J15: =IMSUB(掃き出し!MB15,IMPRODUCT(P15,掃き出し!MA15)) -> -0.000268752070330956-0.00032476273406145i | K15: =IMSUB(掃き出し!MD15,IMPRODUCT(P15,掃き出し!MC15)) -> 0.000900789338831172-0.00264973759934932i | L15: =IMSUB(掃き出し!MF15,IMPRODUCT(P15,掃き出し!ME15)) -> -0.00015552880257802+0.000456793138312411i | M15: =IMSUB(掃き出し!MH15,IMPRODUCT(P15,掃き出し!MG15)) -> -0.00135169956872073+0.00600607076040805i | N15: =IMSUB(掃き出し!MJ15,IMPRODUCT(P15,掃き出し!MI15)) -> 0.000891382534432533-0.000122325419676821i | O15: =IMSUB(掃き出し!ML15,IMPRODUCT(P15,掃き出し!MK15)) -> 0.00184835477643548-0.0068859840716175i | P15: =IMDIV(掃き出し!MN15,掃き出し!MM15) -> -0.000838859932527402+0.000653427821180799i | R15: =IMEXP(COMPLEX(0,計算!$B15*定数!A$61)) -> 0.684895309612997+0.72864148582833i | S15: =IMEXP(COMPLEX(0,計算!$B15*定数!B$61)) -> 0.889938732121273+0.456080095016633i | T15: =IMEXP(COMPLEX(0,計算!$B15*定数!C$61)) -> 0.965812585144671+0.25924129759004i | U15: =IMEXP(COMPLEX(0,計算!$B15*定数!D$61)) -> 0.950229918812368+0.311549516760725i | W15: -0.000796366662569143+0.00074835062919421i | X15: 0.000745260536253152-0.00219294446103691i | Y15: -0.000460317034288197+0.00588374534073123i | Z15: 0.00100949484390808-0.0062325562504367i | AA15: 0.000473122724627285+0.000701159808468802i | AB15: -0.000753590617271703-0.00243335189156925i | AC15: 0.00114415339299903+0.00626409481288699i | AD15: -0.00138964792829309-0.00675956186385567i | AF15: =IMSUM(IMPRODUCT(定数!$F$38,計算!W15),IMPRODUCT(定数!$G$38,計算!X15),IMPRODUCT(定数!$H$38,計算!Y15),IMPRODUCT(定数!$I$38,計算!Z15)) -> 0.000795915230991086-0.00612900822673451i | AG15: =IMSUM(IMPRODUCT(定数!$F$39,計算!W15),IMPRODUCT(定数!$G$39,計算!X15),IMPRODUCT(定数!$H$39,計算!Y15),IMPRODUCT(定数!$I$39,計算!Z15)) -> -0.000973299611406628+0.0064107180796443i | AH15: =IMSUM(IMPRODUCT(定数!$F$40,計算!W15),IMPRODUCT(定数!$G$40,計算!X15),IMPRODUCT(定数!$H$40,計算!Y15),IMPRODUCT(定数!$I$40,計算!Z15)) -> -0.000832815600279433+0.000169341654460356i | AI15: =IMSUM(IMPRODUCT(定数!$F$41,計算!W15),IMPRODUCT(定数!$G$41,計算!X15),IMPRODUCT(定数!$H$41,計算!Y15),IMPRODUCT(定数!$I$41,計算!Z15)) -> -0.000426330900228842+0.000124403163958325i | AJ15: =IMSUM(IMPRODUCT(定数!$F$38,計算!AA15),IMPRODUCT(定数!$G$38,計算!AB15),IMPRODUCT(定数!$H$38,計算!AC15),IMPRODUCT(定数!$I$38,計算!AD15)) -> -0.00134966643523152-0.00669733848645331i | AK15: =IMSUM(IMPRODUCT(定数!$F$39,計算!AA15),IMPRODUCT(定数!$G$39,計算!AB15),IMPRODUCT(定数!$H$39,計算!AC15),IMPRODUCT(定数!$I$39,計算!AD15)) -> 0.00140916664734003+0.0068001690361338i | AL15: =IMSUM(IMPRODUCT(定数!$F$40,計算!AA15),IMPRODUCT(定数!$G$40,計算!AB15),IMPRODUCT(定数!$H$40,計算!AC15),IMPRODUCT(定数!$I$40,計算!AD15)) -> 0.000393798696873923+0.000215135030745278i | AM15: =IMSUM(IMPRODUCT(定数!$F$41,計算!AA15),IMPRODUCT(定数!$G$41,計算!AB15),IMPRODUCT(定数!$H$41,計算!AC15),IMPRODUCT(定数!$I$41,計算!AD15)) -> 0.000284371934664604+0.000086361545720962i | AO15: -0.00275883308257155-0.0134975075225871i | AQ15: 0.000393798696873923+0.000215135030745278i | AR15: 0.000284371934664604+0.000086361545720962i
A16: 12 | B16: =A16*定数!$B$8 -> 7539822369 | D16: =B16*定数!$C$3 -> 3.769911184 | E16: =B16*定数!$C$5 -> 0.7539822369 | F16: =定数!$B$6*SIN(D16)*SIN(E16)/(D16*E16) -> -3.344896637 | G16: 0.62677112890948-3.28564932108501i | I16: =IMSUB(掃き出し!LZ16,IMPRODUCT(P16,掃き出し!LY16)) -> 0.00092395711096485+0.00272205966874761i | J16: =IMSUB(掃き出し!MB16,IMPRODUCT(P16,掃き出し!MA16)) -> -0.00050454890408671+0.000837475909708796i | K16: =IMSUB(掃き出し!MD16,IMPRODUCT(P16,掃き出し!MC16)) -> 0.0000471899280809298-0.00571438840785821i | L16: =IMSUB(掃き出し!MF16,IMPRODUCT(P16,掃き出し!ME16)) -> 0.00099743039831447+0.00036525440581951i | M16: =IMSUB(掃き出し!MH16,IMPRODUCT(P16,掃き出し!MG16)) -> 0.000193701295773912+0.0103239793909984i | N16: =IMSUB(掃き出し!MJ16,IMPRODUCT(P16,掃き出し!MI16)) -> -0.0000473632096761801-0.00163572452798717i | O16: =IMSUB(掃き出し!ML16,IMPRODUCT(P16,掃き出し!MK16)) -> 0.0000711108843424498-0.0130305793714201i | P16: =IMDIV(掃き出し!MN16,掃き出し!MM16) -> 0.00109501566228256+0.00178501894373173i | R16: =IMEXP(COMPLEX(0,計算!$B16*定数!A$61)) -> 0.108832952936592+0.994060052690531i | S16: =IMEXP(COMPLEX(0,計算!$B16*定数!B$61)) -> 0.464401700424984+0.88562467255739i | T16: =IMEXP(COMPLEX(0,計算!$B16*定数!C$61)) -> 0.654500229957993+0.756061802358071i | U16: =IMEXP(COMPLEX(0,計算!$B16*定数!D$61)) -> 0.608343885534608+0.793673558166489i | W16: 0.00041940820687814+0.00355953557845641i | X16: 0.0010446203263954-0.0053491340020387i | Y16: 0.000146338086097732+0.00868825486301123i | Z16: 0.00116612654662501-0.0112455604276884i | AA16: 0.00191903486445024-0.00103262599650462i | AB16: -0.00489915822025269-0.00164259052104651i | AC16: 0.00913805361165969+0.00550420514129934i | AD16: -0.0110493426767531-0.00602852177726278i | AF16: =IMSUM(IMPRODUCT(定数!$F$38,計算!W16),IMPRODUCT(定数!$G$38,計算!X16),IMPRODUCT(定数!$H$38,計算!Y16),IMPRODUCT(定数!$I$38,計算!Z16)) -> 0.00143591078198555-0.0103961732562502i | AG16: =IMSUM(IMPRODUCT(定数!$F$39,計算!W16),IMPRODUCT(定数!$G$39,計算!X16),IMPRODUCT(定数!$H$39,計算!Y16),IMPRODUCT(定数!$I$39,計算!Z16)) -> 0.000102021519896378+0.0111158312076889i | AH16: =IMSUM(IMPRODUCT(定数!$F$40,計算!W16),IMPRODUCT(定数!$G$40,計算!X16),IMPRODUCT(定数!$H$40,計算!Y16),IMPRODUCT(定数!$I$40,計算!Z16)) -> -0.000719638007572777+0.00317927031912635i | AI16: =IMSUM(IMPRODUCT(定数!$F$41,計算!W16),IMPRODUCT(定数!$G$41,計算!X16),IMPRODUCT(定数!$H$41,計算!Y16),IMPRODUCT(定数!$I$41,計算!Z16)) -> 0.000187029179661087+0.00153506244489072i | AJ16: =IMSUM(IMPRODUCT(定数!$F$38,計算!AA16),IMPRODUCT(定数!$G$38,計算!AB16),IMPRODUCT(定数!$H$38,計算!AC16),IMPRODUCT(定数!$I$38,計算!AD16)) -> -0.0108681419710067-0.00635211041937401i | AK16: =IMSUM(IMPRODUCT(定数!$F$39,計算!AA16),IMPRODUCT(定数!$G$39,計算!AB16),IMPRODUCT(定数!$H$39,計算!AC16),IMPRODUCT(定数!$I$39,計算!AD16)) -> 0.0105515099406089+0.00526256186297095i | AL16: =IMSUM(IMPRODUCT(定数!$F$40,計算!AA16),IMPRODUCT(定数!$G$40,計算!AB16),IMPRODUCT(定数!$H$40,計算!AC16),IMPRODUCT(定数!$I$40,計算!AD16)) -> 0.00176336197144996-0.000824045199140436i | AM16: =IMSUM(IMPRODUCT(定数!$F$41,計算!AA16),IMPRODUCT(定数!$G$41,計算!AB16),IMPRODUCT(定数!$H$41,計算!AC16),IMPRODUCT(定数!$I$41,計算!AD16)) -> 0.000752027063794575-0.00102451586419723i | AO16: -0.0214196519116156-0.011614672282345i | AQ16: 0.00176336197144996-0.000824045199140436i | AR16: 0.000752027063794575-0.00102451586419723i
A17: 13 | B17: =A17*定数!$B$8 -> 8168140899 | D17: =B17*定数!$C$3 -> 4.08407045 | E17: =B17*定数!$C$5 -> 0.8168140899 | F17: =定数!$B$6*SIN(D17)*SIN(E17)/(D17*E17) -> -4.177370042 | G17: -0.782761089988923-4.10337733387413i | I17: =IMSUB(掃き出し!LZ17,IMPRODUCT(P17,掃き出し!LY17)) -> 0.00233844116306452+0.00100684354919252i | J17: =IMSUB(掃き出し!MB17,IMPRODUCT(P17,掃き出し!MA17)) -> 0.000969876775517114+0.00016855822208584i | K17: =IMSUB(掃き出し!MD17,IMPRODUCT(P17,掃き出し!MC17)) -> -0.00465066625444101-0.00677928802641123i | L17: =IMSUB(掃き出し!MF17,IMPRODUCT(P17,掃き出し!ME17)) -> 0.00012741699876903-0.00159876953456702i | M17: =IMSUB(掃き出し!MH17,IMPRODUCT(P17,掃き出し!MG17)) -> 0.00479281453356954+0.0142721746837035i | N17: =IMSUB(掃き出し!MJ17,IMPRODUCT(P17,掃き出し!MI17)) -> -0.00257918980162018-0.0000253373747672739i | O17: =IMSUB(掃き出し!ML17,IMPRODUCT(P17,掃き出し!MK17)) -> -0.00779984431271946-0.018071068622854i | P17: =IMDIV(掃き出し!MN17,掃き出し!MM17) -> 0.00284792193518233-0.00189602183609649i | R17: =IMEXP(COMPLEX(0,計算!$B17*定数!A$61)) -> -0.511012340696967+0.859573375376068i | S17: =IMEXP(COMPLEX(0,計算!$B17*定数!B$61)) -> -0.130916092633931+0.991393452010585i | T17: =IMEXP(COMPLEX(0,計算!$B17*定数!C$61)) -> 0.118206041047765+0.992989089496865i | U17: =IMEXP(COMPLEX(0,計算!$B17*定数!D$61)) -> 0.0539452950035203+0.998543892448891i | W17: 0.00330831793858163+0.00117540177127836i | X17: -0.00452324925567198-0.00837805756097825i | Y17: 0.00221362473194936+0.0142468373089362i | Z17: -0.00495192237753713-0.0199670904589505i | AA17: -0.000970023545415046-0.00177702632042392i | AB17: -0.00454376599227219+0.0058337830101393i | AC17: 0.0144589372969405-0.00563625763682604i | AD17: -0.0164186270924825+0.00955513136989572i | AF17: =IMSUM(IMPRODUCT(定数!$F$38,計算!W17),IMPRODUCT(定数!$G$38,計算!X17),IMPRODUCT(定数!$H$38,計算!Y17),IMPRODUCT(定数!$I$38,計算!Z17)) -> -0.0047124814888113-0.019694907331278i | AG17: =IMSUM(IMPRODUCT(定数!$F$39,計算!W17),IMPRODUCT(定数!$G$39,計算!X17),IMPRODUCT(定数!$H$39,計算!Y17),IMPRODUCT(定数!$I$39,計算!Z17)) -> 0.0041549223787743+0.01649625875768i | AH17: =IMSUM(IMPRODUCT(定数!$F$40,計算!W17),IMPRODUCT(定数!$G$40,計算!X17),IMPRODUCT(定数!$H$40,計算!Y17),IMPRODUCT(定数!$I$40,計算!Z17)) -> 0.00404878965856179+0.00324375507769369i | AI17: =IMSUM(IMPRODUCT(定数!$F$41,計算!W17),IMPRODUCT(定数!$G$41,計算!X17),IMPRODUCT(定数!$H$41,計算!Y17),IMPRODUCT(定数!$I$41,計算!Z17)) -> 0.00236541904822324-0.000632831939156647i | AJ17: =IMSUM(IMPRODUCT(定数!$F$38,計算!AA17),IMPRODUCT(定数!$G$38,計算!AB17),IMPRODUCT(定数!$H$38,計算!AC17),IMPRODUCT(定数!$I$38,計算!AD17)) -> -0.0163661415294285+0.00970154333948535i | AK17: =IMSUM(IMPRODUCT(定数!$F$39,計算!AA17),IMPRODUCT(定数!$G$39,計算!AB17),IMPRODUCT(定数!$H$39,計算!AC17),IMPRODUCT(定数!$I$39,計算!AD17)) -> 0.0149792785250049-0.00724690233765495i | AL17: =IMSUM(IMPRODUCT(定数!$F$40,計算!AA17),IMPRODUCT(定数!$G$40,計算!AB17),IMPRODUCT(定数!$H$40,計算!AC17),IMPRODUCT(定数!$I$40,計算!AD17)) -> -0.000870787018525573-0.0035313416704301i | AM17: =IMSUM(IMPRODUCT(定数!$F$41,計算!AA17),IMPRODUCT(定数!$G$41,計算!AB17),IMPRODUCT(定数!$H$41,計算!AC17),IMPRODUCT(定数!$I$41,計算!AD17)) -> -0.00207873487208466-0.00105861109261148i | AO17: -0.0313454200544334+0.0169484456771403i | AQ17: -0.000870787018525573-0.0035313416704301i | AR17: -0.00207873487208466-0.00105861109261148i
A18: 14 | B18: =A18*定数!$B$8 -> 8796459430 | D18: =B18*定数!$C$3 -> 4.398229715 | E18: =B18*定数!$C$5 -> 0.879645943 | F18: =定数!$B$6*SIN(D18)*SIN(E18)/(D18*E18) -> -4.475623354 | G18: -2.39815891756098-3.77889378221147i | I18: =IMSUB(掃き出し!LZ18,IMPRODUCT(P18,掃き出し!LY18)) -> 0.00157946270279016+0.00030901676541777i | J18: =IMSUB(掃き出し!MB18,IMPRODUCT(P18,掃き出し!MA18)) -> 0.00013403422044868-0.000810758444499517i | K18: =IMSUB(掃き出し!MD18,IMPRODUCT(P18,掃き出し!MC18)) -> -0.00664420787364664-0.0028014059204599i | L18: =IMSUB(掃き出し!MF18,IMPRODUCT(P18,掃き出し!ME18)) -> -0.00143757798532721+0.0001748033170727i | M18: =IMSUB(掃き出し!MH18,IMPRODUCT(P18,掃き出し!MG18)) -> 0.0146944903402764+0.0119018593825422i | N18: =IMSUB(掃き出し!MJ18,IMPRODUCT(P18,掃き出し!MI18)) -> 0.00072195256450093+0.00337543635444827i | O18: =IMSUB(掃き出し!ML18,IMPRODUCT(P18,掃き出し!MK18)) -> -0.0187362484919383-0.0107197370510939i | P18: =IMDIV(掃き出し!MN18,掃き出し!MM18) -> -0.00308112031374137-0.00262437910433799i | R18: =IMEXP(COMPLEX(0,計算!$B18*定数!A$61)) -> -0.925279999125691+0.379284752155899i | S18: =IMEXP(COMPLEX(0,計算!$B18*定数!B$61)) -> -0.678372230876189+0.734718392566882i | T18: =IMEXP(COMPLEX(0,計算!$B18*定数!C$61)) -> -0.458721001228814+0.888580352602754i | U18: =IMEXP(COMPLEX(0,計算!$B18*定数!D$61)) -> -0.519297986607035+0.854593237222177i | W18: 0.00171349692323884-0.000501741679081747i | X18: -0.00808178585897385-0.0026266026033872i | Y18: 0.0154164429047773+0.0152772957369905i | Z18: -0.0218173688056797-0.0133441161554319i | AA18: -0.00116075076867251-0.0000839774433018841i | AB18: 0.00329578343567307+0.00560722100992171i | AC18: 0.00050456585607764-0.0194237389400948i | AD18: 0.00441147753966218+0.0203083393214997i | AF18: =IMSUM(IMPRODUCT(定数!$F$38,計算!W18),IMPRODUCT(定数!$G$38,計算!X18),IMPRODUCT(定数!$H$38,計算!Y18),IMPRODUCT(定数!$I$38,計算!Z18)) -> -0.0205989125371723-0.0135265790530006i | AG18: =IMSUM(IMPRODUCT(定数!$F$39,計算!W18),IMPRODUCT(定数!$G$39,計算!X18),IMPRODUCT(定数!$H$39,計算!Y18),IMPRODUCT(定数!$I$39,計算!Z18)) -> 0.0184884346219712+0.0149233438130228i | AH18: =IMSUM(IMPRODUCT(定数!$F$40,計算!W18),IMPRODUCT(定数!$G$40,計算!X18),IMPRODUCT(定数!$H$40,計算!Y18),IMPRODUCT(定数!$I$40,計算!Z18)) -> 0.00355143330062118-0.00314224913767232i | AI18: =IMSUM(IMPRODUCT(定数!$F$41,計算!W18),IMPRODUCT(定数!$G$41,計算!X18),IMPRODUCT(定数!$H$41,計算!Y18),IMPRODUCT(定数!$I$41,計算!Z18)) -> -0.00122928154489644-0.00120870121303108i | AJ18: =IMSUM(IMPRODUCT(定数!$F$38,計算!AA18),IMPRODUCT(定数!$G$38,計算!AB18),IMPRODUCT(定数!$H$38,計算!AC18),IMPRODUCT(定数!$I$38,計算!AD18)) -> 0.00380059988663776+0.0201134293225164i | AK18: =IMSUM(IMPRODUCT(定数!$F$39,計算!AA18),IMPRODUCT(定数!$G$39,計算!AB18),IMPRODUCT(定数!$H$39,計算!AC18),IMPRODUCT(定数!$I$39,計算!AD18)) -> -0.00135081462413091-0.0202263183984207i | AL18: =IMSUM(IMPRODUCT(定数!$F$40,計算!AA18),IMPRODUCT(定数!$G$40,計算!AB18),IMPRODUCT(定数!$H$40,計算!AC18),IMPRODUCT(定数!$I$40,計算!AD18)) -> -0.00399837027180727+0.00136751698884152i | AM18: =IMSUM(IMPRODUCT(定数!$F$41,計算!AA18),IMPRODUCT(定数!$G$41,計算!AB18),IMPRODUCT(定数!$H$41,計算!AC18),IMPRODUCT(定数!$I$41,計算!AD18)) -> -0.000114463094357273+0.00155483793271434i | AO18: 0.00515141451076867+0.0403397477209371i | AQ18: -0.00399837027180727+0.00136751698884152i | AR18: -0.000114463094357273+0.00155483793271434i
A19: 15 | B19: =A19*定数!$B$8 -> 9424777961 | D19: =B19*定数!$C$3 -> 4.71238898 | E19: =B19*定数!$C$5 -> 0.9424777961 | F19: =定数!$B$6*SIN(D19)*SIN(E19)/(D19*E19) -> -4.30425801 | G19: -3.48221787846799-2.52997938048758i | I19: =IMSUB(掃き出し!LZ19,IMPRODUCT(P19,掃き出し!LY19)) -> 0.00159881654117876+0.00051693823319353i | J19: =IMSUB(掃き出し!MB19,IMPRODUCT(P19,掃き出し!MA19)) -> -0.00072320653411572-0.00026894764664455i | K19: =IMSUB(掃き出し!MD19,IMPRODUCT(P19,掃き出し!MC19)) -> -0.00564690525821656-0.00057211191986826i | L19: =IMSUB(掃き出し!MF19,IMPRODUCT(P19,掃き出し!ME19)) -> 0.0000463292209595201+0.00122695336826512i | M19: =IMSUB(掃き出し!MH19,IMPRODUCT(P19,掃き出し!MG19)) -> 0.015397275912873+0.0013281705715324i | N19: =IMSUB(掃き出し!MJ19,IMPRODUCT(P19,掃き出し!MI19)) -> 0.00269375816468132-0.00130469487924274i | O19: =IMSUB(掃き出し!ML19,IMPRODUCT(P19,掃き出し!MK19)) -> -0.0163506500442001-0.00085356701704193i | P19: =IMDIV(掃き出し!MN19,掃き出し!MM19) -> -0.00185470419146613+0.00271169498351251i | R19: =IMEXP(COMPLEX(0,計算!$B19*定数!A$61)) -> -0.967312275013268-0.253588175214572i | S19: =IMEXP(COMPLEX(0,計算!$B19*定数!B$61)) -> -0.977822055317218+0.209437408633729i | T19: =IMEXP(COMPLEX(0,計算!$B19*定数!C$61)) -> -0.877964535845539+0.47872567697746i | U19: =IMEXP(COMPLEX(0,計算!$B19*定数!D$61)) -> -0.911135083764232+0.412107824645377i | W19: 0.00087561000706304+0.00024799058654898i | X19: -0.00560057603725704+0.00065484144839686i | Y19: 0.0180910340775543+0.0000234756922896601i | Z19: -0.0182053542356662+0.00185812796647058i | AA19: -0.00104627967415157+0.000348953256013488i | AB19: 0.00509957519980149+0.00055205786508452i | AC19: -0.014622866041553-0.00610211095928298i | AD19: 0.0151182645891319+0.00428088713117254i | AF19: =IMSUM(IMPRODUCT(定数!$F$38,計算!W19),IMPRODUCT(定数!$G$38,計算!X19),IMPRODUCT(定数!$H$38,計算!Y19),IMPRODUCT(定数!$I$38,計算!Z19)) -> -0.0182390417144343+0.00151683129010844i | AG19: =IMSUM(IMPRODUCT(定数!$F$39,計算!W19),IMPRODUCT(定数!$G$39,計算!X19),IMPRODUCT(定数!$H$39,計算!Y19),IMPRODUCT(定数!$I$39,計算!Z19)) -> 0.0188333502207307-0.00050884581300673i | AH19: =IMSUM(IMPRODUCT(定数!$F$40,計算!W19),IMPRODUCT(定数!$G$40,計算!X19),IMPRODUCT(定数!$H$40,計算!Y19),IMPRODUCT(定数!$I$40,計算!Z19)) -> -0.00104976607201279-0.000936184994247154i | AI19: =IMSUM(IMPRODUCT(定数!$F$41,計算!W19),IMPRODUCT(定数!$G$41,計算!X19),IMPRODUCT(定数!$H$41,計算!Y19),IMPRODUCT(定数!$I$41,計算!Z19)) -> -0.000470732264515107+0.000693898840975296i | AJ19: =IMSUM(IMPRODUCT(定数!$F$38,計算!AA19),IMPRODUCT(定数!$G$38,計算!AB19),IMPRODUCT(定数!$H$38,計算!AC19),IMPRODUCT(定数!$I$38,計算!AD19)) -> 0.0151728997398758+0.00459005575034412i | AK19: =IMSUM(IMPRODUCT(定数!$F$39,計算!AA19),IMPRODUCT(定数!$G$39,計算!AB19),IMPRODUCT(定数!$H$39,計算!AC19),IMPRODUCT(定数!$I$39,計算!AD19)) -> -0.015421088127274-0.00554530815671695i | AL19: =IMSUM(IMPRODUCT(定数!$F$40,計算!AA19),IMPRODUCT(定数!$G$40,計算!AB19),IMPRODUCT(定数!$H$40,計算!AC19),IMPRODUCT(定数!$I$40,計算!AD19)) -> 0.000303126075208354+0.00197192815386144i | AM19: =IMSUM(IMPRODUCT(定数!$F$41,計算!AA19),IMPRODUCT(定数!$G$41,計算!AB19),IMPRODUCT(定数!$H$41,計算!AC19),IMPRODUCT(定数!$I$41,計算!AD19)) -> 0.000079193431342264+0.000305116054756733i | AO19: 0.0305939878671498+0.0101353639070611i | AQ19: 0.000303126075208354+0.00197192815386144i | AR19: 0.000079193431342264+0.000305116054756733i
A20: 16 | B20: =A20*定数!$B$8 -> 1.005309649e+10 | D20: =B20*定数!$C$3 -> 5.026548246 | E20: =B20*定数!$C$5 -> 1.005309649 | F20: =定数!$B$6*SIN(D20)*SIN(E20)/(D20*E20) -> -3.754919956 | G20: -3.63695224120061-0.933810620281928i | I20: =IMSUB(掃き出し!LZ20,IMPRODUCT(P20,掃き出し!LY20)) -> 0.00240583155805539+0.0000029002693426399i | J20: =IMSUB(掃き出し!MB20,IMPRODUCT(P20,掃き出し!MA20)) -> -0.000374344804972079+0.000875060875469044i | K20: =IMSUB(掃き出し!MD20,IMPRODUCT(P20,掃き出し!MC20)) -> -0.00490496352347234+0.000395875390423788i | L20: =IMSUB(掃き出し!MF20,IMPRODUCT(P20,掃き出し!ME20)) -> 0.00114147632661594+0.00014072919237724i | M20: =IMSUB(掃き出し!MH20,IMPRODUCT(P20,掃き出し!MG20)) -> 0.0106432911676811-0.00243747689353925i | N20: =IMSUB(掃き出し!MJ20,IMPRODUCT(P20,掃き出し!MI20)) -> -0.00088157628013943-0.00206064950146163i | O20: =IMSUB(掃き出し!ML20,IMPRODUCT(P20,掃き出し!MK20)) -> -0.0122480255728986+0.00221803878712477i | P20: =IMDIV(掃き出し!MN20,掃き出し!MM20) -> 0.00197839756073758+0.00176257281068771i | R20: =IMEXP(COMPLEX(0,計算!$B20*定数!A$61)) -> -0.620199800050742-0.784443884555817i | S20: =IMEXP(COMPLEX(0,計算!$B20*定数!B$61)) -> -0.91978961197801-0.392411862330054i | T20: =IMEXP(COMPLEX(0,計算!$B20*定数!C$61)) -> -0.995411276240419-0.0956890335065634i | U20: =IMEXP(COMPLEX(0,計算!$B20*定数!D$61)) -> -0.984685680048982-0.174339070510524i | W20: 0.00203148675308331+0.000877961144811684i | X20: -0.0037634871968564+0.000536604582801028i | Y20: 0.00976171488754167-0.00449812639500088i | Z20: -0.010269628012161+0.00398061159781248i | AA20: -0.000575766624241652+0.001636381019499i | AB20: 0.00336149403373888-0.00286625804303997i | AC20: -0.00968086282555627+0.00558028916291174i | AD20: 0.0100329501280237-0.0063998726240104i | AF20: =IMSUM(IMPRODUCT(定数!$F$38,計算!W20),IMPRODUCT(定数!$G$38,計算!X20),IMPRODUCT(定数!$H$38,計算!Y20),IMPRODUCT(定数!$I$38,計算!Z20)) -> -0.0098579923172353+0.00418513933176555i | AG20: =IMSUM(IMPRODUCT(定数!$F$39,計算!W20),IMPRODUCT(定数!$G$39,計算!X20),IMPRODUCT(定数!$H$39,計算!Y20),IMPRODUCT(定数!$I$39,計算!Z20)) -> 0.0109984644137723-0.0040891607559803i | AH20: =IMSUM(IMPRODUCT(定数!$F$40,計算!W20),IMPRODUCT(定数!$G$40,計算!X20),IMPRODUCT(定数!$H$40,計算!Y20),IMPRODUCT(定数!$I$40,計算!Z20)) -> 0.000719273540250299+0.00137343778727448i | AI20: =IMSUM(IMPRODUCT(定数!$F$41,計算!W20),IMPRODUCT(定数!$G$41,計算!X20),IMPRODUCT(定数!$H$41,計算!Y20),IMPRODUCT(定数!$I$41,計算!Z20)) -> 0.000676965423941785+0.00086085264081009i | AJ20: =IMSUM(IMPRODUCT(定数!$F$38,計算!AA20),IMPRODUCT(定数!$G$38,計算!AB20),IMPRODUCT(定数!$H$38,計算!AC20),IMPRODUCT(定数!$I$38,計算!AD20)) -> 0.0101007837052438-0.00616316742665315i | AK20: =IMSUM(IMPRODUCT(定数!$F$39,計算!AA20),IMPRODUCT(定数!$G$39,計算!AB20),IMPRODUCT(定数!$H$39,計算!AC20),IMPRODUCT(定数!$I$39,計算!AD20)) -> -0.0101607829031042+0.00657558167641091i | AL20: =IMSUM(IMPRODUCT(定数!$F$40,計算!AA20),IMPRODUCT(定数!$G$40,計算!AB20),IMPRODUCT(定数!$H$40,計算!AC20),IMPRODUCT(定数!$I$40,計算!AD20)) -> 0.000258064352687363+0.0011328644021028i | AM20: =IMSUM(IMPRODUCT(定数!$F$41,計算!AA20),IMPRODUCT(定数!$G$41,計算!AB20),IMPRODUCT(定数!$H$41,計算!AC20),IMPRODUCT(定数!$I$41,計算!AD20)) -> 0.000126871315015131+0.000772522857784527i | AO20: 0.020261566608348-0.0127387491030641i | AQ20: 0.000258064352687363+0.0011328644021028i | AR20: 0.000126871315015131+0.000772522857784527i
A21: 17 | B21: =A21*定数!$B$8 -> 1.068141502e+10 | D21: =B21*定数!$C$3 -> 5.340707511 | E21: =B21*定数!$C$5 -> 1.068141502 | F21: =定数!$B$6*SIN(D21)*SIN(E21)/(D21*E21) -> -2.936561455 | G21: -2.91340579110571+0.368048742751682i | I21: =IMSUB(掃き出し!LZ21,IMPRODUCT(P21,掃き出し!LY21)) -> 0.00130566850847621-0.00195932414200749i | J21: =IMSUB(掃き出し!MB21,IMPRODUCT(P21,掃き出し!MA21)) -> 0.00089859913461217-0.00011451001271748i | K21: =IMSUB(掃き出し!MD21,IMPRODUCT(P21,掃き出し!MC21)) -> -0.0045395347203602+0.00179378308053857i | L21: =IMSUB(掃き出し!MF21,IMPRODUCT(P21,掃き出し!ME21)) -> 0.00018571054069801-0.00119463634694831i | M21: =IMSUB(掃き出し!MH21,IMPRODUCT(P21,掃き出し!MG21)) -> 0.0076606805313583-0.00335268671353999i | N21: =IMSUB(掃き出し!MJ21,IMPRODUCT(P21,掃き出し!MI21)) -> -0.00177109008875702+0.00041802758121278i | O21: =IMSUB(掃き出し!ML21,IMPRODUCT(P21,掃き出し!MK21)) -> -0.00978587446855251+0.00391668703779772i | P21: =IMDIV(掃き出し!MN21,掃き出し!MM21) -> 0.00183893137723972-0.00147567386332746i | R21: =IMEXP(COMPLEX(0,計算!$B21*定数!A$61)) -> -0.0235841368187526-0.999721855563093i | S21: =IMEXP(COMPLEX(0,計算!$B21*定数!B$61)) -> -0.525490999776491-0.85079915911683i | T21: =IMEXP(COMPLEX(0,計算!$B21*定数!C$61)) -> -0.770689375606637-0.637211021818559i | U21: =IMEXP(COMPLEX(0,計算!$B21*定数!D$61)) -> -0.714256371326499-0.699884159000261i | W21: 0.00220426764308838-0.00207383415472497i | X21: -0.00435382417966219+0.00059914673359026i | Y21: 0.00588959044260128-0.00293465913232721i | Z21: -0.00794694309131279+0.00244101317447026i | AA21: 0.00179231525482307+0.000455865738226698i | AB21: -0.000254649314972488-0.00433508091077627i | AC21: -0.00213630407204193+0.00827173880871352i | AD21: 0.00190212676122938-0.00987952667528091i | AF21: =IMSUM(IMPRODUCT(定数!$F$38,計算!W21),IMPRODUCT(定数!$G$38,計算!X21),IMPRODUCT(定数!$H$38,計算!Y21),IMPRODUCT(定数!$I$38,計算!Z21)) -> -0.0077787775425135+0.00162427900601639i | AG21: =IMSUM(IMPRODUCT(定数!$F$39,計算!W21),IMPRODUCT(定数!$G$39,計算!X21),IMPRODUCT(定数!$H$39,計算!Y21),IMPRODUCT(定数!$I$39,計算!Z21)) -> 0.00734979250757689-0.00397141482472684i | AH21: =IMSUM(IMPRODUCT(定数!$F$40,計算!W21),IMPRODUCT(定数!$G$40,計算!X21),IMPRODUCT(定数!$H$40,計算!Y21),IMPRODUCT(定数!$I$40,計算!Z21)) -> 0.00241095082088424-0.000558462324691317i | AI21: =IMSUM(IMPRODUCT(定数!$F$41,計算!W21),IMPRODUCT(定数!$G$41,計算!X21),IMPRODUCT(定数!$H$41,計算!Y21),IMPRODUCT(定数!$I$41,計算!Z21)) -> 0.00123902337711659-0.000862742316205056i | AJ21: =IMSUM(IMPRODUCT(定数!$F$38,計算!AA21),IMPRODUCT(定数!$G$38,計算!AB21),IMPRODUCT(定数!$H$38,計算!AC21),IMPRODUCT(定数!$I$38,計算!AD21)) -> 0.00228250231122117-0.0102807974947147i | AK21: =IMSUM(IMPRODUCT(定数!$F$39,計算!AA21),IMPRODUCT(定数!$G$39,計算!AB21),IMPRODUCT(定数!$H$39,計算!AC21),IMPRODUCT(定数!$I$39,計算!AD21)) -> -0.00134777050765039+0.00882239317566936i | AL21: =IMSUM(IMPRODUCT(定数!$F$40,計算!AA21),IMPRODUCT(定数!$G$40,計算!AB21),IMPRODUCT(定数!$H$40,計算!AC21),IMPRODUCT(定数!$I$40,計算!AD21)) -> 0.00155543796281271+0.00080699420888428i | AM21: =IMSUM(IMPRODUCT(定数!$F$41,計算!AA21),IMPRODUCT(定数!$G$41,計算!AB21),IMPRODUCT(定数!$H$41,計算!AC21),IMPRODUCT(定数!$I$41,計算!AD21)) -> 0.00135467084382064+0.00011046745532029i | AO21: 0.00363027281887156-0.0191031906703841i | AQ21: 0.00155543796281271+0.00080699420888428i | AR21: 0.00135467084382064+0.00011046745532029i
A22: 18 | B22: =A22*定数!$B$8 -> 1.130973355e+10 | D22: =B22*定数!$C$3 -> 5.654866776 | E22: =B22*定数!$C$5 -> 1.130973355 | F22: =定数!$B$6*SIN(D22)*SIN(E22)/(D22*E22) -> -1.964999398 | G22: -1.72194209851165+0.946645679463353i | I22: =IMSUB(掃き出し!LZ22,IMPRODUCT(P22,掃き出し!LY22)) -> -0.000122663432163761-0.00096517574529089i | J22: =IMSUB(掃き出し!MB22,IMPRODUCT(P22,掃き出し!MA22)) -> -0.00015223830274633-0.000405361264935925i | K22: =IMSUB(掃き出し!MD22,IMPRODUCT(P22,掃き出し!MC22)) -> -0.00182955531884394+0.00343575793084004i | L22: =IMSUB(掃き出し!MF22,IMPRODUCT(P22,掃き出し!ME22)) -> -0.00097148258039403+0.000225529019104534i | M22: =IMSUB(掃き出し!MH22,IMPRODUCT(P22,掃き出し!MG22)) -> 0.00532468231405941-0.00433344721661765i | N22: =IMSUB(掃き出し!MJ22,IMPRODUCT(P22,掃き出し!MI22)) -> 0.00023528943670119+0.00156634001192413i | O22: =IMSUB(掃き出し!ML22,IMPRODUCT(P22,掃き出し!MK22)) -> -0.00655081274807998+0.00647024152625638i | P22: =IMDIV(掃き出し!MN22,掃き出し!MM22) -> -0.00142022823224382-0.00166086422923795i | R22: =IMEXP(COMPLEX(0,計算!$B22*定数!A$61)) -> 0.582519303301235-0.812816868231365i | S22: =IMEXP(COMPLEX(0,計算!$B22*定数!B$61)) -> 0.0609220296410457-0.998142528051187i | T22: =IMEXP(COMPLEX(0,計算!$B22*定数!C$61)) -> -0.281046087601646-0.959694272486716i | U22: =IMEXP(COMPLEX(0,計算!$B22*定数!D$61)) -> -0.19431613364695-0.98093895844976i | W22: -0.000274901734910091-0.00137053701022681i | X22: -0.00280103789923797+0.00366128694994457i | Y22: 0.0055599717507606-0.00276710720469352i | Z22: -0.0079710409803238+0.00480937729701843i | AA22: 0.000294891085616564-0.00077432531066061i | AB22: -0.00337491091550576-0.0006334258603193i | AC22: 0.00409938370439489+0.00566194584868882i | AD22: -0.00642721654640155-0.00596732983280883i | AF22: =IMSUM(IMPRODUCT(定数!$F$38,計算!W22),IMPRODUCT(定数!$G$38,計算!X22),IMPRODUCT(定数!$H$38,計算!Y22),IMPRODUCT(定数!$I$38,計算!Z22)) -> -0.007810010248715+0.00511314614565537i | AG22: =IMSUM(IMPRODUCT(定数!$F$39,計算!W22),IMPRODUCT(定数!$G$39,計算!X22),IMPRODUCT(定数!$H$39,計算!Y22),IMPRODUCT(定数!$I$39,計算!Z22)) -> 0.00626016748782899-0.00364398501175341i | AH22: =IMSUM(IMPRODUCT(定数!$F$40,計算!W22),IMPRODUCT(定数!$G$40,計算!X22),IMPRODUCT(定数!$H$40,計算!Y22),IMPRODUCT(定数!$I$40,計算!Z22)) -> 0.000804213285703078-0.00230310702751883i | AI22: =IMSUM(IMPRODUCT(定数!$F$41,計算!W22),IMPRODUCT(定数!$G$41,計算!X22),IMPRODUCT(定数!$H$41,計算!Y22),IMPRODUCT(定数!$I$41,計算!Z22)) -> -0.000969547661732444-0.00118811506799835i | AJ22: =IMSUM(IMPRODUCT(定数!$F$38,計算!AA22),IMPRODUCT(定数!$G$38,計算!AB22),IMPRODUCT(定数!$H$38,計算!AC22),IMPRODUCT(定数!$I$38,計算!AD22)) -> -0.00666733698502178-0.00560559993148862i | AK22: =IMSUM(IMPRODUCT(定数!$F$39,計算!AA22),IMPRODUCT(定数!$G$39,計算!AB22),IMPRODUCT(定数!$H$39,計算!AC22),IMPRODUCT(定数!$I$39,計算!AD22)) -> 0.00474564468208523+0.0057832882754933i | AL22: =IMSUM(IMPRODUCT(定数!$F$40,計算!AA22),IMPRODUCT(定数!$G$40,計算!AB22),IMPRODUCT(定数!$H$40,計算!AC22),IMPRODUCT(定数!$I$40,計算!AD22)) -> 0.00151692931233145-0.0011180570880022i | AM22: =IMSUM(IMPRODUCT(定数!$F$41,計算!AA22),IMPRODUCT(定数!$G$41,計算!AB22),IMPRODUCT(定数!$H$41,計算!AC22),IMPRODUCT(定数!$I$41,計算!AD22)) -> 0.0000495611075982927-0.00147489059701716i | AO22: -0.011412981667107-0.0113888882069819i | AQ22: 0.00151692931233145-0.0011180570880022i | AR22: 0.0000495611075982927-0.00147489059701716i
A23: 19 | B23: =A23*定数!$B$8 -> 1.193805208e+10 | D23: =B23*定数!$C$3 -> 5.969026042 | E23: =B23*定数!$C$5 -> 1.193805208 | F23: =定数!$B$6*SIN(D23)*SIN(E23)/(D23*E23) -> -0.9527454661 | G23: -0.607302816186187+0.734102998588079i | I23: =IMSUB(掃き出し!LZ23,IMPRODUCT(P23,掃き出し!LY23)) -> -0.00005620731152445-0.000265632897736614i | J23: =IMSUB(掃き出し!MB23,IMPRODUCT(P23,掃き出し!MA23)) -> -0.000163093803235094+0.00005151704479029i | K23: =IMSUB(掃き出し!MD23,IMPRODUCT(P23,掃き出し!MC23)) -> 0.000124895478566594+0.00139944362879824i | L23: =IMSUB(掃き出し!MF23,IMPRODUCT(P23,掃き出し!ME23)) -> 0.000156632775200651+0.00032715793213504i | M23: =IMSUB(掃き出し!MH23,IMPRODUCT(P23,掃き出し!MG23)) -> 0.00107942704964005-0.00401576578861138i | N23: =IMSUB(掃き出し!MJ23,IMPRODUCT(P23,掃き出し!MI23)) -> 0.000915741188578598-0.000408815434455631i | O23: =IMSUB(掃き出し!ML23,IMPRODUCT(P23,掃き出し!MK23)) -> -0.000216183925039604+0.00463509334456009i | P23: =IMDIV(掃き出し!MN23,掃き出し!MM23) -> -0.000535699024946499+0.00103128437489814i | R23: =IMEXP(COMPLEX(0,計算!$B23*定数!A$61)) -> 0.954278225105867-0.29891983722864i | S23: =IMEXP(COMPLEX(0,計算!$B23*定数!B$61)) -> 0.625062555390425-0.780574661290508i | T23: =IMEXP(COMPLEX(0,計算!$B23*定数!C$61)) -> 0.305205667834299-0.952286459171724i | U23: =IMEXP(COMPLEX(0,計算!$B23*定数!D$61)) -> 0.393504491193233-0.919322693840827i | W23: -0.000219301114759544-0.000214115852946324i | X23: 0.000281528253767245+0.00172660156093328i | Y23: 0.00199516823821865-0.00442458122306701i | Z23: -0.000751882949986103+0.00566637771945823i | AA23: -0.000114471869359261-0.000172375603412561i | AB23: -0.000661026274765175+0.00105446065424765i | AC23: 0.00404378663575448-0.00119453143802658i | AD23: -0.00360893268774851+0.00252348256377331i | AF23: =IMSUM(IMPRODUCT(定数!$F$38,計算!W23),IMPRODUCT(定数!$G$38,計算!X23),IMPRODUCT(定数!$H$38,計算!Y23),IMPRODUCT(定数!$I$38,計算!Z23)) -> -0.000905825019126452+0.00533852682320138i | AG23: =IMSUM(IMPRODUCT(定数!$F$39,計算!W23),IMPRODUCT(定数!$G$39,計算!X23),IMPRODUCT(定数!$H$39,計算!Y23),IMPRODUCT(定数!$I$39,計算!Z23)) -> 0.00159619957722967-0.00505871091514307i | AH23: =IMSUM(IMPRODUCT(定数!$F$40,計算!W23),IMPRODUCT(定数!$G$40,計算!X23),IMPRODUCT(定数!$H$40,計算!Y23),IMPRODUCT(定数!$I$40,計算!Z23)) -> -0.00114180120860056-0.000412265201116135i | AI23: =IMSUM(IMPRODUCT(定数!$F$41,計算!W23),IMPRODUCT(定数!$G$41,計算!X23),IMPRODUCT(定数!$H$41,計算!Y23),IMPRODUCT(定数!$I$41,計算!Z23)) -> -0.0000951466727007315+0.000536920388431031i | AJ23: =IMSUM(IMPRODUCT(定数!$F$38,計算!AA23),IMPRODUCT(定数!$G$38,計算!AB23),IMPRODUCT(定数!$H$38,計算!AC23),IMPRODUCT(定数!$I$38,計算!AD23)) -> -0.00359147390770278+0.00229787824223546i | AK23: =IMSUM(IMPRODUCT(定数!$F$39,計算!AA23),IMPRODUCT(定数!$G$39,計算!AB23),IMPRODUCT(定数!$H$39,計算!AC23),IMPRODUCT(定数!$I$39,計算!AD23)) -> 0.00400602205783036-0.0017092908714513i | AL23: =IMSUM(IMPRODUCT(定数!$F$40,計算!AA23),IMPRODUCT(定数!$G$40,計算!AB23),IMPRODUCT(定数!$H$40,計算!AC23),IMPRODUCT(定数!$I$40,計算!AD23)) -> -0.00079654069767678-0.000811585764232611i | AM23: =IMSUM(IMPRODUCT(定数!$F$41,計算!AA23),IMPRODUCT(定数!$G$41,計算!AB23),IMPRODUCT(定数!$H$41,計算!AC23),IMPRODUCT(定数!$I$41,計算!AD23)) -> -0.000374740909291347+0.00024985752189614i | AO23: -0.00759749596553314+0.00400716911368676i | AQ23: -0.00079654069767678-0.000811585764232611i | AR23: -0.000374740909291347+0.00024985752189614i
A24: 20 | B24: =A24*定数!$B$8 -> 1.256637061e+10 | D24: =B24*定数!$C$3 -> 6.283185307 | E24: =B24*定数!$C$5 -> 1.256637061 | F24: =定数!$B$6*SIN(D24)*SIN(E24)/(D24*E24) -> -6.97410074e-16 | G24: -2.15511564918892E-16+6.63276395421741E-16i | I24: =IMSUB(掃き出し!LZ24,IMPRODUCT(P24,掃き出し!LY24)) -> -5.62838580620399E-21-2.56475084736113E-19i | J24: =IMSUB(掃き出し!MB24,IMPRODUCT(P24,掃き出し!MA24)) -> 1.05240839491391E-20+1.31681759689295E-19i | K24: =IMSUB(掃き出し!MD24,IMPRODUCT(P24,掃き出し!MC24)) -> 2.69748957889457E-19+7.75049192438409E-19i | L24: =IMSUB(掃き出し!MF24,IMPRODUCT(P24,掃き出し!ME24)) -> 2.15119118228509E-19-7.0265747751413E-20i | M24: =IMSUB(掃き出し!MH24,IMPRODUCT(P24,掃き出し!MG24)) -> -9.23374098901171E-19-2.23522597229805E-18i | N24: =IMSUB(掃き出し!MJ24,IMPRODUCT(P24,掃き出し!MI24)) -> -3.98109830171875E-19-4.60984391643682E-19i | O24: =IMSUB(掃き出し!ML24,IMPRODUCT(P24,掃き出し!MK24)) -> 1.02133520384038E-18+2.23941559078983E-18i | P24: =IMDIV(掃き出し!MN24,掃き出し!MM24) -> 6.048735783096E-19+2.30099642079312E-19i | R24: =IMEXP(COMPLEX(0,計算!$B24*定数!A$61)) -> 0.942135927270361+0.335231106173663i | S24: =IMEXP(COMPLEX(0,計算!$B24*定数!B$61)) -> 0.960686268095525-0.277636262567938i | T24: =IMEXP(COMPLEX(0,計算!$B24*定数!C$61)) -> 0.786544196858406-0.617533988043059i | U24: =IMEXP(COMPLEX(0,計算!$B24*定数!D$61)) -> 0.843862329437544-0.53655975338842i | W24: 4.89569814293511E-21-1.24793325046818E-19i | X24: 4.84868076117966E-19+7.04783444686996E-19i | Y24: -1.32148392907305E-18-2.69621036394173E-18i | Z24: 1.62620878214998E-18+2.46951523286914E-18i | AA24: -1.25509835216078E-19-1.12157464706615E-19i | AB24: 2.31116021877284E-19+6.9224300180001E-19i | AC24: 5.6248963399263E-20-2.44505715391279E-18i | AD24: 2.94178261137339E-19+2.30738742408099E-18i | AF24: =IMSUM(IMPRODUCT(定数!$F$38,計算!W24),IMPRODUCT(定数!$G$38,計算!X24),IMPRODUCT(定数!$H$38,計算!Y24),IMPRODUCT(定数!$I$38,計算!Z24)) -> 1.57009117054558E-18+2.50736005225577E-18i | AG24: =IMSUM(IMPRODUCT(定数!$F$39,計算!W24),IMPRODUCT(定数!$G$39,計算!X24),IMPRODUCT(定数!$H$39,計算!Y24),IMPRODUCT(定数!$I$39,計算!Z24)) -> -1.45190617081661E-18-2.73048985175261E-18i | AH24: =IMSUM(IMPRODUCT(定数!$F$40,計算!W24),IMPRODUCT(定数!$G$40,計算!X24),IMPRODUCT(定数!$H$40,計算!Y24),IMPRODUCT(定数!$I$40,計算!Z24)) -> -4.54735922341204E-20+3.11572802276649E-19i | AI24: =IMSUM(IMPRODUCT(定数!$F$41,計算!W24),IMPRODUCT(定数!$G$41,計算!X24),IMPRODUCT(定数!$H$41,計算!Y24),IMPRODUCT(定数!$I$41,計算!Z24)) -> 1.75372168037342E-19+2.52250992255143E-20i | AJ24: =IMSUM(IMPRODUCT(定数!$F$38,計算!AA24),IMPRODUCT(定数!$G$38,計算!AB24),IMPRODUCT(定数!$H$38,計算!AC24),IMPRODUCT(定数!$I$38,計算!AD24)) -> 2.32574554798587E-19+2.3445299956024E-18i | AK24: =IMSUM(IMPRODUCT(定数!$F$39,計算!AA24),IMPRODUCT(定数!$G$39,計算!AB24),IMPRODUCT(定数!$H$39,計算!AC24),IMPRODUCT(定数!$I$39,計算!AD24)) -> -9.84752977593597E-20-2.4908632792056E-18i | AL24: =IMSUM(IMPRODUCT(定数!$F$40,計算!AA24),IMPRODUCT(定数!$G$40,計算!AB24),IMPRODUCT(定数!$H$40,計算!AC24),IMPRODUCT(定数!$I$40,計算!AD24)) -> -3.10984031188392E-19+2.35628527303273E-19i | AM24: =IMSUM(IMPRODUCT(定数!$F$41,計算!AA24),IMPRODUCT(定数!$G$41,計算!AB24),IMPRODUCT(定数!$H$41,計算!AC24),IMPRODUCT(定数!$I$41,計算!AD24)) -> -2.97274302658943E-20+2.57472686770739E-20i | AO24: 3.31049852557947E-19+4.835393274808E-18i | AQ24: -3.10984031188392E-19+2.35628527303273E-19i | AR24: -2.97274302658943E-20+2.57472686770739E-20i
A25: 21 | B25: =A25*定数!$B$8 -> 1.319468915e+10 | D25: =B25*定数!$C$3 -> 6.597344573 | E25: =B25*定数!$C$5 -> 1.319468915 | F25: =定数!$B$6*SIN(D25)*SIN(E25)/(D25*E25) -> 0.8124634994 | G25: -0.0510150052262833-0.810860288279168i | I25: =IMSUB(掃き出し!LZ25,IMPRODUCT(P25,掃き出し!LY25)) -> 0.000262687723105008+0.00049489115993757i | J25: =IMSUB(掃き出し!MB25,IMPRODUCT(P25,掃き出し!MA25)) -> -0.000243437526513009+0.0000392449482751499i | K25: =IMSUB(掃き出し!MD25,IMPRODUCT(P25,掃き出し!MC25)) -> -0.000435667313022083-0.000864465974122667i | L25: =IMSUB(掃き出し!MF25,IMPRODUCT(P25,掃き出し!ME25)) -> 0.000032829787986657+0.0002832501464342i | M25: =IMSUB(掃き出し!MH25,IMPRODUCT(P25,掃き出し!MG25)) -> 0.00134458821245965+0.00170255585016914i | N25: =IMSUB(掃き出し!MJ25,IMPRODUCT(P25,掃き出し!MI25)) -> 0.00046279625342821-0.000333970737398938i | O25: =IMSUB(掃き出し!ML25,IMPRODUCT(P25,掃き出し!MK25)) -> -0.0013920203050142-0.00198650565349093i | P25: =IMDIV(掃き出し!MN25,掃き出し!MM25) -> -0.000340189794119248+0.00057050285053542i | R25: =IMEXP(COMPLEX(0,計算!$B25*定数!A$61)) -> 0.550977193734796+0.834520300522479i | S25: =IMEXP(COMPLEX(0,計算!$B25*定数!B$61)) -> 0.945092390773261+0.326803263298397i | T25: =IMEXP(COMPLEX(0,計算!$B25*定数!C$61)) -> 0.997511307181582-0.0705066808528911i | U25: =IMEXP(COMPLEX(0,計算!$B25*定数!D$61)) -> 0.99943403460363+0.0336394184835372i | W25: 0.000019250196591999+0.00053413610821272i | X25: -0.000402837525035426-0.000581215827688467i | Y25: 0.00180738446588786+0.0013685851127702i | Z25: -0.00173221009913345-0.00141600280295551i | AA25: 0.000390852432785555-0.000128074981437773i | AB25: -0.000755796053167075-0.000396196274689859i | AC25: 0.00165929771098939+0.00142735134906273i | AD25: -0.001817246007291-0.00137981842763813i | AF25: =IMSUM(IMPRODUCT(定数!$F$38,計算!W25),IMPRODUCT(定数!$G$38,計算!X25),IMPRODUCT(定数!$H$38,計算!Y25),IMPRODUCT(定数!$I$38,計算!Z25)) -> -0.00170618410672468-0.00129224711068123i | AG25: =IMSUM(IMPRODUCT(定数!$F$39,計算!W25),IMPRODUCT(定数!$G$39,計算!X25),IMPRODUCT(定数!$H$39,計算!Y25),IMPRODUCT(定数!$I$39,計算!Z25)) -> 0.00185162367485254+0.00165144871748299i | AH25: =IMSUM(IMPRODUCT(定数!$F$40,計算!W25),IMPRODUCT(定数!$G$40,計算!X25),IMPRODUCT(定数!$H$40,計算!Y25),IMPRODUCT(定数!$I$40,計算!Z25)) -> -0.000229789263544244+0.000242788614589194i | AI25: =IMSUM(IMPRODUCT(定数!$F$41,計算!W25),IMPRODUCT(定数!$G$41,計算!X25),IMPRODUCT(定数!$H$41,計算!Y25),IMPRODUCT(定数!$I$41,計算!Z25)) -> -0.00013124213936888+0.000253200341386956i | AJ25: =IMSUM(IMPRODUCT(定数!$F$38,計算!AA25),IMPRODUCT(定数!$G$38,計算!AB25),IMPRODUCT(定数!$H$38,計算!AC25),IMPRODUCT(定数!$I$38,計算!AD25)) -> -0.00176781738869588-0.00146761045451886i | AK25: =IMSUM(IMPRODUCT(定数!$F$39,計算!AA25),IMPRODUCT(定数!$G$39,計算!AB25),IMPRODUCT(定数!$H$39,計算!AC25),IMPRODUCT(定数!$I$39,計算!AD25)) -> 0.00189239030098957+0.00136553724554757i | AL25: =IMSUM(IMPRODUCT(定数!$F$40,計算!AA25),IMPRODUCT(定数!$G$40,計算!AB25),IMPRODUCT(定数!$H$40,計算!AC25),IMPRODUCT(定数!$I$40,計算!AD25)) -> 0.000215503780036323-0.00023090080962016i | AM25: =IMSUM(IMPRODUCT(定数!$F$41,計算!AA25),IMPRODUCT(定数!$G$41,計算!AB25),IMPRODUCT(定数!$H$41,計算!AC25),IMPRODUCT(定数!$I$41,計算!AD25)) -> 0.000171229519974761-0.000124084935854425i | AO25: -0.00366020768968545-0.00283314770006643i | AQ25: 0.000215503780036323-0.00023090080962016i | AR25: 0.000171229519974761-0.000124084935854425i
A26: 22 | B26: =A26*定数!$B$8 -> 1.382300768e+10 | D26: =B26*定数!$C$3 -> 6.911503838 | E26: =B26*定数!$C$5 -> 1.382300768 | F26: =定数!$B$6*SIN(D26)*SIN(E26)/(D26*E26) -> 1.428022338 | G26: -0.608022339201209-1.29211324249867i | I26: =IMSUB(掃き出し!LZ26,IMPRODUCT(P26,掃き出し!LY26)) -> 0.00094540528475783-0.00003339694898541i | J26: =IMSUB(掃き出し!MB26,IMPRODUCT(P26,掃き出し!MA26)) -> 0.000296597814301054+0.00027541469324219i | K26: =IMSUB(掃き出し!MD26,IMPRODUCT(P26,掃き出し!MC26)) -> -0.00157068260124373-0.00169730506017777i | L26: =IMSUB(掃き出し!MF26,IMPRODUCT(P26,掃き出し!ME26)) -> 0.00071212988021398-0.000053299927779355i | M26: =IMSUB(掃き出し!MH26,IMPRODUCT(P26,掃き出し!MG26)) -> 0.00268343498673624+0.00256000220911268i | N26: =IMSUB(掃き出し!MJ26,IMPRODUCT(P26,掃き出し!MI26)) -> -0.000397547248078136-0.000940030653381921i | O26: =IMSUB(掃き出し!ML26,IMPRODUCT(P26,掃き出し!MK26)) -> -0.00321406943621538-0.00337487961907993i | P26: =IMDIV(掃き出し!MN26,掃き出し!MM26) -> 0.000963997507495733+0.000912761341573739i | R26: =IMEXP(COMPLEX(0,計算!$B26*定数!A$61)) -> -0.0618368297401932+0.99808627206654i | S26: =IMEXP(COMPLEX(0,計算!$B26*定数!B$61)) -> 0.583981893859237+0.811766683009705i | T26: =IMEXP(COMPLEX(0,計算!$B26*定数!C$61)) -> 0.865587899247644+0.500757015603426i | U26: =IMEXP(COMPLEX(0,計算!$B26*定数!D$61)) -> 0.805873797212329+0.592087344035137i | W26: 0.00124200309905888+0.00024201774425678i | X26: -0.00085855272102975-0.00175060498795712i | Y26: 0.0022858877386581+0.00161997155573076i | Z26: -0.00225007192871965-0.00246211827750619i | AA26: -0.000385022194934988-0.000662531439522837i | AB26: -0.00183592783718294+0.00083078949973945i | AC26: 0.00373130277635773-0.000140595693266895i | AD26: -0.00435193195776787+0.000489623954423123i | AF26: =IMSUM(IMPRODUCT(定数!$F$38,計算!W26),IMPRODUCT(定数!$G$38,計算!X26),IMPRODUCT(定数!$H$38,計算!Y26),IMPRODUCT(定数!$I$38,計算!Z26)) -> -0.00186890269243551-0.00280345621088662i | AG26: =IMSUM(IMPRODUCT(定数!$F$39,計算!W26),IMPRODUCT(定数!$G$39,計算!X26),IMPRODUCT(定数!$H$39,計算!Y26),IMPRODUCT(定数!$I$39,計算!Z26)) -> 0.00293104962369806+0.00178187070714329i | AH26: =IMSUM(IMPRODUCT(定数!$F$40,計算!W26),IMPRODUCT(定数!$G$40,計算!X26),IMPRODUCT(定数!$H$40,計算!Y26),IMPRODUCT(定数!$I$40,計算!Z26)) -> 0.000510182858707614+0.000758695001936035i | AI26: =IMSUM(IMPRODUCT(定数!$F$41,計算!W26),IMPRODUCT(定数!$G$41,計算!X26),IMPRODUCT(定数!$H$41,計算!Y26),IMPRODUCT(定数!$I$41,計算!Z26)) -> 0.000568994438975626+0.000383597830940593i | AJ26: =IMSUM(IMPRODUCT(定数!$F$38,計算!AA26),IMPRODUCT(定数!$G$38,計算!AB26),IMPRODUCT(定数!$H$38,計算!AC26),IMPRODUCT(定数!$I$38,計算!AD26)) -> -0.00476890843762861+0.000538240857266985i | AK26: =IMSUM(IMPRODUCT(定数!$F$39,計算!AA26),IMPRODUCT(定数!$G$39,計算!AB26),IMPRODUCT(定数!$H$39,計算!AC26),IMPRODUCT(定数!$I$39,計算!AD26)) -> 0.00364375357089503-0.000428109161039521i | AL26: =IMSUM(IMPRODUCT(定数!$F$40,計算!AA26),IMPRODUCT(定数!$G$40,計算!AB26),IMPRODUCT(定数!$H$40,計算!AC26),IMPRODUCT(定数!$I$40,計算!AD26)) -> -0.0000444147770161719-0.0007508476291151i | AM26: =IMSUM(IMPRODUCT(定数!$F$41,計算!AA26),IMPRODUCT(定数!$G$41,計算!AB26),IMPRODUCT(定数!$H$41,計算!AC26),IMPRODUCT(定数!$I$41,計算!AD26)) -> -0.000234298360954801-0.000605733852902518i | AO26: -0.00841266200852364+0.000966350018306506i | AQ26: -0.0000444147770161719-0.0007508476291151i | AR26: -0.000234298360954801-0.000605733852902518i
A27: 23 | B27: =A27*定数!$B$8 -> 1.445132621e+10 | D27: =B27*定数!$C$3 -> 7.225663103 | E27: =B27*定数!$C$5 -> 1.445132621 | F27: =定数!$B$6*SIN(D27)*SIN(E27)/(D27*E27) -> 1.816297677 | G27: -1.32402402482118-1.24334131851114i | I27: =IMSUB(掃き出し!LZ27,IMPRODUCT(P27,掃き出し!LY27)) -> 0.00061042780748906-0.000392194417362834i | J27: =IMSUB(掃き出し!MB27,IMPRODUCT(P27,掃き出し!MA27)) -> 0.00023558726539669-0.000271247583022353i | K27: =IMSUB(掃き出し!MD27,IMPRODUCT(P27,掃き出し!MC27)) -> -0.00356669118634547-8.21542569308994E-06i | L27: =IMSUB(掃き出し!MF27,IMPRODUCT(P27,掃き出し!ME27)) -> -0.000621379986586378-0.00094329793548973i | M27: =IMSUB(掃き出し!MH27,IMPRODUCT(P27,掃き出し!MG27)) -> 0.00515622253015906+0.00306664558894445i | N27: =IMSUB(掃き出し!MJ27,IMPRODUCT(P27,掃き出し!MI27)) -> -0.00166810831595705+0.000459686071782816i | O27: =IMSUB(掃き出し!ML27,IMPRODUCT(P27,掃き出し!MK27)) -> -0.00752374263719609-0.00352807240983904i | P27: =IMDIV(掃き出し!MN27,掃き出し!MM27) -> 0.0016864530209817-0.00181533270456306i | R27: =IMEXP(COMPLEX(0,計算!$B27*定数!A$61)) -> -0.649774214797382+0.760127272096223i | S27: =IMEXP(COMPLEX(0,計算!$B27*定数!B$61)) -> 0.00937327566210398+0.999956069886754i | T27: =IMEXP(COMPLEX(0,計算!$B27*定数!C$61)) -> 0.436122116371904+0.899887492751895i | U27: =IMEXP(COMPLEX(0,計算!$B27*定数!D$61)) -> 0.330797947449006+0.943701604302718i | W27: 0.00084601507288575-0.000663442000385187i | X27: -0.00418807117293185-0.00095151336118282i | Y27: 0.00348811421420201+0.00352633166072727i | Z27: -0.00583728961621439-0.0053434051144021i | AA27: -0.000641653766946992+0.000146160986132147i | AB27: 0.000895785485919689+0.002936263014874i | AC27: 0.00386721401684897-0.00460321874791522i | AD27: -0.00354727863133103+0.00692408897433158i | AF27: =IMSUM(IMPRODUCT(定数!$F$38,計算!W27),IMPRODUCT(定数!$G$38,計算!X27),IMPRODUCT(定数!$H$38,計算!Y27),IMPRODUCT(定数!$I$38,計算!Z27)) -> -0.00644562605016643-0.00479883748417622i | AG27: =IMSUM(IMPRODUCT(定数!$F$39,計算!W27),IMPRODUCT(定数!$G$39,計算!X27),IMPRODUCT(定数!$H$39,計算!Y27),IMPRODUCT(定数!$I$39,計算!Z27)) -> 0.00413551420672187+0.0040853080855768i | AH27: =IMSUM(IMPRODUCT(定数!$F$40,計算!W27),IMPRODUCT(定数!$G$40,計算!X27),IMPRODUCT(定数!$H$40,計算!Y27),IMPRODUCT(定数!$I$40,計算!Z27)) -> 0.0021862637372275+0.000124865522858103i | AI27: =IMSUM(IMPRODUCT(定数!$F$41,計算!W27),IMPRODUCT(定数!$G$41,計算!X27),IMPRODUCT(定数!$H$41,計算!Y27),IMPRODUCT(定数!$I$41,計算!Z27)) -> 0.000951667774498312-0.00151447997747818i | AJ27: =IMSUM(IMPRODUCT(定数!$F$38,計算!AA27),IMPRODUCT(定数!$G$38,計算!AB27),IMPRODUCT(定数!$H$38,計算!AC27),IMPRODUCT(定数!$I$38,計算!AD27)) -> -0.00274752461527309+0.00699782334051573i | AK27: =IMSUM(IMPRODUCT(定数!$F$39,計算!AA27),IMPRODUCT(定数!$G$39,計算!AB27),IMPRODUCT(定数!$H$39,計算!AC27),IMPRODUCT(定数!$I$39,計算!AD27)) -> 0.00404674063087752-0.00519049770426284i | AL27: =IMSUM(IMPRODUCT(定数!$F$40,計算!AA27),IMPRODUCT(定数!$G$40,計算!AB27),IMPRODUCT(定数!$H$40,計算!AC27),IMPRODUCT(定数!$I$40,計算!AD27)) -> -0.00147233634889993-0.0010475830987843i | AM27: =IMSUM(IMPRODUCT(定数!$F$41,計算!AA27),IMPRODUCT(定数!$G$41,計算!AB27),IMPRODUCT(定数!$H$41,計算!AC27),IMPRODUCT(定数!$I$41,計算!AD27)) -> -0.00162351262571696+0.000545827967219257i | AO27: -0.00679426524615061+0.0121883210447786i | AQ27: -0.00147233634889993-0.0010475830987843i | AR27: -0.00162351262571696+0.000545827967219257i
A28: 24 | B28: =A28*定数!$B$8 -> 1.507964474e+10 | D28: =B28*定数!$C$3 -> 7.539822369 | E28: =B28*定数!$C$5 -> 1.507964474 | F28: =定数!$B$6*SIN(D28)*SIN(E28)/(D28*E28) -> 1.972646128 | G28: -1.83411998498105-0.726179473549666i | I28: =IMSUB(掃き出し!LZ28,IMPRODUCT(P28,掃き出し!LY28)) -> 0.000383820526334741-0.00023841136182213i | J28: =IMSUB(掃き出し!MB28,IMPRODUCT(P28,掃き出し!MA28)) -> -0.00023742235663264-0.000248830289534841i | K28: =IMSUB(掃き出し!MD28,IMPRODUCT(P28,掃き出し!MC28)) -> -0.00222090063087867+0.00136475905164869i | L28: =IMSUB(掃き出し!MF28,IMPRODUCT(P28,掃き出し!ME28)) -> -0.00057775061827583+0.000575399503416924i | M28: =IMSUB(掃き出し!MH28,IMPRODUCT(P28,掃き出し!MG28)) -> 0.00876976159352332-0.00112381972397797i | N28: =IMSUB(掃き出し!MJ28,IMPRODUCT(P28,掃き出し!MI28)) -> 0.00142912031310149+0.00221078445856105i | O28: =IMSUB(掃き出し!ML28,IMPRODUCT(P28,掃き出し!MK28)) -> -0.00886172507918981+0.00386144229563484i | P28: =IMDIV(掃き出し!MN28,掃き出し!MM28) -> -0.00290172687847253-0.000766796581092518i | R28: =IMEXP(COMPLEX(0,計算!$B28*定数!A$61)) -> -0.976310776710194+0.21637298186127i | S28: =IMEXP(COMPLEX(0,計算!$B28*定数!B$61)) -> -0.568662121284801+0.822571207747919i | T28: =IMEXP(COMPLEX(0,計算!$B28*定数!C$61)) -> -0.14325889796991+0.989685247011618i | U28: =IMEXP(COMPLEX(0,計算!$B28*定数!D$61)) -> -0.259835433865351+0.965652912442149i | W28: 0.000146398169702101-0.000487241651356971i | X28: -0.0027986512491545+0.00194015855506561i | Y28: 0.0101988819066248+0.00108696473458308i | Z28: -0.0117634519576623+0.00309464571454232i | AA28: -0.000140675736313813+0.000341279100034138i | AB28: 0.00224079139301692+0.000248313210825264i | AC28: -0.00476128914655043-0.00742064174884648i | AD28: 0.00752583399396316+0.00495119100877496i | AF28: =IMSUM(IMPRODUCT(定数!$F$38,計算!W28),IMPRODUCT(定数!$G$38,計算!X28),IMPRODUCT(定数!$H$38,計算!Y28),IMPRODUCT(定数!$I$38,計算!Z28)) -> -0.0110112307700817+0.00235957521380842i | AG28: =IMSUM(IMPRODUCT(定数!$F$39,計算!W28),IMPRODUCT(定数!$G$39,計算!X28),IMPRODUCT(定数!$H$39,計算!Y28),IMPRODUCT(定数!$I$39,計算!Z28)) -> 0.0112287138218257-0.0004093437604206i | AH28: =IMSUM(IMPRODUCT(定数!$F$40,計算!W28),IMPRODUCT(定数!$G$40,計算!X28),IMPRODUCT(定数!$H$40,計算!Y28),IMPRODUCT(定数!$I$40,計算!Z28)) -> -0.000197758974697181-0.00298445295557558i | AI28: =IMSUM(IMPRODUCT(定数!$F$41,計算!W28),IMPRODUCT(定数!$G$41,計算!X28),IMPRODUCT(定数!$H$41,計算!Y28),IMPRODUCT(定数!$I$41,計算!Z28)) -> -0.00145258046673886+0.000518240557254315i | AJ28: =IMSUM(IMPRODUCT(定数!$F$38,計算!AA28),IMPRODUCT(定数!$G$38,計算!AB28),IMPRODUCT(定数!$H$38,計算!AC28),IMPRODUCT(定数!$I$38,計算!AD28)) -> 0.0067939335469113+0.0051381817186905i | AK28: =IMSUM(IMPRODUCT(定数!$F$39,計算!AA28),IMPRODUCT(定数!$G$39,計算!AB28),IMPRODUCT(定数!$H$39,計算!AC28),IMPRODUCT(定数!$I$39,計算!AD28)) -> -0.00593826131984939-0.00679963092319931i | AL28: =IMSUM(IMPRODUCT(定数!$F$40,計算!AA28),IMPRODUCT(定数!$G$40,計算!AB28),IMPRODUCT(定数!$H$40,計算!AC28),IMPRODUCT(定数!$I$40,計算!AD28)) -> -0.00117040261255243+0.00259837597841053i | AM28: =IMSUM(IMPRODUCT(定数!$F$41,計算!AA28),IMPRODUCT(定数!$G$41,計算!AB28),IMPRODUCT(定数!$H$41,計算!AC28),IMPRODUCT(定数!$I$41,計算!AD28)) -> 0.00113782053082599+0.000467873609390683i | AO28: 0.0127321948667607+0.0119378126418898i | AQ28: -0.00117040261255243+0.00259837597841053i | AR28: 0.00113782053082599+0.000467873609390683i
A29: 25 | B29: =A29*定数!$B$8 -> 1.570796327e+10 | D29: =B29*定数!$C$3 -> 7.853981634 | E29: =B29*定数!$C$5 -> 1.570796327 | F29: =定数!$B$6*SIN(D29)*SIN(E29)/(D29*E29) -> 1.915327978 | G29: -1.9153279776128-7.03968333724672E-16i | I29: =IMSUB(掃き出し!LZ29,IMPRODUCT(P29,掃き出し!LY29)) -> 0.00065276903314554-0.000229292298889299i | J29: =IMSUB(掃き出し!MB29,IMPRODUCT(P29,掃き出し!MA29)) -> -0.000337726634451678+0.000196226201184i | K29: =IMSUB(掃き出し!MD29,IMPRODUCT(P29,掃き出し!MC29)) -> -0.00146951262631026+0.00136196231615753i | L29: =IMSUB(掃き出し!MF29,IMPRODUCT(P29,掃き出し!ME29)) -> 0.000375640292125539+0.0005503323160506i | M29: =IMSUB(掃き出し!MH29,IMPRODUCT(P29,掃き出し!MG29)) -> 0.00421122429163038-0.00487146148650031i | N29: =IMSUB(掃き出し!MJ29,IMPRODUCT(P29,掃き出し!MI29)) -> 0.00117136004303915-0.0015992207806336i | O29: =IMSUB(掃き出し!ML29,IMPRODUCT(P29,掃き出し!MK29)) -> -0.0039166664747196+0.0048777034239697i | P29: =IMDIV(掃き出し!MN29,掃き出し!MM29) -> -0.00026706666057668+0.00199739580642469i | R29: =IMEXP(COMPLEX(0,計算!$B29*定数!A$61)) -> -0.91008253684282-0.414427045610851i | S29: =IMEXP(COMPLEX(0,計算!$B29*定数!B$61)) -> -0.938800157344593+0.34446228323253i | T29: =IMEXP(COMPLEX(0,計算!$B29*定数!C$61)) -> -0.673395239678677+0.739282659865695i | U29: =IMEXP(COMPLEX(0,計算!$B29*定数!D$61)) -> -0.759700593736549+0.650273025641026i | W29: 0.000315042398693862-0.000033066097705299i | X29: -0.00109387233418472+0.00191229463220813i | Y29: 0.00538258433466953-0.00647068226713391i | Z29: -0.00418373313529628+0.00687509923039439i | AA29: -0.000110368210578219+0.000440581071295793i | AB29: 0.00130650344242437-0.00115967691440865i | AC29: -0.00604371748088942+0.00211000770883205i | AD29: 0.00505137089615775-0.00284978065380666i | AF29: =IMSUM(IMPRODUCT(定数!$F$38,計算!W29),IMPRODUCT(定数!$G$38,計算!X29),IMPRODUCT(定数!$H$38,計算!Y29),IMPRODUCT(定数!$I$38,計算!Z29)) -> -0.004376622594485+0.00678523431266588i | AG29: =IMSUM(IMPRODUCT(定数!$F$39,計算!W29),IMPRODUCT(定数!$G$39,計算!X29),IMPRODUCT(定数!$H$39,計算!Y29),IMPRODUCT(定数!$I$39,計算!Z29)) -> 0.00523729944335745-0.00677808874586289i | AH29: =IMSUM(IMPRODUCT(定数!$F$40,計算!W29),IMPRODUCT(定数!$G$40,計算!X29),IMPRODUCT(定数!$H$40,計算!Y29),IMPRODUCT(定数!$I$40,計算!Z29)) -> -0.00102560897323433+0.000388631387299638i | AI29: =IMSUM(IMPRODUCT(定数!$F$41,計算!W29),IMPRODUCT(定数!$G$41,計算!X29),IMPRODUCT(定数!$H$41,計算!Y29),IMPRODUCT(定数!$I$41,計算!Z29)) -> 0.000178509205440682+0.000546099419954351i | AJ29: =IMSUM(IMPRODUCT(定数!$F$38,計算!AA29),IMPRODUCT(定数!$G$38,計算!AB29),IMPRODUCT(定数!$H$38,計算!AC29),IMPRODUCT(定数!$I$38,計算!AD29)) -> 0.00526223351933198-0.00268855140912419i | AK29: =IMSUM(IMPRODUCT(定数!$F$39,計算!AA29),IMPRODUCT(定数!$G$39,計算!AB29),IMPRODUCT(定数!$H$39,計算!AC29),IMPRODUCT(定数!$I$39,計算!AD29)) -> -0.00588685078589231+0.00256424604654014i | AL29: =IMSUM(IMPRODUCT(定数!$F$40,計算!AA29),IMPRODUCT(定数!$G$40,計算!AB29),IMPRODUCT(定数!$H$40,計算!AC29),IMPRODUCT(定数!$I$40,計算!AD29)) -> 0.00109783743126363+0.000552302761120559i | AM29: =IMSUM(IMPRODUCT(定数!$F$41,計算!AA29),IMPRODUCT(定数!$G$41,計算!AB29),IMPRODUCT(定数!$H$41,計算!AC29),IMPRODUCT(定数!$I$41,計算!AD29)) -> 0.0000475901160625807+0.0000309301628913219i | AO29: 0.0111490843052243-0.00525279745566433i | AQ29: 0.00109783743126363+0.000552302761120559i | AR29: 0.0000475901160625807+0.0000309301628913219i
A30: 26 | B30: =A30*定数!$B$8 -> 1.63362818e+10 | D30: =B30*定数!$C$3 -> 8.168140899 | E30: =B30*定数!$C$5 -> 1.63362818 | F30: =定数!$B$6*SIN(D30)*SIN(E30)/(D30*E30) -> 1.680834571 | G30: -1.56280046057557+0.61875647450384i | I30: =IMSUB(掃き出し!LZ30,IMPRODUCT(P30,掃き出し!LY30)) -> 0.00059796919817447-0.00109240439433403i | J30: =IMSUB(掃き出し!MB30,IMPRODUCT(P30,掃き出し!MA30)) -> 0.00045161167389824+0.00039431256426399i | K30: =IMSUB(掃き出し!MD30,IMPRODUCT(P30,掃き出し!MC30)) -> -0.00121793081180087+0.00135067650574897i | L30: =IMSUB(掃き出し!MF30,IMPRODUCT(P30,掃き出し!ME30)) -> 0.00060037436040444-0.000227028479544032i | M30: =IMSUB(掃き出し!MH30,IMPRODUCT(P30,掃き出し!MG30)) -> 0.00183749153575583-0.00369606918318693i | N30: =IMSUB(掃き出し!MJ30,IMPRODUCT(P30,掃き出し!MI30)) -> -0.000963887652872403-0.000894049051180007i | O30: =IMSUB(掃き出し!ML30,IMPRODUCT(P30,掃き出し!MK30)) -> -0.00229396873841749+0.0038825423696726i | P30: =IMDIV(掃き出し!MN30,掃き出し!MM30) -> 0.00140370387265017+0.000510499545955459i | R30: =IMEXP(COMPLEX(0,計算!$B30*定数!A$61)) -> -0.477732775310852-0.878505205103414i | S30: =IMEXP(COMPLEX(0,計算!$B30*定数!B$61)) -> -0.965721953378933-0.259578714000161i | T30: =IMEXP(COMPLEX(0,計算!$B30*定数!C$61)) -> -0.972054663719618+0.234754618146139i | U30: =IMEXP(COMPLEX(0,計算!$B30*定数!D$61)) -> -0.994179810293964+0.107733489704257i | W30: 0.00104958087207271-0.00069809183007004i | X30: -0.00061755645139643+0.00112364802620494i | Y30: 0.000873603882883427-0.00459011823436694i | Z30: -0.00089026486576732+0.00439304191562806i | AA30: 0.000804669403715397+0.000462077194283906i | AB30: 0.000186849191410322-0.00155712488503791i | AC30: -0.00150697789472748+0.00380420913503188i | AD30: 0.00124836529619118-0.00396911040411837i | AF30: =IMSUM(IMPRODUCT(定数!$F$38,計算!W30),IMPRODUCT(定数!$G$38,計算!X30),IMPRODUCT(定数!$H$38,計算!Y30),IMPRODUCT(定数!$I$38,計算!Z30)) -> -0.000658680208007492+0.00410418096034714i | AG30: =IMSUM(IMPRODUCT(定数!$F$39,計算!W30),IMPRODUCT(定数!$G$39,計算!X30),IMPRODUCT(定数!$H$39,計算!Y30),IMPRODUCT(定数!$I$39,計算!Z30)) -> 0.00136168465802997-0.00502509232027549i | AH30: =IMSUM(IMPRODUCT(定数!$F$40,計算!W30),IMPRODUCT(定数!$G$40,計算!X30),IMPRODUCT(定数!$H$40,計算!Y30),IMPRODUCT(定数!$I$40,計算!Z30)) -> 0.000611951772082909+0.000199993306638921i | AI30: =IMSUM(IMPRODUCT(定数!$F$41,計算!W30),IMPRODUCT(定数!$G$41,計算!X30),IMPRODUCT(定数!$H$41,計算!Y30),IMPRODUCT(定数!$I$41,計算!Z30)) -> 0.000642832866308808-0.000024125071034776i | AJ30: =IMSUM(IMPRODUCT(定数!$F$38,計算!AA30),IMPRODUCT(定数!$G$38,計算!AB30),IMPRODUCT(定数!$H$38,計算!AC30),IMPRODUCT(定数!$I$38,計算!AD30)) -> 0.00158897723420959-0.00402901547211053i | AK30: =IMSUM(IMPRODUCT(定数!$F$39,計算!AA30),IMPRODUCT(定数!$G$39,計算!AB30),IMPRODUCT(定数!$H$39,計算!AC30),IMPRODUCT(定数!$I$39,計算!AD30)) -> -0.00104852383990552+0.00406277517189683i | AL30: =IMSUM(IMPRODUCT(定数!$F$40,計算!AA30),IMPRODUCT(定数!$G$40,計算!AB30),IMPRODUCT(定数!$H$40,計算!AC30),IMPRODUCT(定数!$I$40,計算!AD30)) -> 0.000777291235438652+0.000111741673703887i | AM30: =IMSUM(IMPRODUCT(定数!$F$41,計算!AA30),IMPRODUCT(定数!$G$41,計算!AB30),IMPRODUCT(定数!$H$41,計算!AC30),IMPRODUCT(定数!$I$41,計算!AD30)) -> 0.000466220448686679+0.000192125267671475i | AO30: 0.00263750107411511-0.00809179064400736i | AQ30: 0.000777291235438652+0.000111741673703887i | AR30: 0.000466220448686679+0.000192125267671475i
A31: 27 | B31: =A31*定数!$B$8 -> 1.696460033e+10 | D31: =B31*定数!$C$3 -> 8.482300165 | E31: =B31*定数!$C$5 -> 1.696460033 | F31: =定数!$B$6*SIN(D31)*SIN(E31)/(D31*E31) -> 1.317999275 | G31: -0.960780122263956+0.902232589152773i | I31: =IMSUB(掃き出し!LZ31,IMPRODUCT(P31,掃き出し!LY31)) -> -0.000352997481871008-0.00056517068567176i | J31: =IMSUB(掃き出し!MB31,IMPRODUCT(P31,掃き出し!MA31)) -> 0.0000345710510064-0.000308803938676197i | K31: =IMSUB(掃き出し!MD31,IMPRODUCT(P31,掃き出し!MC31)) -> -0.0009368140376333+0.0018546994063986i | L31: =IMSUB(掃き出し!MF31,IMPRODUCT(P31,掃き出し!ME31)) -> -0.000233222347262885-0.00072695942916413i | M31: =IMSUB(掃き出し!MH31,IMPRODUCT(P31,掃き出し!MG31)) -> 0.00109588214694467-0.00289716064586387i | N31: =IMSUB(掃き出し!MJ31,IMPRODUCT(P31,掃き出し!MI31)) -> -0.000870155026876992+0.000538136172942255i | O31: =IMSUB(掃き出し!ML31,IMPRODUCT(P31,掃き出し!MK31)) -> -0.00162148609384314+0.00351440403526708i | P31: =IMDIV(掃き出し!MN31,掃き出し!MM31) -> 0.000768388519277229-0.00108403223048784i | R31: =IMEXP(COMPLEX(0,計算!$B31*定数!A$61)) -> 0.146806423513955-0.989165241006295i | S31: =IMEXP(COMPLEX(0,計算!$B31*定数!B$61)) -> -0.639585161644875-0.768720248857605i | T31: =IMEXP(COMPLEX(0,計算!$B31*定数!C$61)) -> -0.936574188776548-0.350469383709263i | U31: =IMEXP(COMPLEX(0,計算!$B31*定数!D$61)) -> -0.881362540638582-0.472440548597496i | W31: -0.000318426430864608-0.000873974624347957i | X31: -0.00117003638489618+0.00112773997723447i | Y31: 0.000225727120067678-0.00235902447292161i | Z31: -0.000853097574565911+0.00243037180477924i | AA31: 0.000206842029610319-0.000511674410072613i | AB31: -0.001236235512175-0.00126215093494858i | AC31: 0.000992556164583125+0.00289843726868937i | AD31: -0.00142059950635185-0.00327111234185843i | AF31: =IMSUM(IMPRODUCT(定数!$F$38,計算!W31),IMPRODUCT(定数!$G$38,計算!X31),IMPRODUCT(定数!$H$38,計算!Y31),IMPRODUCT(定数!$I$38,計算!Z31)) -> -0.00141252090381862+0.00232316964066494i | AG31: =IMSUM(IMPRODUCT(定数!$F$39,計算!W31),IMPRODUCT(定数!$G$39,計算!X31),IMPRODUCT(定数!$H$39,計算!Y31),IMPRODUCT(定数!$I$39,計算!Z31)) -> 0.0000101222780325961-0.00277802421771545i | AH31: =IMSUM(IMPRODUCT(定数!$F$40,計算!W31),IMPRODUCT(定数!$G$40,計算!X31),IMPRODUCT(定数!$H$40,計算!Y31),IMPRODUCT(定数!$I$40,計算!Z31)) -> 0.000429000423814705-0.000426242059634557i | AI31: =IMSUM(IMPRODUCT(定数!$F$41,計算!W31),IMPRODUCT(定数!$G$41,計算!X31),IMPRODUCT(定数!$H$41,計算!Y31),IMPRODUCT(定数!$I$41,計算!Z31)) -> 0.000214860156447942-0.000501576011193663i | AJ31: =IMSUM(IMPRODUCT(定数!$F$38,計算!AA31),IMPRODUCT(定数!$G$38,計算!AB31),IMPRODUCT(定数!$H$38,計算!AC31),IMPRODUCT(定数!$I$38,計算!AD31)) -> -0.00174899509664083-0.00363603651885987i | AK31: =IMSUM(IMPRODUCT(定数!$F$39,計算!AA31),IMPRODUCT(定数!$G$39,計算!AB31),IMPRODUCT(定数!$H$39,計算!AC31),IMPRODUCT(定数!$I$39,計算!AD31)) -> 0.00103363408098659+0.00271301735826826i | AL31: =IMSUM(IMPRODUCT(定数!$F$40,計算!AA31),IMPRODUCT(定数!$G$40,計算!AB31),IMPRODUCT(定数!$H$40,計算!AC31),IMPRODUCT(定数!$I$40,計算!AD31)) -> 0.000505923782786-0.000251324896236985i | AM31: =IMSUM(IMPRODUCT(定数!$F$41,計算!AA31),IMPRODUCT(定数!$G$41,計算!AB31),IMPRODUCT(定数!$H$41,計算!AC31),IMPRODUCT(定数!$I$41,計算!AD31)) -> 0.000412795279284489-0.000323113511595995i | AO31: -0.00278262917762742-0.00634905387712813i | AQ31: 0.000505923782786-0.000251324896236985i | AR31: 0.000412795279284489-0.000323113511595995i
A32: 28 | B32: =A32*定数!$B$8 -> 1.759291886e+10 | D32: =B32*定数!$C$3 -> 8.79645943 | E32: =B32*定数!$C$5 -> 1.759291886 | F32: =定数!$B$6*SIN(D32)*SIN(E32)/(D32*E32) -> 0.8815852186 | G32: -0.375360729812999+0.797682154807846i | I32: =IMSUB(掃き出し!LZ32,IMPRODUCT(P32,掃き出し!LY32)) -> -0.000232932623946964-0.000171297298470689i | J32: =IMSUB(掃き出し!MB32,IMPRODUCT(P32,掃き出し!MA32)) -> -0.000148741361455698-0.00003845929061499i | K32: =IMSUB(掃き出し!MD32,IMPRODUCT(P32,掃き出し!MC32)) -> 0.000786692327639079+0.0014987249072963i | L32: =IMSUB(掃き出し!MF32,IMPRODUCT(P32,掃き出し!ME32)) -> -0.0003679802822478+0.000517605960615065i | M32: =IMSUB(掃き出し!MH32,IMPRODUCT(P32,掃き出し!MG32)) -> 0.000503631736162378-0.00263663064084415i | N32: =IMSUB(掃き出し!MJ32,IMPRODUCT(P32,掃き出し!MI32)) -> 0.000332889808035294+0.00086003907830218i | O32: =IMSUB(掃き出し!ML32,IMPRODUCT(P32,掃き出し!MK32)) -> -0.000400733689385233+0.00382730336849251i | P32: =IMDIV(掃き出し!MN32,掃き出し!MM32) -> -0.00109087768894539-0.000826375033247572i | R32: =IMEXP(COMPLEX(0,計算!$B32*定数!A$61)) -> 0.712286153564064-0.701889190286409i | S32: =IMEXP(COMPLEX(0,計算!$B32*定数!B$61)) -> -0.0796222327521044-0.996825110062728i | T32: =IMEXP(COMPLEX(0,計算!$B32*定数!C$61)) -> -0.579150086063283-0.815220938036366i | U32: =IMEXP(COMPLEX(0,計算!$B32*定数!D$61)) -> -0.460659202211741-0.887577094914939i | W32: -0.000381673985402662-0.000209756589085679i | X32: 0.000418712045391279+0.00201633086791136i | Y32: 0.000836521544197672-0.00177659156254197i | Z32: -0.00149161137833062+0.00300092833524494i | AA32: -0.000178623533204832-0.000208499651083742i | AB32: -0.0010113427899444+0.000990461885766814i | AC32: 0.00236608684412995+0.00116810555115539i | AD32: -0.00344337384893312-0.00076984924660596i | AF32: =IMSUM(IMPRODUCT(定数!$F$38,計算!W32),IMPRODUCT(定数!$G$38,計算!X32),IMPRODUCT(定数!$H$38,計算!Y32),IMPRODUCT(定数!$I$38,計算!Z32)) -> -0.000946780378384837+0.00332198332691218i | AG32: =IMSUM(IMPRODUCT(定数!$F$39,計算!W32),IMPRODUCT(定数!$G$39,計算!X32),IMPRODUCT(定数!$H$39,計算!Y32),IMPRODUCT(定数!$I$39,計算!Z32)) -> 0.00114497099470059-0.00203333143236416i | AH32: =IMSUM(IMPRODUCT(定数!$F$40,計算!W32),IMPRODUCT(定数!$G$40,計算!X32),IMPRODUCT(定数!$H$40,計算!Y32),IMPRODUCT(定数!$I$40,計算!Z32)) -> -0.000185158891164083-0.000969745150411767i | AI32: =IMSUM(IMPRODUCT(定数!$F$41,計算!W32),IMPRODUCT(定数!$G$41,計算!X32),IMPRODUCT(定数!$H$41,計算!Y32),IMPRODUCT(定数!$I$41,計算!Z32)) -> -0.000991050800838144-0.000296467063886457i | AJ32: =IMSUM(IMPRODUCT(定数!$F$38,計算!AA32),IMPRODUCT(定数!$G$38,計算!AB32),IMPRODUCT(定数!$H$38,計算!AC32),IMPRODUCT(定数!$I$38,計算!AD32)) -> -0.00326314567730969-0.000215112258848624i | AK32: =IMSUM(IMPRODUCT(定数!$F$39,計算!AA32),IMPRODUCT(定数!$G$39,計算!AB32),IMPRODUCT(定数!$H$39,計算!AC32),IMPRODUCT(定数!$I$39,計算!AD32)) -> 0.00270869324487996+0.00129313605730574i | AL32: =IMSUM(IMPRODUCT(定数!$F$40,計算!AA32),IMPRODUCT(定数!$G$40,計算!AB32),IMPRODUCT(定数!$H$40,計算!AC32),IMPRODUCT(定数!$I$40,計算!AD32)) -> 0.000277362406266049-0.000810337876398237i | AM32: =IMSUM(IMPRODUCT(定数!$F$41,計算!AA32),IMPRODUCT(定数!$G$41,計算!AB32),IMPRODUCT(定数!$H$41,計算!AC32),IMPRODUCT(定数!$I$41,計算!AD32)) -> -0.000582965342493549-0.000795404472166721i | AO32: -0.00597183892218965-0.00150824831615436i | AQ32: 0.000277362406266049-0.000810337876398237i | AR32: -0.000582965342493549-0.000795404472166721i
A33: 29 | B33: =A33*定数!$B$8 -> 1.822123739e+10 | D33: =B33*定数!$C$3 -> 9.110618695 | E33: =B33*定数!$C$5 -> 1.822123739 | F33: =定数!$B$6*SIN(D33)*SIN(E33)/(D33*E33) -> 0.4260361513 | G33: -0.0267510312779831+0.425195466267678i | I33: =IMSUB(掃き出し!LZ33,IMPRODUCT(P33,掃き出し!LY33)) -> -0.00006174225679402-0.000052418419051417i | J33: =IMSUB(掃き出し!MB33,IMPRODUCT(P33,掃き出し!MA33)) -> -0.000026161849779378+0.000067642331505874i | K33: =IMSUB(掃き出し!MD33,IMPRODUCT(P33,掃き出し!MC33)) -> 0.000416938256745793+0.000274794089387036i | L33: =IMSUB(掃き出し!MF33,IMPRODUCT(P33,掃き出し!ME33)) -> 0.000163285806363703+0.0000799420568455751i | M33: =IMSUB(掃き出し!MH33,IMPRODUCT(P33,掃き出し!MG33)) -> -0.000896954854611977-0.00172407705615959i | N33: =IMSUB(掃き出し!MJ33,IMPRODUCT(P33,掃き出し!MI33)) -> 0.000533262648662958-0.000427166553178526i | O33: =IMSUB(掃き出し!ML33,IMPRODUCT(P33,掃き出し!MK33)) -> 0.0015801079557873+0.00139850596384726i | P33: =IMDIV(掃き出し!MN33,掃き出し!MM33) -> -0.00004378416152638+0.000773305038804315i | R33: =IMEXP(COMPLEX(0,計算!$B33*定数!A$61)) -> 0.991216829164469-0.132246729944962i | S33: =IMEXP(COMPLEX(0,計算!$B33*定数!B$61)) -> 0.509449812850693-0.860500370822926i | T33: =IMEXP(COMPLEX(0,計算!$B33*定数!C$61)) -> -0.0226454599221864-0.999743558691384i | U33: =IMEXP(COMPLEX(0,計算!$B33*定数!D$61)) -> 0.120966054577558-0.992656644384119i | W33: -0.000087904106573398+0.000015223912454457i | X33: 0.000580224063109496+0.000354736146232611i | Y33: -0.000363692205949019-0.00215124360933812i | Z33: 0.00153632379426092+0.00217181100265158i | AA33: -0.0000712543881322796+0.0000103848057527871i | AB33: 0.000127924794105074+0.000398988290923513i | AC33: 0.00130481389882835-0.00138113483548866i | AD33: -0.00043476682437361+0.00187468270829331i | AF33: =IMSUM(IMPRODUCT(定数!$F$38,計算!W33),IMPRODUCT(定数!$G$38,計算!X33),IMPRODUCT(定数!$H$38,計算!Y33),IMPRODUCT(定数!$I$38,計算!Z33)) -> 0.00126049235347378+0.00202703467469785i | AG33: =IMSUM(IMPRODUCT(定数!$F$39,計算!W33),IMPRODUCT(定数!$G$39,計算!X33),IMPRODUCT(定数!$H$39,計算!Y33),IMPRODUCT(定数!$I$39,計算!Z33)) -> -0.000816084204060067-0.00227163555717013i | AH33: =IMSUM(IMPRODUCT(定数!$F$40,計算!W33),IMPRODUCT(定数!$G$40,計算!X33),IMPRODUCT(定数!$H$40,計算!Y33),IMPRODUCT(定数!$I$40,計算!Z33)) -> -0.000699946607899213+0.00028137865091072i | AI33: =IMSUM(IMPRODUCT(定数!$F$41,計算!W33),IMPRODUCT(定数!$G$41,計算!X33),IMPRODUCT(定数!$H$41,計算!Y33),IMPRODUCT(定数!$I$41,計算!Z33)) -> 0.000305786923182221+0.000311839242219634i | AJ33: =IMSUM(IMPRODUCT(定数!$F$38,計算!AA33),IMPRODUCT(定数!$G$38,計算!AB33),IMPRODUCT(定数!$H$38,計算!AC33),IMPRODUCT(定数!$I$38,計算!AD33)) -> -0.000565583377340156+0.00166818451471209i | AK33: =IMSUM(IMPRODUCT(定数!$F$39,計算!AA33),IMPRODUCT(定数!$G$39,計算!AB33),IMPRODUCT(定数!$H$39,計算!AC33),IMPRODUCT(定数!$I$39,計算!AD33)) -> 0.00104011880022205-0.00162809592360314i | AL33: =IMSUM(IMPRODUCT(定数!$F$40,計算!AA33),IMPRODUCT(定数!$G$40,計算!AB33),IMPRODUCT(定数!$H$40,計算!AC33),IMPRODUCT(定数!$I$40,計算!AD33)) -> -0.000716440896078152-0.0000928666315161438i | AM33: =IMSUM(IMPRODUCT(定数!$F$41,計算!AA33),IMPRODUCT(定数!$G$41,計算!AB33),IMPRODUCT(定数!$H$41,計算!AC33),IMPRODUCT(定数!$I$41,計算!AD33)) -> 0.0000363843163456878+0.000348201800667084i | AO33: -0.00160570217756221+0.00329628043831523i | AQ33: -0.000716440896078152-0.0000928666315161438i | AR33: 0.0000363843163456878+0.000348201800667084i
A34: 30 | B34: =A34*定数!$B$8 -> 1.884955592e+10 | D34: =B34*定数!$C$3 -> 9.424777961 | E34: =B34*定数!$C$5 -> 1.884955592 | F34: =定数!$B$6*SIN(D34)*SIN(E34)/(D34*E34) -> 4.649400493e-16 | G34: 1.43674376612612E-16+4.42184263614488E-16i | I34: =IMSUB(掃き出し!LZ34,IMPRODUCT(P34,掃き出し!LY34)) -> -1.06116202401291E-19-1.37695422207908E-19i | J34: =IMSUB(掃き出し!MB34,IMPRODUCT(P34,掃き出し!MA34)) -> 8.81205596113819E-20+5.7606703062757E-20i | K34: =IMSUB(掃き出し!MD34,IMPRODUCT(P34,掃き出し!MC34)) -> 3.94192854107702E-19+1.79956074127928E-19i | L34: =IMSUB(掃き出し!MF34,IMPRODUCT(P34,掃き出し!ME34)) -> 1.06640830711194E-19-1.28544171151145E-19i | M34: =IMSUB(掃き出し!MH34,IMPRODUCT(P34,掃き出し!MG34)) -> -1.48081336158797E-18-3.92716472417576E-19i | N34: =IMSUB(掃き出し!MJ34,IMPRODUCT(P34,掃き出し!MI34)) -> -5.02331117749739E-19-2.31421345084226E-19i | O34: =IMSUB(掃き出し!ML34,IMPRODUCT(P34,掃き出し!MK34)) -> 1.3770556435066E-18+3.10386664135835E-19i | P34: =IMDIV(掃き出し!MN34,掃き出し!MM34) -> 5.31136855089261E-19-4.72469572320324E-20i | R34: =IMEXP(COMPLEX(0,計算!$B34*定数!A$61)) -> 0.871386074782697+0.490597909366523i | S34: =IMEXP(COMPLEX(0,計算!$B34*定数!B$61)) -> 0.912271943729569-0.409585034741107i | T34: =IMEXP(COMPLEX(0,計算!$B34*定数!C$61)) -> 0.541643452404927-0.840608333569726i | U34: =IMEXP(COMPLEX(0,計算!$B34*定数!D$61)) -> 0.66033428173208-0.750971794656349i | W34: -1.79956427899091E-20-8.0088719145151E-20i | X34: 5.00833684818896E-19+5.1411902976783E-20i | Y34: -1.98314447933771E-18-6.24137817501802E-19i | Z34: 1.90819249859586E-18+2.63139706903803E-19i | AA34: -1.11495966886518E-19+2.55039547552731E-20i | AB34: 3.30539435454707E-19+1.64678642152201E-19i | AC34: -9.38571194205644E-19-1.16058049066858E-18i | AD34: 9.91472160498765E-19+8.09021320024808E-19i | AF34: =IMSUM(IMPRODUCT(定数!$F$38,計算!W34),IMPRODUCT(定数!$G$38,計算!X34),IMPRODUCT(定数!$H$38,計算!Y34),IMPRODUCT(定数!$I$38,計算!Z34)) -> 1.91510877704655E-18+3.21027914573624E-19i | AG34: =IMSUM(IMPRODUCT(定数!$F$39,計算!W34),IMPRODUCT(定数!$G$39,計算!X34),IMPRODUCT(定数!$H$39,計算!Y34),IMPRODUCT(定数!$I$39,計算!Z34)) -> -2.01562263376501E-18-5.51484926705643E-19i | AH34: =IMSUM(IMPRODUCT(定数!$F$40,計算!W34),IMPRODUCT(定数!$G$40,計算!X34),IMPRODUCT(定数!$H$40,計算!Y34),IMPRODUCT(定数!$I$40,計算!Z34)) -> 2.32540171883806E-19+2.20475305135723E-19i | AI34: =IMSUM(IMPRODUCT(定数!$F$41,計算!W34),IMPRODUCT(定数!$G$41,計算!X34),IMPRODUCT(定数!$H$41,計算!Y34),IMPRODUCT(定数!$I$41,計算!Z34)) -> 1.11853531051997E-19-1.10786492197589E-19i | AJ34: =IMSUM(IMPRODUCT(定数!$F$38,計算!AA34),IMPRODUCT(定数!$G$38,計算!AB34),IMPRODUCT(定数!$H$38,計算!AC34),IMPRODUCT(定数!$I$38,計算!AD34)) -> 9.67431597944252E-19+8.90107215902059E-19i | AK34: =IMSUM(IMPRODUCT(定数!$F$39,計算!AA34),IMPRODUCT(定数!$G$39,計算!AB34),IMPRODUCT(定数!$H$39,計算!AC34),IMPRODUCT(定数!$I$39,計算!AD34)) -> -1.02288941130572E-18-1.05660651564851E-18i | AL34: =IMSUM(IMPRODUCT(定数!$F$40,計算!AA34),IMPRODUCT(定数!$G$40,計算!AB34),IMPRODUCT(定数!$H$40,計算!AC34),IMPRODUCT(定数!$I$40,計算!AD34)) -> -1.55829847009612E-20+3.36943870326031E-19i | AM34: =IMSUM(IMPRODUCT(定数!$F$41,計算!AA34),IMPRODUCT(定数!$G$41,計算!AB34),IMPRODUCT(定数!$H$41,計算!AC34),IMPRODUCT(定数!$I$41,計算!AD34)) -> -5.47742057882894E-21-1.1137848033055E-21i | AO34: 1.99032100924997E-18+1.94671373155057E-18i | AQ34: -1.55829847009612E-20+3.36943870326031E-19i | AR34: -5.47742057882894E-21-1.1137848033055E-21i
A35: 31 | B35: =A35*定数!$B$8 -> 1.947787445e+10 | D35: =B35*定数!$C$3 -> 9.738937226 | E35: =B35*定数!$C$5 -> 1.947787445 | F35: =定数!$B$6*SIN(D35)*SIN(E35)/(D35*E35) -> -0.3578991813 | G35: -0.228133524082419-0.275766058782832i | I35: =IMSUB(掃き出し!LZ35,IMPRODUCT(P35,掃き出し!LY35)) -> 0.000251047571370916-0.00004817811943339i | J35: =IMSUB(掃き出し!MB35,IMPRODUCT(P35,掃き出し!MA35)) -> 0.000014169169535891+0.000131609035013443i | K35: =IMSUB(掃き出し!MD35,IMPRODUCT(P35,掃き出し!MC35)) -> -0.000327245850508179-0.00012863782572234i | L35: =IMSUB(掃き出し!MF35,IMPRODUCT(P35,掃き出し!ME35)) -> 0.0000819200560370798+0.000117680756795416i | M35: =IMSUB(掃き出し!MH35,IMPRODUCT(P35,掃き出し!MG35)) -> 0.000812428064095492+0.0000177205441120205i | N35: =IMSUB(掃き出し!MJ35,IMPRODUCT(P35,掃き出し!MI35)) -> 0.00016102713893583-0.000254911114131026i | O35: =IMSUB(掃き出し!ML35,IMPRODUCT(P35,掃き出し!MK35)) -> -0.000858087301180488-0.000096138763075916i | P35: =IMDIV(掃き出し!MN35,掃き出し!MM35) -> -0.0000544221581176711+0.000328238285256039i | R35: =IMEXP(COMPLEX(0,計算!$B35*定数!A$61)) -> 0.401001186307172+0.916077534153218i | S35: =IMEXP(COMPLEX(0,計算!$B35*定数!B$61)) -> 0.981576292407306+0.191070620933534i | T35: =IMEXP(COMPLEX(0,計算!$B35*定数!C$61)) -> 0.919744596464578-0.392517359201106i | U35: =IMEXP(COMPLEX(0,計算!$B35*定数!D$61)) -> 0.969028164671654-0.246950229951472i | W35: 0.000265216740906807+0.000083430915580053i | X35: -0.000245325794471099-0.000010957068926924i | Y35: 0.000973455203031322-0.000237190570019005i | Z35: -0.000912509459298159+0.000232099522180123i | AA35: -0.0000583467453859274-0.00018354308612489i | AB35: -0.000287870228277954+0.0000674243847354935i | AC35: 0.000788317504360208+0.000037531425817495i | AD35: -0.000779447356917516+0.000026445682116027i | AF35: =IMSUM(IMPRODUCT(定数!$F$38,計算!W35),IMPRODUCT(定数!$G$38,計算!X35),IMPRODUCT(定数!$H$38,計算!Y35),IMPRODUCT(定数!$I$38,計算!Z35)) -> -0.000812319177502636+0.000224074531792116i | AG35: =IMSUM(IMPRODUCT(定数!$F$39,計算!W35),IMPRODUCT(定数!$G$39,計算!X35),IMPRODUCT(定数!$H$39,計算!Y35),IMPRODUCT(定数!$I$39,計算!Z35)) -> 0.00111896864434163-0.000217416664611698i | AH35: =IMSUM(IMPRODUCT(定数!$F$40,計算!W35),IMPRODUCT(定数!$G$40,計算!X35),IMPRODUCT(定数!$H$40,計算!Y35),IMPRODUCT(定数!$I$40,計算!Z35)) -> 0.0000151089991659903+0.0000944239457503223i | AI35: =IMSUM(IMPRODUCT(定数!$F$41,計算!W35),IMPRODUCT(定数!$G$41,計算!X35),IMPRODUCT(定数!$H$41,計算!Y35),IMPRODUCT(定数!$I$41,計算!Z35)) -> 0.000072173558078264+0.0000989346953825788i | AJ35: =IMSUM(IMPRODUCT(定数!$F$38,計算!AA35),IMPRODUCT(定数!$G$38,計算!AB35),IMPRODUCT(定数!$H$38,計算!AC35),IMPRODUCT(定数!$I$38,計算!AD35)) -> -0.0008584390504668-0.0000357360842499747i | AK35: =IMSUM(IMPRODUCT(定数!$F$39,計算!AA35),IMPRODUCT(定数!$G$39,計算!AB35),IMPRODUCT(定数!$H$39,計算!AC35),IMPRODUCT(定数!$I$39,計算!AD35)) -> 0.000748070493072265-0.0000682675858953886i | AL35: =IMSUM(IMPRODUCT(定数!$F$40,計算!AA35),IMPRODUCT(定数!$G$40,計算!AB35),IMPRODUCT(定数!$H$40,計算!AC35),IMPRODUCT(定数!$I$40,計算!AD35)) -> -0.0000917713896554273-0.000157436994054776i | AM35: =IMSUM(IMPRODUCT(定数!$F$41,計算!AA35),IMPRODUCT(定数!$G$41,計算!AB35),IMPRODUCT(定数!$H$41,計算!AC35),IMPRODUCT(定数!$I$41,計算!AD35)) -> -0.0000281881733913402-0.000099866777637936i | AO35: -0.00160650954353906+0.0000325315016454139i | AQ35: -0.0000917713896554273-0.000157436994054776i | AR35: -0.0000281881733913402-0.000099866777637936i
A36: 32 | B36: =A36*定数!$B$8 -> 2.010619298e+10 | D36: =B36*定数!$C$3 -> 10.05309649 | E36: =B36*定数!$C$5 -> 2.010619298 | F36: =定数!$B$6*SIN(D36)*SIN(E36)/(D36*E36) -> -0.6217380907 | G36: -0.544833242107198-0.299524609517707i | I36: =IMSUB(掃き出し!LZ36,IMPRODUCT(P36,掃き出し!LY36)) -> 0.000131717888635199-0.000196463008460038i | J36: =IMSUB(掃き出し!MB36,IMPRODUCT(P36,掃き出し!MA36)) -> 0.000106216942402149-0.0000517818278427271i | K36: =IMSUB(掃き出し!MD36,IMPRODUCT(P36,掃き出し!MC36)) -> -0.000943317713621619-0.00011845048315151i | L36: =IMSUB(掃き出し!MF36,IMPRODUCT(P36,掃き出し!ME36)) -> 0.00034409461030732-0.000207367186684141i | M36: =IMSUB(掃き出し!MH36,IMPRODUCT(P36,掃き出し!MG36)) -> 0.0013159962955295-0.000057498701937507i | N36: =IMSUB(掃き出し!MJ36,IMPRODUCT(P36,掃き出し!MI36)) -> -0.000325109045181676-0.000384723419999187i | O36: =IMSUB(掃き出し!ML36,IMPRODUCT(P36,掃き出し!MK36)) -> -0.00162796629716357-0.000087569020744562i | P36: =IMDIV(掃き出し!MN36,掃き出し!MM36) -> 0.000578289559768745+0.000294707573073847i | R36: =IMEXP(COMPLEX(0,計算!$B36*定数!A$61)) -> -0.230704416033939+0.973023880705114i | S36: =IMEXP(COMPLEX(0,計算!$B36*定数!B$61)) -> 0.692025860605302+0.721872709176273i | T36: =IMEXP(COMPLEX(0,計算!$B36*定数!C$61)) -> 0.98168721773316+0.190499885929961i | U36: =IMEXP(COMPLEX(0,計算!$B36*定数!D$61)) -> 0.939211776987053+0.343338372409526i | W36: =IMSUM(I36,J36) -> 0.000237934831037348-0.000248244836302765i | X36: =IMSUM(K36,L36) -> -0.000599223103314299-0.000325817669835651i | Y36: =IMSUM(M36,N36) -> 0.000990887250347824-0.000442222121936694i | Z36: =IMSUM(O36,P36) -> -0.00104967673739483+0.000207138552329285i | AA36: =IMSUM(IMDIV(I36,R36),IMPRODUCT(J36,R36)) -> -0.000195670860077859+0.0000324581503273356i | AB36: =IMSUM(IMDIV(K36,S36),IMPRODUCT(L36,S36)) -> -0.000350491342095533+0.000703873568733074i | AC36: =IMSUM(IMDIV(M36,T36),IMPRODUCT(N36,T36)) -> 0.00103507761934543-0.000746754184708616i | AD36: =IMSUM(IMDIV(O36,U36),IMPRODUCT(P36,U36)) -> -0.00111711897732243+0.000952039262853839i | AF36: =IMSUM(IMPRODUCT(定数!$F$38,計算!W36),IMPRODUCT(定数!$G$38,計算!X36),IMPRODUCT(定数!$H$38,計算!Y36),IMPRODUCT(定数!$I$38,計算!Z36)) -> -0.0011291221028118-0.00007838632286213i | AG36: =IMSUM(IMPRODUCT(定数!$F$39,計算!W36),IMPRODUCT(定数!$G$39,計算!X36),IMPRODUCT(定数!$H$39,計算!Y36),IMPRODUCT(定数!$I$39,計算!Z36)) -> 0.00107132879502955-0.000615099084006531i | AH36: =IMSUM(IMPRODUCT(定数!$F$40,計算!W36),IMPRODUCT(定数!$G$40,計算!X36),IMPRODUCT(定数!$H$40,計算!Y36),IMPRODUCT(定数!$I$40,計算!Z36)) -> 0.000159579937183673+0.000151449444265222i | AI36: =IMSUM(IMPRODUCT(定数!$F$41,計算!W36),IMPRODUCT(定数!$G$41,計算!X36),IMPRODUCT(定数!$H$41,計算!Y36),IMPRODUCT(定数!$I$41,計算!Z36)) -> 0.000217773586315086+0.000078502496257896i | AJ36: =IMSUM(IMPRODUCT(定数!$F$38,計算!AA36),IMPRODUCT(定数!$G$38,計算!AB36),IMPRODUCT(定数!$H$38,計算!AC36),IMPRODUCT(定数!$I$38,計算!AD36)) -> -0.00121290190545066+0.00119283245907243i | AK36: =IMSUM(IMPRODUCT(定数!$F$39,計算!AA36),IMPRODUCT(定数!$G$39,計算!AB36),IMPRODUCT(定数!$H$39,計算!AC36),IMPRODUCT(定数!$I$39,計算!AD36)) -> 0.00096856525283756-0.000689165050882453i | AL36: =IMSUM(IMPRODUCT(定数!$F$40,計算!AA36),IMPRODUCT(定数!$G$40,計算!AB36),IMPRODUCT(定数!$H$40,計算!AC36),IMPRODUCT(定数!$I$40,計算!AD36)) -> -0.000150818990820383-0.000155001123040379i | AM36: =IMSUM(IMPRODUCT(定数!$F$41,計算!AA36),IMPRODUCT(定数!$G$41,計算!AB36),IMPRODUCT(定数!$H$41,計算!AC36),IMPRODUCT(定数!$I$41,計算!AD36)) -> -0.000157885515987067-0.000144567018371675i | AO36: -0.00218146715828822+0.00188199750995488i | AQ36: =IF($AQ$1=0,AH36,AL36) -> -0.000150818990820383-0.000155001123040379i | AR36: =IF($AQ$1=0,AI36,AM36) -> -0.000157885515987067-0.000144567018371675i
A37: =A36+1 -> 33 | B37: =A37*定数!$B$8 -> 2.073451151e+10 | D37: =B37*定数!$C$3 -> 10.36725576 | E37: =B37*定数!$C$5 -> 2.073451151 | F37: =定数!$B$6*SIN(D37)*SIN(E37)/(D37*E37) -> -0.779307861 | G37: =IMPRODUCT(COMPLEX(F37,0),IMEXP(COMPLEX(0,-(D37+E37)))) -> -0.773162785702069-0.0976731741553894i | I37: =IMSUB(掃き出し!LZ37,IMPRODUCT(P37,掃き出し!LY37)) -> 0.0000697897420150758-0.000203163883187894i | J37: =IMSUB(掃き出し!MB37,IMPRODUCT(P37,掃き出し!MA37)) -> -0.000022266437567724-0.000116756376570447i | K37: =IMSUB(掃き出し!MD37,IMPRODUCT(P37,掃き出し!MC37)) -> -0.00083148267248087+0.00118771213261223i | L37: =IMSUB(掃き出し!MF37,IMPRODUCT(P37,掃き出し!ME37)) -> -0.00060520487988192-0.00015435660406539i | M37: =IMSUB(掃き出し!MH37,IMPRODUCT(P37,掃き出し!MG37)) -> 0.00211046217666543-0.000344758088171149i | N37: =IMSUB(掃き出し!MJ37,IMPRODUCT(P37,掃き出し!MI37)) -> -0.000757146847113766+0.00037745952243215i | O37: =IMSUB(掃き出し!ML37,IMPRODUCT(P37,掃き出し!MK37)) -> -0.00308460676572355+0.000674621400616499i | P37: =IMDIV(掃き出し!MN37,掃き出し!MM37) -> 0.000688246474803268-0.00109390162879367i | R37: =IMEXP(COMPLEX(0,計算!$B37*定数!A$61)) -> -0.769598818913838+0.638527726826663i | S37: =IMEXP(COMPLEX(0,計算!$B37*定数!B$61)) -> 0.149477480284418+0.98876513029527i | T37: =IMEXP(COMPLEX(0,計算!$B37*定数!C$61)) -> 0.706178788139986+0.70803355794845i | U37: =IMEXP(COMPLEX(0,計算!$B37*定数!D$61)) -> 0.581300866983764+0.813688700943994i | W37: 0.0000475233044473518-0.000319920259758341i | X37: -0.00143668755236279+0.00103335552854684i | Y37: 0.00135331532955166+0.000032701434261001i | Z37: -0.00239636029092028-0.000419280228177171i | AA37: -0.0000917474677547625+0.000187429830967276i | AB37: 0.00111223833400308+0.000378198971727181i | AC37: 0.000444328274945581-0.00200727036069459i | AD37: 0.00004602089167287+0.00282620009198806i | AF37: =IMSUM(IMPRODUCT(定数!$F$38,計算!W37),IMPRODUCT(定数!$G$38,計算!X37),IMPRODUCT(定数!$H$38,計算!Y37),IMPRODUCT(定数!$I$38,計算!Z37)) -> -0.0025763380365466+0.000283261578986354i | AG37: =IMSUM(IMPRODUCT(定数!$F$39,計算!W37),IMPRODUCT(定数!$G$39,計算!X37),IMPRODUCT(定数!$H$39,計算!Y37),IMPRODUCT(定数!$I$39,計算!Z37)) -> 0.00156842355076446+0.000352533452410208i | AH37: =IMSUM(IMPRODUCT(定数!$F$40,計算!W37),IMPRODUCT(定数!$G$40,計算!X37),IMPRODUCT(定数!$H$40,計算!Y37),IMPRODUCT(定数!$I$40,計算!Z37)) -> 0.000698085514991292-0.000315919760228073i | AI37: =IMSUM(IMPRODUCT(定数!$F$41,計算!W37),IMPRODUCT(定数!$G$41,計算!X37),IMPRODUCT(定数!$H$41,計算!Y37),IMPRODUCT(定数!$I$41,計算!Z37)) -> 0.0000532006163308397-0.00101787468573757i | AJ37: =IMSUM(IMPRODUCT(定数!$F$38,計算!AA37),IMPRODUCT(定数!$G$38,計算!AB37),IMPRODUCT(定数!$H$38,計算!AC37),IMPRODUCT(定数!$I$38,計算!AD37)) -> 0.000563863794777965+0.00242697517247573i | AK37: =IMSUM(IMPRODUCT(定数!$F$39,計算!AA37),IMPRODUCT(定数!$G$39,計算!AB37),IMPRODUCT(定数!$H$39,計算!AC37),IMPRODUCT(定数!$I$39,計算!AD37)) -> 0.000551447573790642-0.00237977650994053i | AL37: =IMSUM(IMPRODUCT(定数!$F$40,計算!AA37),IMPRODUCT(定数!$G$40,計算!AB37),IMPRODUCT(定数!$H$40,計算!AC37),IMPRODUCT(定数!$I$40,計算!AD37)) -> -0.000694554559909765-0.000026312527566591i | AM37: =IMSUM(IMPRODUCT(定数!$F$41,計算!AA37),IMPRODUCT(定数!$G$41,計算!AB37),IMPRODUCT(定数!$H$41,計算!AC37),IMPRODUCT(定数!$I$41,計算!AD37)) -> -0.000596601199457394+0.000766253169525594i | AO37: 0.000012416220987323+0.00480675168241626i | AQ37: -0.000694554559909765-0.000026312527566591i | AR37: -0.000596601199457394+0.000766253169525594i
A38: 34 | B38: =A38*定数!$B$8 -> 2.136283004e+10 | D38: =B38*定数!$C$3 -> 10.68141502 | E38: =B38*定数!$C$5 -> 2.136283004 | F38: =定数!$B$6*SIN(D38)*SIN(E38)/(D38*E38) -> -0.8315393675 | G38: -0.805415029193206+0.206795431481152i | I38: =IMSUB(掃き出し!LZ38,IMPRODUCT(P38,掃き出し!LY38)) -> 0.000054466035397313-0.00012584438788815i | J38: =IMSUB(掃き出し!MB38,IMPRODUCT(P38,掃き出し!MA38)) -> -0.000139771065867623+7.84016904808299E-06i | K38: =IMSUB(掃き出し!MD38,IMPRODUCT(P38,掃き出し!MC38)) -> -0.00014115432130377+0.000849700362574308i | L38: =IMSUB(掃き出し!MF38,IMPRODUCT(P38,掃き出し!ME38)) -> -0.000045912753506117+0.000352654973296802i | M38: =IMSUB(掃き出し!MH38,IMPRODUCT(P38,掃き出し!MG38)) -> 0.00267289855524205-0.00268289466740308i | N38: =IMSUB(掃き出し!MJ38,IMPRODUCT(P38,掃き出し!MI38)) -> 0.00100759274052438+0.0011425912725385i | O38: =IMSUB(掃き出し!ML38,IMPRODUCT(P38,掃き出し!MK38)) -> -0.00131983314480253+0.00399974788761941i | P38: =IMDIV(掃き出し!MN38,掃き出し!MM38) -> -0.00175644877832354+0.000204780956830635i | R38: =IMEXP(COMPLEX(0,計算!$B38*定数!A$61)) -> -0.998887576981024+0.0471551540446938i | S38: =IMEXP(COMPLEX(0,計算!$B38*定数!B$61)) -> -0.447718418307809+0.894174601466601i | T38: =IMEXP(COMPLEX(0,計算!$B38*定数!C$61)) -> 0.187924227345895+0.982183529070025i | U38: =IMEXP(COMPLEX(0,計算!$B38*定数!D$61)) -> 0.0203243279609945+0.999793439512849i | W38: -0.00008530503047031-0.000118004218840067i | X38: -0.000187067074809887+0.00120235533587111i | Y38: 0.00368049129576643-0.00154030339486458i | Z38: -0.00307628192312607+0.00420452884445004i | AA38: 0.0000789062193150554+0.00010871366779935i | AB38: 0.000528198737719376-0.000453154038291647i | AC38: -0.00306567579788939-0.00192509626743842i | AD38: 0.00373165967786474-0.00035107122282698i | AF38: =IMSUM(IMPRODUCT(定数!$F$38,計算!W38),IMPRODUCT(定数!$G$38,計算!X38),IMPRODUCT(定数!$H$38,計算!Y38),IMPRODUCT(定数!$I$38,計算!Z38)) -> -0.00288397141799508+0.00341792464084415i | AG38: =IMSUM(IMPRODUCT(定数!$F$39,計算!W38),IMPRODUCT(定数!$G$39,計算!X38),IMPRODUCT(定数!$H$39,計算!Y38),IMPRODUCT(定数!$I$39,計算!Z38)) -> 0.00368584280630425-0.00263373117228844i | AH38: =IMSUM(IMPRODUCT(定数!$F$40,計算!W38),IMPRODUCT(定数!$G$40,計算!X38),IMPRODUCT(定数!$H$40,計算!Y38),IMPRODUCT(定数!$I$40,計算!Z38)) -> -0.000936585641948452-0.00138088758639431i | AI38: =IMSUM(IMPRODUCT(定数!$F$41,計算!W38),IMPRODUCT(定数!$G$41,計算!X38),IMPRODUCT(定数!$H$41,計算!Y38),IMPRODUCT(定数!$I$41,計算!Z38)) -> -0.000485933103394579+0.000978098323258816i | AJ38: =IMSUM(IMPRODUCT(定数!$F$38,計算!AA38),IMPRODUCT(定数!$G$38,計算!AB38),IMPRODUCT(定数!$H$38,計算!AC38),IMPRODUCT(定数!$I$38,計算!AD38)) -> 0.00326950937693117+0.000135842392021262i | AK38: =IMSUM(IMPRODUCT(定数!$F$39,計算!AA38),IMPRODUCT(定数!$G$39,計算!AB38),IMPRODUCT(定数!$H$39,計算!AC38),IMPRODUCT(定数!$I$39,計算!AD38)) -> -0.0034931274034974-0.00115423253351086i | AL38: =IMSUM(IMPRODUCT(定数!$F$40,計算!AA38),IMPRODUCT(定数!$G$40,計算!AB38),IMPRODUCT(定数!$H$40,計算!AC38),IMPRODUCT(定数!$I$40,計算!AD38)) -> 0.000131296984571289+0.00159773779385897i | AM38: =IMSUM(IMPRODUCT(定数!$F$41,計算!AA38),IMPRODUCT(定数!$G$41,計算!AB38),IMPRODUCT(定数!$H$41,計算!AC38),IMPRODUCT(定数!$I$41,計算!AD38)) -> 0.000796259267127969-0.00041443880112332i | AO38: 0.00676263678042857+0.00129007492553212i | AQ38: 0.000131296984571289+0.00159773779385897i | AR38: 0.000796259267127969-0.00041443880112332i
A39: 35 | B39: =A39*定数!$B$8 -> 2.199114858e+10 | D39: =B39*定数!$C$3 -> 10.99557429 | E39: =B39*定数!$C$5 -> 2.199114858 | F39: =定数!$B$6*SIN(D39)*SIN(E39)/(D39*E39) -> -0.7905780019 | G39: -0.639591038902298+0.464690090293619i | I39: =IMSUB(掃き出し!LZ39,IMPRODUCT(P39,掃き出し!LY39)) -> 0.000174324032410386-0.00027484849056926i | J39: =IMSUB(掃き出し!MB39,IMPRODUCT(P39,掃き出し!MA39)) -> -0.00001573173227787+0.000206970081247171i | K39: =IMSUB(掃き出し!MD39,IMPRODUCT(P39,掃き出し!MC39)) -> -0.0000300538256566111+0.000659323800090288i | L39: =IMSUB(掃き出し!MF39,IMPRODUCT(P39,掃き出し!ME39)) -> 0.000261370284810675+0.00011645740936193i | M39: =IMSUB(掃き出し!MH39,IMPRODUCT(P39,掃き出し!MG39)) -> -0.000465242058680958-0.00255668347551974i | N39: =IMSUB(掃き出し!MJ39,IMPRODUCT(P39,掃き出し!MI39)) -> 0.00026875238463556-0.0010337018776639i | O39: =IMSUB(掃き出し!ML39,IMPRODUCT(P39,掃き出し!MK39)) -> 0.000500452161572681+0.00219737216832038i | P39: =IMDIV(掃き出し!MN39,掃き出し!MM39) -> 0.000287129137219794+0.000924142461049019i | R39: =IMEXP(COMPLEX(0,計算!$B39*定数!A$61)) -> -0.82632900268992-0.563187694568589i | S39: =IMEXP(COMPLEX(0,計算!$B39*定数!B$61)) -> -0.881232801809183+0.47268250339476i | T39: =IMEXP(COMPLEX(0,計算!$B39*定数!C$61)) -> -0.394928534234277+0.918711844294807i | U39: =IMEXP(COMPLEX(0,計算!$B39*定数!D$61)) -> -0.547752101456337+0.836640684732799i | W39: 0.000158592300132516-0.000067878409322089i | X39: 0.000231316459154064+0.000775781209452218i | Y39: -0.000196489674045398-0.00359038535318364i | Z39: 0.000787581298792475+0.0031215146293694i | AA39: 0.000140304873458824+0.000163126966233549i | AB39: 0.000052759793173443-0.000545892770711227i | AC39: -0.00132158185363027+0.00209227501359049i | AD39: 0.000633836462632367-0.00188829091912765i | AF39: =IMSUM(IMPRODUCT(定数!$F$38,計算!W39),IMPRODUCT(定数!$G$38,計算!X39),IMPRODUCT(定数!$H$38,計算!Y39),IMPRODUCT(定数!$I$38,計算!Z39)) -> 0.000697816476724227+0.00318944424559473i | AG39: =IMSUM(IMPRODUCT(定数!$F$39,計算!W39),IMPRODUCT(定数!$G$39,計算!X39),IMPRODUCT(定数!$H$39,計算!Y39),IMPRODUCT(定数!$I$39,計算!Z39)) -> -0.000333202395624366-0.00355431384392437i | AH39: =IMSUM(IMPRODUCT(定数!$F$40,計算!W39),IMPRODUCT(定数!$G$40,計算!X39),IMPRODUCT(定数!$H$40,計算!Y39),IMPRODUCT(定数!$I$40,計算!Z39)) -> -0.00022065160022925+0.000595287650433063i | AI39: =IMSUM(IMPRODUCT(定数!$F$41,計算!W39),IMPRODUCT(定数!$G$41,計算!X39),IMPRODUCT(定数!$H$41,計算!Y39),IMPRODUCT(定数!$I$41,計算!Z39)) -> 0.000286995257525864+0.0000920610117221632i | AJ39: =IMSUM(IMPRODUCT(定数!$F$38,計算!AA39),IMPRODUCT(定数!$G$38,計算!AB39),IMPRODUCT(定数!$H$38,計算!AC39),IMPRODUCT(定数!$I$38,計算!AD39)) -> 0.000823323636516783-0.001900449649191i | AK39: =IMSUM(IMPRODUCT(定数!$F$39,計算!AA39),IMPRODUCT(定数!$G$39,計算!AB39),IMPRODUCT(定数!$H$39,計算!AC39),IMPRODUCT(定数!$I$39,計算!AD39)) -> -0.0010502475828643+0.00214256448937261i | AL39: =IMSUM(IMPRODUCT(定数!$F$40,計算!AA39),IMPRODUCT(定数!$G$40,計算!AB39),IMPRODUCT(定数!$H$40,計算!AC39),IMPRODUCT(定数!$I$40,計算!AD39)) -> 0.000618341174530922-0.000218717197181938i | AM39: =IMSUM(IMPRODUCT(定数!$F$41,計算!AA39),IMPRODUCT(定数!$G$41,計算!AB39),IMPRODUCT(定数!$H$41,計算!AC39),IMPRODUCT(定数!$I$41,計算!AD39)) -> -0.0000193432731335139+0.0000243934214353666i | AO39: 0.00187357121938108-0.00404301413856361i | AQ39: 0.000618341174530922-0.000218717197181938i | AR39: -0.0000193432731335139+0.0000243934214353666i
A40: 36 | B40: =A40*定数!$B$8 -> 2.261946711e+10 | D40: =B40*定数!$C$3 -> 11.30973355 | E40: =B40*定数!$C$5 -> 2.261946711 | F40: =定数!$B$6*SIN(D40)*SIN(E40)/(D40*E40) -> -0.6768689641 | G40: -0.362684527655833+0.571499368297412i | I40: =IMSUB(掃き出し!LZ40,IMPRODUCT(P40,掃き出し!LY40)) -> -0.00029315007611249-0.00025125288370152i | J40: =IMSUB(掃き出し!MB40,IMPRODUCT(P40,掃き出し!MA40)) -> 0.000126804950194785-0.00016986398361704i | K40: =IMSUB(掃き出し!MD40,IMPRODUCT(P40,掃き出し!MC40)) -> -0.000013398436401836+0.000603797940230416i | L40: =IMSUB(掃き出し!MF40,IMPRODUCT(P40,掃き出し!ME40)) -> 0.000182138558745513-0.000208649541001575i | M40: =IMSUB(掃き出し!MH40,IMPRODUCT(P40,掃き出し!MG40)) -> -0.000580797299100689-0.0013109896272775i | N40: =IMSUB(掃き出し!MJ40,IMPRODUCT(P40,掃き出し!MI40)) -> -0.000557927800002045-0.000227946721939909i | O40: =IMSUB(掃き出し!ML40,IMPRODUCT(P40,掃き出し!MK40)) -> 0.000446685724449791+0.00140549879786513i | P40: =IMDIV(掃き出し!MN40,掃き出し!MM40) -> 0.000644478415739729-0.0000115457767332287i | R40: =IMEXP(COMPLEX(0,計算!$B40*定数!A$61)) -> -0.321342522562982-0.946963031587221i | S40: =IMEXP(COMPLEX(0,計算!$B40*定数!B$61)) -> -0.992577012608831-0.121617737359846i | T40: =IMEXP(COMPLEX(0,計算!$B40*定数!C$61)) -> -0.842026193287616+0.5394366411522i | U40: =IMEXP(COMPLEX(0,計算!$B40*定数!D$61)) -> -0.924482480409001+0.381224531499248i | W40: -0.000166345125917705-0.00042111686731856i | X40: 0.000168740122343677+0.000395148399228841i | Y40: -0.00113872509910273-0.00153893634921741i | Z40: 0.00109116414018952+0.0013939530211319i | AA40: 0.00013052604194-0.000262359128404261i | AB40: -0.000266295590934276-0.000415995984563689i | AC40: 0.000374603333319508+0.00130816136162208i | AD40: -0.000468549976790952-0.00121328172047866i | AF40: =IMSUM(IMPRODUCT(定数!$F$38,計算!W40),IMPRODUCT(定数!$G$38,計算!X40),IMPRODUCT(定数!$H$38,計算!Y40),IMPRODUCT(定数!$I$38,計算!Z40)) -> 0.00095165600912075+0.00126201455630144i | AG40: =IMSUM(IMPRODUCT(定数!$F$39,計算!W40),IMPRODUCT(定数!$G$39,計算!X40),IMPRODUCT(定数!$H$39,計算!Y40),IMPRODUCT(定数!$I$39,計算!Z40)) -> -0.00127684476291928-0.00174530102942662i | AH40: =IMSUM(IMPRODUCT(定数!$F$40,計算!W40),IMPRODUCT(定数!$G$40,計算!X40),IMPRODUCT(定数!$H$40,計算!Y40),IMPRODUCT(定数!$I$40,計算!Z40)) -> 0.0000860953156519728-4.63657508266999E-06i | AI40: =IMSUM(IMPRODUCT(定数!$F$41,計算!W40),IMPRODUCT(定数!$G$41,計算!X40),IMPRODUCT(定数!$H$41,計算!Y40),IMPRODUCT(定数!$I$41,計算!Z40)) -> 0.0000680668199814327-0.000145624072721212i | AJ40: =IMSUM(IMPRODUCT(定数!$F$38,計算!AA40),IMPRODUCT(定数!$G$38,計算!AB40),IMPRODUCT(定数!$H$38,計算!AC40),IMPRODUCT(定数!$I$38,計算!AD40)) -> -0.00047253759170732-0.00141610963411259i | AK40: =IMSUM(IMPRODUCT(定数!$F$39,計算!AA40),IMPRODUCT(定数!$G$39,計算!AB40),IMPRODUCT(定数!$H$39,計算!AC40),IMPRODUCT(定数!$I$39,計算!AD40)) -> 0.000448343306090048+0.00113228245643392i | AL40: =IMSUM(IMPRODUCT(定数!$F$40,計算!AA40),IMPRODUCT(定数!$G$40,計算!AB40),IMPRODUCT(定数!$H$40,計算!AC40),IMPRODUCT(定数!$I$40,計算!AD40)) -> 0.000127766758644086-0.000298792140885444i | AM40: =IMSUM(IMPRODUCT(定数!$F$41,計算!AA40),IMPRODUCT(定数!$G$41,計算!AB40),IMPRODUCT(定数!$H$41,計算!AC40),IMPRODUCT(定数!$I$41,計算!AD40)) -> 0.0000874559615528843-0.000117203295645406i | AO40: -0.000920880897797368-0.00254839209054651i | AQ40: 0.000127766758644086-0.000298792140885444i | AR40: 0.0000874559615528843-0.000117203295645406i
A41: 37 | B41: =A41*定数!$B$8 -> 2.324778564e+10 | D41: =B41*定数!$C$3 -> 11.62389282 | E41: =B41*定数!$C$5 -> 2.324778564 | F41: =定数!$B$6*SIN(D41)*SIN(E41)/(D41*E41) -> -0.5156870249 | G41: -0.0966301126428881+0.506552789937714i | I41: =IMSUB(掃き出し!LZ41,IMPRODUCT(P41,掃き出し!LY41)) -> -0.00014618753673851-0.000035808073930746i | J41: =IMSUB(掃き出し!MB41,IMPRODUCT(P41,掃き出し!MA41)) -> -0.000065527670102037-0.000045059223259673i | K41: =IMSUB(掃き出し!MD41,IMPRODUCT(P41,掃き出し!MC41)) -> 0.00015477477922565+0.000743620987040523i | L41: =IMSUB(掃き出し!MF41,IMPRODUCT(P41,掃き出し!ME41)) -> -0.000249448635787943-0.00025930604268185i | M41: =IMSUB(掃き出し!MH41,IMPRODUCT(P41,掃き出し!MG41)) -> -0.00043285333544844-0.000885118028633605i | N41: =IMSUB(掃き出し!MJ41,IMPRODUCT(P41,掃き出し!MI41)) -> -0.0002811202223938+0.000318441324342181i | O41: =IMSUB(掃き出し!ML41,IMPRODUCT(P41,掃き出し!MK41)) -> 0.000387912941714189+0.00113765183462104i | P41: =IMDIV(掃き出し!MN41,掃き出し!MM41) -> 0.000170884909894161-0.000511796415034443i | R41: =IMEXP(COMPLEX(0,計算!$B41*定数!A$61)) -> 0.312918400895702-0.949780013677313i | S41: =IMEXP(COMPLEX(0,計算!$B41*定数!B$61)) -> -0.741044686226204-0.671455711879724i | T41: =IMEXP(COMPLEX(0,計算!$B41*定数!C$61)) -> -0.999680719492436-0.025267747724822i | U41: =IMEXP(COMPLEX(0,計算!$B41*定数!D$61)) -> -0.978263717076828-0.207364654295343i | W41: -0.000211715206840547-0.000080867297190419i | X41: -0.000094673856562293+0.000484314944358673i | Y41: -0.00071397355784224-0.000566676704291424i | Z41: 0.00055879785160835+0.000625855419586597i | AA41: -0.0000750361407060059-0.000101913994558783i | AB41: -0.000603263524375624-0.000087480895090529i | AC41: 0.000744156834105147+0.000562661821443487i | AD41: -0.000888688929476799-0.000567247706326704i | AF41: =IMSUM(IMPRODUCT(定数!$F$38,計算!W41),IMPRODUCT(定数!$G$38,計算!X41),IMPRODUCT(定数!$H$38,計算!Y41),IMPRODUCT(定数!$I$38,計算!Z41)) -> 0.000353546662950253+0.000774538594452631i | AG41: =IMSUM(IMPRODUCT(定数!$F$39,計算!W41),IMPRODUCT(定数!$G$39,計算!X41),IMPRODUCT(定数!$H$39,計算!Y41),IMPRODUCT(定数!$I$39,計算!Z41)) -> -0.000862322374108886-0.00055129223546736i | AH41: =IMSUM(IMPRODUCT(定数!$F$40,計算!W41),IMPRODUCT(定数!$G$40,計算!X41),IMPRODUCT(定数!$H$40,計算!Y41),IMPRODUCT(定数!$I$40,計算!Z41)) -> 0.000113769806304352-0.000115729350399355i | AI41: =IMSUM(IMPRODUCT(定数!$F$41,計算!W41),IMPRODUCT(定数!$G$41,計算!X41),IMPRODUCT(定数!$H$41,計算!Y41),IMPRODUCT(定数!$I$41,計算!Z41)) -> 0.0000556883571862672-0.000176692401406727i | AJ41: =IMSUM(IMPRODUCT(定数!$F$38,計算!AA41),IMPRODUCT(定数!$G$38,計算!AB41),IMPRODUCT(定数!$H$38,計算!AC41),IMPRODUCT(定数!$I$38,計算!AD41)) -> -0.00111289801276064-0.00057009221918961i | AK41: =IMSUM(IMPRODUCT(定数!$F$39,計算!AA41),IMPRODUCT(定数!$G$39,計算!AB41),IMPRODUCT(定数!$H$39,計算!AC41),IMPRODUCT(定数!$I$39,計算!AD41)) -> 0.000665377074986236+0.000541695061497202i | AL41: =IMSUM(IMPRODUCT(定数!$F$40,計算!AA41),IMPRODUCT(定数!$G$40,計算!AB41),IMPRODUCT(定数!$H$40,計算!AC41),IMPRODUCT(定数!$I$40,計算!AD41)) -> 0.0000735608868234514-0.000129263527308967i | AM41: =IMSUM(IMPRODUCT(定数!$F$41,計算!AA41),IMPRODUCT(定数!$G$41,計算!AB41),IMPRODUCT(定数!$H$41,計算!AC41),IMPRODUCT(定数!$I$41,計算!AD41)) -> 0.0000944280026116219-0.000128251892580297i | AO41: -0.00177827508774688-0.00111178728068681i | AQ41: 0.0000735608868234514-0.000129263527308967i | AR41: 0.0000944280026116219-0.000128251892580297i
A42: 38 | B42: =A42*定数!$B$8 -> 2.387610417e+10 | D42: =B42*定数!$C$3 -> 11.93805208 | E42: =B42*定数!$C$5 -> 2.387610417 | F42: =定数!$B$6*SIN(D42)*SIN(E42)/(D42*E42) -> -0.3335630995 | G42: 0.0625034920796292+0.327654779941993i | I42: =IMSUB(掃き出し!LZ42,IMPRODUCT(P42,掃き出し!LY42)) -> -0.000078726336903581-5.73673237583901E-06i | J42: =IMSUB(掃き出し!MB42,IMPRODUCT(P42,掃き出し!MA42)) -> -0.0000361972941998389+0.000026081362821758i | K42: =IMSUB(掃き出し!MD42,IMPRODUCT(P42,掃き出し!MC42)) -> 0.00059306692988777+0.000088844931232237i | L42: =IMSUB(掃き出し!MF42,IMPRODUCT(P42,掃き出し!ME42)) -> 0.000030706577488303+0.000287842577227811i | M42: =IMSUB(掃き出し!MH42,IMPRODUCT(P42,掃き出し!MG42)) -> -0.000403634005657598-0.000703147589301302i | N42: =IMSUB(掃き出し!MJ42,IMPRODUCT(P42,掃き出し!MI42)) -> 0.000190391774371479+0.000305824647797982i | O42: =IMSUB(掃き出し!ML42,IMPRODUCT(P42,掃き出し!MK42)) -> 0.000615254316690429+0.00105208642294829i | P42: =IMDIV(掃き出し!MN42,掃き出し!MM42) -> -0.000495871507729907-0.000259064878426484i | R42: =IMEXP(COMPLEX(0,計算!$B42*定数!A$61)) -> 0.821293861822349-0.570505383439046i | S42: =IMEXP(COMPLEX(0,計算!$B42*定数!B$61)) -> -0.218593603697681-0.9758159849185i | T42: =IMEXP(COMPLEX(0,計算!$B42*定数!C$61)) -> -0.813699000643639-0.581286449482132i | U42: =IMEXP(COMPLEX(0,計算!$B42*定数!D$61)) -> -0.690308430821509-0.723515217764454i | W42: -0.00011492363110342+0.000020344630445919i | X42: 0.000623773507376073+0.000376687508460048i | Y42: -0.000213242231286119-0.00039732294150332i | Z42: 0.000119382808960522+0.000793021544521806i | AA42: -0.0000762336782025696-0.0000075541277087166i | AB42: 0.000057832185055157+0.000466418741213617i | AC42: 0.000760016879822022-0.000021997856139914i | AD42: -0.00103104887885692+0.000256486984812691i | AF42: =IMSUM(IMPRODUCT(定数!$F$38,計算!W42),IMPRODUCT(定数!$G$38,計算!X42),IMPRODUCT(定数!$H$38,計算!Y42),IMPRODUCT(定数!$I$38,計算!Z42)) -> 0.000473631771608657+0.000790779844485583i | AG42: =IMSUM(IMPRODUCT(定数!$F$39,計算!W42),IMPRODUCT(定数!$G$39,計算!X42),IMPRODUCT(定数!$H$39,計算!Y42),IMPRODUCT(定数!$I$39,計算!Z42)) -> -0.000066307247902353-0.000496677737838051i | AH42: =IMSUM(IMPRODUCT(定数!$F$40,計算!W42),IMPRODUCT(定数!$G$40,計算!X42),IMPRODUCT(定数!$H$40,計算!Y42),IMPRODUCT(定数!$I$40,計算!Z42)) -> -0.00017004128749026-0.000213814441923143i | AI42: =IMSUM(IMPRODUCT(定数!$F$41,計算!W42),IMPRODUCT(定数!$G$41,計算!X42),IMPRODUCT(定数!$H$41,計算!Y42),IMPRODUCT(定数!$I$41,計算!Z42)) -> -0.000448456074389878+0.0000764078879129482i | AJ42: =IMSUM(IMPRODUCT(定数!$F$38,計算!AA42),IMPRODUCT(定数!$G$38,計算!AB42),IMPRODUCT(定数!$H$38,計算!AC42),IMPRODUCT(定数!$I$38,計算!AD42)) -> -0.000771958324147056+0.000438341360510537i | AK42: =IMSUM(IMPRODUCT(定数!$F$39,計算!AA42),IMPRODUCT(定数!$G$39,計算!AB42),IMPRODUCT(定数!$H$39,計算!AC42),IMPRODUCT(定数!$I$39,計算!AD42)) -> 0.000941067757769001+4.58418619799816E-06i | AL42: =IMSUM(IMPRODUCT(定数!$F$40,計算!AA42),IMPRODUCT(定数!$G$40,計算!AB42),IMPRODUCT(定数!$H$40,計算!AC42),IMPRODUCT(定数!$I$40,計算!AD42)) -> -0.0000718958155607674-0.000249871547955672i | AM42: =IMSUM(IMPRODUCT(定数!$F$41,計算!AA42),IMPRODUCT(定数!$G$41,計算!AB42),IMPRODUCT(定数!$H$41,計算!AC42),IMPRODUCT(定数!$I$41,計算!AD42)) -> -0.000400013471238549-0.00017050929244028i | AO42: -0.00171302608191606+0.000433757174312539i | AQ42: -0.0000718958155607674-0.000249871547955672i | AR42: -0.000400013471238549-0.00017050929244028i
A43: 39 | B43: =A43*定数!$B$8 -> 2.45044227e+10 | D43: =B43*定数!$C$3 -> 12.25221135 | E43: =B43*定数!$C$5 -> 2.45044227 | F43: =定数!$B$6*SIN(D43)*SIN(E43)/(D43*E43) -> -0.1550260652 | G43: 0.0830671196795236+0.130892836068778i | I43: =IMSUB(掃き出し!LZ43,IMPRODUCT(P43,掃き出し!LY43)) -> -0.0000233530219801787-2.51586500203498E-06i | J43: =IMSUB(掃き出し!MB43,IMPRODUCT(P43,掃き出し!MA43)) -> 0.000011850297459318+0.0000233891198674565i | K43: =IMSUB(掃き出し!MD43,IMPRODUCT(P43,掃き出し!MC43)) -> 0.000137847907322341-0.000034216462280286i | L43: =IMSUB(掃き出し!MF43,IMPRODUCT(P43,掃き出し!ME43)) -> 0.000064349346485626-0.000012521667773318i | M43: =IMSUB(掃き出し!MH43,IMPRODUCT(P43,掃き出し!MG43)) -> -0.000590013599904554-0.000336365535494566i | N43: =IMSUB(掃き出し!MJ43,IMPRODUCT(P43,掃き出し!MI43)) -> 0.000229372230804102-0.00020155369297674i | O43: =IMSUB(掃き出し!ML43,IMPRODUCT(P43,掃き出し!MK43)) -> 0.000815108272751226-0.0000385010200957191i | P43: =IMDIV(掃き出し!MN43,掃き出し!MM43) -> 0.0000938202943472407+0.000370770419856323i | R43: =IMEXP(COMPLEX(0,計算!$B43*定数!A$61)) -> 0.999267028175442+0.038280626972669i | S43: =IMEXP(COMPLEX(0,計算!$B43*定数!B$61)) -> 0.383773182048257-0.923427390074907i | T43: =IMEXP(COMPLEX(0,計算!$B43*定数!C$61)) -> -0.348011508008358-0.937490261439418i | U43: =IMEXP(COMPLEX(0,計算!$B43*定数!D$61)) -> -0.161207941309255-0.986920462681179i | W43: -0.0000115027245208607+0.0000208732548654215i | X43: 0.000202197253807967-0.000046738130053604i | Y43: -0.000360641369100452-0.000537919228471306i | Z43: 0.000908928567098467+0.000332269399760604i | AA43: -0.0000124859524104029+0.0000222055604973815i | AB43: 0.0000976314509650835+0.0000499337433140531i | AC43: 0.000251892136198013-0.000580964154763821i | AD43: 0.000257391855780547+0.000658289399477364i | AF43: =IMSUM(IMPRODUCT(定数!$F$38,計算!W43),IMPRODUCT(定数!$G$38,計算!X43),IMPRODUCT(定数!$H$38,計算!Y43),IMPRODUCT(定数!$I$38,計算!Z43)) -> 0.000716372934268289+0.000315120835466844i | AG43: =IMSUM(IMPRODUCT(定数!$F$39,計算!W43),IMPRODUCT(定数!$G$39,計算!X43),IMPRODUCT(定数!$H$39,計算!Y43),IMPRODUCT(定数!$I$39,計算!Z43)) -> -0.000596970486754315-0.000502336932925869i | AH43: =IMSUM(IMPRODUCT(定数!$F$40,計算!W43),IMPRODUCT(定数!$G$40,計算!X43),IMPRODUCT(定数!$H$40,計算!Y43),IMPRODUCT(定数!$I$40,計算!Z43)) -> -0.00025554515591067+0.000218166969418152i | AI43: =IMSUM(IMPRODUCT(定数!$F$41,計算!W43),IMPRODUCT(定数!$G$41,計算!X43),IMPRODUCT(定数!$H$41,計算!Y43),IMPRODUCT(定数!$I$41,計算!Z43)) -> 0.000246465646280628+0.000059288675598111i | AJ43: =IMSUM(IMPRODUCT(定数!$F$38,計算!AA43),IMPRODUCT(定数!$G$38,計算!AB43),IMPRODUCT(定数!$H$38,計算!AC43),IMPRODUCT(定数!$I$38,計算!AD43)) -> 0.000120684761312254+0.000564617443781951i | AK43: =IMSUM(IMPRODUCT(定数!$F$39,計算!AA43),IMPRODUCT(定数!$G$39,計算!AB43),IMPRODUCT(定数!$H$39,計算!AC43),IMPRODUCT(定数!$I$39,計算!AD43)) -> 0.0000659143031032861-0.000650614233149685i | AL43: =IMSUM(IMPRODUCT(定数!$F$40,計算!AA43),IMPRODUCT(定数!$G$40,計算!AB43),IMPRODUCT(定数!$H$40,計算!AC43),IMPRODUCT(定数!$I$40,計算!AD43)) -> -0.000317430741749434+0.0000666490796936916i | AM43: =IMSUM(IMPRODUCT(定数!$F$41,計算!AA43),IMPRODUCT(定数!$G$41,計算!AB43),IMPRODUCT(定数!$H$41,計算!AC43),IMPRODUCT(定数!$I$41,計算!AD43)) -> 0.000143701884404076+0.000160015346516993i | AO43: 0.0000547704582089679+0.00121523167693164i | AQ43: -0.000317430741749434+0.0000666490796936916i | AR43: 0.000143701884404076+0.000160015346516993i
A44: 40 | B44: =A44*定数!$B$8 -> 2.513274123e+10 | D44: =B44*定数!$C$3 -> 12.56637061 | E44: =B44*定数!$C$5 -> 2.513274123 | F44: =定数!$B$6*SIN(D44)*SIN(E44)/(D44*E44) -> -2.155115649e-16 | G44: 1.7435251850372E-16+1.26674519557796E-16i | I44: =IMSUB(掃き出し!LZ44,IMPRODUCT(P44,掃き出し!LY44)) -> -1.03382527932101E-19-1.4596769172922E-20i | J44: =IMSUB(掃き出し!MB44,IMPRODUCT(P44,掃き出し!MA44)) -> 6.04175538367092E-20-3.3435859681581E-20i | K44: =IMSUB(掃き出し!MD44,IMPRODUCT(P44,掃き出し!MC44)) -> 1.53639867941697E-19-5.232710135677E-20i | L44: =IMSUB(掃き出し!MF44,IMPRODUCT(P44,掃き出し!ME44)) -> 1.1685932303435E-20-7.6388536510674E-20i | M44: =IMSUB(掃き出し!MH44,IMPRODUCT(P44,掃き出し!MG44)) -> -5.9726669871121E-19+4.09659770578879E-19i | N44: =IMSUB(掃き出し!MJ44,IMPRODUCT(P44,掃き出し!MI44)) -> -3.29730114699308E-19-3.36108190545478E-20i | O44: =IMSUB(掃き出し!ML44,IMPRODUCT(P44,掃き出し!MK44)) -> 4.61520084209012E-19-3.59735391987359E-19i | P44: =IMDIV(掃き出し!MN44,掃き出し!MM44) -> 2.44188369219052E-19-1.3498612603954E-19i | R44: =IMEXP(COMPLEX(0,計算!$B44*定数!A$61)) -> 0.775240210907227+0.631666538129509i | S44: =IMEXP(COMPLEX(0,計算!$B44*定数!B$61)) -> 0.845836211414561-0.533442689948847i | T44: =IMEXP(COMPLEX(0,計算!$B44*定数!C$61)) -> 0.237303547223271-0.971435549316193i | U44: =IMEXP(COMPLEX(0,計算!$B44*定数!D$61)) -> 0.424207262087426-0.905565126753615i | W44: -4.29649740953918E-20-4.8032628854503E-20i | X44: 1.65325800245132E-19-1.28715637867444E-19i | Y44: -9.26996813410518E-19+3.76048951524331E-19i | Z44: 7.05708453428064E-19-4.94721518026899E-19i | AA44: -2.14081524962219E-20+6.62302052726413E-20i | AB44: 1.27003151835895E-19-3.31480582079074E-20i | AC44: -6.50588440823245E-19-1.70656798325464E-19i | AD44: 5.02891748366489E-19-1.3056438625463E-20i | AF44: =IMSUM(IMPRODUCT(定数!$F$38,計算!W44),IMPRODUCT(定数!$G$38,計算!X44),IMPRODUCT(定数!$H$38,計算!Y44),IMPRODUCT(定数!$I$38,計算!Z44)) -> 7.36124241041849E-19-4.78810341827454E-19i | AG44: =IMSUM(IMPRODUCT(定数!$F$39,計算!W44),IMPRODUCT(定数!$G$39,計算!X44),IMPRODUCT(定数!$H$39,計算!Y44),IMPRODUCT(定数!$I$39,計算!Z44)) -> -8.95927815341429E-19+4.05161378842003E-19i | AH44: =IMSUM(IMPRODUCT(定数!$F$40,計算!W44),IMPRODUCT(定数!$G$40,計算!X44),IMPRODUCT(定数!$H$40,計算!Y44),IMPRODUCT(定数!$I$40,計算!Z44)) -> 1.96661367239764E-19-6.71907691077482E-22i | AI44: =IMSUM(IMPRODUCT(定数!$F$41,計算!W44),IMPRODUCT(定数!$G$41,計算!X44),IMPRODUCT(定数!$H$41,計算!Y44),IMPRODUCT(定数!$I$41,計算!Z44)) -> -1.89003544112186E-20-9.37537128408284E-20i | AJ44: =IMSUM(IMPRODUCT(定数!$F$38,計算!AA44),IMPRODUCT(定数!$G$38,計算!AB44),IMPRODUCT(定数!$H$38,計算!AC44),IMPRODUCT(定数!$I$38,計算!AD44)) -> 5.31617897581372E-19+5.14692728531723E-20i | AK44: =IMSUM(IMPRODUCT(定数!$F$39,計算!AA44),IMPRODUCT(定数!$G$39,計算!AB44),IMPRODUCT(定数!$H$39,計算!AC44),IMPRODUCT(定数!$I$39,計算!AD44)) -> -6.24177242526735E-19-7.75083591196398E-20i | AL44: =IMSUM(IMPRODUCT(定数!$F$40,計算!AA44),IMPRODUCT(定数!$G$40,計算!AB44),IMPRODUCT(定数!$H$40,計算!AC44),IMPRODUCT(定数!$I$40,計算!AD44)) -> 1.35975025744168E-19+1.62190056454568E-19i | AM44: =IMSUM(IMPRODUCT(定数!$F$41,計算!AA44),IMPRODUCT(定数!$G$41,計算!AB44),IMPRODUCT(定数!$H$41,計算!AC44),IMPRODUCT(定数!$I$41,計算!AD44)) -> -1.229743451521E-20-6.28663113972923E-21i | AO44: 1.15579514010811E-18+1.28977631972812E-19i | AQ44: 1.35975025744168E-19+1.62190056454568E-19i | AR44: -1.229743451521E-20-6.28663113972923E-21i
A45: 41 | B45: =A45*定数!$B$8 -> 2.576105976e+10 | D45: =B45*定数!$C$3 -> 12.88052988 | E45: =B45*定数!$C$5 -> 2.576105976 | F45: =定数!$B$6*SIN(D45)*SIN(E45)/(D45*E45) -> 0.1179131518 | G45: -0.114208693277486-0.0293238084082793i | I45: =IMSUB(掃き出し!LZ45,IMPRODUCT(P45,掃き出し!LY45)) -> 8.30063244161201E-06-0.0000480013764845259i | J45: =IMSUB(掃き出し!MB45,IMPRODUCT(P45,掃き出し!MA45)) -> 0.0000279857823585475-1.55676644632101E-06i | K45: =IMSUB(掃き出し!MD45,IMPRODUCT(P45,掃き出し!MC45)) -> -0.0000905513595495903+0.0000306586551303545i | L45: =IMSUB(掃き出し!MF45,IMPRODUCT(P45,掃き出し!ME45)) -> 0.0000429542367680357+0.000022053932812997i | M45: =IMSUB(掃き出し!MH45,IMPRODUCT(P45,掃き出し!MG45)) -> 0.000154776165867604-0.000178153575729966i | N45: =IMSUB(掃き出し!MJ45,IMPRODUCT(P45,掃き出し!MI45)) -> 0.0000238940321042793-0.000107399719163977i | O45: =IMSUB(掃き出し!ML45,IMPRODUCT(P45,掃き出し!MK45)) -> -0.000174893301471623+0.000155336533663338i | P45: =IMDIV(掃き出し!MN45,掃き出し!MM45) -> 0.000022657021124647+0.000111256414300327i | R45: =IMEXP(COMPLEX(0,計算!$B45*定数!A$61)) -> 0.239338245855626+0.970936251290862i | S45: =IMEXP(COMPLEX(0,計算!$B45*定数!B$61)) -> 0.998669718514615+0.051563488263893i | T45: =IMEXP(COMPLEX(0,計算!$B45*定数!C$61)) -> 0.741046458153485-0.67145375630655i | U45: =IMEXP(COMPLEX(0,計算!$B45*定数!D$61)) -> 0.861434290645438-0.507869041092477i | W45: 0.0000362864148001595-0.0000495581429308469i | X45: -0.0000475971227815546+0.0000527125879433515i | Y45: 0.000178670197971883-0.000285553294893943i | Z45: -0.000152236280346976+0.000266592947963665i | AA45: -0.0000364100286965008+0.0000072518666695167i | AB45: -0.0000470901157121355+0.0000595264796124516i | AC45: 0.000179910860149054-0.000123726957446413i | AD45: -0.000153528480123332+0.000129322614115679i | AF45: =IMSUM(IMPRODUCT(定数!$F$38,計算!W45),IMPRODUCT(定数!$G$38,計算!X45),IMPRODUCT(定数!$H$38,計算!Y45),IMPRODUCT(定数!$I$38,計算!Z45)) -> -0.000148107621283478+0.000238017771839311i | AG45: =IMSUM(IMPRODUCT(定数!$F$39,計算!W45),IMPRODUCT(定数!$G$39,計算!X45),IMPRODUCT(定数!$H$39,計算!Y45),IMPRODUCT(定数!$I$39,計算!Z45)) -> 0.000190760715985643-0.000318088991257405i | AH45: =IMSUM(IMPRODUCT(定数!$F$40,計算!W45),IMPRODUCT(定数!$G$40,計算!X45),IMPRODUCT(定数!$H$40,計算!Y45),IMPRODUCT(定数!$I$40,計算!Z45)) -> -0.0000102879303350009+0.0000173870389032193i | AI45: =IMSUM(IMPRODUCT(定数!$F$41,計算!W45),IMPRODUCT(定数!$G$41,計算!X45),IMPRODUCT(定数!$H$41,計算!Y45),IMPRODUCT(定数!$I$41,計算!Z45)) -> 0.0000175172705793435+0.0000031579196839075i | AJ45: =IMSUM(IMPRODUCT(定数!$F$38,計算!AA45),IMPRODUCT(定数!$G$38,計算!AB45),IMPRODUCT(定数!$H$38,計算!AC45),IMPRODUCT(定数!$I$38,計算!AD45)) -> -0.000181299852795097+0.000146786343213912i | AK45: =IMSUM(IMPRODUCT(定数!$F$39,計算!AA45),IMPRODUCT(定数!$G$39,計算!AB45),IMPRODUCT(定数!$H$39,計算!AC45),IMPRODUCT(定数!$I$39,計算!AD45)) -> 0.000152450603275775-0.000117335283896234i | AL45: =IMSUM(IMPRODUCT(定数!$F$40,計算!AA45),IMPRODUCT(定数!$G$40,計算!AB45),IMPRODUCT(定数!$H$40,計算!AC45),IMPRODUCT(定数!$I$40,計算!AD45)) -> -0.0000505013274598756+5.78196825030736E-06i | AM45: =IMSUM(IMPRODUCT(定数!$F$41,計算!AA45),IMPRODUCT(定数!$G$41,計算!AB45),IMPRODUCT(定数!$H$41,計算!AC45),IMPRODUCT(定数!$I$41,計算!AD45)) -> -0.0000155943382124575-1.85084539500674E-06i | AO45: -0.000333750456070872+0.000264121627110146i | AQ45: -0.0000505013274598756+5.78196825030736E-06i | AR45: -0.0000155943382124575-1.85084539500674E-06i
A46: 42 | B46: =A46*定数!$B$8 -> 2.638937829e+10 | D46: =B46*定数!$C$3 -> 13.19468915 | E46: =B46*定数!$C$5 -> 2.638937829 | F46: =定数!$B$6*SIN(D46)*SIN(E46)/(D46*E46) -> 0.1921623538 | G46: -0.190647096292611+0.0240843291772088i | I46: =IMSUB(掃き出し!LZ46,IMPRODUCT(P46,掃き出し!LY46)) -> -0.0000028702282025675-0.00004421052637046i | J46: =IMSUB(掃き出し!MB46,IMPRODUCT(P46,掃き出し!MA46)) -> 2.87755899908401E-06-0.0000243676388812539i | K46: =IMSUB(掃き出し!MD46,IMPRODUCT(P46,掃き出し!MC46)) -> -0.000233629810746085+0.000135156657629068i | L46: =IMSUB(掃き出し!MF46,IMPRODUCT(P46,掃き出し!ME46)) -> 0.000078219604477309-0.000116732027947075i | M46: =IMSUB(掃き出し!MH46,IMPRODUCT(P46,掃き出し!MG46)) -> 0.000213857575046767-0.000254614257303788i | N46: =IMSUB(掃き出し!MJ46,IMPRODUCT(P46,掃き出し!MI46)) -> -0.000132749509220832-0.000086397286240838i | O46: =IMSUB(掃き出し!ML46,IMPRODUCT(P46,掃き出し!MK46)) -> -0.000299906694880971+0.000261182453700464i | P46: =IMDIV(掃き出し!MN46,掃き出し!MM46) -> 0.000194296901276879+0.00003316962703923i | R46: =IMEXP(COMPLEX(0,計算!$B46*定数!A$61)) -> -0.39284826396835+0.919603306593149i | S46: =IMEXP(COMPLEX(0,計算!$B46*定数!B$61)) -> 0.786399254194973+0.617718554846453i | T46: =IMEXP(COMPLEX(0,計算!$B46*定数!C$61)) -> 0.990057615910203-0.140662422765303i | U46: =IMEXP(COMPLEX(0,計算!$B46*定数!D$61)) -> 0.997736779048172+0.0672407594735423i | W46: 7.33079651650992E-09-0.0000685781652517139i | X46: -0.000155410206268776+0.000018424629681993i | Y46: 0.000081108065825935-0.000341011543544626i | Z46: -0.000105609793604092+0.000294352080739694i | AA46: -0.0000182504648381148+0.000032226497281503i | AB46: 0.000033381844532216+0.000207124285142244i | AC46: 0.000103963464982669-0.000288866483578952i | AD46: -0.000090039019672079+0.00032691652208356i | AF46: =IMSUM(IMPRODUCT(定数!$F$38,計算!W46),IMPRODUCT(定数!$G$38,計算!X46),IMPRODUCT(定数!$H$38,計算!Y46),IMPRODUCT(定数!$I$38,計算!Z46)) -> -0.000179603494415344+0.000238748322020968i | AG46: =IMSUM(IMPRODUCT(定数!$F$39,計算!W46),IMPRODUCT(定数!$G$39,計算!X46),IMPRODUCT(定数!$H$39,計算!Y46),IMPRODUCT(定数!$I$39,計算!Z46)) -> 0.0000538762360328581-0.000387417873624812i | AH46: =IMSUM(IMPRODUCT(定数!$F$40,計算!W46),IMPRODUCT(定数!$G$40,計算!X46),IMPRODUCT(定数!$H$40,計算!Y46),IMPRODUCT(定数!$I$40,計算!Z46)) -> 0.0000437233795069042+0.0000402053017121639i | AI46: =IMSUM(IMPRODUCT(定数!$F$41,計算!W46),IMPRODUCT(定数!$G$41,計算!X46),IMPRODUCT(定数!$H$41,計算!Y46),IMPRODUCT(定数!$I$41,計算!Z46)) -> 0.0000665440413651134+0.0000151661231134526i | AJ46: =IMSUM(IMPRODUCT(定数!$F$38,計算!AA46),IMPRODUCT(定数!$G$38,計算!AB46),IMPRODUCT(定数!$H$38,計算!AC46),IMPRODUCT(定数!$I$38,計算!AD46)) -> -0.0000655184039126478+0.000406442916554618i | AK46: =IMSUM(IMPRODUCT(定数!$F$39,計算!AA46),IMPRODUCT(定数!$G$39,計算!AB46),IMPRODUCT(定数!$H$39,計算!AC46),IMPRODUCT(定数!$I$39,計算!AD46)) -> 0.00010860059107346-0.000256444873883758i | AL46: =IMSUM(IMPRODUCT(定数!$F$40,計算!AA46),IMPRODUCT(定数!$G$40,計算!AB46),IMPRODUCT(定数!$H$40,計算!AC46),IMPRODUCT(定数!$I$40,計算!AD46)) -> -0.0000454085739591976-0.0000103146067046759i | AM46: =IMSUM(IMPRODUCT(定数!$F$41,計算!AA46),IMPRODUCT(定数!$G$41,計算!AB46),IMPRODUCT(定数!$H$41,計算!AC46),IMPRODUCT(定数!$I$41,計算!AD46)) -> -0.0000471841499364835-0.0000276540438472069i | AO46: -0.000174118994986108+0.000662887790438376i | AQ46: -0.0000454085739591976-0.0000103146067046759i | AR46: -0.0000471841499364835-0.0000276540438472069i
A47: 43 | B47: =A47*定数!$B$8 -> 2.701769682e+10 | D47: =B47*定数!$C$3 -> 13.50884841 | E47: =B47*定数!$C$5 -> 2.701769682 | F47: =定数!$B$6*SIN(D47)*SIN(E47)/(D47*E47) -> 0.2230121057 | G47: -0.195426997947169+0.107436901285515i | I47: =IMSUB(掃き出し!LZ47,IMPRODUCT(P47,掃き出し!LY47)) -> -7.19980295385398E-06-0.0000456080900327555i | J47: =IMSUB(掃き出し!MB47,IMPRODUCT(P47,掃き出し!MA47)) -> -0.000023166137195519-0.0000128047205491563i | K47: =IMSUB(掃き出し!MD47,IMPRODUCT(P47,掃き出し!MC47)) -> 0.000113370382533199+0.000371882798567582i | L47: =IMSUB(掃き出し!MF47,IMPRODUCT(P47,掃き出し!ME47)) -> -0.000186135248634091+0.000088763598871489i | M47: =IMSUB(掃き出し!MH47,IMPRODUCT(P47,掃き出し!MG47)) -> 0.000298213127200276-0.000370048631495831i | N47: =IMSUB(掃き出し!MJ47,IMPRODUCT(P47,掃き出し!MI47)) -> -0.00018415667263843+0.000142205651270839i | O47: =IMSUB(掃き出し!ML47,IMPRODUCT(P47,掃き出し!MK47)) -> -0.000474269321060782+0.000536971284206503i | P47: =IMDIV(掃き出し!MN47,掃き出し!MM47) -> 0.000140373552169959-0.000333288625297527i | R47: =IMEXP(COMPLEX(0,計算!$B47*定数!A$61)) -> -0.866993938632088+0.498318683550215i | S47: =IMEXP(COMPLEX(0,計算!$B47*定数!B$61)) -> 0.286628843191236+0.958041703816099i | T47: =IMEXP(COMPLEX(0,計算!$B47*定数!C$61)) -> 0.898740431943119+0.438481055452452i | U47: =IMEXP(COMPLEX(0,計算!$B47*定数!D$61)) -> 0.785500226584462+0.618861368996125i | W47: -0.000030365940149373-0.0000584128105819118i | X47: -0.000072764866100892+0.000460646397439071i | Y47: 0.000114056454561846-0.000227842980224992i | Z47: -0.000333895768890823+0.000203682658908976i | AA47: 0.0000099805541532927+0.0000426872300525526i | AB47: 0.000250383491064431-0.000154904341167855i | AC47: -0.000122106651328754-0.00041628171741428i | AD47: 0.000276295036858773+0.000540371504695615i | AF47: =IMSUM(IMPRODUCT(定数!$F$38,計算!W47),IMPRODUCT(定数!$G$38,計算!X47),IMPRODUCT(定数!$H$38,計算!Y47),IMPRODUCT(定数!$I$38,計算!Z47)) -> -0.000272234830298556+0.000444062029683827i | AG47: =IMSUM(IMPRODUCT(定数!$F$39,計算!W47),IMPRODUCT(定数!$G$39,計算!X47),IMPRODUCT(定数!$H$39,計算!Y47),IMPRODUCT(定数!$I$39,計算!Z47)) -> 0.000188934185440664-0.000133104828766287i | AH47: =IMSUM(IMPRODUCT(定数!$F$40,計算!W47),IMPRODUCT(定数!$G$40,計算!X47),IMPRODUCT(定数!$H$40,計算!Y47),IMPRODUCT(定数!$I$40,計算!Z47)) -> 0.0000863047993462971-0.000119171959055788i | AI47: =IMSUM(IMPRODUCT(定数!$F$41,計算!W47),IMPRODUCT(定数!$G$41,計算!X47),IMPRODUCT(定数!$H$41,計算!Y47),IMPRODUCT(定数!$I$41,計算!Z47)) -> -0.000112354711002363-0.000278163224368875i | AJ47: =IMSUM(IMPRODUCT(定数!$F$38,計算!AA47),IMPRODUCT(定数!$G$38,計算!AB47),IMPRODUCT(定数!$H$38,計算!AC47),IMPRODUCT(定数!$I$38,計算!AD47)) -> 0.000348129506370466+0.000331475258437168i | AK47: =IMSUM(IMPRODUCT(定数!$F$39,計算!AA47),IMPRODUCT(定数!$G$39,計算!AB47),IMPRODUCT(定数!$H$39,計算!AC47),IMPRODUCT(定数!$I$39,計算!AD47)) -> -0.000124845573898311-0.000541032767345749i | AL47: =IMSUM(IMPRODUCT(定数!$F$40,計算!AA47),IMPRODUCT(定数!$G$40,計算!AB47),IMPRODUCT(定数!$H$40,計算!AC47),IMPRODUCT(定数!$I$40,計算!AD47)) -> -0.000119522842851182+0.0000884968460001809i | AM47: =IMSUM(IMPRODUCT(定数!$F$41,計算!AA47),IMPRODUCT(定数!$G$41,計算!AB47),IMPRODUCT(定数!$H$41,計算!AC47),IMPRODUCT(定数!$I$41,計算!AD47)) -> -0.0000434167554976876+0.000285200294129461i | AO47: 0.000472975080268777+0.000872508025782917i | AQ47: -0.000119522842851182+0.0000884968460001809i | AR47: -0.0000434167554976876+0.000285200294129461i
A48: 44 | B48: =A48*定数!$B$8 -> 2.764601535e+10 | D48: =B48*定数!$C$3 -> 13.82300768 | E48: =B48*定数!$C$5 -> 2.764601535 | F48: =定数!$B$6*SIN(D48)*SIN(E48)/(D48*E48) -> 0.216480572 | G48: -0.137989909937793+0.166801147566512i | I48: =IMSUB(掃き出し!LZ48,IMPRODUCT(P48,掃き出し!LY48)) -> -0.000006990696760752-0.000031956346954443i | J48: =IMSUB(掃き出し!MB48,IMPRODUCT(P48,掃き出し!MA48)) -> -0.0000239220065149868+0.000028608383031403i | K48: =IMSUB(掃き出し!MD48,IMPRODUCT(P48,掃き出し!MC48)) -> 0.000106795869661062+0.000140731005952984i | L48: =IMSUB(掃き出し!MF48,IMPRODUCT(P48,掃き出し!ME48)) -> 0.0000440519232595863+0.000079013891104717i | M48: =IMSUB(掃き出し!MH48,IMPRODUCT(P48,掃き出し!MG48)) -> 0.000235254510976828-0.000831363885315924i | N48: =IMSUB(掃き出し!MJ48,IMPRODUCT(P48,掃き出し!MI48)) -> 0.000271614711569965+0.000328670976387162i | O48: =IMSUB(掃き出し!ML48,IMPRODUCT(P48,掃き出し!MK48)) -> 0.000420482899462853+0.00112428909710996i | P48: =IMDIV(掃き出し!MN48,掃き出し!MM48) -> -0.000584656520326947+0.000195449140986879i | R48: =IMEXP(COMPLEX(0,計算!$B48*定数!A$61)) -> -0.992352412975352-0.123436981743708i | S48: =IMEXP(COMPLEX(0,計算!$B48*定数!B$61)) -> -0.317930295289157+0.948114089831677i | T48: =IMEXP(COMPLEX(0,計算!$B48*定数!C$61)) -> 0.49848482264799+0.866898426339327i | U48: =IMEXP(COMPLEX(0,計算!$B48*定数!D$61)) -> 0.298865154066835+0.954295352437916i | W48: -0.0000309127032757388-0.00000334796392304i | X48: 0.000150847792920648+0.000219744897057701i | Y48: 0.000506869222546793-0.000502692908928762i | Z48: -0.000164173620864094+0.00131973823809684i | AA48: 0.0000381522231568459+0.0000054123098506137i | AB48: 0.0000105557828244224-0.000129351979644723i | AC48: -0.000752965781602202-0.000219064184878184i | AD48: 0.000837321878793636-0.000564776105000844i | AF48: =IMSUM(IMPRODUCT(定数!$F$38,計算!W48),IMPRODUCT(定数!$G$38,計算!X48),IMPRODUCT(定数!$H$38,計算!Y48),IMPRODUCT(定数!$I$38,計算!Z48)) -> -0.000154005296274488+0.000992799205091596i | AG48: =IMSUM(IMPRODUCT(定数!$F$39,計算!W48),IMPRODUCT(定数!$G$39,計算!X48),IMPRODUCT(定数!$H$39,計算!Y48),IMPRODUCT(定数!$I$39,計算!Z48)) -> 0.000430753462519864-0.000868364198040822i | AH48: =IMSUM(IMPRODUCT(定数!$F$40,計算!W48),IMPRODUCT(定数!$G$40,計算!X48),IMPRODUCT(定数!$H$40,計算!Y48),IMPRODUCT(定数!$I$40,計算!Z48)) -> -0.000312920583195965-0.000354819589937217i | AI48: =IMSUM(IMPRODUCT(定数!$F$41,計算!W48),IMPRODUCT(定数!$G$41,計算!X48),IMPRODUCT(定数!$H$41,計算!Y48),IMPRODUCT(定数!$I$41,計算!Z48)) -> -0.0000494093469524449+0.000417140859264981i | AJ48: =IMSUM(IMPRODUCT(定数!$F$38,計算!AA48),IMPRODUCT(定数!$G$38,計算!AB48),IMPRODUCT(定数!$H$38,計算!AC48),IMPRODUCT(定数!$I$38,計算!AD48)) -> 0.000692873131834622-0.000318279007634209i | AK48: =IMSUM(IMPRODUCT(定数!$F$39,計算!AA48),IMPRODUCT(定数!$G$39,計算!AB48),IMPRODUCT(定数!$H$39,計算!AC48),IMPRODUCT(定数!$I$39,計算!AD48)) -> -0.000847186037951641+0.0000837184488759668i | AL48: =IMSUM(IMPRODUCT(定数!$F$40,計算!AA48),IMPRODUCT(定数!$G$40,計算!AB48),IMPRODUCT(定数!$H$40,計算!AC48),IMPRODUCT(定数!$I$40,計算!AD48)) -> 0.000115265620695752+0.000444076739509388i | AM48: =IMSUM(IMPRODUCT(定数!$F$41,計算!AA48),IMPRODUCT(定数!$G$41,計算!AB48),IMPRODUCT(定数!$H$41,計算!AC48),IMPRODUCT(定数!$I$41,計算!AD48)) -> 0.000237685932542776-0.000281508247453385i | AO48: 0.00154005916978626-0.000401997456510176i | AQ48: 0.000115265620695752+0.000444076739509388i | AR48: 0.000237685932542776-0.000281508247453385i
A49: 45 | B49: =A49*定数!$B$8 -> 2.827433388e+10 | D49: =B49*定数!$C$3 -> 14.13716694 | E49: =B49*定数!$C$5 -> 2.827433388 | F49: =定数!$B$6*SIN(D49)*SIN(E49)/(D49*E49) -> 0.1826755848 | G49: -0.056449860173183+0.173734805330861i | I49: =IMSUB(掃き出し!LZ49,IMPRODUCT(P49,掃き出し!LY49)) -> -0.000046521148859975-0.000096982883911771i | J49: =IMSUB(掃き出し!MB49,IMPRODUCT(P49,掃き出し!MA49)) -> 0.000069043716912498+0.000023105342459897i | K49: =IMSUB(掃き出し!MD49,IMPRODUCT(P49,掃き出し!MC49)) -> 0.0000801200586793157+0.000096094139614102i | L49: =IMSUB(掃き出し!MF49,IMPRODUCT(P49,掃き出し!ME49)) -> 0.000063705751824763-0.00000702518605875i | M49: =IMSUB(掃き出し!MH49,IMPRODUCT(P49,掃き出し!MG49)) -> -0.00054405520435223-0.000351820910451184i | N49: =IMSUB(掃き出し!MJ49,IMPRODUCT(P49,掃き出し!MI49)) -> -0.0000065810787728781-0.000324409808633397i | O49: =IMSUB(掃き出し!ML49,IMPRODUCT(P49,掃き出し!MK49)) -> 0.00042735387438817+0.000220853850061657i | P49: =IMDIV(掃き出し!MN49,掃き出し!MM49) -> 0.000160998754467056+0.000191363551495978i | R49: =IMEXP(COMPLEX(0,計算!$B49*定数!A$61)) -> -0.718492617812565-0.695534584437645i | S49: =IMEXP(COMPLEX(0,計算!$B49*定数!B$61)) -> -0.80625719873457+0.591565152361668i | T49: =IMEXP(COMPLEX(0,計算!$B49*定数!C$61)) -> -0.073122948723396+0.997322933843394i | U49: =IMEXP(COMPLEX(0,計算!$B49*定数!D$61)) -> -0.292172378432521+0.956365673412155i | W49: 0.000022522568052523-0.000073877541451874i | X49: 0.000143825810504079+0.000089068953555352i | Y49: -0.000550636283125108-0.000676230719084581i | Z49: 0.000588352628855226+0.000412217401557635i | AA49: 0.0000673432157453526-0.000027298892735336i | AB49: -0.0000549587954796544-0.0000815226169230825i | AC49: 0.000012926428211403+0.000585483255984519i | AD49: -0.000143696877682767-0.000375171432274499i | AF49: =IMSUM(IMPRODUCT(定数!$F$38,計算!W49),IMPRODUCT(定数!$G$38,計算!X49),IMPRODUCT(定数!$H$38,計算!Y49),IMPRODUCT(定数!$I$38,計算!Z49)) -> 0.000578407195006802+0.000442939912607446i | AG49: =IMSUM(IMPRODUCT(定数!$F$39,計算!W49),IMPRODUCT(定数!$G$39,計算!X49),IMPRODUCT(定数!$H$39,計算!Y49),IMPRODUCT(定数!$I$39,計算!Z49)) -> -0.000570159169260802-0.000639053777050556i | AH49: =IMSUM(IMPRODUCT(定数!$F$40,計算!W49),IMPRODUCT(定数!$G$40,計算!X49),IMPRODUCT(定数!$H$40,計算!Y49),IMPRODUCT(定数!$I$40,計算!Z49)) -> 0.0000511674824397715+0.000177099316122455i | AI49: =IMSUM(IMPRODUCT(定数!$F$41,計算!W49),IMPRODUCT(定数!$G$41,計算!X49),IMPRODUCT(定数!$H$41,計算!Y49),IMPRODUCT(定数!$I$41,計算!Z49)) -> 0.0000716295900677816-0.0000675478857971384i | AJ49: =IMSUM(IMPRODUCT(定数!$F$38,計算!AA49),IMPRODUCT(定数!$G$38,計算!AB49),IMPRODUCT(定数!$H$38,計算!AC49),IMPRODUCT(定数!$I$38,計算!AD49)) -> -0.000085751782090173-0.000436845538426504i | AK49: =IMSUM(IMPRODUCT(定数!$F$39,計算!AA49),IMPRODUCT(定数!$G$39,計算!AB49),IMPRODUCT(定数!$H$39,計算!AC49),IMPRODUCT(定数!$I$39,計算!AD49)) -> 0.0000949673028142252+0.000510362275625825i | AL49: =IMSUM(IMPRODUCT(定数!$F$40,計算!AA49),IMPRODUCT(定数!$G$40,計算!AB49),IMPRODUCT(定数!$H$40,計算!AC49),IMPRODUCT(定数!$I$40,計算!AD49)) -> 0.00011166165411052-0.000193593010491022i | AM49: =IMSUM(IMPRODUCT(定数!$F$41,計算!AA49),IMPRODUCT(定数!$G$41,計算!AB49),IMPRODUCT(定数!$H$41,計算!AC49),IMPRODUCT(定数!$I$41,計算!AD49)) -> -7.94793626146203E-06+0.0000107677381729846i | AO49: -0.000180719084904398-0.000947207814052329i | AQ49: 0.00011166165411052-0.000193593010491022i | AR49: -7.94793626146203E-06+0.0000107677381729846i
A50: 46 | B50: =A50*定数!$B$8 -> 2.890265241e+10 | D50: =B50*定数!$C$3 -> 14.45132621 | E50: =B50*定数!$C$5 -> 2.890265241 | F50: =定数!$B$6*SIN(D50)*SIN(E50)/(D50*E50) -> 0.1338048814 | G50: 0.00840167801736061+0.133540848010571i | I50: =IMSUB(掃き出し!LZ50,IMPRODUCT(P50,掃き出し!LY50)) -> -0.00003895810239839+9.86569761425099E-06i | J50: =IMSUB(掃き出し!MB50,IMPRODUCT(P50,掃き出し!MA50)) -> -0.000014347382148991-0.0000192495867032128i | K50: =IMSUB(掃き出し!MD50,IMPRODUCT(P50,掃き出し!MC50)) -> 0.0000615609016481799+0.0000771051813545439i | L50: =IMSUB(掃き出し!MF50,IMPRODUCT(P50,掃き出し!ME50)) -> 0.000012424093862214-0.0000525350447837041i | M50: =IMSUB(掃き出し!MH50,IMPRODUCT(P50,掃き出し!MG50)) -> -0.000247274206386637-0.000070392042281649i | N50: =IMSUB(掃き出し!MJ50,IMPRODUCT(P50,掃き出し!MI50)) -> -0.000130578097243162-0.0000072612180985854i | O50: =IMSUB(掃き出し!ML50,IMPRODUCT(P50,掃き出し!MK50)) -> 0.000222442310481004+0.000100690064404734i | P50: =IMDIV(掃き出し!MN50,掃き出し!MM50) -> 0.000119861102926687-0.0000484514106681232i | R50: =IMEXP(COMPLEX(0,計算!$B50*定数!A$61)) -> -0.155586939568792-0.987822202744814i | S50: =IMEXP(COMPLEX(0,計算!$B50*定数!B$61)) -> -0.999824283406724+0.0187457277860853i | T50: =IMEXP(COMPLEX(0,計算!$B50*定数!C$61)) -> -0.619594999222505+0.784921675671187i | U50: =IMEXP(COMPLEX(0,計算!$B50*定数!D$61)) -> -0.781145435927049+0.624349107415347i | W50: -0.000053305484547381-9.38388908896181E-06i | X50: 0.0000739849955103939+0.0000245701365708398i | Y50: -0.000377852303629799-0.0000776532603802344i | Z50: 0.000342303413407691+0.0000522386537366108i | AA50: -0.0000204670870850601-0.0000228510053032932i | AB50: -0.0000715417947297152-0.0000254869244131783i | AC50: 0.000184562645469454+0.000139710877338121i | AD50: -0.000174272402245321-0.000104852471319453i | AF50: =IMSUM(IMPRODUCT(定数!$F$38,計算!W50),IMPRODUCT(定数!$G$38,計算!X50),IMPRODUCT(定数!$H$38,計算!Y50),IMPRODUCT(定数!$I$38,計算!Z50)) -> 0.000317537060197734+0.0000622485322352513i | AG50: =IMSUM(IMPRODUCT(定数!$F$39,計算!W50),IMPRODUCT(定数!$G$39,計算!X50),IMPRODUCT(定数!$H$39,計算!Y50),IMPRODUCT(定数!$I$39,計算!Z50)) -> -0.000408060600514995-0.0000717956507934039i | AH50: =IMSUM(IMPRODUCT(定数!$F$40,計算!W50),IMPRODUCT(定数!$G$40,計算!X50),IMPRODUCT(定数!$H$40,計算!Y50),IMPRODUCT(定数!$I$40,計算!Z50)) -> 0.0000332850379832053+0.0000132307128235931i | AI50: =IMSUM(IMPRODUCT(定数!$F$41,計算!W50),IMPRODUCT(定数!$G$41,計算!X50),IMPRODUCT(定数!$H$41,計算!Y50),IMPRODUCT(定数!$I$41,計算!Z50)) -> 1.35366046594628E-06-0.0000146970739160563i | AJ50: =IMSUM(IMPRODUCT(定数!$F$38,計算!AA50),IMPRODUCT(定数!$G$38,計算!AB50),IMPRODUCT(定数!$H$38,計算!AC50),IMPRODUCT(定数!$I$38,計算!AD50)) -> -0.000202270324719537-0.000123596029172367i | AK50: =IMSUM(IMPRODUCT(定数!$F$39,計算!AA50),IMPRODUCT(定数!$G$39,計算!AB50),IMPRODUCT(定数!$H$39,計算!AC50),IMPRODUCT(定数!$I$39,計算!AD50)) -> 0.000166357030526834+0.000118079750957762i | AL50: =IMSUM(IMPRODUCT(定数!$F$40,計算!AA50),IMPRODUCT(定数!$G$40,計算!AB50),IMPRODUCT(定数!$H$40,計算!AC50),IMPRODUCT(定数!$I$40,計算!AD50)) -> -0.0000277566661343603-0.0000462424864907906i | AM50: =IMSUM(IMPRODUCT(定数!$F$41,計算!AA50),IMPRODUCT(定数!$G$41,計算!AB50),IMPRODUCT(定数!$H$41,計算!AC50),IMPRODUCT(定数!$I$41,計算!AD50)) -> -2.59405748854125E-06-0.000009074998293659i | AO50: -0.000368627355246371-0.000241675780130129i | AQ50: -0.0000277566661343603-0.0000462424864907906i | AR50: -2.59405748854125E-06-0.000009074998293659i
A51: 47 | B51: =A51*定数!$B$8 -> 2.953097094e+10 | D51: =B51*定数!$C$3 -> 14.76548547 | E51: =B51*定数!$C$5 -> 2.953097094 | F51: =定数!$B$6*SIN(D51)*SIN(E51)/(D51*E51) -> 0.08215072112 | G51: 0.0349780758416231+0.0743321948523522i | I51: =IMSUB(掃き出し!LZ51,IMPRODUCT(P51,掃き出し!LY51)) -> -0.0000145284059245565+0.0000051646329568699i | J51: =IMSUB(掃き出し!MB51,IMPRODUCT(P51,掃き出し!MA51)) -> -0.0000083584729941805+0.0000030500701713399i | K51: =IMSUB(掃き出し!MD51,IMPRODUCT(P51,掃き出し!MC51)) -> 0.0000806204200786292+0.000072891570759619i | L51: =IMSUB(掃き出し!MF51,IMPRODUCT(P51,掃き出し!ME51)) -> -0.0000567592188812907-0.000022929997114905i | M51: =IMSUB(掃き出し!MH51,IMPRODUCT(P51,掃き出し!MG51)) -> -0.000124848051350103-0.0000352678517019287i | N51: =IMSUB(掃き出し!MJ51,IMPRODUCT(P51,掃き出し!MI51)) -> -0.000027984652676674+0.000061102150502845i | O51: =IMSUB(掃き出し!ML51,IMPRODUCT(P51,掃き出し!MK51)) -> 0.00013557514593086+0.0000671865737788644i | P51: =IMDIV(掃き出し!MN51,掃き出し!MM51) -> 0.0000009471437453192-0.0000814548490892609i | R51: =IMEXP(COMPLEX(0,計算!$B51*定数!A$61)) -> 0.469910563877645-0.882714031811092i | S51: =IMEXP(COMPLEX(0,計算!$B51*定数!B$61)) -> -0.827865298923065-0.5609269532114i | T51: =IMEXP(COMPLEX(0,計算!$B51*定数!C$61)) -> -0.953083749318538+0.302706733960312i | U51: =IMEXP(COMPLEX(0,計算!$B51*定数!D$61)) -> -0.997241230868429+0.0742288855905929i | W51: -0.000022886878918737+0.0000082147031282098i | X51: 0.0000238612011973385+0.000049961573644714i | Y51: -0.000152832704026777+0.0000258342988009163i | Z51: 0.000136522289676179-0.0000142682753103965i | AA51: -0.0000126213404200359-1.58611059391168E-06i | AB51: -0.0000735027605816945+0.0000356984892150221i | AC51: 0.000116490517953176+0.0000046989526905365i | AD51: -0.000125112169025548+0.0000042356258613888i | AF51: =IMSUM(IMPRODUCT(定数!$F$38,計算!W51),IMPRODUCT(定数!$G$38,計算!X51),IMPRODUCT(定数!$H$38,計算!Y51),IMPRODUCT(定数!$I$38,計算!Z51)) -> 0.000122936496144299+0.0000203691605885843i | AG51: =IMSUM(IMPRODUCT(定数!$F$39,計算!W51),IMPRODUCT(定数!$G$39,計算!X51),IMPRODUCT(定数!$H$39,計算!Y51),IMPRODUCT(定数!$I$39,計算!Z51)) -> -0.000166723931820203+0.0000428615174136651i | AH51: =IMSUM(IMPRODUCT(定数!$F$40,計算!W51),IMPRODUCT(定数!$G$40,計算!X51),IMPRODUCT(定数!$H$40,計算!Y51),IMPRODUCT(定数!$I$40,計算!Z51)) -> 0.0000154665582197702-0.0000206675105709063i | AI51: =IMSUM(IMPRODUCT(定数!$F$41,計算!W51),IMPRODUCT(定数!$G$41,計算!X51),IMPRODUCT(定数!$H$41,計算!Y51),IMPRODUCT(定数!$I$41,計算!Z51)) -> 2.79556062572391E-06-0.000028312382745927i | AJ51: =IMSUM(IMPRODUCT(定数!$F$38,計算!AA51),IMPRODUCT(定数!$G$38,計算!AB51),IMPRODUCT(定数!$H$38,計算!AC51),IMPRODUCT(定数!$I$38,計算!AD51)) -> -0.000153735864659785+0.000022986140802948i | AK51: =IMSUM(IMPRODUCT(定数!$F$39,計算!AA51),IMPRODUCT(定数!$G$39,計算!AB51),IMPRODUCT(定数!$H$39,計算!AC51),IMPRODUCT(定数!$I$39,計算!AD51)) -> 0.000103553776604328+0.0000110171782887462i | AL51: =IMSUM(IMPRODUCT(定数!$F$40,計算!AA51),IMPRODUCT(定数!$G$40,計算!AB51),IMPRODUCT(定数!$H$40,計算!AC51),IMPRODUCT(定数!$I$40,計算!AD51)) -> -1.77955539737114E-06-0.0000166700373617119i | AM51: =IMSUM(IMPRODUCT(定数!$F$41,計算!AA51),IMPRODUCT(定数!$G$41,計算!AB51),IMPRODUCT(定数!$H$41,計算!AC51),IMPRODUCT(定数!$I$41,計算!AD51)) -> 8.51396013955772E-06-0.0000198695551281429i | AO51: -0.000257289641264113+0.0000119689625142018i | AQ51: -1.77955539737114E-06-0.0000166700373617119i | AR51: 8.51396013955772E-06-0.0000198695551281429i
A52: 48 | B52: =A52*定数!$B$8 -> 3.015928947e+10 | D52: =B52*定数!$C$3 -> 15.07964474 | E52: =B52*定数!$C$5 -> 3.015928947 | F52: =定数!$B$6*SIN(D52)*SIN(E52)/(D52*E52) -> 0.03827591883 | G52: 0.0279019440132871+0.0262016694622973i | I52: =IMSUB(掃き出し!LZ52,IMPRODUCT(P52,掃き出し!LY52)) -> -6.59141802232689E-06+0.0000025581630016248i | J52: =IMSUB(掃き出し!MB52,IMPRODUCT(P52,掃き出し!MA52)) -> -0.0000002210872095228+0.0000041164335859265i | K52: =IMSUB(掃き出し!MD52,IMPRODUCT(P52,掃き出し!MC52)) -> 0.000048971509086019-0.0000431398811682729i | L52: =IMSUB(掃き出し!MF52,IMPRODUCT(P52,掃き出し!ME52)) -> 0.0000259194514245994+0.000027018557088338i | M52: =IMSUB(掃き出し!MH52,IMPRODUCT(P52,掃き出し!MG52)) -> -0.0000682421751014843-0.0000206174276358194i | N52: =IMSUB(掃き出し!MJ52,IMPRODUCT(P52,掃き出し!MI52)) -> 0.0000262859487304501+0.0000272775399732202i | O52: =IMSUB(掃き出し!ML52,IMPRODUCT(P52,掃き出し!MK52)) -> 0.0000981014920833658+0.0000406794015726247i | P52: =IMDIV(掃き出し!MN52,掃き出し!MM52) -> -0.000055361945446238-0.0000174717488885487i | R52: =IMEXP(COMPLEX(0,計算!$B52*定数!A$61)) -> 0.906365465440967-0.422494547960065i | S52: =IMEXP(COMPLEX(0,計算!$B52*定数!B$61)) -> -0.353246783631835-0.935530175811429i | T52: =IMEXP(COMPLEX(0,計算!$B52*定数!C$61)) -> -0.958953776304923-0.283562435647827i | U52: =IMEXP(COMPLEX(0,計算!$B52*定数!D$61)) -> -0.864971094616061-0.501821686935403i | W52: -6.81250523184969E-06+0.0000066745965875513i | X52: 0.0000748909605106184-0.0000161213240799349i | Y52: -0.0000419562263710342+0.0000066601123374008i | Z52: 0.0000427395466371278+0.000023207652684076i | AA52: -5.51625864917045E-06+3.35819380559489E-06i | AB52: 0.0000391803451533878+0.0000272607014359265i | AC52: 0.0000538152953885005-0.0000331913649075682i | AD52: -0.0000661499808597711+0.000056937332358397i | AF52: =IMSUM(IMPRODUCT(定数!$F$38,計算!W52),IMPRODUCT(定数!$G$38,計算!X52),IMPRODUCT(定数!$H$38,計算!Y52),IMPRODUCT(定数!$I$38,計算!Z52)) -> 0.0000799870674354959+3.15072189460051E-06i | AG52: =IMSUM(IMPRODUCT(定数!$F$39,計算!W52),IMPRODUCT(定数!$G$39,計算!X52),IMPRODUCT(定数!$H$39,計算!Y52),IMPRODUCT(定数!$I$39,計算!Z52)) -> -0.0000277766335926355-7.66261510359669E-06i | AH52: =IMSUM(IMPRODUCT(定数!$F$40,計算!W52),IMPRODUCT(定数!$G$40,計算!X52),IMPRODUCT(定数!$H$40,計算!Y52),IMPRODUCT(定数!$I$40,計算!Z52)) -> -0.0000191889752545428-6.46245856722643E-06i | AI52: =IMSUM(IMPRODUCT(定数!$F$41,計算!W52),IMPRODUCT(定数!$G$41,計算!X52),IMPRODUCT(定数!$H$41,計算!Y52),IMPRODUCT(定数!$I$41,計算!Z52)) -> -0.000040313497208337+0.0000276557548028864i | AJ52: =IMSUM(IMPRODUCT(定数!$F$38,計算!AA52),IMPRODUCT(定数!$G$38,計算!AB52),IMPRODUCT(定数!$H$38,計算!AC52),IMPRODUCT(定数!$I$38,計算!AD52)) -> -0.0000286295970612732+0.0000591294716088114i | AK52: =IMSUM(IMPRODUCT(定数!$F$39,計算!AA52),IMPRODUCT(定数!$G$39,計算!AB52),IMPRODUCT(定数!$H$39,計算!AC52),IMPRODUCT(定数!$I$39,計算!AD52)) -> 0.000074037014157676-0.0000375560405128014i | AL52: =IMSUM(IMPRODUCT(定数!$F$40,計算!AA52),IMPRODUCT(定数!$G$40,計算!AB52),IMPRODUCT(定数!$H$40,計算!AC52),IMPRODUCT(定数!$I$40,計算!AD52)) -> -0.0000189580497473472-0.0000113753627110054i | AM52: =IMSUM(IMPRODUCT(定数!$F$41,計算!AA52),IMPRODUCT(定数!$G$41,計算!AB52),IMPRODUCT(定数!$H$41,計算!AC52),IMPRODUCT(定数!$I$41,計算!AD52)) -> -0.0000471216873579609+0.0000048277350635186i | AO52: -0.000102666611218949+0.0000966855121216128i | AQ52: -0.0000189580497473472-0.0000113753627110054i | AR52: -0.0000471216873579609+0.0000048277350635186i
A53: 49 | B53: =A53*定数!$B$8 -> 3.078760801e+10 | D53: =B53*定数!$C$3 -> 15.393804 | E53: =B53*定数!$C$5 -> 3.078760801 | F53: =定数!$B$6*SIN(D53)*SIN(E53)/(D53*E53) -> 0.009674030457 | G53: 0.00899468604254148+0.00356124813458394i | I53: =IMSUB(掃き出し!LZ53,IMPRODUCT(P53,掃き出し!LY53)) -> -1.40218308841621E-06+8.5553636275593E-07i | J53: =IMSUB(掃き出し!MB53,IMPRODUCT(P53,掃き出し!MA53)) -> 0.0000016397144394376+4.7920338099875E-07i | K53: =IMSUB(掃き出し!MD53,IMPRODUCT(P53,掃き出し!MC53)) -> 3.51867725054325E-06-0.0000062085187788451i | L53: =IMSUB(掃き出し!MF53,IMPRODUCT(P53,掃き出し!ME53)) -> 0.0000027556937179366-2.92085612912378E-06i | M53: =IMSUB(掃き出し!MH53,IMPRODUCT(P53,掃き出し!MG53)) -> -0.0000332649225145625-8.5692582118828E-07i | N53: =IMSUB(掃き出し!MJ53,IMPRODUCT(P53,掃き出し!MI53)) -> 0.0000140008880751245-0.000010940337472154i | O53: =IMSUB(掃き出し!ML53,IMPRODUCT(P53,掃き出し!MK53)) -> 0.0000466158836629744-0.0000314903660775691i | P53: =IMDIV(掃き出し!MN53,掃き出し!MM53) -> 9.83589180888488E-06+0.0000296075718626715i | R53: =IMEXP(COMPLEX(0,計算!$B53*定数!A$61)) -> 0.978194204038153+0.207692318553588i | S53: =IMEXP(COMPLEX(0,計算!$B53*定数!B$61)) -> 0.250515332595894-0.968112631946494i | T53: =IMEXP(COMPLEX(0,計算!$B53*定数!C$61)) -> -0.635187281906036-0.772358153258462i | U53: =IMEXP(COMPLEX(0,計算!$B53*定数!D$61)) -> -0.430540907711524-0.902571064674099i | W53: 2.3753135102139E-07+1.33473974375468E-06i | X53: 6.27437096847985E-06-9.12937490796888E-06i | Y53: -0.000019264034439438-0.0000117972632933423i | Z53: 0.0000564517754718593-0.0000018827942148976i | AA53: 3.1051326037581E-07+1.93741343160259E-06i | AB53: 4.75465387077265E-06-1.54839439557877E-06i | AC53: 0.0000044482644728461-0.0000290126625740869i | AD53: 0.0000308404322425336+0.0000340071763367663i | AF53: =IMSUM(IMPRODUCT(定数!$F$38,計算!W53),IMPRODUCT(定数!$G$38,計算!X53),IMPRODUCT(定数!$H$38,計算!Y53),IMPRODUCT(定数!$I$38,計算!Z53)) -> 0.000039983780843231-2.78336548448451E-06i | AG53: =IMSUM(IMPRODUCT(定数!$F$39,計算!W53),IMPRODUCT(定数!$G$39,計算!X53),IMPRODUCT(定数!$H$39,計算!Y53),IMPRODUCT(定数!$I$39,計算!Z53)) -> -0.0000364423218951131-8.75623392401929E-06i | AH53: =IMSUM(IMPRODUCT(定数!$F$40,計算!W53),IMPRODUCT(定数!$G$40,計算!X53),IMPRODUCT(定数!$H$40,計算!Y53),IMPRODUCT(定数!$I$40,計算!Z53)) -> -0.0000154617016831075+0.0000119589705246632i | AI53: =IMSUM(IMPRODUCT(定数!$F$41,計算!W53),IMPRODUCT(定数!$G$41,計算!X53),IMPRODUCT(定数!$H$41,計算!Y53),IMPRODUCT(定数!$I$41,計算!Z53)) -> 0.0000206663124720055+1.96089798090339E-06i | AJ53: =IMSUM(IMPRODUCT(定数!$F$38,計算!AA53),IMPRODUCT(定数!$G$38,計算!AB53),IMPRODUCT(定数!$H$38,計算!AC53),IMPRODUCT(定数!$I$38,計算!AD53)) -> 0.0000183799802538208+0.0000265905568921399i | AK53: =IMSUM(IMPRODUCT(定数!$F$39,計算!AA53),IMPRODUCT(定数!$G$39,計算!AB53),IMPRODUCT(定数!$H$39,計算!AC53),IMPRODUCT(定数!$I$39,計算!AD53)) -> -9.77387189611617E-06-0.00003378517860254i | AL53: =IMSUM(IMPRODUCT(定数!$F$40,計算!AA53),IMPRODUCT(定数!$G$40,計算!AB53),IMPRODUCT(定数!$H$40,計算!AC53),IMPRODUCT(定数!$I$40,計算!AD53)) -> -0.000018382998678692+4.48424168202588E-06i | AM53: =IMSUM(IMPRODUCT(定数!$F$41,計算!AA53),IMPRODUCT(定数!$G$41,計算!AB53),IMPRODUCT(定数!$H$41,計算!AC53),IMPRODUCT(定数!$I$41,計算!AD53)) -> 0.0000149142068023924+0.0000115497130517515i | AO53: 0.000028153852149937+0.0000603757354946799i | AQ53: -0.000018382998678692+4.48424168202588E-06i | AR53: 0.0000149142068023924+0.0000115497130517515i
A54: 50 | B54: =A54*定数!$B$8 -> 3.141592654e+10 | D54: =B54*定数!$C$3 -> 15.70796327 | E54: =B54*定数!$C$5 -> 3.141592654 | F54: =定数!$B$6*SIN(D54)*SIN(E54)/(D54*E54) -> -9.432423727e-32 | G54: -9.43242372693819E-32+3.95194737974167E-45i | I54: =IMSUB(掃き出し!LZ54,IMPRODUCT(P54,掃き出し!LY54)) -> 1.8017162153E-35-5.5019448537326E-35i | J54: =IMSUB(掃き出し!MB54,IMPRODUCT(P54,掃き出し!MA54)) -> 2.3469608390301E-35+3.1902251258006E-35i | K54: =IMSUB(掃き出し!MD54,IMPRODUCT(P54,掃き出し!MC54)) -> -2.92548052678527E-35+5.15199538591102E-35i | L54: =IMSUB(掃き出し!MF54,IMPRODUCT(P54,掃き出し!ME54)) -> 1.14648808453976E-35+2.99086557277443E-35i | M54: =IMSUB(掃き出し!MH54,IMPRODUCT(P54,掃き出し!MG54)) -> 7.98444126385021E-35-3.58143382297546E-34i | N54: =IMSUB(掃き出し!MJ54,IMPRODUCT(P54,掃き出し!MI54)) -> 1.97439338977418E-34-1.91574549492552E-35i | O54: =IMSUB(掃き出し!ML54,IMPRODUCT(P54,掃き出し!MK54)) -> -1.2824826994762E-35+2.45792397608301E-34i | P54: =IMDIV(掃き出し!MN54,掃き出し!MM54) -> -8.74911211356994E-35+1.06418712279109E-34i | R54: =IMEXP(COMPLEX(0,計算!$B54*定数!A$61)) -> 0.656500447732449+0.754325634011661i | S54: =IMEXP(COMPLEX(0,計算!$B54*定数!B$61)) -> 0.762691470860531-0.646762491395876i | T54: =IMEXP(COMPLEX(0,計算!$B54*定数!C$61)) -> -0.0930777023560954-0.995658847861109i | U54: =IMEXP(COMPLEX(0,計算!$B54*定数!D$61)) -> 0.154289984247433-0.988025607340684i | W54: 4.1486770543301E-35-2.311719727932E-35i | X54: -1.77899244224551E-35+8.14286095868545E-35i | Y54: 2.7728375161592E-34-3.77300837246801E-34i | Z54: -1.00315948130461E-34+3.5221110988741E-34i | AA54: -3.83311828708345E-35-1.10635303993264E-35i | AB54: -2.75456006460011E-35+3.57689403764621E-35i | AC54: 3.1170540336364E-34-8.1966133844954E-35i | AD54: -1.53182516151499E-34+1.28114857212778E-34i | AF54: =IMSUM(IMPRODUCT(定数!$F$38,計算!W54),IMPRODUCT(定数!$G$38,計算!X54),IMPRODUCT(定数!$H$38,計算!Y54),IMPRODUCT(定数!$I$38,計算!Z54)) -> -1.27878700276133E-34+3.40913786857035E-34i | AG54: =IMSUM(IMPRODUCT(定数!$F$39,計算!W54),IMPRODUCT(定数!$G$39,計算!X54),IMPRODUCT(定数!$H$39,計算!Y54),IMPRODUCT(定数!$I$39,計算!Z54)) -> 2.42112221397481E-34-3.93474649730838E-34i | AH54: =IMSUM(IMPRODUCT(定数!$F$40,計算!W54),IMPRODUCT(定数!$G$40,計算!X54),IMPRODUCT(定数!$H$40,計算!Y54),IMPRODUCT(定数!$I$40,計算!Z54)) -> -1.03907358760423E-34+4.26480059333239E-35i | AI54: =IMSUM(IMPRODUCT(定数!$F$41,計算!W54),IMPRODUCT(定数!$G$41,計算!X54),IMPRODUCT(定数!$H$41,計算!Y54),IMPRODUCT(定数!$I$41,計算!Z54)) -> 5.7508737255738E-35+1.55428352946113E-35i | AJ54: =IMSUM(IMPRODUCT(定数!$F$38,計算!AA54),IMPRODUCT(定数!$G$38,計算!AB54),IMPRODUCT(定数!$H$38,計算!AC54),IMPRODUCT(定数!$I$38,計算!AD54)) -> -2.08148042469932E-34+1.10534130343236E-34i | AK54: =IMSUM(IMPRODUCT(定数!$F$39,計算!AA54),IMPRODUCT(定数!$G$39,計算!AB54),IMPRODUCT(定数!$H$39,計算!AC54),IMPRODUCT(定数!$I$39,計算!AD54)) -> 2.41962576668445E-34-1.07150002432014E-34i | AL54: =IMSUM(IMPRODUCT(定数!$F$40,計算!AA54),IMPRODUCT(定数!$G$40,計算!AB54),IMPRODUCT(定数!$H$40,計算!AC54),IMPRODUCT(定数!$I$40,計算!AD54)) -> -1.4243215309305E-34-2.3369286152126E-35i | AM54: =IMSUM(IMPRODUCT(定数!$F$41,計算!AA54),IMPRODUCT(定数!$G$41,計算!AB54),IMPRODUCT(定数!$H$41,計算!AC54),IMPRODUCT(定数!$I$41,計算!AD54)) -> 9.8972263277393E-36+1.67495115165902E-35i | AO54: -4.50110619138377E-34+2.1768413277525E-34i | AQ54: -1.4243215309305E-34-2.3369286152126E-35i | AR54: 9.8972263277393E-36+1.67495115165902E-35i
A55: 51 | B55: =A55*定数!$B$8 -> 3.204424507e+10 | D55: =B55*定数!$C$3 -> 16.02212253 | E55: =B55*定数!$C$5 -> 3.204424507 | F55: =定数!$B$6*SIN(D55)*SIN(E55)/(D55*E55) -> 0.008930160372 | G55: 0.00830305312885127-0.00328741129224744i | I55: =IMSUB(掃き出し!LZ55,IMPRODUCT(P55,掃き出し!LY55)) -> 1.13561175153774E-06+1.67293458981542E-06i | J55: =IMSUB(掃き出し!MB55,IMPRODUCT(P55,掃き出し!MA55)) -> -4.9913156134974E-07+1.14015740223764E-06i | K55: =IMSUB(掃き出し!MD55,IMPRODUCT(P55,掃き出し!MC55)) -> 3.13181261598591E-06-5.11487646141339E-06i | L55: =IMSUB(掃き出し!MF55,IMPRODUCT(P55,掃き出し!ME55)) -> -3.50736284595754E-06+3.21783141828102E-08i | M55: =IMSUB(掃き出し!MH55,IMPRODUCT(P55,掃き出し!MG55)) -> 2.66771331316558E-06+0.0000165862929322882i | N55: =IMSUB(掃き出し!MJ55,IMPRODUCT(P55,掃き出し!MI55)) -> 9.3955079183835E-07+9.15397037247248E-06i | O55: =IMSUB(掃き出し!ML55,IMPRODUCT(P55,掃き出し!MK55)) -> 6.13952898736299E-08-0.0000151681701345025i | P55: =IMDIV(掃き出し!MN55,掃き出し!MM55) -> -4.63865655386929E-06-0.0000072869441059966i | R55: =IMEXP(COMPLEX(0,計算!$B55*定数!A$61)) -> 0.0706999393829993+0.997497628353692i | S55: =IMEXP(COMPLEX(0,計算!$B55*定数!B$61)) -> 0.996034998286339-0.088962251481926i | T55: =IMEXP(COMPLEX(0,計算!$B55*定数!C$61)) -> 0.481026964737502-0.876705799681641i | U55: =IMEXP(COMPLEX(0,計算!$B55*定数!D$61)) -> 0.685222809848433-0.728333509364644i | W55: 0.000000636480190188+2.81309199205306E-06i | X55: -3.7555022997163E-07-5.08269814723058E-06i | Y55: 3.60726410500393E-06+0.0000257402633047607i | Z55: -4.57726126399566E-06-0.0000224551142404991i | AA55: 5.7644309191456E-07-1.43176714425536E-06i | AB55: 8.38324086716101E-08-4.47190924328874E-06i | AC55: -4.78076898985855E-06+0.0000138968508342732i | AD55: 2.60371718671222E-06-0.0000119635512217933i | AF55: =IMSUM(IMPRODUCT(定数!$F$38,計算!W55),IMPRODUCT(定数!$G$38,計算!X55),IMPRODUCT(定数!$H$38,計算!Y55),IMPRODUCT(定数!$I$38,計算!Z55)) -> -3.46407664080395E-06-0.0000215618206414344i | AG55: =IMSUM(IMPRODUCT(定数!$F$39,計算!W55),IMPRODUCT(定数!$G$39,計算!X55),IMPRODUCT(定数!$H$39,計算!Y55),IMPRODUCT(定数!$I$39,計算!Z55)) -> 4.67075818550772E-06+0.0000269376823414545i | AH55: =IMSUM(IMPRODUCT(定数!$F$40,計算!W55),IMPRODUCT(定数!$G$40,計算!X55),IMPRODUCT(定数!$H$40,計算!Y55),IMPRODUCT(定数!$I$40,計算!Z55)) -> 2.56948495629743E-07-3.10212741707864E-06i | AI55: =IMSUM(IMPRODUCT(定数!$F$41,計算!W55),IMPRODUCT(定数!$G$41,計算!X55),IMPRODUCT(定数!$H$41,計算!Y55),IMPRODUCT(定数!$I$41,計算!Z55)) -> -8.68168814723642E-07+3.18993942096108E-08i | AJ55: =IMSUM(IMPRODUCT(定数!$F$38,計算!AA55),IMPRODUCT(定数!$G$38,計算!AB55),IMPRODUCT(定数!$H$38,計算!AC55),IMPRODUCT(定数!$I$38,計算!AD55)) -> 0.0000031071237873728-0.0000139767449384715i | AK55: =IMSUM(IMPRODUCT(定数!$F$39,計算!AA55),IMPRODUCT(定数!$G$39,計算!AB55),IMPRODUCT(定数!$H$39,計算!AC55),IMPRODUCT(定数!$I$39,計算!AD55)) -> -3.93749075400664E-06+0.000012328100153834i | AL55: =IMSUM(IMPRODUCT(定数!$F$40,計算!AA55),IMPRODUCT(定数!$G$40,計算!AB55),IMPRODUCT(定数!$H$40,計算!AC55),IMPRODUCT(定数!$I$40,計算!AD55)) -> 2.16341022877184E-06-2.84262551367561E-06i | AM55: =IMSUM(IMPRODUCT(定数!$F$41,計算!AA55),IMPRODUCT(定数!$G$41,計算!AB55),IMPRODUCT(定数!$H$41,計算!AC55),IMPRODUCT(定数!$I$41,計算!AD55)) -> 1.95553608071339E-07-1.10887859496679E-07i | AO55: 7.04461454137944E-06-0.0000263048450923055i | AQ55: 2.16341022877184E-06-2.84262551367561E-06i | AR55: 1.95553608071339E-07-1.10887859496679E-07i
A56: 52 | B56: =A56*定数!$B$8 -> 3.26725636e+10 | D56: =B56*定数!$C$3 -> 16.3362818 | E56: =B56*定数!$C$5 -> 3.26725636 | F56: =定数!$B$6*SIN(D56)*SIN(E56)/(D56*E56) -> 0.03261380066 | G56: 0.0237744375024463-0.0223256828554482i | I56: =IMSUB(掃き出し!LZ56,IMPRODUCT(P56,掃き出し!LY56)) -> 0.0000028964327341056+0.0000042305090401098i | J56: =IMSUB(掃き出し!MB56,IMPRODUCT(P56,掃き出し!MA56)) -> 0.0000022169764182097+2.12386674766091E-06i | K56: =IMSUB(掃き出し!MD56,IMPRODUCT(P56,掃き出し!MC56)) -> 0.0000166557196980259-0.0000364815042988191i | L56: =IMSUB(掃き出し!MF56,IMPRODUCT(P56,掃き出し!ME56)) -> -4.38717741656959E-06+0.0000237289927461905i | M56: =IMSUB(掃き出し!MH56,IMPRODUCT(P56,掃き出し!MG56)) -> 0.000007259023025942+0.0000469518347823524i | N56: =IMSUB(掃き出し!MJ56,IMPRODUCT(P56,掃き出し!MI56)) -> 0.0000253937217277234+7.32059144143633E-06i | O56: =IMSUB(掃き出し!ML56,IMPRODUCT(P56,掃き出し!MK56)) -> 0.0000031925339323629-0.0000536475309638195i | P56: =IMDIV(掃き出し!MN56,掃き出し!MM56) -> -0.0000306773034376289+4.63488107935943E-06i | R56: =IMEXP(COMPLEX(0,計算!$B56*定数!A$61)) -> -0.543542790787666+0.839381459518112i | S56: =IMEXP(COMPLEX(0,計算!$B56*定数!B$61)) -> 0.865237782476045+0.501361725479654i | T56: =IMEXP(COMPLEX(0,計算!$B56*定数!C$61)) -> 0.889780538518166-0.456388642797257i | U56: =IMEXP(COMPLEX(0,計算!$B56*定数!D$61)) -> 0.976786990392285-0.21421292071297i | W56: 0.0000051134091523153+6.35437578777071E-06i | X56: 0.0000122685422814563-0.0000127525115526286i | Y56: 0.0000326527447536654+0.0000542724262237887i | Z56: -0.000027484769505266-0.0000490126498844601i | AA56: -1.01108019897032E-06-4.02419818351396E-06i | AB56: -0.0000195720323726528-0.000021584058023261i | AC56: 0.0000109665274502841+0.000040014078104047i | AD56: -0.0000143619195767083-0.0000406195619846933i | AF56: =IMSUM(IMPRODUCT(定数!$F$38,計算!W56),IMPRODUCT(定数!$G$38,計算!X56),IMPRODUCT(定数!$H$38,計算!Y56),IMPRODUCT(定数!$I$38,計算!Z56)) -> -0.0000141701850319791-0.0000474662305911535i | AG56: =IMSUM(IMPRODUCT(定数!$F$39,計算!W56),IMPRODUCT(定数!$G$39,計算!X56),IMPRODUCT(定数!$H$39,計算!Y56),IMPRODUCT(定数!$I$39,計算!Z56)) -> 0.0000402293350216881+0.0000571820922034994i | AH56: =IMSUM(IMPRODUCT(定数!$F$40,計算!W56),IMPRODUCT(定数!$G$40,計算!X56),IMPRODUCT(定数!$H$40,計算!Y56),IMPRODUCT(定数!$I$40,計算!Z56)) -> -9.22330388059097E-06-4.92152382396746E-06i | AI56: =IMSUM(IMPRODUCT(定数!$F$41,計算!W56),IMPRODUCT(定数!$G$41,計算!X56),IMPRODUCT(定数!$H$41,計算!Y56),IMPRODUCT(定数!$I$41,計算!Z56)) -> -0.000010691310683235+6.6454246172193E-07i | AJ56: =IMSUM(IMPRODUCT(定数!$F$38,計算!AA56),IMPRODUCT(定数!$G$38,計算!AB56),IMPRODUCT(定数!$H$38,計算!AC56),IMPRODUCT(定数!$I$38,計算!AD56)) -> -0.0000238596399271998-0.0000490669840237517i | AK56: =IMSUM(IMPRODUCT(定数!$F$39,計算!AA56),IMPRODUCT(定数!$G$39,計算!AB56),IMPRODUCT(定数!$H$39,計算!AC56),IMPRODUCT(定数!$I$39,計算!AD56)) -> 7.20446504070266E-06+0.0000357630694421794i | AL56: =IMSUM(IMPRODUCT(定数!$F$40,計算!AA56),IMPRODUCT(定数!$G$40,計算!AB56),IMPRODUCT(定数!$H$40,計算!AC56),IMPRODUCT(定数!$I$40,計算!AD56)) -> 4.95831955795085E-06-2.63978724247169E-06i | AM56: =IMSUM(IMPRODUCT(定数!$F$41,計算!AA56),IMPRODUCT(定数!$G$41,計算!AB56),IMPRODUCT(定数!$H$41,計算!AC56),IMPRODUCT(定数!$I$41,計算!AD56)) -> 7.58077282658752E-06+1.98388510108131E-06i | AO56: -0.0000310641049679025-0.0000848300534659311i | AQ56: 4.95831955795085E-06-2.63978724247169E-06i | AR56: 7.58077282658752E-06+1.98388510108131E-06i
A57: 53 | B57: =A57*定数!$B$8 -> 3.330088213e+10 | D57: =B57*定数!$C$3 -> 16.65044106 | E57: =B57*定数!$C$5 -> 3.330088213 | F57: =定数!$B$6*SIN(D57)*SIN(E57)/(D57*E57) -> 0.06460339728 | G57: 0.027506788727002-0.0584549015410624i | I57: =IMSUB(掃き出し!LZ57,IMPRODUCT(P57,掃き出し!LY57)) -> 0.0000059413791698471+9.12373081361893E-06i | J57: =IMSUB(掃き出し!MB57,IMPRODUCT(P57,掃き出し!MA57)) -> 0.00000597969725422-0.0000025679363458604i | K57: =IMSUB(掃き出し!MD57,IMPRODUCT(P57,掃き出し!MC57)) -> -0.00009869925346423-0.00004654416172873i | L57: =IMSUB(掃き出し!MF57,IMPRODUCT(P57,掃き出し!ME57)) -> 0.000032392798138322-0.0000584761688431019i | M57: =IMSUB(掃き出し!MH57,IMPRODUCT(P57,掃き出し!MG57)) -> 0.0000110143777139078+0.000104879261263315i | N57: =IMSUB(掃き出し!MJ57,IMPRODUCT(P57,掃き出し!MI57)) -> 0.0000380587302384257-0.0000465121733896035i | O57: =IMSUB(掃き出し!ML57,IMPRODUCT(P57,掃き出し!MK57)) -> 0.0000071336782004595-0.000153283601613284i | P57: =IMDIV(掃き出し!MN57,掃き出し!MM57) -> -0.0000177313144093666+0.0000879602412125104i | R57: =IMEXP(COMPLEX(0,計算!$B57*定数!A$61)) -> -0.93912105307022+0.343586448627242i | S57: =IMEXP(COMPLEX(0,計算!$B57*定数!B$61)) -> 0.418118018031526+0.90839271408207i | T57: =IMEXP(COMPLEX(0,計算!$B57*定数!C$61)) -> 0.99267561446423+0.120810282873863i | U57: =IMEXP(COMPLEX(0,計算!$B57*定数!D$61)) -> 0.927130512430474+0.37473859278223i | W57: 0.0000119210764240671+6.55579446775853E-06i | X57: -0.000066306455325908-0.000105020330571832i | Y57: 0.0000490731079523335+0.0000583670878737115i | Z57: -0.0000105976362089071-0.0000653233604007736i | AA57: -7.17823544724321E-06-6.14351902974547E-06i | AB57: -0.0000168849753564936+0.0000751721720781189i | AC57: 0.0000670033196353512+0.0000612068206981518i | AD57: -0.000100228770066831-0.0000698811529421964i | AF57: =IMSUM(IMPRODUCT(定数!$F$38,計算!W57),IMPRODUCT(定数!$G$38,計算!X57),IMPRODUCT(定数!$H$38,計算!Y57),IMPRODUCT(定数!$I$38,計算!Z57)) -> -0.00005710415794299-0.000116252487597193i | AG57: =IMSUM(IMPRODUCT(定数!$F$39,計算!W57),IMPRODUCT(定数!$G$39,計算!X57),IMPRODUCT(定数!$H$39,計算!Y57),IMPRODUCT(定数!$I$39,計算!Z57)) -> 0.000022910160848948+0.00003949618077811i | AH57: =IMSUM(IMPRODUCT(定数!$F$40,計算!W57),IMPRODUCT(定数!$G$40,計算!X57),IMPRODUCT(定数!$H$40,計算!Y57),IMPRODUCT(定数!$I$40,計算!Z57)) -> -4.24129447613981E-08+0.000028057055751415i | AI57: =IMSUM(IMPRODUCT(定数!$F$41,計算!W57),IMPRODUCT(定数!$G$41,計算!X57),IMPRODUCT(定数!$H$41,計算!Y57),IMPRODUCT(定数!$I$41,計算!Z57)) -> 0.0000564026003382003+0.000052171373966411i | AJ57: =IMSUM(IMPRODUCT(定数!$F$38,計算!AA57),IMPRODUCT(定数!$G$38,計算!AB57),IMPRODUCT(定数!$H$38,計算!AC57),IMPRODUCT(定数!$I$38,計算!AD57)) -> -0.0000872991233976728-0.0000100823639165572i | AK57: =IMSUM(IMPRODUCT(定数!$F$39,計算!AA57),IMPRODUCT(定数!$G$39,計算!AB57),IMPRODUCT(定数!$H$39,計算!AC57),IMPRODUCT(定数!$I$39,計算!AD57)) -> 0.0000803616253049502+0.0000910817682315532i | AL57: =IMSUM(IMPRODUCT(定数!$F$40,計算!AA57),IMPRODUCT(定数!$G$40,計算!AB57),IMPRODUCT(定数!$H$40,計算!AC57),IMPRODUCT(定数!$I$40,計算!AD57)) -> 4.38552231271392E-06-0.0000332424525697005i | AM57: =IMSUM(IMPRODUCT(定数!$F$41,計算!AA57),IMPRODUCT(定数!$G$41,計算!AB57),IMPRODUCT(定数!$H$41,計算!AC57),IMPRODUCT(定数!$I$41,計算!AD57)) -> -0.0000264199099055346-0.0000702254400645765i | AO57: -0.000167660748702623-0.00010116413214811i | AQ57: 4.38552231271392E-06-0.0000332424525697005i | AR57: -0.0000264199099055346-0.0000702254400645765i
A58: 54 | B58: =A58*定数!$B$8 -> 3.392920066e+10 | D58: =B58*定数!$C$3 -> 16.96460033 | E58: =B58*定数!$C$5 -> 3.392920066 | F58: =定数!$B$6*SIN(D58)*SIN(E58)/(D58*E58) -> 0.09709572325 | G58: 0.00609669090696582-0.0969041270200165i | I58: =IMSUB(掃き出し!LZ58,IMPRODUCT(P58,掃き出し!LY58)) -> 0.0000155924299638946+0.000014068128838058i | J58: =IMSUB(掃き出し!MB58,IMPRODUCT(P58,掃き出し!MA58)) -> -0.0000031026760880696-0.000017426963515524i | K58: =IMSUB(掃き出し!MD58,IMPRODUCT(P58,掃き出し!MC58)) -> -0.000065502557180019-0.0000074177120228043i | L58: =IMSUB(掃き出し!MF58,IMPRODUCT(P58,掃き出し!ME58)) -> -0.0000359234324475004-0.000017975682860388i | M58: =IMSUB(掃き出し!MH58,IMPRODUCT(P58,掃き出し!MG58)) -> 0.0000701646190416712+0.000268189325894754i | N58: =IMSUB(掃き出し!MJ58,IMPRODUCT(P58,掃き出し!MI58)) -> -0.0000975100917470628-0.00012473713017529i | O58: =IMSUB(掃き出し!ML58,IMPRODUCT(P58,掃き出し!MK58)) -> -0.000384115413301368-0.00041310168167043i | P58: =IMDIV(掃き出し!MN58,掃き出し!MM58) -> 0.000324706189919504-0.000077796252265934i | R58: =IMEXP(COMPLEX(0,計算!$B58*定数!A$61)) -> -0.956895748030054-0.290431622593003i | S58: =IMEXP(COMPLEX(0,計算!$B58*定数!B$61)) -> -0.181861642007397+0.983324129250561i | T58: =IMEXP(COMPLEX(0,計算!$B58*定数!C$61)) -> 0.754342422164834+0.656481157477114i | U58: =IMEXP(COMPLEX(0,計算!$B58*定数!D$61)) -> 0.553599856081794+0.83278280442515i | W58: 0.000012489753875825-0.000003358834677466i | X58: -0.000101425989627519-0.0000253933948831923i | Y58: -0.0000273454727053916+0.000143452195719464i | Z58: -0.000059409223381864-0.000490897933936364i | AA58: -0.0000210985631536861+8.64370460642339E-06i | AB58: 0.0000288274044964057+0.0000337039515611971i | AC58: 0.000237320964568415-0.000001863211434344i | AD58: -0.000312125533352586+0.000318533416989388i | AF58: =IMSUM(IMPRODUCT(定数!$F$38,計算!W58),IMPRODUCT(定数!$G$38,計算!X58),IMPRODUCT(定数!$H$38,計算!Y58),IMPRODUCT(定数!$I$38,計算!Z58)) -> -0.0000829974834870816-0.000322578747514909i | AG58: =IMSUM(IMPRODUCT(定数!$F$39,計算!W58),IMPRODUCT(定数!$G$39,計算!X58),IMPRODUCT(定数!$H$39,計算!Y58),IMPRODUCT(定数!$I$39,計算!Z58)) -> -0.0000140434920991824+0.00030954503276398i | AH58: =IMSUM(IMPRODUCT(定数!$F$40,計算!W58),IMPRODUCT(定数!$G$40,計算!X58),IMPRODUCT(定数!$H$40,計算!Y58),IMPRODUCT(定数!$I$40,計算!Z58)) -> 0.0000826340522181009+0.000140386652299574i | AI58: =IMSUM(IMPRODUCT(定数!$F$41,計算!W58),IMPRODUCT(定数!$G$41,計算!X58),IMPRODUCT(定数!$H$41,計算!Y58),IMPRODUCT(定数!$I$41,計算!Z58)) -> 0.0000305540361795242-0.000205981233317647i | AJ58: =IMSUM(IMPRODUCT(定数!$F$38,計算!AA58),IMPRODUCT(定数!$G$38,計算!AB58),IMPRODUCT(定数!$H$38,計算!AC58),IMPRODUCT(定数!$I$38,計算!AD58)) -> -0.000227701492082327+0.000196447144533204i | AK58: =IMSUM(IMPRODUCT(定数!$F$39,計算!AA58),IMPRODUCT(定数!$G$39,計算!AB58),IMPRODUCT(定数!$H$39,計算!AC58),IMPRODUCT(定数!$I$39,計算!AD58)) -> 0.000294063245901688-0.00013339752043417i | AL58: =IMSUM(IMPRODUCT(定数!$F$40,計算!AA58),IMPRODUCT(定数!$G$40,計算!AB58),IMPRODUCT(定数!$H$40,計算!AC58),IMPRODUCT(定数!$I$40,計算!AD58)) -> -0.0000287711388002649-0.00015145997920655i | AM58: =IMSUM(IMPRODUCT(定数!$F$41,計算!AA58),IMPRODUCT(定数!$G$41,計算!AB58),IMPRODUCT(定数!$H$41,計算!AC58),IMPRODUCT(定数!$I$41,計算!AD58)) -> -0.000125318428378251+0.000152289170645436i | AO58: -0.000521764737984015+0.000329844664967374i | AQ58: -0.0000287711388002649-0.00015145997920655i | AR58: -0.000125318428378251+0.000152289170645436i
A59: 55 | B59: =A59*定数!$B$8 -> 3.455751919e+10 | D59: =B59*定数!$C$3 -> 17.27875959 | E59: =B59*定数!$C$5 -> 3.455751919 | F59: =定数!$B$6*SIN(D59)*SIN(E59)/(D59*E59) -> 0.1222869618 | G59: -0.0377887493721285-0.116301811833056i | I59: =IMSUB(掃き出し!LZ59,IMPRODUCT(P59,掃き出し!LY59)) -> 0.00005115973862819-0.000025177011191081i | J59: =IMSUB(掃き出し!MB59,IMPRODUCT(P59,掃き出し!MA59)) -> -8.21520467035001E-07+0.000038862332146418i | K59: =IMSUB(掃き出し!MD59,IMPRODUCT(P59,掃き出し!MC59)) -> -0.0000699229523536968-0.000011850303963912i | L59: =IMSUB(掃き出し!MF59,IMPRODUCT(P59,掃き出し!ME59)) -> -0.000032325090733269+0.0000230006938304367i | M59: =IMSUB(掃き出し!MH59,IMPRODUCT(P59,掃き出し!MG59)) -> 0.000541681558712632-0.000034639762381964i | N59: =IMSUB(掃き出し!MJ59,IMPRODUCT(P59,掃き出し!MI59)) -> 0.0000305605434380008+0.000311751185438301i | O59: =IMSUB(掃き出し!ML59,IMPRODUCT(P59,掃き出し!MK59)) -> -0.000303483330452012+0.000115523247055542i | P59: =IMDIV(掃き出し!MN59,掃き出し!MM59) -> -0.000168947342239527-0.0000955379414871704i | R59: =IMEXP(COMPLEX(0,計算!$B59*定数!A$61)) -> -0.589716207346039-0.807610546484755i | S59: =IMEXP(COMPLEX(0,計算!$B59*定数!B$61)) -> -0.715354448069652+0.698761771726934i | T59: =IMEXP(COMPLEX(0,計算!$B59*定数!C$61)) -> 0.256707042293999+0.966489262452857i | U59: =IMEXP(COMPLEX(0,計算!$B59*定数!D$61)) -> -0.0133196448143068+0.999911289596243i | W59: 0.000050338218161155+0.000013685320955337i | X59: -0.000102248043086966+0.0000111503898665247i | Y59: 0.000572242102150633+0.000277111423056337i | Z59: -0.000472430672691539+0.0000199853055683716i | AA59: 0.0000220335859707686+0.0000339101574947657i | AB59: 0.0000487910474634479+0.000018295467410305i | AC59: -0.000187884554159965-0.00042285651927826i | AD59: 0.000217335073979095+0.000134257856298975i | AF59: =IMSUM(IMPRODUCT(定数!$F$38,計算!W59),IMPRODUCT(定数!$G$38,計算!X59),IMPRODUCT(定数!$H$38,計算!Y59),IMPRODUCT(定数!$I$38,計算!Z59)) -> -0.000463597362251748-0.0000573571732876189i | AG59: =IMSUM(IMPRODUCT(定数!$F$39,計算!W59),IMPRODUCT(定数!$G$39,計算!X59),IMPRODUCT(定数!$H$39,計算!Y59),IMPRODUCT(定数!$I$39,計算!Z59)) -> 0.000583059651750337+0.000179953877093544i | AH59: =IMSUM(IMPRODUCT(定数!$F$40,計算!W59),IMPRODUCT(定数!$G$40,計算!X59),IMPRODUCT(定数!$H$40,計算!Y59),IMPRODUCT(定数!$I$40,計算!Z59)) -> -0.0000912847752875532-0.000183398109318433i | AI59: =IMSUM(IMPRODUCT(定数!$F$41,計算!W59),IMPRODUCT(定数!$G$41,計算!X59),IMPRODUCT(定数!$H$41,計算!Y59),IMPRODUCT(定数!$I$41,計算!Z59)) -> 2.72920342620539E-06+0.0000909517751056034i | AJ59: =IMSUM(IMPRODUCT(定数!$F$38,計算!AA59),IMPRODUCT(定数!$G$38,計算!AB59),IMPRODUCT(定数!$H$38,計算!AC59),IMPRODUCT(定数!$I$38,計算!AD59)) -> 0.000212461553096417+0.00022273998501666i | AK59: =IMSUM(IMPRODUCT(定数!$F$39,計算!AA59),IMPRODUCT(定数!$G$39,計算!AB59),IMPRODUCT(定数!$H$39,計算!AC59),IMPRODUCT(定数!$I$39,計算!AD59)) -> -0.00019442499163247-0.000309966185274i | AL59: =IMSUM(IMPRODUCT(定数!$F$40,計算!AA59),IMPRODUCT(定数!$G$40,計算!AB59),IMPRODUCT(定数!$H$40,計算!AC59),IMPRODUCT(定数!$I$40,計算!AD59)) -> 0.0000177508002401331+0.000223068442900704i | AM59: =IMSUM(IMPRODUCT(定数!$F$41,計算!AA59),IMPRODUCT(定数!$G$41,計算!AB59),IMPRODUCT(定数!$H$41,計算!AC59),IMPRODUCT(定数!$I$41,計算!AD59)) -> 0.0000399051927179675-0.0000486884755069118i | AO59: 0.000406886544728887+0.00053270617029066i | AQ59: 0.0000177508002401331+0.000223068442900704i | AR59: 0.0000399051927179675-0.0000486884755069118i
A60: 56 | B60: =A60*定数!$B$8 -> 3.518583772e+10 | D60: =B60*定数!$C$3 -> 17.59291886 | E60: =B60*定数!$C$5 -> 3.518583772 | F60: =定数!$B$6*SIN(D60)*SIN(E60)/(D60*E60) -> 0.1336436185 | G60: -0.0851876484820031-0.10297417783443i | I60: =IMSUB(掃き出し!LZ60,IMPRODUCT(P60,掃き出し!LY60)) -> 0.000014653631870908-0.0000186408203177424i | J60: =IMSUB(掃き出し!MB60,IMPRODUCT(P60,掃き出し!MA60)) -> 0.000014908435306662-9.92611059003995E-07i | K60: =IMSUB(掃き出し!MD60,IMPRODUCT(P60,掃き出し!MC60)) -> -0.0000802816992252309-0.0000163048526397971i | L60: =IMSUB(掃き出し!MF60,IMPRODUCT(P60,掃き出し!ME60)) -> 0.0000125395483430011+0.000049064136230465i | M60: =IMSUB(掃き出し!MH60,IMPRODUCT(P60,掃き出し!MG60)) -> 0.000208927386490322-0.000141043680171976i | N60: =IMSUB(掃き出し!MJ60,IMPRODUCT(P60,掃き出し!MI60)) -> 0.000142399976800543-0.0000369303714066265i | O60: =IMSUB(掃き出し!ML60,IMPRODUCT(P60,掃き出し!MK60)) -> -0.000195670904234038+0.0000870332813985901i | P60: =IMDIV(掃き出し!MN60,掃き出し!MM60) -> -0.0000950241617883803+0.0000882968764909724i | R60: =IMEXP(COMPLEX(0,計算!$B60*定数!A$61)) -> 0.0147031291182791-0.999891903154602i | S60: =IMEXP(COMPLEX(0,計算!$B60*定数!B$61)) -> -0.987320600103124+0.158738881853211i | T60: =IMEXP(COMPLEX(0,計算!$B60*定数!C$61)) -> -0.329170355625878+0.94427055284867i | U60: =IMEXP(COMPLEX(0,計算!$B60*定数!D$61)) -> -0.575586198835285+0.817741112889861i | W60: 0.00002956206717757-0.0000196334313767464i | X60: -0.0000677421508822298+0.0000327592835906679i | Y60: 0.000351327363290865-0.000177974051578602i | Z60: -0.000290695066022418+0.000175330157889562i | AA60: 0.0000180809564337057-5.43448768873601E-07i | AB60: 0.0000565066208601791-0.0000176095744824855i | AC60: -0.000213957684742317-4.23609207705002E-06i | AD60: 0.000166286774414929-0.000018614639944593i | AF60: =IMSUM(IMPRODUCT(定数!$F$38,計算!W60),IMPRODUCT(定数!$G$38,計算!X60),IMPRODUCT(定数!$H$38,計算!Y60),IMPRODUCT(定数!$I$38,計算!Z60)) -> -0.000288744128915126+0.000158222433343378i | AG60: =IMSUM(IMPRODUCT(定数!$F$39,計算!W60),IMPRODUCT(定数!$G$39,計算!X60),IMPRODUCT(定数!$H$39,計算!Y60),IMPRODUCT(定数!$I$39,計算!Z60)) -> 0.00035602571465604-0.000196348086051727i | AH60: =IMSUM(IMPRODUCT(定数!$F$40,計算!W60),IMPRODUCT(定数!$G$40,計算!X60),IMPRODUCT(定数!$H$40,計算!Y60),IMPRODUCT(定数!$I$40,計算!Z60)) -> -0.0000549761726137664+0.000012797140777231i | AI60: =IMSUM(IMPRODUCT(定数!$F$41,計算!W60),IMPRODUCT(定数!$G$41,計算!X60),IMPRODUCT(定数!$H$41,計算!Y60),IMPRODUCT(定数!$I$41,計算!Z60)) -> 3.90300049981959E-06+0.0000119640557243595i | AJ60: =IMSUM(IMPRODUCT(定数!$F$38,計算!AA60),IMPRODUCT(定数!$G$38,計算!AB60),IMPRODUCT(定数!$H$38,計算!AC60),IMPRODUCT(定数!$I$38,計算!AD60)) -> 0.000195948075726447-0.0000202139950925081i | AK60: =IMSUM(IMPRODUCT(定数!$F$39,計算!AA60),IMPRODUCT(定数!$G$39,計算!AB60),IMPRODUCT(定数!$H$39,計算!AC60),IMPRODUCT(定数!$I$39,計算!AD60)) -> -0.000187447118868107+2.38413654863892E-07i | AL60: =IMSUM(IMPRODUCT(定数!$F$40,計算!AA60),IMPRODUCT(定数!$G$40,計算!AB60),IMPRODUCT(定数!$H$40,計算!AC60),IMPRODUCT(定数!$I$40,計算!AD60)) -> 0.0000536074722742966+0.000016365964423416i | AM60: =IMSUM(IMPRODUCT(定数!$F$41,計算!AA60),IMPRODUCT(定数!$G$41,計算!AB60),IMPRODUCT(定数!$H$41,計算!AC60),IMPRODUCT(定数!$I$41,計算!AD60)) -> -0.0000017610164215351-1.99006186651739E-07i | AO60: 0.000383395194594554-0.000020452408747372i | AQ60: 0.0000536074722742966+0.000016365964423416i | AR60: -0.0000017610164215351-1.99006186651739E-07i
A61: 57 | B61: =A61*定数!$B$8 -> 3.581415625e+10 | D61: =B61*定数!$C$3 -> 17.90707813 | E61: =B61*定数!$C$5 -> 3.581415625 | F61: =定数!$B$6*SIN(D61)*SIN(E61)/(D61*E61) -> 0.1269157844 | G61: -0.111217149647373-0.0611421454222607i | I61: =IMSUB(掃き出し!LZ61,IMPRODUCT(P61,掃き出し!LY61)) -> 0.0000113529335525301-0.0000128612666930689i | J61: =IMSUB(掃き出し!MB61,IMPRODUCT(P61,掃き出し!MA61)) -> 3.28146075591769E-06-0.0000101104571917692i | K61: =IMSUB(掃き出し!MD61,IMPRODUCT(P61,掃き出し!MC61)) -> -0.000142126933533836-0.000017444858824979i | L61: =IMSUB(掃き出し!MF61,IMPRODUCT(P61,掃き出し!ME61)) -> 0.00009109971113307-1.47995287660101E-06i | M61: =IMSUB(掃き出し!MH61,IMPRODUCT(P61,掃き出し!MG61)) -> 0.000143915306880135-0.0000956771839273751i | N61: =IMSUB(掃き出し!MJ61,IMPRODUCT(P61,掃き出し!MI61)) -> 0.0000133285198451078-0.000101298782599591i | O61: =IMSUB(掃き出し!ML61,IMPRODUCT(P61,掃き出し!MK61)) -> -0.000177291375456619+0.0000641774252746835i | P61: =IMDIV(掃き出し!MN61,掃き出し!MM61) -> 0.0000358091097973042+0.000109822874625349i | R61: =IMEXP(COMPLEX(0,計算!$B61*定数!A$61)) -> 0.613207472394512-0.789921892214372i | S61: =IMEXP(COMPLEX(0,計算!$B61*定数!B$61)) -> -0.898331908428897-0.43931740495739i | T61: =IMEXP(COMPLEX(0,計算!$B61*定数!C$61)) -> -0.801896761649326+0.59746262113736i | U61: =IMEXP(COMPLEX(0,計算!$B61*定数!D$61)) -> -0.936783426866832+0.349909718566998i | W61: 0.0000146343943084478-0.0000229717238848381i | X61: -0.000051027222400766-0.00001892481170158i | Y61: 0.000157243826725243-0.000196975966526966i | Z61: -0.000141482265659315+0.000174000299900032i | AA61: 0.0000111468445902958-7.71059967550931E-06i | AB61: 0.0000528530431327364-0.0000854597620894465i | AC61: -0.000122734620362635+0.0000799336656128665i | AD61: 0.000116566455329061-0.000088434666394518i | AF61: =IMSUM(IMPRODUCT(定数!$F$38,計算!W61),IMPRODUCT(定数!$G$38,計算!X61),IMPRODUCT(定数!$H$38,計算!Y61),IMPRODUCT(定数!$I$38,計算!Z61)) -> -0.000147925066091742+0.000128576416784102i | AG61: =IMSUM(IMPRODUCT(定数!$F$39,計算!W61),IMPRODUCT(定数!$G$39,計算!X61),IMPRODUCT(定数!$H$39,計算!Y61),IMPRODUCT(定数!$I$39,計算!Z61)) -> 0.000159094848908765-0.000225455888790801i | AH61: =IMSUM(IMPRODUCT(定数!$F$40,計算!W61),IMPRODUCT(定数!$G$40,計算!X61),IMPRODUCT(定数!$H$40,計算!Y61),IMPRODUCT(定数!$I$40,計算!Z61)) -> -0.0000123035902455488+0.0000394719268070942i | AI61: =IMSUM(IMPRODUCT(定数!$F$41,計算!W61),IMPRODUCT(定数!$G$41,計算!X61),IMPRODUCT(定数!$H$41,計算!Y61),IMPRODUCT(定数!$I$41,計算!Z61)) -> 9.51372900995864E-06+0.0000372084114133638i | AJ61: =IMSUM(IMPRODUCT(定数!$F$38,計算!AA61),IMPRODUCT(定数!$G$38,計算!AB61),IMPRODUCT(定数!$H$38,計算!AC61),IMPRODUCT(定数!$I$38,計算!AD61)) -> 0.000137142882468281-0.000128824579776169i | AK61: =IMSUM(IMPRODUCT(定数!$F$39,計算!AA61),IMPRODUCT(定数!$G$39,計算!AB61),IMPRODUCT(定数!$H$39,計算!AC61),IMPRODUCT(定数!$I$39,計算!AD61)) -> -0.000110690895396582+0.0000621562245370968i | AL61: =IMSUM(IMPRODUCT(定数!$F$40,計算!AA61),IMPRODUCT(定数!$G$40,計算!AB61),IMPRODUCT(定数!$H$40,計算!AC61),IMPRODUCT(定数!$I$40,計算!AD61)) -> 0.0000151959266740715+0.0000111096413666006i | AM61: =IMSUM(IMPRODUCT(定数!$F$41,計算!AA61),IMPRODUCT(定数!$G$41,計算!AB61),IMPRODUCT(定数!$H$41,計算!AC61),IMPRODUCT(定数!$I$41,計算!AD61)) -> -2.38549425400444E-06+0.000027258005646811i | AO61: 0.000247833777864863-0.000190980804313266i | AQ61: 0.0000151959266740715+0.0000111096413666006i | AR61: -2.38549425400444E-06+0.000027258005646811i
A62: 58 | B62: =A62*定数!$B$8 -> 3.644247478e+10 | D62: =B62*定数!$C$3 -> 18.22123739 | E62: =B62*定数!$C$5 -> 3.644247478 | F62: =定数!$B$6*SIN(D62)*SIN(E62)/(D62*E62) -> 0.1007652771 | G62: -0.0999707128002892-0.012629238010871i | I62: =IMSUB(掃き出し!LZ62,IMPRODUCT(P62,掃き出し!LY62)) -> 0.0000112678618153161-0.0000112148716183159i | J62: =IMSUB(掃き出し!MB62,IMPRODUCT(P62,掃き出し!MA62)) -> -0.0000074991886890515-0.0000063456322369417i | K62: =IMSUB(掃き出し!MD62,IMPRODUCT(P62,掃き出し!MC62)) -> -0.000008753550754963+0.000171172004024815i | L62: =IMSUB(掃き出し!MF62,IMPRODUCT(P62,掃き出し!ME62)) -> -0.000108157053988339-0.00002478620093871i | M62: =IMSUB(掃き出し!MH62,IMPRODUCT(P62,掃き出し!MG62)) -> 0.000126439974157813-0.0000714580072807744i | N62: =IMSUB(掃き出し!MJ62,IMPRODUCT(P62,掃き出し!MI62)) -> -0.0000744940460860679-0.0000466813948079889i | O62: =IMSUB(掃き出し!ML62,IMPRODUCT(P62,掃き出し!MK62)) -> -0.000194517185706128+0.000063763344533369i | P62: =IMDIV(掃き出し!MN62,掃き出し!MM62) -> 0.000126396702361552+9.86376573356765E-06i | R62: =IMEXP(COMPLEX(0,計算!$B62*定数!A$61)) -> 0.965021604837755-0.262170368646735i | S62: =IMEXP(COMPLEX(0,計算!$B62*定数!B$61)) -> -0.480921776372701-0.876763505747431i | T62: =IMEXP(COMPLEX(0,計算!$B62*定数!C$61)) -> -0.998974366289825+0.0452793053816195i | U62: =IMEXP(COMPLEX(0,計算!$B62*定数!D$61)) -> -0.970734427279902-0.240155515642593i | W62: 0.0000037686731262646-0.0000175605038552576i | X62: -0.000116910604743302+0.000146385803086105i | Y62: 0.0000519459280717451-0.000118139402088763i | Z62: -0.000068120483344576+0.0000736271102669367i | AA62: 4.91342127206087E-06-0.0000120261010630183i | AB62: -0.000115584147053839+0.0000167532435225564i | AC62: -0.0000530145183792854+0.000108920081471302i | AD62: 0.000053182617245942-0.000148541610983012i | AF62: =IMSUM(IMPRODUCT(定数!$F$38,計算!W62),IMPRODUCT(定数!$G$38,計算!X62),IMPRODUCT(定数!$H$38,計算!Y62),IMPRODUCT(定数!$I$38,計算!Z62)) -> -0.000124706601299658+0.000159743281093131i | AG62: =IMSUM(IMPRODUCT(定数!$F$39,計算!W62),IMPRODUCT(定数!$G$39,計算!X62),IMPRODUCT(定数!$H$39,計算!Y62),IMPRODUCT(定数!$I$39,計算!Z62)) -> 0.0000315247043040143-0.0000752879743604375i | AH62: =IMSUM(IMPRODUCT(定数!$F$40,計算!W62),IMPRODUCT(定数!$G$40,計算!X62),IMPRODUCT(定数!$H$40,計算!Y62),IMPRODUCT(定数!$I$40,計算!Z62)) -> 0.0000355564847064421-0.0000120091448658415i | AI62: =IMSUM(IMPRODUCT(定数!$F$41,計算!W62),IMPRODUCT(定数!$G$41,計算!X62),IMPRODUCT(定数!$H$41,計算!Y62),IMPRODUCT(定数!$I$41,計算!Z62)) -> 0.0000551428492386943-0.0000965963678480531i | AJ62: =IMSUM(IMPRODUCT(定数!$F$38,計算!AA62),IMPRODUCT(定数!$G$38,計算!AB62),IMPRODUCT(定数!$H$38,計算!AC62),IMPRODUCT(定数!$I$38,計算!AD62)) -> -0.0000276253494583505-0.000106132249777343i | AK62: =IMSUM(IMPRODUCT(定数!$F$39,計算!AA62),IMPRODUCT(定数!$G$39,計算!AB62),IMPRODUCT(定数!$H$39,計算!AC62),IMPRODUCT(定数!$I$39,計算!AD62)) -> -0.0000910194946604023+0.000137189117216339i | AL62: =IMSUM(IMPRODUCT(定数!$F$40,計算!AA62),IMPRODUCT(定数!$G$40,計算!AB62),IMPRODUCT(定数!$H$40,計算!AC62),IMPRODUCT(定数!$I$40,計算!AD62)) -> 0.0000472617264166636-0.0000131128797052588i | AM62: =IMSUM(IMPRODUCT(定数!$F$41,計算!AA62),IMPRODUCT(定数!$G$41,計算!AB62),IMPRODUCT(定数!$H$41,計算!AC62),IMPRODUCT(定数!$I$41,計算!AD62)) -> 0.0000889580657674828-0.0000636437841080455i | AO62: 0.0000633941452020518-0.000243321366993682i | AQ62: 0.0000472617264166636-0.0000131128797052588i | AR62: 0.0000889580657674828-0.0000636437841080455i
A63: 59 | B63: =A63*定数!$B$8 -> 3.707079331e+10 | D63: =B63*定数!$C$3 -> 18.53539666 | E63: =B63*定数!$C$5 -> 3.707079331 | F63: =定数!$B$6*SIN(D63)*SIN(E63)/(D63*E63) -> 0.05694111121 | G63: -0.055152201493667+0.0141606785217792i | I63: =IMSUB(掃き出し!LZ63,IMPRODUCT(P63,掃き出し!LY63)) -> 8.07456015140801E-06-0.00001462789715661i | J63: =IMSUB(掃き出し!MB63,IMPRODUCT(P63,掃き出し!MA63)) -> -0.0000083956086756981+7.78165267750411E-06i | K63: =IMSUB(掃き出し!MD63,IMPRODUCT(P63,掃き出し!MC63)) -> 0.0000101277415286439+0.0000347086050544841i | L63: =IMSUB(掃き出し!MF63,IMPRODUCT(P63,掃き出し!ME63)) -> -0.0000042802229719813+0.0000230981229073737i | M63: =IMSUB(掃き出し!MH63,IMPRODUCT(P63,掃き出し!MG63)) -> 0.000111531632380641-0.0000725262172957099i | N63: =IMSUB(掃き出し!MJ63,IMPRODUCT(P63,掃き出し!MI63)) -> -0.0000616233618487494+0.0000518052469915974i | O63: =IMSUB(掃き出し!ML63,IMPRODUCT(P63,掃き出し!MK63)) -> -0.000194327620491877+0.000226974198971782i | P63: =IMDIV(掃き出し!MN63,掃き出し!MM63) -> -0.0000197348009818819-0.000185946802473296i | R63: =IMEXP(COMPLEX(0,計算!$B63*定数!A$61)) -> 0.928612511255698+0.37105094520751i | S63: =IMEXP(COMPLEX(0,計算!$B63*定数!B$61)) -> 0.112308696723819-0.993673365165937i | T63: =IMEXP(COMPLEX(0,計算!$B63*定数!C$61)) -> -0.852658531962184-0.522468590321077i | U63: =IMEXP(COMPLEX(0,計算!$B63*定数!D$61)) -> -0.665579108947256-0.746327307374571i | W63: -3.21048524290091E-07-6.84624447910589E-06i | X63: 0.0000058475185566626+0.0000578067279618578i | Y63: 0.0000499082705318916-0.0000207209703041125i | Z63: -0.000214062421473759+0.000041027396498486i | AA63: -8.61321432399881E-06-0.0000124687799894379i | AB63: -0.0000108802996781511+0.0000208090088497922i | AC63: 0.0000224045721942505+0.00010813595786242i | AD63: -0.00016569874342332-0.000157610366875717i | AF63: =IMSUM(IMPRODUCT(定数!$F$38,計算!W63),IMPRODUCT(定数!$G$38,計算!X63),IMPRODUCT(定数!$H$38,計算!Y63),IMPRODUCT(定数!$I$38,計算!Z63)) -> -0.000125634876630208+0.00006191221718584i | AG63: =IMSUM(IMPRODUCT(定数!$F$39,計算!W63),IMPRODUCT(定数!$G$39,計算!X63),IMPRODUCT(定数!$H$39,計算!Y63),IMPRODUCT(定数!$I$39,計算!Z63)) -> 0.000132599928721606-0.0000185188296418822i | AH63: =IMSUM(IMPRODUCT(定数!$F$40,計算!W63),IMPRODUCT(定数!$G$40,計算!X63),IMPRODUCT(定数!$H$40,計算!Y63),IMPRODUCT(定数!$I$40,計算!Z63)) -> 0.0000648519932311371-0.0000269004991320349i | AI63: =IMSUM(IMPRODUCT(定数!$F$41,計算!W63),IMPRODUCT(定数!$G$41,計算!X63),IMPRODUCT(定数!$H$41,計算!Y63),IMPRODUCT(定数!$I$41,計算!Z63)) -> -0.00010382882398153-0.0000241029372716187i | AJ63: =IMSUM(IMPRODUCT(定数!$F$38,計算!AA63),IMPRODUCT(定数!$G$38,計算!AB63),IMPRODUCT(定数!$H$38,計算!AC63),IMPRODUCT(定数!$I$38,計算!AD63)) -> -0.000106066866899838-0.000108363397881032i | AK63: =IMSUM(IMPRODUCT(定数!$F$39,計算!AA63),IMPRODUCT(定数!$G$39,計算!AB63),IMPRODUCT(定数!$H$39,計算!AC63),IMPRODUCT(定数!$I$39,計算!AD63)) -> 0.0000829437150689918+0.000141860667279936i | AL63: =IMSUM(IMPRODUCT(定数!$F$40,計算!AA63),IMPRODUCT(定数!$G$40,計算!AB63),IMPRODUCT(定数!$H$40,計算!AC63),IMPRODUCT(定数!$I$40,計算!AD63)) -> 0.0000607238586115517-9.89005775175398E-06i | AM63: =IMSUM(IMPRODUCT(定数!$F$41,計算!AA63),IMPRODUCT(定数!$G$41,計算!AB63),IMPRODUCT(定数!$H$41,計算!AC63),IMPRODUCT(定数!$I$41,計算!AD63)) -> -0.0000790216233697282-0.0000715169398639818i | AO63: -0.00018901058196883-0.000250224065160968i | AQ63: 0.0000607238586115517-9.89005775175398E-06i | AR63: -0.0000790216233697282-0.0000715169398639818i
A64: 60 | B64: =A64*定数!$B$8 -> 3.769911184e+10 | D64: =B64*定数!$C$3 -> 18.84955592 | E64: =B64*定数!$C$5 -> 3.769911184 | F64: =定数!$B$6*SIN(D64)*SIN(E64)/(D64*E64) -> 1.436743766e-16 | G64: -1.16235012335815E-16+8.44496797051955E-17i | I64: =IMSUB(掃き出し!LZ64,IMPRODUCT(P64,掃き出し!LY64)) -> -3.8990321014061E-20-2.43325105700372E-20i | J64: =IMSUB(掃き出し!MB64,IMPRODUCT(P64,掃き出し!MA64)) -> 2.4153010141251E-20-1.8821867985751E-20i | K64: =IMSUB(掃き出し!MD64,IMPRODUCT(P64,掃き出し!MC64)) -> 1.2517903152983E-20+7.56218452068621E-20i | L64: =IMSUB(掃き出し!MF64,IMPRODUCT(P64,掃き出し!ME64)) -> 3.35891739121732E-20+2.794873794779E-20i | M64: =IMSUB(掃き出し!MH64,IMPRODUCT(P64,掃き出し!MG64)) -> -1.62069375635071E-19-7.16968225045178E-19i | N64: =IMSUB(掃き出し!MJ64,IMPRODUCT(P64,掃き出し!MI64)) -> 4.48538553858791E-19+1.33057744355445E-20i | O64: =IMSUB(掃き出し!ML64,IMPRODUCT(P64,掃き出し!MK64)) -> 2.7884656375448E-19+2.88737471146724E-19i | P64: =IMDIV(掃き出し!MN64,掃き出し!MM64) -> -8.77131298065E-20+2.38017317393053E-19i | R64: =IMEXP(COMPLEX(0,計算!$B64*定数!A$61)) -> 0.518627382650393+0.855000373078984i | S64: =IMEXP(COMPLEX(0,計算!$B64*定数!B$61)) -> 0.664480198632327-0.747305871531559i | T64: =IMEXP(COMPLEX(0,計算!$B64*定数!C$61)) -> -0.413244740933744-0.910619999830117i | U64: =IMEXP(COMPLEX(0,計算!$B64*定数!D$61)) -> -0.127917272738657-0.991784841250916i | W64: -1.483731087281E-20-4.31543785557882E-20i | X64: 4.61070770651562E-20+1.03570583154652E-19i | Y64: 2.8646917822372E-19-7.03662450609634E-19i | Z64: 1.9113343394798E-19+5.26754788539777E-19i | AA64: -1.24066371690053E-20+3.16065292949489E-20i | AB64: -4.9891532422474E-21+5.30739173080951E-20i | AC64: 5.46620227942511E-19-2.65246985544988E-19i | AD64: -7.4752747238607E-20+2.96167311535325E-19i | AF64: =IMSUM(IMPRODUCT(定数!$F$38,計算!W64),IMPRODUCT(定数!$G$38,計算!X64),IMPRODUCT(定数!$H$38,計算!Y64),IMPRODUCT(定数!$I$38,計算!Z64)) -> 4.11083355808109E-20+5.3528098461183E-19i | AG64: =IMSUM(IMPRODUCT(定数!$F$39,計算!W64),IMPRODUCT(定数!$G$39,計算!X64),IMPRODUCT(定数!$H$39,計算!Y64),IMPRODUCT(定数!$I$39,計算!Z64)) -> 1.01865817645317E-19-6.88376662010226E-19i | AH64: =IMSUM(IMPRODUCT(定数!$F$40,計算!W64),IMPRODUCT(定数!$G$40,計算!X64),IMPRODUCT(定数!$H$40,計算!Y64),IMPRODUCT(定数!$I$40,計算!Z64)) -> -2.94733712111067E-19+1.54274592439886E-19i | AI64: =IMSUM(IMPRODUCT(定数!$F$41,計算!W64),IMPRODUCT(定数!$G$41,計算!X64),IMPRODUCT(定数!$H$41,計算!Y64),IMPRODUCT(定数!$I$41,計算!Z64)) -> 1.50241890498493E-19-9.82802609417434E-21i | AJ64: =IMSUM(IMPRODUCT(定数!$F$38,計算!AA64),IMPRODUCT(定数!$G$38,計算!AB64),IMPRODUCT(定数!$H$38,計算!AC64),IMPRODUCT(定数!$I$38,計算!AD64)) -> -2.09090290745779E-19+2.84364601480392E-19i | AK64: =IMSUM(IMPRODUCT(定数!$F$39,計算!AA64),IMPRODUCT(定数!$G$39,計算!AB64),IMPRODUCT(定数!$H$39,計算!AC64),IMPRODUCT(定数!$I$39,計算!AD64)) -> 3.77933798319638E-19-2.74074092146693E-19i | AL64: =IMSUM(IMPRODUCT(定数!$F$40,計算!AA64),IMPRODUCT(定数!$G$40,計算!AB64),IMPRODUCT(定数!$H$40,計算!AC64),IMPRODUCT(定数!$I$40,計算!AD64)) -> -3.22433402851363E-19+3.5049283236711E-20i | AM64: =IMSUM(IMPRODUCT(定数!$F$41,計算!AA64),IMPRODUCT(定数!$G$41,計算!AB64),IMPRODUCT(定数!$H$41,計算!AC64),IMPRODUCT(定数!$I$41,計算!AD64)) -> 1.17937114328498E-19+6.09541141420598E-20i | AO64: -5.87024089065417E-19+5.58438693627085E-19i | AQ64: -3.22433402851363E-19+3.5049283236711E-20i | AR64: 1.17937114328498E-19+6.09541141420598E-20i
A65: 61 | B65: =A65*定数!$B$8 -> 3.832743037e+10 | D65: =B65*定数!$C$3 -> 19.16371519 | E65: =B65*定数!$C$5 -> 3.832743037 | F65: =定数!$B$6*SIN(D65)*SIN(E65)/(D65*E65) -> -0.06336862275 | G65: 0.0339546060286369-0.0535038977857051i | I65: =IMSUB(掃き出し!LZ65,IMPRODUCT(P65,掃き出し!LY65)) -> 8.46127759893025E-06+3.38902050685871E-06i | J65: =IMSUB(掃き出し!MB65,IMPRODUCT(P65,掃き出し!MA65)) -> 0.0000029166714989203+0.0000050651234839122i | K65: =IMSUB(掃き出し!MD65,IMPRODUCT(P65,掃き出し!MC65)) -> -5.33984673685717E-06-0.0000351542659993062i | L65: =IMSUB(掃き出し!MF65,IMPRODUCT(P65,掃き出し!ME65)) -> -0.0000202924359325827+0.0000108501856156195i | M65: =IMSUB(掃き出し!MH65,IMPRODUCT(P65,掃き出し!MG65)) -> 0.000105356162575203+0.0000642306994188947i | N65: =IMSUB(掃き出し!MJ65,IMPRODUCT(P65,掃き出し!MI65)) -> 0.0000293965626951399+0.0000701394939533987i | O65: =IMSUB(掃き出し!ML65,IMPRODUCT(P65,掃き出し!MK65)) -> -0.0000725790918819196-0.0000647440931903942i | P65: =IMDIV(掃き出し!MN65,掃き出し!MM65) -> -0.0000497551498476878-0.000037155452953835i | R65: =IMEXP(COMPLEX(0,計算!$B65*定数!A$61)) -> -0.0999988733537928+0.99498755033818i | S65: =IMEXP(COMPLEX(0,計算!$B65*定数!B$61)) -> 0.973724179106343-0.227730593078046i | T65: =IMEXP(COMPLEX(0,計算!$B65*定数!C$61)) -> 0.168220275344623-0.9857494301104i | U65: =IMEXP(COMPLEX(0,計算!$B65*定数!D$61)) -> 0.454429859719154-0.8907825226146i | W65: 0.0000113779490978505+8.45414399077091E-06i | X65: -0.0000256322826694399-0.0000243040803836867i | Y65: 0.000134752725270343+0.000134370193372293i | Z65: -0.000122334241729607-0.000101899546144229i | AA65: -2.80548368611485E-06-6.36221891528686E-06i | AB65: -0.0000144821523504247-0.0000202603087149449i | AC65: 0.0000284927313934421+0.0000974809232203834i | AD65: -0.0000310168537626057-0.0000666373651210299i | AF65: =IMSUM(IMPRODUCT(定数!$F$38,計算!W65),IMPRODUCT(定数!$G$38,計算!X65),IMPRODUCT(定数!$H$38,計算!Y65),IMPRODUCT(定数!$I$38,計算!Z65)) -> -0.000116308423035444-0.000105714632951693i | AG65: =IMSUM(IMPRODUCT(定数!$F$39,計算!W65),IMPRODUCT(定数!$G$39,計算!X65),IMPRODUCT(定数!$H$39,計算!Y65),IMPRODUCT(定数!$I$39,計算!Z65)) -> 0.000141689064949144+0.000130802142100964i | AH65: =IMSUM(IMPRODUCT(定数!$F$40,計算!W65),IMPRODUCT(定数!$G$40,計算!X65),IMPRODUCT(定数!$H$40,計算!Y65),IMPRODUCT(定数!$I$40,計算!Z65)) -> -0.0000161634603341315-0.0000273651200218552i | AI65: =IMSUM(IMPRODUCT(定数!$F$41,計算!W65),IMPRODUCT(定数!$G$41,計算!X65),IMPRODUCT(定数!$H$41,計算!Y65),IMPRODUCT(定数!$I$41,計算!Z65)) -> -4.51039858178139E-06+0.0000041618920910891i | AJ65: =IMSUM(IMPRODUCT(定数!$F$38,計算!AA65),IMPRODUCT(定数!$G$38,計算!AB65),IMPRODUCT(定数!$H$38,計算!AC65),IMPRODUCT(定数!$I$38,計算!AD65)) -> -0.000035465828195692-0.0000800501464397268i | AK65: =IMSUM(IMPRODUCT(定数!$F$39,計算!AA65),IMPRODUCT(定数!$G$39,計算!AB65),IMPRODUCT(定数!$H$39,計算!AC65),IMPRODUCT(定数!$I$39,計算!AD65)) -> 0.000026734424352166+0.0000838780698056661i | AL65: =IMSUM(IMPRODUCT(定数!$F$40,計算!AA65),IMPRODUCT(定数!$G$40,計算!AB65),IMPRODUCT(定数!$H$40,計算!AC65),IMPRODUCT(定数!$I$40,計算!AD65)) -> -1.14860712572108E-06-0.0000292739867060293i | AM65: =IMSUM(IMPRODUCT(定数!$F$41,計算!AA65),IMPRODUCT(定数!$G$41,計算!AB65),IMPRODUCT(定数!$H$41,計算!AC65),IMPRODUCT(定数!$I$41,計算!AD65)) -> -2.47673056300969E-07+3.02004943183243E-06i | AO65: -0.000062200252547858-0.000163928216245393i | AQ65: -1.14860712572108E-06-0.0000292739867060293i | AR65: -2.47673056300969E-07+3.02004943183243E-06i
A66: 62 | B66: =A66*定数!$B$8 -> 3.89557489e+10 | D66: =B66*定数!$C$3 -> 19.47787445 | E66: =B66*定数!$C$5 -> 3.89557489 | F66: =定数!$B$6*SIN(D66)*SIN(E66)/(D66*E66) -> -0.1253030998 | G66: 0.0234794595637216-0.123083637418377i | I66: =IMSUB(掃き出し!LZ66,IMPRODUCT(P66,掃き出し!LY66)) -> 0.000013210434382727+0.0000069353070002688i | J66: =IMSUB(掃き出し!MB66,IMPRODUCT(P66,掃き出し!MA66)) -> 9.46183022268159E-06-0.0000012505266240534i | K66: =IMSUB(掃き出し!MD66,IMPRODUCT(P66,掃き出し!MC66)) -> -0.000023816710384383-0.000126058099368633i | L66: =IMSUB(掃き出し!MF66,IMPRODUCT(P66,掃き出し!ME66)) -> 0.000018369874123292+0.000083599578295094i | M66: =IMSUB(掃き出し!MH66,IMPRODUCT(P66,掃き出し!MG66)) -> 0.000138356122254424+0.0000842575209387287i | N66: =IMSUB(掃き出し!MJ66,IMPRODUCT(P66,掃き出し!MI66)) -> 0.000100918653553625-0.0000019688639288732i | O66: =IMSUB(掃き出し!ML66,IMPRODUCT(P66,掃き出し!MK66)) -> -0.000116681477722172-0.000122870848474945i | P66: =IMDIV(掃き出し!MN66,掃き出し!MM66) -> -0.0000967125854704684+0.0000507792678640867i | R66: =IMEXP(COMPLEX(0,計算!$B66*定数!A$61)) -> -0.678396097160481+0.734696355889579i | S66: =IMEXP(COMPLEX(0,計算!$B66*定数!B$61)) -> 0.926984035632147+0.375100783367801i | T66: =IMEXP(COMPLEX(0,計算!$B66*定数!C$61)) -> 0.69186024545158-0.722031440287526i | U66: =IMEXP(COMPLEX(0,計算!$B66*定数!D$61)) -> 0.87803116785383-0.478603456190237i | W66: 0.0000226722646054086+0.0000056847803762154i | X66: -0.000005446836261091-0.000042458521073539i | Y66: 0.000239274775808049+0.0000822886570098555i | Z66: -0.00021339406319264-0.0000720915806108583i | AA66: -9.36667368839099E-06-6.61061863649685E-06i | AB66: -0.0000836918893894716-0.0000235341503152814i | AC66: 0.000103286544264187+0.0000839632798834763i | AD66: -0.000104257092670411-0.0000728558355641366i | AF66: =IMSUM(IMPRODUCT(定数!$F$38,計算!W66),IMPRODUCT(定数!$G$38,計算!X66),IMPRODUCT(定数!$H$38,計算!Y66),IMPRODUCT(定数!$I$38,計算!Z66)) -> -0.000177775089097968-0.000087314966858669i | AG66: =IMSUM(IMPRODUCT(定数!$F$39,計算!W66),IMPRODUCT(定数!$G$39,計算!X66),IMPRODUCT(定数!$H$39,計算!Y66),IMPRODUCT(定数!$I$39,計算!Z66)) -> 0.000263320092974432+0.000076499612040659i | AH66: =IMSUM(IMPRODUCT(定数!$F$40,計算!W66),IMPRODUCT(定数!$G$40,計算!X66),IMPRODUCT(定数!$H$40,計算!Y66),IMPRODUCT(定数!$I$40,計算!Z66)) -> -0.0000412609202675781-0.0000036460106171551i | AI66: =IMSUM(IMPRODUCT(定数!$F$41,計算!W66),IMPRODUCT(定数!$G$41,計算!X66),IMPRODUCT(定数!$H$41,計算!Y66),IMPRODUCT(定数!$I$41,計算!Z66)) -> -0.0000304542902848119+0.0000152059927772827i | AJ66: =IMSUM(IMPRODUCT(定数!$F$38,計算!AA66),IMPRODUCT(定数!$G$38,計算!AB66),IMPRODUCT(定数!$H$38,計算!AC66),IMPRODUCT(定数!$I$38,計算!AD66)) -> -0.000143754806499956-0.0000816158978395164i | AK66: =IMSUM(IMPRODUCT(定数!$F$39,計算!AA66),IMPRODUCT(定数!$G$39,計算!AB66),IMPRODUCT(定数!$H$39,計算!AC66),IMPRODUCT(定数!$I$39,計算!AD66)) -> 0.0000841196323893183+0.0000769246114439347i | AL66: =IMSUM(IMPRODUCT(定数!$F$40,計算!AA66),IMPRODUCT(定数!$G$40,計算!AB66),IMPRODUCT(定数!$H$40,計算!AC66),IMPRODUCT(定数!$I$40,計算!AD66)) -> 1.95201795368068E-06-0.0000168476100469158i | AM66: =IMSUM(IMPRODUCT(定数!$F$41,計算!AA66),IMPRODUCT(定数!$G$41,計算!AB66),IMPRODUCT(定数!$H$41,計算!AC66),IMPRODUCT(定数!$I$41,計算!AD66)) -> 0.0000237680424495589-2.29224328272958E-06i | AO66: -0.000227874438889274-0.000158540509283451i | AQ66: 1.95201795368068E-06-0.0000168476100469158i | AR66: 0.0000237680424495589-2.29224328272958E-06i
A67: 63 | B67: =A67*定数!$B$8 -> 3.958406744e+10 | D67: =B67*定数!$C$3 -> 19.79203372 | E67: =B67*定数!$C$5 -> 3.958406744 | F67: =定数!$B$6*SIN(D67)*SIN(E67)/(D67*E67) -> -0.1778723953 | G67: -0.0333299632673474-0.174721786199227i | I67: =IMSUB(掃き出し!LZ67,IMPRODUCT(P67,掃き出し!LY67)) -> 0.000022623985013026+0.0000148202175350322i | J67: =IMSUB(掃き出し!MB67,IMPRODUCT(P67,掃き出し!MA67)) -> 0.0000041221128563796-0.000016884650327143i | K67: =IMSUB(掃き出し!MD67,IMPRODUCT(P67,掃き出し!MC67)) -> -0.000295075366764559+0.000097387989869704i | L67: =IMSUB(掃き出し!MF67,IMPRODUCT(P67,掃き出し!ME67)) -> -0.0000072150755620889-0.000210687774913754i | M67: =IMSUB(掃き出し!MH67,IMPRODUCT(P67,掃き出し!MG67)) -> 0.000183985260937424+0.000136032094039446i | N67: =IMSUB(掃き出し!MJ67,IMPRODUCT(P67,掃き出し!MI67)) -> 0.0000604960111492212-0.000132829894290054i | O67: =IMSUB(掃き出し!ML67,IMPRODUCT(P67,掃き出し!MK67)) -> -0.000198938661009631-0.000238504056601745i | P67: =IMDIV(掃き出し!MN67,掃き出し!MM67) -> 0.0000112859595136503+0.00020177166824889i | R67: =IMEXP(COMPLEX(0,計算!$B67*定数!A$61)) -> -0.983878061824448+0.178840597909331i | S67: =IMEXP(COMPLEX(0,計算!$B67*定数!B$61)) -> 0.541347511725647+0.84079894835118i | T67: =IMEXP(COMPLEX(0,計算!$B67*定数!C$61)) -> 0.97767602608176-0.2101180335549i | U67: =IMEXP(COMPLEX(0,計算!$B67*定数!D$61)) -> 0.994910154509464+0.100765988577273i | W67: 0.0000267460978694056-0.0000020644327921108i | X67: -0.000302290442326648-0.00011329978504405i | Y67: 0.000244481272086645+0.000003202199749392i | Z67: -0.000187652701495981-0.000036732388352855i | AA67: -0.0000206447814080101-0.0000012777357446678i | AB67: 0.0000953856002704408+0.000180698073402454i | AC67: 0.00018253072625963+0.000029078032256372i | AD67: -0.000231062396900634-0.000015361934461329i | AF67: =IMSUM(IMPRODUCT(定数!$F$38,計算!W67),IMPRODUCT(定数!$G$38,計算!X67),IMPRODUCT(定数!$H$38,計算!Y67),IMPRODUCT(定数!$I$38,計算!Z67)) -> -0.00035333841001222-0.0000939038248349973i | AG67: =IMSUM(IMPRODUCT(定数!$F$39,計算!W67),IMPRODUCT(定数!$G$39,計算!X67),IMPRODUCT(定数!$H$39,計算!Y67),IMPRODUCT(定数!$I$39,計算!Z67)) -> 0.000167039630604062-0.0000164429863485037i | AH67: =IMSUM(IMPRODUCT(定数!$F$40,計算!W67),IMPRODUCT(定数!$G$40,計算!X67),IMPRODUCT(定数!$H$40,計算!Y67),IMPRODUCT(定数!$I$40,計算!Z67)) -> 0.0000357008909736971+0.0000481212293227969i | AI67: =IMSUM(IMPRODUCT(定数!$F$41,計算!W67),IMPRODUCT(定数!$G$41,計算!X67),IMPRODUCT(定数!$H$41,計算!Y67),IMPRODUCT(定数!$I$41,計算!Z67)) -> 0.000176315022081874+0.0000527384852875644i | AJ67: =IMSUM(IMPRODUCT(定数!$F$38,計算!AA67),IMPRODUCT(定数!$G$38,計算!AB67),IMPRODUCT(定数!$H$38,計算!AC67),IMPRODUCT(定数!$I$38,計算!AD67)) -> -0.000125513882118147+0.0000981127808079637i | AK67: =IMSUM(IMPRODUCT(定数!$F$39,計算!AA67),IMPRODUCT(定数!$G$39,計算!AB67),IMPRODUCT(定数!$H$39,計算!AC67),IMPRODUCT(定数!$I$39,計算!AD67)) -> 0.000241782756388944+0.0000798750698171565i | AL67: =IMSUM(IMPRODUCT(定数!$F$40,計算!AA67),IMPRODUCT(定数!$G$40,計算!AB67),IMPRODUCT(定数!$H$40,計算!AC67),IMPRODUCT(定数!$I$40,計算!AD67)) -> -0.0000509012492562255-0.0000670793937099827i | AM67: =IMSUM(IMPRODUCT(定数!$F$41,計算!AA67),IMPRODUCT(定数!$G$41,計算!AB67),IMPRODUCT(定数!$H$41,計算!AC67),IMPRODUCT(定数!$I$41,計算!AD67)) -> -0.000140313323538631-0.000115708564095222i | AO67: -0.000367296638507091+0.0000182377109908072i | AQ67: -0.0000509012492562255-0.0000670793937099827i | AR67: -0.000140313323538631-0.000115708564095222i
A68: 64 | B68: =A68*定数!$B$8 -> 4.021238597e+10 | D68: =B68*定数!$C$3 -> 20.10619298 | E68: =B68*定数!$C$5 -> 4.021238597 | F68: =定数!$B$6*SIN(D68)*SIN(E68)/(D68*E68) -> -0.2141655707 | G68: -0.1147556513286-0.180825972000355i | I68: =IMSUB(掃き出し!LZ68,IMPRODUCT(P68,掃き出し!LY68)) -> 0.000085083582437204+0.000020422534194717i | J68: =IMSUB(掃き出し!MB68,IMPRODUCT(P68,掃き出し!MA68)) -> -0.000055518042074285-7.53729830568498E-06i | K68: =IMSUB(掃き出し!MD68,IMPRODUCT(P68,掃き出し!MC68)) -> -0.00010063316015073+0.000080427451742503i | L68: =IMSUB(掃き出し!MF68,IMPRODUCT(P68,掃き出し!ME68)) -> -0.000087759467060397+7.86578307535301E-06i | M68: =IMSUB(掃き出し!MH68,IMPRODUCT(P68,掃き出し!MG68)) -> 0.00032986926343369+0.000244854679352574i | N68: =IMSUB(掃き出し!MJ68,IMPRODUCT(P68,掃き出し!MI68)) -> -0.000181226522464978-0.000188293917014013i | O68: =IMSUB(掃き出し!ML68,IMPRODUCT(P68,掃き出し!MK68)) -> -0.000777739099365422-0.000487026693103553i | P68: =IMDIV(掃き出し!MN68,掃き出し!MM68) -> 0.000602532275843596-5.11453946454903E-06i | R68: =IMEXP(COMPLEX(0,計算!$B68*定数!A$61)) -> -0.893550944844879-0.4489618123703i | S68: =IMEXP(COMPLEX(0,計算!$B68*定数!B$61)) -> -0.0422004165069827+0.999109165630382i | T68: =IMEXP(COMPLEX(0,計算!$B68*定数!C$61)) -> 0.927419586921344+0.374022605994135i | U68: =IMEXP(COMPLEX(0,計算!$B68*定数!D$61)) -> 0.764237524062355+0.644934885717187i | W68: 0.000029565540362919+0.000012885235889032i | X68: -0.000188392627211127+0.000088293234817856i | Y68: 0.000148642740968712+0.000056560762338561i | Z68: -0.000175206823521826-0.000492141232568102i | AA68: -0.0000389712135990861+0.0000516111454596928i | AB68: 0.0000804472755739387+0.0000091362134780018i | AC68: 0.000299861556223792-0.000138705818910455i | AD68: -0.000444701588740045+0.000514072364562291i | AF68: =IMSUM(IMPRODUCT(定数!$F$38,計算!W68),IMPRODUCT(定数!$G$38,計算!X68),IMPRODUCT(定数!$H$38,計算!Y68),IMPRODUCT(定数!$I$38,計算!Z68)) -> -0.000244541475021602-0.000217874699790367i | AG68: =IMSUM(IMPRODUCT(定数!$F$39,計算!W68),IMPRODUCT(定数!$G$39,計算!X68),IMPRODUCT(定数!$H$39,計算!Y68),IMPRODUCT(定数!$I$39,計算!Z68)) -> 0.000135692038222077+0.000297574970810897i | AH68: =IMSUM(IMPRODUCT(定数!$F$40,計算!W68),IMPRODUCT(定数!$G$40,計算!X68),IMPRODUCT(定数!$H$40,計算!Y68),IMPRODUCT(定数!$I$40,計算!Z68)) -> 0.0000586344716526988+0.000171313694713124i | AI68: =IMSUM(IMPRODUCT(定数!$F$41,計算!W68),IMPRODUCT(定数!$G$41,計算!X68),IMPRODUCT(定数!$H$41,計算!Y68),IMPRODUCT(定数!$I$41,計算!Z68)) -> 0.0000833643208145437-0.00029750660723137i | AJ68: =IMSUM(IMPRODUCT(定数!$F$38,計算!AA68),IMPRODUCT(定数!$G$38,計算!AB68),IMPRODUCT(定数!$H$38,計算!AC68),IMPRODUCT(定数!$I$38,計算!AD68)) -> -0.000292018802137111+0.000344751594392611i | AK68: =IMSUM(IMPRODUCT(定数!$F$39,計算!AA68),IMPRODUCT(定数!$G$39,計算!AB68),IMPRODUCT(定数!$H$39,計算!AC68),IMPRODUCT(定数!$I$39,計算!AD68)) -> 0.000401396856080582-0.000295668027941835i | AL68: =IMSUM(IMPRODUCT(定数!$F$40,計算!AA68),IMPRODUCT(定数!$G$40,計算!AB68),IMPRODUCT(定数!$H$40,計算!AC68),IMPRODUCT(定数!$I$40,計算!AD68)) -> -0.0000331950671168181-0.000122764764542256i | AM68: =IMSUM(IMPRODUCT(定数!$F$41,計算!AA68),IMPRODUCT(定数!$G$41,計算!AB68),IMPRODUCT(定数!$H$41,計算!AC68),IMPRODUCT(定数!$I$41,計算!AD68)) -> -0.000218903175971439+0.00025170971845877i | AO68: -0.000693415658217693+0.000640419622334446i | AQ68: -0.0000331950671168181-0.000122764764542256i | AR68: -0.000218903175971439+0.00025170971845877i

Sheet 掃き出し (hidden)
A1: 1 | J1: =A1+1 -> 2 | S1: =J1+1 -> 3 | AB1: =S1+1 -> 4 | AK1: =AB1+1 -> 5 | AT1: =AK1+1 -> 6 | BC1: =AT1+1 -> 7 | BL1: =BC1+1 -> 8 | BU1: 1 | CC1: =BU1+1 -> 2 | CK1: =CC1+1 -> 3 | CS1: =CK1+1 -> 4 | DA1: =CS1+1 -> 5 | DI1: =DA1+1 -> 6 | DQ1: =DI1+1 -> 7 | DY1: =DQ1+1 -> 8 | EG1: 1 | EN1: =EG1+1 -> 2 | EU1: =EN1+1 -> 3 | FB1: =EU1+1 -> 4 | FI1: =FB1+1 -> 5 | FP1: =FI1+1 -> 6 | FW1: =FP1+1 -> 7 | GD1: =FW1+1 -> 8 | GK1: 1 | GQ1: =GK1+1 -> 2 | GW1: =GQ1+1 -> 3 | HC1: =GW1+1 -> 4 | HI1: =HC1+1 -> 5 | HO1: =HI1+1 -> 6 | HU1: =HO1+1 -> 7 | IA1: =HU1+1 -> 8 | IG1: 1 | IL1: =IG1+1 -> 2 | IQ1: =IL1+1 -> 3 | IV1: =IQ1+1 -> 4 | JA1: =IV1+1 -> 5 | JF1: =JA1+1 -> 6 | JK1: =JF1+1 -> 7 | JP1: =JK1+1 -> 8 | JU1: 1 | JY1: =JU1+1 -> 2 | KC1: =JY1+1 -> 3 | KG1: =KC1+1 -> 4 | KK1: =KG1+1 -> 5 | KO1: =KK1+1 -> 6 | KS1: =KO1+1 -> 7 | KW1: =KS1+1 -> 8 | LA1: 1 | LD1: =LA1+1 -> 2 | LG1: =LD1+1 -> 3 | LJ1: =LG1+1 -> 4 | LM1: =LJ1+1 -> 5 | LP1: =LM1+1 -> 6 | LS1: =LP1+1 -> 7 | LV1: =LS1+1 -> 8 | LY1: 1 | MA1: =LY1+1 -> 2 | MC1: =MA1+1 -> 3 | ME1: =MC1+1 -> 4 | MG1: =ME1+1 -> 5 | MI1: =MG1+1 -> 6 | MK1: =MI1+1 -> 7 | MM1: =MK1+1 -> 8
A2: -1 | B2: +1 | C2: -2 | D2: +2 | E2: -3 | F2: +3 | G2: -4 | H2: +4 | I2: V | J2: -1 | K2: +1 | L2: -2 | M2: +2 | N2: -3 | O2: +3 | P2: -4 | Q2: +4 | R2: V | S2: -1 | T2: +1 | U2: -2 | V2: +2 | W2: -3 | X2: +3 | Y2: -4 | Z2: +4 | AA2: V | AB2: -1 | AC2: +1 | AD2: -2 | AE2: +2 | AF2: -3 | AG2: +3 | AH2: -4 | AI2: +4 | AJ2: V | AK2: -1 | AL2: +1 | AM2: -2 | AN2: +2 | AO2: -3 | AP2: +3 | AQ2: -4 | AR2: +4 | AS2: V | AT2: -1 | AU2: +1 | AV2: -2 | AW2: +2 | AX2: -3 | AY2: +3 | AZ2: -4 | BA2: +4 | BB2: V | BC2: -1 | BD2: +1 | BE2: -2 | BF2: +2 | BG2: -3 | BH2: +3 | BI2: -4 | BJ2: +4 | BK2: V | BL2: -1 | BM2: +1 | BN2: -2 | BO2: +2 | BP2: -3 | BQ2: +3 | BR2: -4 | BS2: +4 | BT2: V | BU2: +1 | BV2: -2 | BW2: +2 | BX2: -3 | BY2: +3 | BZ2: -4 | CA2: +4 | CB2: V | CC2: +1 | CD2: -2 | CE2: +2 | CF2: -3 | CG2: +3 | CH2: -4 | CI2: +4 | CJ2: V | CK2: +1 | CL2: -2 | CM2: +2 | CN2: -3 | CO2: +3 | CP2: -4 | CQ2: +4 | CR2: V | CS2: +1 | CT2: -2 | CU2: +2 | CV2: -3 | CW2: +3 | CX2: -4 | CY2: +4 | CZ2: V | DA2: +1 | DB2: -2 | DC2: +2 | DD2: -3 | DE2: +3 | DF2: -4 | DG2: +4 | DH2: V | DI2: +1 | DJ2: -2 | DK2: +2 | DL2: -3 | DM2: +3 | DN2: -4 | DO2: +4 | DP2: V | DQ2: +1 | DR2: -2 | DS2: +2 | DT2: -3 | DU2: +3 | DV2: -4 | DW2: +4 | DX2: V | DY2: +1 | DZ2: -2 | EA2: +2 | EB2: -3 | EC2: +3 | ED2: -4 | EE2: +4 | EF2: V | EG2: -2 | EH2: +2 | EI2: -3 | EJ2: +3 | EK2: -4 | EL2: +4 | EM2: V | EN2: -2 | EO2: +2 | EP2: -3 | EQ2: +3 | ER2: -4 | ES2: +4 | ET2: V | EU2: -2 | EV2: +2 | EW2: -3 | EX2: +3 | EY2: -4 | EZ2: +4 | FA2: V | FB2: -2 | FC2: +2 | FD2: -3 | FE2: +3 | FF2: -4 | FG2: +4 | FH2: V | FI2: -2 | FJ2: +2 | FK2: -3 | FL2: +3 | FM2: -4 | FN2: +4 | FO2: V | FP2: -2 | FQ2: +2 | FR2: -3 | FS2: +3 | FT2: -4 | FU2: +4 | FV2: V | FW2: -2 | FX2: +2 | FY2: -3 | FZ2: +3 | GA2: -4 | GB2: +4 | GC2: V | GD2: -2 | GE2: +2 | GF2: -3 | GG2: +3 | GH2: -4 | GI2: +4 | GJ2: V | GK2: +2 | GL2: -3 | GM2: +3 | GN2: -4 | GO2: +4 | GP2: V | GQ2: +2 | GR2: -3 | GS2: +3 | GT2: -4 | GU2: +4 | GV2: V | GW2: +2 | GX2: -3 | GY2: +3 | GZ2: -4 | HA2: +4 | HB2: V | HC2: +2 | HD2: -3 | HE2: +3 | HF2: -4 | HG2: +4 | HH2: V | HI2: +2 | HJ2: -3 | HK2: +3 | HL2: -4 | HM2: +4 | HN2: V | HO2: +2 | HP2: -3 | HQ2: +3 | HR2: -4 | HS2: +4 | HT2: V | HU2: +2 | HV2: -3 | HW2: +3 | HX2: -4 | HY2: +4 | HZ2: V | IA2: +2 | IB2: -3 | IC2: +3 | ID2: -4 | IE2: +4 | IF2: V | IG2: -3 | IH2: +3 | II2: -4 | IJ2: +4 | IK2: V | IL2: -3 | IM2: +3 | IN2: -4 | IO2: +4 | IP2: V | IQ2: -3 | IR2: +3 | IS2: -4 | IT2: +4 | IU2: V | IV2: -3 | IW2: +3 | IX2: -4 | IY2: +4 | IZ2: V | JA2: -3 | JB2: +3 | JC2: -4 | JD2: +4 | JE2: V | JF2: -3 | JG2: +3 | JH2: -4 | JI2: +4 | JJ2: V | JK2: -3 | JL2: +3 | JM2: -4 | JN2: +4 | JO2: V | JP2: -3 | JQ2: +3 | JR2: -4 | JS2: +4 | JT2: V | JU2: +3 | JV2: -4 | JW2: +4 | JX2: V | JY2: +3 | JZ2: -4 | KA2: +4 | KB2: V | KC2: +3 | KD2: -4 | KE2: +4 | KF2: V | KG2: +3 | KH2: -4 | KI2: +4 | KJ2: V | KK2: +3 | KL2: -4 | KM2: +4 | KN2: V | KO2: +3 | KP2: -4 | KQ2: +4 | KR2: V | KS2: +3 | KT2: -4 | KU2: +4 | KV2: V | KW2: +3 | KX2: -4 | KY2: +4 | KZ2: V | LA2: -4 | LB2: +4 | LC2: V | LD2: -4 | LE2: +4 | LF2: V | LG2: -4 | LH2: +4 | LI2: V | LJ2: -4 | LK2: +4 | LL2: V | LM2: -4 | LN2: +4 | LO2: V | LP2: -4 | LQ2: +4 | LR2: V | LS2: -4 | LT2: +4 | LU2: V | LV2: -4 | LW2: +4 | LX2: V | LY2: +4 | LZ2: V | MA2: +4 | MB2: V | MC2: +4 | MD2: V | ME2: +4 | MF2: V | MG2: +4 | MH2: V | MI2: +4 | MJ2: V | MK2: +4 | ML2: V | MM2: +4 | MN2: V
A4: =COMPLEX(定数!O$13,計算!B4*定数!O$23) -> 74.3688188913563 | B4: =COMPLEX(定数!P$13,計算!B4*定数!P$23) -> -73.4757772913563 | C4: =COMPLEX(定数!Q$13,計算!B4*定数!Q$23) -> 125.193786513619 | D4: =COMPLEX(定数!R$13,計算!B4*定数!R$23) -> -123.916114913619 | E4: =COMPLEX(定数!S$13,計算!B4*定数!S$23) -> -77.7867441135484 | F4: =COMPLEX(定数!T$13,計算!B4*定数!T$23) -> 77.2000539135484 | G4: =COMPLEX(定数!U$13,計算!B4*定数!U$23) -> 124.646605989444 | H4: =COMPLEX(定数!V$13,計算!B4*定数!V$23) -> -123.576013789444 | I4: =IMPRODUCT(定数!D$31,計算!G4) -> -94.5176471868841 | J4: =COMPLEX(定数!O$14,計算!B4*定数!O$24) -> 86.1948356167649 | K4: =COMPLEX(定数!P$14,計算!B4*定数!P$24) -> -85.0982474167649 | L4: =COMPLEX(定数!Q$14,計算!B4*定数!Q$24) -> 57.0863694248256 | M4: =COMPLEX(定数!R$14,計算!B4*定数!R$24) -> -56.4801756248256 | N4: =COMPLEX(定数!S$14,計算!B4*定数!S$24) -> 163.969671876329 | O4: =COMPLEX(定数!T$14,計算!B4*定数!T$24) -> -162.682801076329 | P4: =COMPLEX(定数!U$14,計算!B4*定数!U$24) -> -101.525845343051 | Q4: =COMPLEX(定数!V$14,計算!B4*定数!V$24) -> 100.601901343051 | R4: =IMPRODUCT(定数!D$32,計算!G4) -> 94.5176471868841 | S4: =COMPLEX(定数!O$15,計算!B4*定数!O$25) -> 86.1919999827348 | T4: =COMPLEX(定数!P$15,計算!B4*定数!P$25) -> -85.0954239827348 | U4: =COMPLEX(定数!Q$15,計算!B4*定数!Q$25) -> -57.0828842529623 | V4: =COMPLEX(定数!R$15,計算!B4*定数!R$25) -> 56.4766926529622 | W4: =COMPLEX(定数!S$15,計算!B4*定数!S$25) -> -163.956966054068 | X4: =COMPLEX(定数!T$15,計算!B4*定数!T$25) -> 162.670209254068 | Y4: =COMPLEX(定数!U$15,計算!B4*定数!U$25) -> -101.548680976766 | Z4: =COMPLEX(定数!V$15,計算!B4*定数!V$25) -> 100.624555376766 | AA4: =IMPRODUCT(定数!D$33,計算!G4) -> 0 | AB4: =COMPLEX(定数!O$16,計算!B4*定数!O$26) -> 74.3664237452132 | AC4: =COMPLEX(定数!P$16,計算!B4*定数!P$26) -> -73.4733997452132 | AD4: =COMPLEX(定数!Q$16,計算!B4*定数!Q$26) -> -125.201328746793 | AE4: =COMPLEX(定数!R$16,計算!B4*定数!R$26) -> 123.923590146793 | AF4: =COMPLEX(定数!S$16,計算!B4*定数!S$26) -> 77.7704269443536 | AG4: =COMPLEX(定数!T$16,計算!B4*定数!T$26) -> -77.1838991443536 | AH4: =COMPLEX(定数!U$16,計算!B4*定数!U$26) -> 124.65071095008 | AI4: =COMPLEX(定数!V$16,計算!B4*定数!V$26) -> -123.58012635008 | AJ4: =IMPRODUCT(定数!D$34,計算!G4) -> 0 | AK4: =IMDIV(COMPLEX(定数!O$17,計算!B4*定数!O$27),計算!R4) -> 0.132351033539209 | AL4: =IMPRODUCT(COMPLEX(定数!P$17,計算!B4*定数!P$27),計算!R4) -> 0.760690566460791 | AM4: =IMDIV(COMPLEX(定数!Q$17,計算!B4*定数!Q$27),計算!S4) -> 0.109477260187387 | AN4: =IMPRODUCT(COMPLEX(定数!R$17,計算!B4*定数!R$27),計算!S4) -> 1.16819433981261 | AO4: =IMDIV(COMPLEX(定数!S$17,計算!B4*定数!S$27),計算!T4) -> 0.0360018453594568 | AP4: =IMPRODUCT(COMPLEX(定数!T$17,計算!B4*定数!T$27),計算!T4) -> -0.622692045359457 | AQ4: =IMDIV(COMPLEX(定数!U$17,計算!B4*定数!U$27),計算!U4) -> 0.00782303368756465 | AR4: =IMPRODUCT(COMPLEX(定数!V$17,計算!B4*定数!V$27),計算!U4) -> 1.06276916631244 | AS4: =IMPRODUCT(定数!E$31,計算!G4) -> 0 | AT4: =IMDIV(COMPLEX(定数!O$18,計算!B4*定数!O$28),計算!R4) -> 0.184296306167135 | AU4: =IMPRODUCT(COMPLEX(定数!P$18,計算!B4*定数!P$28),計算!R4) -> 0.912291893832865 | AV4: =IMDIV(COMPLEX(定数!Q$18,計算!B4*定数!Q$28),計算!S4) -> 0.0617679968171317 | AW4: =IMPRODUCT(COMPLEX(定数!R$18,計算!B4*定数!R$28),計算!S4) -> 0.544425803182868 | AX4: =IMDIV(COMPLEX(定数!S$18,計算!B4*定数!S$28),計算!T4) -> -0.0507010905058263 | AY4: =IMPRODUCT(COMPLEX(定数!T$18,計算!B4*定数!T$28),計算!T4) -> 1.33757189050583 | AZ4: =IMDIV(COMPLEX(定数!U$18,計算!B4*定数!U$28),計算!U4) -> -0.0324505472759126 | BA4: =IMPRODUCT(COMPLEX(定数!V$18,計算!B4*定数!V$28),計算!U4) -> -0.891493452724087 | BB4: =IMPRODUCT(定数!E$32,計算!G4) -> 0 | BC4: =IMDIV(COMPLEX(定数!O$19,計算!B4*定数!O$29),計算!R4) -> 0.184302228057148 | BD4: =IMPRODUCT(COMPLEX(定数!P$19,計算!B4*定数!P$29),計算!R4) -> 0.912273771942852 | BE4: =IMDIV(COMPLEX(定数!Q$19,計算!B4*定数!Q$29),計算!S4) -> -0.061781701716058 | BF4: =IMPRODUCT(COMPLEX(定数!R$19,計算!B4*定数!R$29),計算!S4) -> -0.544409898283942 | BG4: =IMDIV(COMPLEX(定数!S$19,計算!B4*定数!S$29),計算!T4) -> 0.0507043399331532 | BH4: =IMPRODUCT(COMPLEX(定数!T$19,計算!B4*定数!T$29),計算!T4) -> -1.33746113993315 | BI4: =IMDIV(COMPLEX(定数!U$19,計算!B4*定数!U$29),計算!U4) -> -0.0324446774508536 | BJ4: =IMPRODUCT(COMPLEX(定数!V$19,計算!B4*定数!V$29),計算!U4) -> -0.891680922549146 | BK4: =IMPRODUCT(定数!E$33,計算!G4) -> 0 | BL4: =IMDIV(COMPLEX(定数!O$20,計算!B4*定数!O$30),計算!R4) -> 0.132352374968467 | BM4: =IMPRODUCT(COMPLEX(定数!P$20,計算!B4*定数!P$30),計算!R4) -> 0.760671625031533 | BN4: =IMDIV(COMPLEX(定数!Q$20,計算!B4*定数!Q$30),計算!S4) -> -0.109478847158393 | BO4: =IMPRODUCT(COMPLEX(定数!R$20,計算!B4*定数!R$30),計算!S4) -> -1.16825975284161 | BP4: =IMDIV(COMPLEX(定数!S$20,計算!B4*定数!S$30),計算!T4) -> -0.0360140430583834 | BQ4: =IMPRODUCT(COMPLEX(定数!T$20,計算!B4*定数!T$30),計算!T4) -> 0.622541843058383 | BR4: =IMDIV(COMPLEX(定数!U$20,計算!B4*定数!U$30),計算!U4) -> 0.00780177054511466 | BS4: =IMPRODUCT(COMPLEX(定数!V$20,計算!B4*定数!V$30),計算!U4) -> 1.06278282945489 | BT4: =IMPRODUCT(定数!E$34,計算!G4) -> 0 | BU4: =IMDIV(B4,A4) -> -0.987991720006948 | BV4: =IMDIV(C4,A4) -> 1.68341770623669 | BW4: =IMDIV(D4,A4) -> -1.66623750062032 | BX4: =IMDIV(E4,A4) -> -1.04595911664518 | BY4: =IMDIV(F4,A4) -> 1.03807018942076 | BZ4: =IMDIV(G4,A4) -> 1.67606004569654 | CA4: =IMDIV(H4,A4) -> -1.66166433233226 | CB4: =IMDIV(I4,A4) -> -1.27093113210474 | CC4: =IMSUB(K4,IMPRODUCT(BU4,J4)) -> 0.0615364799587894 | CD4: =IMSUB(L4,IMPRODUCT(BV4,J4)) -> -88.0155430385974 | CE4: =IMSUB(M4,IMPRODUCT(BW4,J4)) -> 87.1408918396324 | CF4: =IMSUB(N4,IMPRODUCT(BX4,J4)) -> 254.125945997417 | CG4: =IMSUB(O4,IMPRODUCT(BY4,J4)) -> -252.159090412115 | CH4: =IMSUB(P4,IMPRODUCT(BZ4,J4)) -> -245.993565465692 | CI4: =IMSUB(Q4,IMPRODUCT(CA4,J4)) -> 243.828785318672 | CJ4: =IMSUB(R4,IMPRODUCT(CB4,J4)) -> 204.065347198881 | CK4: =IMSUB(T4,IMPRODUCT(BU4,S4)) -> 0.0615583310462 | CL4: =IMSUB(U4,IMPRODUCT(BV4,S4)) -> -202.18002315985 | CM4: =IMSUB(V4,IMPRODUCT(BW4,S4)) -> 200.093035277661 | CN4: =IMSUB(W4,IMPRODUCT(BX4,S4)) -> -73.8036578902453 | CO4: =IMSUB(X4,IMPRODUCT(BY4,S4)) -> 73.1968635054363 | CP4: =IMSUB(Y4,IMPRODUCT(BZ4,S4)) -> -246.011648406505 | CQ4: =IMSUB(Z4,IMPRODUCT(CA4,S4)) -> 243.846727480459 | CR4: =IMSUB(AA4,IMPRODUCT(CB4,S4)) -> 109.544096116429 | CS4: =IMSUB(AC4,IMPRODUCT(BU4,AB4)) -> 0.0000111615855047376 | CT4: =IMSUB(AD4,IMPRODUCT(BV4,AB4)) -> -250.391083228986 | CU4: =IMSUB(AE4,IMPRODUCT(BW4,AB4)) -> 247.835714178089 | CV4: =IMSUB(AF4,IMPRODUCT(BX4,AB4)) -> 155.554665832958 | CW4: =IMSUB(AG4,IMPRODUCT(BY4,AB4)) -> -154.381466728092 | CX4: =IMSUB(AH4,IMPRODUCT(BZ4,AB4)) -> 0.00811936939000191 | CY4: =IMSUB(AI4,IMPRODUCT(CA4,AB4)) -> -0.00809248955199848 | CZ4: =IMSUB(AJ4,IMPRODUCT(CB4,AB4)) -> 94.5146031210846 | DA4: =IMSUB(AL4,IMPRODUCT(BU4,AK4)) -> 0.891452291731891 | DB4: =IMSUB(AM4,IMPRODUCT(BV4,AK4)) -> -0.113324813111243 | DC4: =IMSUB(AN4,IMPRODUCT(BW4,AK4)) -> 1.3887225951415 | DD4: =IMSUB(AO4,IMPRODUCT(BX4,AK4)) -> 0.174435615487205 | DE4: =IMSUB(AP4,IMPRODUCT(BY4,AK4)) -> -0.760081707815537 | DF4: =IMSUB(AQ4,IMPRODUCT(BZ4,AK4)) -> -0.214005245634146 | DG4: =IMSUB(AR4,IMPRODUCT(CA4,AK4)) -> 1.28269215809185 | DH4: =IMSUB(AS4,IMPRODUCT(CB4,AK4)) -> 0.168209048891219 | DI4: =IMSUB(AU4,IMPRODUCT(BU4,AT4)) -> 1.09437511835386 | DJ4: =IMSUB(AV4,IMPRODUCT(BV4,AT4)) -> -0.248479668178641 | DK4: =IMSUB(AW4,IMPRODUCT(BW4,AT4)) -> 0.851507219744352 | DL4: =IMSUB(AX4,IMPRODUCT(BX4,AT4)) -> 0.14206531109372 | DM4: =IMSUB(AY4,IMPRODUCT(BY4,AT4)) -> 1.14625938905337 | DN4: =IMSUB(AZ4,IMPRODUCT(BZ4,AT4)) -> -0.341342222612105 | DO4: =IMSUB(BA4,IMPRODUCT(CA4,AT4)) -> -0.585254854185573 | DP4: =IMSUB(BB4,IMPRODUCT(CB4,AT4)) -> 0.234227913039719 | DQ4: =IMSUB(BD4,IMPRODUCT(BU4,BC4)) -> 1.09436284724215 | DR4: =IMSUB(BE4,IMPRODUCT(BV4,BC4)) -> -0.372039335726333 | DS4: =IMSUB(BF4,IMPRODUCT(BW4,BC4)) -> -0.237318614447244 | DT4: =IMSUB(BG4,IMPRODUCT(BX4,BC4)) -> 0.243476935587546 | DU4: =IMSUB(BH4,IMPRODUCT(BY4,BC4)) -> -1.5287797887231 | DV4: =IMSUB(BI4,IMPRODUCT(BZ4,BC4)) -> -0.341346278230292 | DW4: =IMSUB(BJ4,IMPRODUCT(CA4,BC4)) -> -0.585432483817217 | DX4: =IMSUB(BK4,IMPRODUCT(CB4,BC4)) -> 0.234235439354097 | DY4: =IMSUB(BM4,IMPRODUCT(BU4,BL4)) -> 0.891434675623633 | DZ4: =IMSUB(BN4,IMPRODUCT(BV4,BL4)) -> -0.332283178642788 | EA4: =IMSUB(BO4,IMPRODUCT(BW4,BL4)) -> -0.947729262372988 | EB4: =IMSUB(BP4,IMPRODUCT(BX4,BL4)) -> 0.102421130149526 | EC4: =IMSUB(BQ4,IMPRODUCT(BY4,BL4)) -> 0.485150788104579 | ED4: =IMSUB(BR4,IMPRODUCT(BZ4,BL4)) -> -0.214028757092579 | EE4: =IMSUB(BS4,IMPRODUCT(CA4,BL4)) -> 1.28270805023946 | EF4: =IMSUB(BT4,IMPRODUCT(CB4,BL4)) -> 0.168210753755425 | EG4: =IMSUB(BV4,IMPRODUCT(EN4,BU4)) -> -1411.43978681058 | EH4: =IMSUB(BW4,IMPRODUCT(EO4,BU4)) -> 1397.41410751156 | EI4: =IMSUB(BX4,IMPRODUCT(EP4,BU4)) -> 4079.04329286079 | EJ4: =IMSUB(BY4,IMPRODUCT(EQ4,BU4)) -> -4047.47256315351 | EK4: =IMSUB(BZ4,IMPRODUCT(ER4,BU4)) -> -3947.84471231329 | EL4: =IMSUB(CA4,IMPRODUCT(ES4,BU4)) -> 3913.10273485867 | EM4: =IMSUB(CB4,IMPRODUCT(ET4,BU4)) -> 3275.0762617502 | EN4: =IMDIV(CD4,CC4) -> -1430.29863095096 | EO4: =IMDIV(CE4,CC4) -> 1416.08509128228 | EP4: =IMDIV(CF4,CC4) -> 4129.67960090671 | EQ4: =IMDIV(CG4,CC4) -> -4097.71716843382 | ER4: =IMDIV(CH4,CC4) -> -3997.52416177254 | ES4: =IMDIV(CI4,CC4) -> 3962.34535160221 | ET4: =IMDIV(CJ4,CC4) -> 3316.16867483389 | EU4: =IMSUB(CL4,IMPRODUCT(EN4,CK4)) -> -114.133226540844 | EV4: =IMSUB(CM4,IMPRODUCT(EO4,CK4)) -> 112.921200438918 | EW4: =IMSUB(CN4,IMPRODUCT(EP4,CK4)) -> -328.019841877599 | EX4: =IMSUB(CO4,IMPRODUCT(EQ4,CK4)) -> 325.445493493582 | EY4: =IMSUB(CP4,IMPRODUCT(ER4,CK4)) -> 0.0692673090719893 | EZ4: =IMSUB(CQ4,IMPRODUCT(ES4,CK4)) -> -0.0686393928419875 | FA4: =IMSUB(CR4,IMPRODUCT(ET4,CK4)) -> -94.593712974034 | FB4: =IMSUB(CT4,IMPRODUCT(EN4,CS4)) -> -250.375118828519 | FC4: =IMSUB(CU4,IMPRODUCT(EO4,CS4)) -> 247.819908423261 | FD4: =IMSUB(CV4,IMPRODUCT(EP4,CS4)) -> 155.508572060985 | FE4: =IMSUB(CW4,IMPRODUCT(EQ4,CS4)) -> -154.335729707542 | FF4: =IMSUB(CX4,IMPRODUCT(ER4,CS4)) -> 0.0527380771288806 | FG4: =IMSUB(CY4,IMPRODUCT(ES4,CS4)) -> -0.0523185459932061 | FH4: =IMSUB(CZ4,IMPRODUCT(ET4,CS4)) -> 94.4775894208723 | FI4: =IMSUB(DB4,IMPRODUCT(EN4,DA4)) -> 1274.92966760911 | FJ4: =IMSUB(DC4,IMPRODUCT(EO4,DA4)) -> -1260.98357731581 | FK4: =IMSUB(DD4,IMPRODUCT(EP4,DA4)) -> -3681.23790873124 | FL4: =IMSUB(DE4,IMPRODUCT(EQ4,DA4)) -> 3652.15927896162 | FM4: =IMSUB(DF4,IMPRODUCT(ER4,DA4)) -> 3563.38807002011 | FN4: =IMSUB(DG4,IMPRODUCT(ES4,DA4)) -> -3530.95915216091 | FO4: =IMSUB(DH4,IMPRODUCT(ET4,DA4)) -> -2956.03795590129 | FP4: =IMSUB(DJ4,IMPRODUCT(EN4,DI4)) -> 1565.03475386014 | FQ4: =IMSUB(DK4,IMPRODUCT(EO4,DI4)) -> -1548.87678215144 | FR4: =IMSUB(DL4,IMPRODUCT(EP4,DI4)) -> -4519.27653669471 | FS4: =IMSUB(DM4,IMPRODUCT(EQ4,DI4)) -> 4485.58597057446 | FT4: =IMSUB(DN4,IMPRODUCT(ER4,DI4)) -> 4374.44963543963 | FU4: =IMSUB(DO4,IMPRODUCT(ES4,DI4)) -> -4336.87741797273 | FV4: =IMSUB(DP4,IMPRODUCT(ET4,DI4)) -> -3628.89825808966 | FW4: =IMSUB(DR4,IMPRODUCT(EN4,DQ4)) -> 1564.89364283831 | FX4: =IMSUB(DS4,IMPRODUCT(EO4,DQ4)) -> -1549.94823104729 | FY4: =IMSUB(DT4,IMPRODUCT(EP4,DQ4)) -> -4519.1244493105 | FZ4: =IMSUB(DU4,IMPRODUCT(EQ4,DQ4)) -> 4482.86064785156 | GA4: =IMSUB(DV4,IMPRODUCT(ER4,DQ4)) -> 4374.40057731846 | GB4: =IMSUB(DW4,IMPRODUCT(ES4,DQ4)) -> -4336.82897321991 | GC4: =IMSUB(DX4,IMPRODUCT(ET4,DQ4)) -> -3628.85755748709 | GD4: =IMSUB(DZ4,IMPRODUCT(EN4,DY4)) -> 1274.68551294806 | GE4: =IMSUB(EA4,IMPRODUCT(EO4,DY4)) -> -1263.29508326505 | GF4: =IMSUB(EB4,IMPRODUCT(EP4,DY4)) -> -3681.23717433366 | GG4: =IMSUB(EC4,IMPRODUCT(EQ4,DY4)) -> 3653.33232562829 | GH4: =IMSUB(ED4,IMPRODUCT(ER4,DY4)) -> 3563.31762569025 | GI4: =IMSUB(EE4,IMPRODUCT(ES4,DY4)) -> -3530.88933516409 | GJ4: =IMSUB(EF4,IMPRODUCT(ET4,DY4)) -> -2955.97953621004 | GK4: =IMSUB(EH4,IMPRODUCT(GW4,EG4)) -> 0.962960860900012 | GL4: =IMSUB(EI4,IMPRODUCT(GX4,EG4)) -> 8135.53297357332 | GM4: =IMSUB(EJ4,IMPRODUCT(GY4,EG4)) -> -8072.12631103176 | GN4: =IMSUB(EK4,IMPRODUCT(GZ4,EG4)) -> -3948.70131331295 | GO4: =IMSUB(EL4,IMPRODUCT(HA4,EG4)) -> 3913.95157067043 | GP4: =IMSUB(EM4,IMPRODUCT(HB4,EG4)) -> 4444.87872962236 | GQ4: =IMSUB(EO4,IMPRODUCT(GW4,EN4)) -> 0.975370053780125 | GR4: =IMSUB(EP4,IMPRODUCT(GX4,EN4)) -> 8240.36975645386 | GS4: =IMSUB(EQ4,IMPRODUCT(GY4,EN4)) -> -8176.14601777903 | GT4: =IMSUB(ER4,IMPRODUCT(GZ4,EN4)) -> -3998.39220818057 | GU4: =IMSUB(ES4,IMPRODUCT(HA4,EN4)) -> 3963.20552906838 | GV4: =IMSUB(ET4,IMPRODUCT(HB4,EN4)) -> 4501.60136839672 | GW4: =IMDIV(EV4,EU4) -> -0.989380602488336 | GX4: =IMDIV(EW4,EU4) -> 2.874008313085 | GY4: =IMDIV(EX4,EU4) -> -2.85145266945658 | GZ4: =IMDIV(EY4,EU4) -> -0.000606898719779915 | HA4: =IMDIV(EZ4,EU4) -> 0.000601397112149669 | HB4: =IMDIV(FA4,EU4) -> 0.828800830757049 | HC4: =IMSUB(FC4,IMPRODUCT(GW4,FB4)) -> 0.103622508612006 | HD4: =IMSUB(FD4,IMPRODUCT(GX4,FB4)) -> 875.088744963793 | HE4: =IMSUB(FE4,IMPRODUCT(GY4,FB4)) -> -868.268530656631 | HF4: =IMSUB(FF4,IMPRODUCT(GZ4,FB4)) -> -0.0992142619528914 | HG4: =IMSUB(FG4,IMPRODUCT(HA4,FB4)) -> 0.0982563274243959 | HH4: =IMSUB(FH4,IMPRODUCT(HB4,FB4)) -> 301.988695906843 | HI4: =IMSUB(FJ4,IMPRODUCT(GW4,FI4)) -> 0.407105353550151 | HJ4: =IMSUB(FK4,IMPRODUCT(GX4,FI4)) -> -7345.39637203852 | HK4: =IMSUB(FL4,IMPRODUCT(GY4,FI4)) -> 7287.56088303501 | HL4: =IMSUB(FM4,IMPRODUCT(GZ4,FI4)) -> 3564.16182320319 | HM4: =IMSUB(FN4,IMPRODUCT(HA4,FI4)) -> -3531.7258911812 | HN4: =IMSUB(FO4,IMPRODUCT(HB4,FI4)) -> -4012.70072357253 | HO4: =IMSUB(FQ4,IMPRODUCT(GW4,FP4)) -> -0.461754462110093 | HP4: =IMSUB(FR4,IMPRODUCT(GX4,FP4)) -> -9017.19942955569 | HQ4: =IMSUB(FS4,IMPRODUCT(GY4,FP4)) -> 8948.20849726128 | HR4: =IMSUB(FT4,IMPRODUCT(GZ4,FP4)) -> 4375.39945302816 | HS4: =IMSUB(FU4,IMPRODUCT(HA4,FP4)) -> -4337.81862535412 | HT4: =IMSUB(FV4,IMPRODUCT(HB4,FP4)) -> -4926.0003622526 | HU4: =IMSUB(FX4,IMPRODUCT(GW4,FW4)) -> -1.67281586575996 | HV4: =IMSUB(FY4,IMPRODUCT(GX4,FW4)) -> -9016.64178792167 | HW4: =IMSUB(FZ4,IMPRODUCT(GY4,FW4)) -> 8945.08080313849 | HX4: =IMSUB(GA4,IMPRODUCT(GZ4,FW4)) -> 4375.35030926689 | HY4: =IMSUB(GB4,IMPRODUCT(HA4,FW4)) -> -4337.77009573753 | HZ4: =IMSUB(GC4,IMPRODUCT(HB4,FW4)) -> -4925.84270871791 | IA4: =IMSUB(GE4,IMPRODUCT(GW4,GD4)) -> -2.14596248133989 | IB4: =IMSUB(GF4,IMPRODUCT(GX4,GD4)) -> -7344.6939351154 | IC4: =IMSUB(GG4,IMPRODUCT(GY4,GD4)) -> 7288.03773424167 | ID4: =IMSUB(GH4,IMPRODUCT(GZ4,GD4)) -> 3564.09123069618 | IE4: =IMSUB(GI4,IMPRODUCT(HA4,GD4)) -> -3531.65592735048 | IF4: =IMSUB(GJ4,IMPRODUCT(HB4,GD4)) -> -4012.43994829537 | IG4: =IMSUB(GL4,IMPRODUCT(IV4,GK4)) -> 3.35954425132059 | IH4: =IMSUB(GM4,IMPRODUCT(IW4,GK4)) -> -3.3329284652209 | II4: =IMSUB(GN4,IMPRODUCT(IX4,GK4)) -> -3947.77931815588 | IJ4: =IMSUB(GO4,IMPRODUCT(IY4,GK4)) -> 3913.03847757017 | IK4: =IMSUB(GP4,IMPRODUCT(IZ4,GK4)) -> 1638.50684683596 | IL4: =IMSUB(GR4,IMPRODUCT(IV4,GQ4)) -> 3.40109326879974 | IM4: =IMSUB(GS4,IMPRODUCT(IW4,GQ4)) -> -3.37414817360059 | IN4: =IMSUB(GT4,IMPRODUCT(IX4,GQ4)) -> -3997.45833173507 | IO4: =IMSUB(GU4,IMPRODUCT(IY4,GQ4)) -> 3962.28066939602 | IP4: =IMSUB(GV4,IMPRODUCT(IZ4,GQ4)) -> 1659.06518091129 | IQ4: =IMSUB(GX4,IMPRODUCT(IV4,GW4)) -> 8358.16130370989 | IR4: =IMSUB(GY4,IMPRODUCT(IW4,GW4)) -> -8293.01980980947 | IS4: =IMSUB(GZ4,IMPRODUCT(IX4,GW4)) -> -0.947897864565149 | IT4: =IMSUB(HA4,IMPRODUCT(IY4,GW4)) -> 0.93874606980517 | IU4: =IMSUB(HB4,IMPRODUCT(IZ4,GW4)) -> 2884.19614932556 | IV4: =IMDIV(HD4,HC4) -> 8444.96776506724 | IW4: =IMDIV(HE4,HC4) -> -8379.14988053118 | IX4: =IMDIV(HF4,HC4) -> -0.957458599312429 | IY4: =IMDIV(HG4,HC4) -> 0.948214135524332 | IZ4: =IMDIV(HH4,HC4) -> 2914.31562458674 | JA4: =IMSUB(HJ4,IMPRODUCT(IV4,HI4)) -> -10783.3879597558 | JB4: =IMSUB(HK4,IMPRODUCT(IW4,HI4)) -> 10698.7576575984 | JC4: =IMSUB(HL4,IMPRODUCT(IX4,HI4)) -> 3564.55160972477 | JD4: =IMSUB(HM4,IMPRODUCT(IY4,HI4)) -> -3532.11191423208 | JE4: =IMSUB(HN4,IMPRODUCT(IZ4,HI4)) -> -5199.13421627664 | JF4: =IMSUB(HP4,IMPRODUCT(IV4,HO4)) -> -5117.69788165999 | JG4: =IMSUB(HQ4,IMPRODUCT(IW4,HO4)) -> 5079.09865123675 | JH4: =IMSUB(HR4,IMPRODUCT(IX4,HO4)) -> 4374.95734224764 | JI4: =IMSUB(HS4,IMPRODUCT(IY4,HO4)) -> -4337.38078324601 | JJ4: =IMSUB(HT4,IMPRODUCT(IZ4,HO4)) -> -3580.30211860251 | JK4: =IMSUB(HV4,IMPRODUCT(IV4,HU4)) -> 5110.23427531423 | JL4: =IMSUB(HW4,IMPRODUCT(IW4,HU4)) -> -5071.69405859471 | JM4: =IMSUB(HX4,IMPRODUCT(IX4,HU4)) -> 4373.74865733115 | JN4: =IMSUB(HY4,IMPRODUCT(IY4,HU4)) -> -4336.18390808749 | JO4: =IMSUB(HZ4,IMPRODUCT(IZ4,HU4)) -> -50.7292940770594 | JP4: =IMSUB(IB4,IMPRODUCT(IV4,IA4)) -> 10777.8900448437 | JQ4: =IMSUB(IC4,IMPRODUCT(IW4,IA4)) -> -10693.3035349018 | JR4: =IMSUB(ID4,IMPRODUCT(IX4,IA4)) -> 3562.03656046462 | JS4: =IMSUB(IE4,IMPRODUCT(IY4,IA4)) -> -3529.62109539137 | JT4: =IMSUB(IF4,IMPRODUCT(IZ4,IA4)) -> 2241.5720408504 | JU4: =IMSUB(IH4,IMPRODUCT(KK4,IG4)) -> 0.000249374526489987 | JV4: =IMSUB(II4,IMPRODUCT(KL4,IG4)) -> -3946.6687888015 | JW4: =IMSUB(IJ4,IMPRODUCT(KM4,IG4)) -> 3911.93805474195 | JX4: =IMSUB(IK4,IMPRODUCT(KN4,IG4)) -> 1636.88706634273 | JY4: =IMSUB(IM4,IMPRODUCT(KK4,IL4)) -> 0.000252598177040042 | JZ4: =IMSUB(IN4,IMPRODUCT(KL4,IL4)) -> -3996.33406795718 | KA4: =IMSUB(IO4,IMPRODUCT(KM4,IL4)) -> 3961.16663713631 | KB4: =IMSUB(IP4,IMPRODUCT(KN4,IL4)) -> 1657.42536785323 | KC4: =IMSUB(IR4,IMPRODUCT(KK4,IQ4)) -> -0.455118152600335 | KD4: =IMSUB(IS4,IMPRODUCT(KL4,IQ4)) -> 2761.92193865322 | KE4: =IMSUB(IT4,IMPRODUCT(KM4,IQ4)) -> -2736.78721093784 | KF4: =IMSUB(IU4,IMPRODUCT(KN4,IQ4)) -> -1145.63219232872 | KG4: =IMSUB(IW4,IMPRODUCT(KK4,IV4)) -> -0.46000292700046 | KH4: =IMSUB(IX4,IMPRODUCT(KL4,IV4)) -> 2790.60708061494 | KI4: =IMSUB(IY4,IMPRODUCT(KM4,IV4)) -> -2765.21130545347 | KJ4: =IMSUB(IZ4,IMPRODUCT(KN4,IV4)) -> -1157.36583828707 | KK4: =IMDIV(JB4,JA4) -> -0.992151789171154 | KL4: =IMDIV(JC4,JA4) -> -0.330559525728637 | KM4: =IMDIV(JD4,JA4) -> 0.327551222993563 | KN4: =IMDIV(JE4,JA4) -> 0.482142925366322 | KO4: =IMSUB(JG4,IMPRODUCT(KK4,JF4)) -> 1.56554151037017 | KP4: =IMSUB(JH4,IMPRODUCT(KL4,JF4)) -> 2683.25355766366 | KQ4: =IMSUB(JI4,IMPRODUCT(KM4,JF4)) -> -2661.07258319671 | KR4: =IMSUB(JJ4,IMPRODUCT(KN4,JF4)) -> -1112.84029079793 | KS4: =IMSUB(JL4,IMPRODUCT(KK4,JK4)) -> -1.56597925794085 | KT4: =IMSUB(JM4,IMPRODUCT(KL4,JK4)) -> 6062.98527574125 | KU4: =IMSUB(JN4,IMPRODUCT(KM4,JK4)) -> -6010.04739475029 | KV4: =IMSUB(JO4,IMPRODUCT(KN4,JK4)) -> -2514.59259688431 | KW4: =IMSUB(JQ4,IMPRODUCT(KK4,JP4)) -> -0.000643420198684908 | KX4: =IMSUB(JR4,IMPRODUCT(KL4,JP4)) -> 7124.77078204355 | KY4: =IMSUB(JS4,IMPRODUCT(KM4,JP4)) -> -7059.93216087007 | KZ4: =IMSUB(JT4,IMPRODUCT(KN4,JP4)) -> -2954.9113946471 | LA4: =IMSUB(JV4,IMPRODUCT(LP4,JU4)) -> -3947.09620326542 | LB4: =IMSUB(JW4,IMPRODUCT(LQ4,JU4)) -> 3912.36193600667 | LC4: =IMSUB(JX4,IMPRODUCT(LR4,JU4)) -> 1637.06433025987 | LD4: =IMSUB(JZ4,IMPRODUCT(LP4,JY4)) -> -3996.76700758396 | LE4: =IMSUB(KA4,IMPRODUCT(LQ4,JY4)) -> 3961.59599789042 | LF4: =IMSUB(KB4,IMPRODUCT(LR4,JY4)) -> 1657.60492325111 | LG4: =IMSUB(KD4,IMPRODUCT(LP4,KC4)) -> 3541.96986075106 | LH4: =IMSUB(KE4,IMPRODUCT(LQ4,KC4)) -> -3510.38690789734 | LI4: =IMSUB(KF4,IMPRODUCT(LR4,KC4)) -> -1469.14569480201 | LJ4: =IMSUB(KH4,IMPRODUCT(LP4,KG4)) -> 3579.02724209493 | LK4: =IMSUB(KI4,IMPRODUCT(LQ4,KG4)) -> -3547.11403311843 | LL4: =IMSUB(KJ4,IMPRODUCT(LR4,KG4)) -> -1484.35160497559 | LM4: =IMSUB(KL4,IMPRODUCT(LP4,KK4)) -> 1700.16399804521 | LN4: =IMSUB(KM4,IMPRODUCT(LQ4,KK4)) -> -1686.10995748839 | LO4: =IMSUB(KN4,IMPRODUCT(LR4,KK4)) -> -704.773181359104 | LP4: =IMDIV(KP4,KO4) -> 1713.94596686817 | LQ4: =IMDIV(KQ4,KO4) -> -1699.77772264084 | LR4: =IMDIV(KR4,KO4) -> -710.834100166913 | LS4: =IMSUB(KT4,IMPRODUCT(LP4,KS4)) -> 8746.98910908818 | LT4: =IMSUB(KU4,IMPRODUCT(LQ4,KS4)) -> -8671.86405151578 | LU4: =IMSUB(KV4,IMPRODUCT(LR4,KS4)) -> -3627.74405358274 | LV4: =IMSUB(KX4,IMPRODUCT(LP4,KW4)) -> 7125.87356949809 | LW4: =IMSUB(KY4,IMPRODUCT(LQ4,KW4)) -> -7061.02583219009 | LX4: =IMSUB(KZ4,IMPRODUCT(LR4,KW4)) -> -2955.36875966506 | LY4: =IMSUB(LB4,IMPRODUCT(MK4,LA4)) -> -0.83393586289003 | LZ4: =IMSUB(LC4,IMPRODUCT(ML4,LA4)) -> 0.0376229283701832 | MA4: =IMSUB(LE4,IMPRODUCT(MK4,LD4)) -> -0.84407184058 | MB4: =IMSUB(LF4,IMPRODUCT(ML4,LD4)) -> -0.0223544887899152 | MC4: =IMSUB(LH4,IMPRODUCT(MK4,LG4)) -> 1.16212045184011 | MD4: =IMSUB(LI4,IMPRODUCT(ML4,LG4)) -> -0.141910750380021 | ME4: =IMSUB(LK4,IMPRODUCT(MK4,LJ4)) -> 1.17410272378993 | MF4: =IMSUB(LL4,IMPRODUCT(ML4,LJ4)) -> 0.0214327855101146 | MG4: =IMSUB(LN4,IMPRODUCT(MK4,LM4)) -> -0.548117585 | MH4: =IMSUB(LO4,IMPRODUCT(ML4,LM4)) -> 0.356293149515977 | MI4: =IMSUB(LQ4,IMPRODUCT(MK4,LP4)) -> -0.552282782720113 | MJ4: =IMSUB(LR4,IMPRODUCT(ML4,LP4)) -> 0.0113361224530308 | MK4: =IMDIV(LT4,LS4) -> -0.991411323755469 | ML4: =IMDIV(LU4,LS4) -> -0.414742033897526 | MM4: =IMSUB(LW4,IMPRODUCT(MK4,LV4)) -> 3.64591626011952 | MN4: =IMSUB(LX4,IMPRODUCT(ML4,LV4)) -> 0.0305378451998877
A5: =COMPLEX(定数!O$13,計算!B5*定数!O$23) -> 74.3688188913563+2.80557293005504i | B5: =COMPLEX(定数!P$13,計算!B5*定数!P$23) -> -73.4757772913563+2.80557293005504i | C5: =COMPLEX(定数!Q$13,計算!B5*定数!Q$23) -> 125.193786513619+4.01392371246772i | D5: =COMPLEX(定数!R$13,計算!B5*定数!R$23) -> -123.916114913619+4.01392371246772i | E5: =COMPLEX(定数!S$13,計算!B5*定数!S$23) -> -77.7867441135484-1.84314162234837i | F5: =COMPLEX(定数!T$13,計算!B5*定数!T$23) -> 77.2000539135484-1.84314162234837i | G5: =COMPLEX(定数!U$13,計算!B5*定数!U$23) -> 124.646605989444+3.36336459068433i | H5: =COMPLEX(定数!V$13,計算!B5*定数!V$23) -> -123.576013789444+3.36336459068433i | I5: =IMPRODUCT(定数!D$31,計算!G5) -> 21.596241188142-8.55055677113639i | J5: =COMPLEX(定数!O$14,計算!B5*定数!O$24) -> 86.1948356167649+3.44503343284285i | K5: =COMPLEX(定数!P$14,計算!B5*定数!P$24) -> -85.0982474167649+3.44503343284285i | L5: =COMPLEX(定数!Q$14,計算!B5*定数!Q$24) -> 57.0863694248256+1.90441398857115i | M5: =COMPLEX(定数!R$14,計算!B5*定数!R$24) -> -56.4801756248256+1.90441398857115i | N5: =COMPLEX(定数!S$14,計算!B5*定数!S$24) -> 163.969671876329+4.04282385105843i | O5: =COMPLEX(定数!T$14,計算!B5*定数!T$24) -> -162.682801076329+4.04282385105843i | P5: =COMPLEX(定数!U$14,計算!B5*定数!U$24) -> -101.525845343051-2.90265568248369i | Q5: =COMPLEX(定数!V$14,計算!B5*定数!V$24) -> 100.601901343051-2.90265568248369i | R5: =IMPRODUCT(定数!D$32,計算!G5) -> -21.596241188142+8.55055677113639i | S5: =COMPLEX(定数!O$15,計算!B5*定数!O$25) -> 86.1919999827348+3.44499510577437i | T5: =COMPLEX(定数!P$15,計算!B5*定数!P$25) -> -85.0954239827348+3.44499510577437i | U5: =COMPLEX(定数!Q$15,計算!B5*定数!Q$25) -> -57.0828842529623-1.90440707726736i | V5: =COMPLEX(定数!R$15,計算!B5*定数!R$25) -> 56.4766926529622-1.90440707726736i | W5: =COMPLEX(定数!S$15,計算!B5*定数!S$25) -> -163.956966054068-4.04246570992059i | X5: =COMPLEX(定数!T$15,計算!B5*定数!T$25) -> 162.670209254068-4.04246570992059i | Y5: =COMPLEX(定数!U$15,計算!B5*定数!U$25) -> -101.548680976766-2.9032261960145i | Z5: =COMPLEX(定数!V$15,計算!B5*定数!V$25) -> 100.624555376766-2.9032261960145i | AA5: =IMPRODUCT(定数!D$33,計算!G5) -> 0 | AB5: =COMPLEX(定数!O$16,計算!B5*定数!O$26) -> 74.3664237452132+2.80551763801798i | AC5: =COMPLEX(定数!P$16,計算!B5*定数!P$26) -> -73.4733997452132+2.80551763801798i | AD5: =COMPLEX(定数!Q$16,計算!B5*定数!Q$26) -> -125.201328746793-4.01413419916643i | AE5: =COMPLEX(定数!R$16,計算!B5*定数!R$26) -> 123.923590146793-4.01413419916643i | AF5: =COMPLEX(定数!S$16,計算!B5*定数!S$26) -> 77.7704269443536+1.84263142769722i | AG5: =COMPLEX(定数!T$16,計算!B5*定数!T$26) -> -77.1838991443536+1.84263142769722i | AH5: =COMPLEX(定数!U$16,計算!B5*定数!U$26) -> 124.65071095008+3.36334071457254i | AI5: =COMPLEX(定数!V$16,計算!B5*定数!V$26) -> -123.58012635008+3.36334071457254i | AJ5: =IMPRODUCT(定数!D$34,計算!G5) -> 0 | AK5: =IMDIV(COMPLEX(定数!O$17,計算!B5*定数!O$27),計算!R5) -> 0.112901380450136-0.0700874356344674i | AL5: =IMPRODUCT(COMPLEX(定数!P$17,計算!B5*定数!P$27),計算!R5) -> 0.600507199320705+0.467101076565777i | AM5: =IMDIV(COMPLEX(定数!Q$17,計算!B5*定数!Q$27),計算!S5) -> 0.0992973578129804-0.0491560851465017i | AN5: =IMPRODUCT(COMPLEX(定数!R$17,計算!B5*定数!R$27),計算!S5) -> 0.944822064383953+0.687226525754716i | AO5: =IMDIV(COMPLEX(定数!S$17,計算!B5*定数!S$27),計算!T5) -> 0.0254231891566609-0.0266675031477357i | AP5: =IMPRODUCT(COMPLEX(定数!T$17,計算!B5*定数!T$27),計算!T5) -> -0.511277185453485-0.355531129987867i | AQ5: =IMDIV(COMPLEX(定数!U$17,計算!B5*定数!U$27),計算!U5) -> 0.0145278026958855+0.00738036603722483i | AR5: =IMPRODUCT(COMPLEX(定数!V$17,計算!B5*定数!V$27),計算!U5) -> 0.869069597481709+0.611882883071064i | AS5: =IMPRODUCT(定数!E$31,計算!G5) -> 0 | AT5: =IMDIV(COMPLEX(定数!O$18,計算!B5*定数!O$28),計算!R5) -> 0.15603276880757-0.0991628654207163i | AU5: =IMPRODUCT(COMPLEX(定数!P$18,計算!B5*定数!P$28),計算!R5) -> 0.719979536056461+0.560464394557255i | AV5: =IMDIV(COMPLEX(定数!Q$18,計算!B5*定数!Q$28),計算!S5) -> 0.055141922806418-0.028985560531572i | AW5: =IMPRODUCT(COMPLEX(定数!R$18,計算!B5*定数!R$28),計算!S5) -> 0.440242587732413+0.320392615484966i | AX5: =IMDIV(COMPLEX(定数!S$18,計算!B5*定数!S$28),計算!T5) -> -0.0323557343741659+0.0426488943609824i | AY5: =IMPRODUCT(COMPLEX(定数!T$18,計算!B5*定数!T$28),計算!T5) -> 1.09804819165007+0.763992115302227i | AZ5: =IMDIV(COMPLEX(定数!U$18,計算!B5*定数!U$28),計算!U5) -> -0.0337481773008161+0.00814140708584401i | BA5: =IMPRODUCT(COMPLEX(定数!V$18,計算!B5*定数!V$28),計算!U5) -> -0.728815305143464-0.513557213171534i | BB5: =IMPRODUCT(定数!E$32,計算!G5) -> 0 | BC5: =IMDIV(COMPLEX(定数!O$19,計算!B5*定数!O$29),計算!R5) -> 0.156037401629726-0.0991665576051401i | BD5: =IMPRODUCT(COMPLEX(定数!P$19,計算!B5*定数!P$29),計算!R5) -> 0.719965157232917+0.560453363745103i | BE5: =IMDIV(COMPLEX(定数!Q$19,計算!B5*定数!Q$29),計算!S5) -> -0.0551531056336648+0.0289934832512685i | BF5: =IMPRODUCT(COMPLEX(定数!R$19,計算!B5*定数!R$29),計算!S5) -> -0.440229607054507-0.320383424801151i | BG5: =IMDIV(COMPLEX(定数!S$19,計算!B5*定数!S$29),計算!T5) -> 0.0323592784152576-0.0426494554465686i | BH5: =IMPRODUCT(COMPLEX(定数!T$19,計算!B5*定数!T$29),計算!T5) -> -1.09795732921296-0.763928774769102i | BI5: =IMDIV(COMPLEX(定数!U$19,計算!B5*定数!U$29),計算!U5) -> -0.0337447018774554+0.00813609145226606i | BJ5: =IMPRODUCT(COMPLEX(定数!V$19,計算!B5*定数!V$29),計算!U5) -> -0.728968661434509-0.513665067995191i | BK5: =IMPRODUCT(定数!E$33,計算!G5) -> 0 | BL5: =IMDIV(COMPLEX(定数!O$20,計算!B5*定数!O$30),計算!R5) -> 0.112902310713227-0.0700884302470633i | BM5: =IMPRODUCT(COMPLEX(定数!P$20,計算!B5*定数!P$30),計算!R5) -> 0.600492209252333+0.467089495080391i | BN5: =IMDIV(COMPLEX(定数!Q$20,計算!B5*定数!Q$30),計算!S5) -> -0.0992991702924792+0.0491562687232664i | BO5: =IMPRODUCT(COMPLEX(定数!R$20,計算!B5*定数!R$30),計算!S5) -> -0.944875004629093-0.687264957448835i | BP5: =IMDIV(COMPLEX(定数!S$20,計算!B5*定数!S$30),計算!T5) -> -0.025434505828212+0.0266725448130024i | BQ5: =IMPRODUCT(COMPLEX(定数!T$20,計算!B5*定数!T$30),計算!T5) -> 0.511154014299948+0.355445139873501i | BR5: =IMDIV(COMPLEX(定数!U$20,計算!B5*定数!U$30),計算!U5) -> 0.0145101961941228+0.00739228839497799i | BS5: =IMPRODUCT(COMPLEX(定数!V$20,計算!B5*定数!V$30),計算!U5) -> 0.869080931436145+0.611890514141126i | BT5: =IMPRODUCT(定数!E$34,計算!G5) -> 0 | BU5: -0.98516646088389+0.0748906513151084i | BV5: 1.68305854852844-0.00952038504222769i | BW5: -1.66183625422979+0.116666186862453i | BX5: -1.04540628188485+0.0146542860201849i | BY5: 1.03566128004985-0.0638542462439767i | BZ5: 1.67538180382289-0.0179785192982721i | CA5: -1.65759912575268+0.107758600260766i | CB5: 0.285649783709171-0.125751198031651i | CC5: 0.0760145318599967+0.38377744816509i | CD5: -88.0173835437384-3.07317095681816i | CE5: 87.1634460447154-2.42652735434081i | CF5: 254.128779001401+6.38115966846478i | CG5: -252.171434878014+5.97884237461788i | CH5: -245.99704111894-7.12474649388271i | CI5: 243.849617486371-6.48040611178403i | CJ5: -46.6509944203575+18.4055875591234i | CK5: 0.0760415240091987+0.38391372503361i | CL5: -202.181864318543-6.88195451228423i | CM5: 200.115597491595-6.23508129088161i | CN5: -73.80082388028-1.70412840568027i | CO5: 73.1845146560988-2.10658855977396i | CP5: -246.015125293934-7.12530377544153i | CQ5: 243.867567045526-6.48073459227611i | CR5: -25.0539384142934+9.85468515172934i | CS5: 0.0000137876373997869+0.0000696101571198149i | CT5: -250.391083562819-8.02798765461201i | CU5: 247.835718269006-8.02787036537843i | CV5: 155.554666346812+3.68575034655934i | CW5: -154.381468967151+3.68567737361585i | CX5: 0.00811873897099247+0.0000256979798396451i | CY5: -0.00808871098199404+0.000142569451699881i | CZ5: -21.5955500621244+8.55027137279788i | DA5: 0.706484959024+0.389598027733056i | DB5: -0.0900550163204206+0.0698800371562093i | DC5: 1.12426883770614+0.557580910702737i | DD5: 0.142423920184496-0.101591837762398i | DE5: -0.623729393276256-0.275735054134715i | DF5: -0.173365047422638+0.126833380023044i | DG5: 1.04866230305229+0.483539916312309i | DH5: -0.0234366759080477+0.0342179446807479i | DI5: 0.866271415106899+0.451087069697124i | DJ5: -0.206526293925029+0.139396839849593i | DK5: 0.687974546397698+0.13739642249314i | DL5: 0.129308741324698-0.0633031369021636i | DM5: 0.942783064603933+0.876654610278825i | DN5: -0.293379837471484+0.17708230557182i | DO5: -0.480861175554849-0.694743364961559i | DP5: -0.032100877534519+0.0479471586691568i | DQ5: 0.866261323874266+0.451072054513641i | DR5: -0.316829084525028+0.197382141901241i | DS5: -0.192490380150481-0.503386294092605i | DT5: 0.19402854318918-0.148605414433207i | DU5: -1.25322701853197-0.651262160114691i | DV5: -0.293384057414055+0.177083259048124i | DW5: -0.481007250348564-0.69485783917332i | DX5: -0.0321017366025512+0.0479487959237753i | DY5: 0.70647081093244+0.38958539672069i | DZ5: -0.288653100644032+0.168194073873672i | EA5: -0.765426801399636-0.816912333914333i | EB5: 0.091567183127164-0.0482528432082571i | EC5: 0.398700906549951+0.435242305209656i | ED5: -0.173384194588593+0.126846985461395i | EE5: 1.04867507183195+0.483545798469553i | EF5: -0.0234368165637729+0.0342183457733189i | EG5: -32.5578698167174+219.750963926134i | EH5: 18.5321904832213-219.160783173058i | EI5: 91.5690397429345-635.241524598018i | EJ5: -59.9983099638058+634.010954075746i | EK5: -90.3519068560042+614.62522460384i | EL5: 55.609929321245-613.252874162879i | EM5: 32.3698196729684+122.39174431593i | EN5: -51.4167139972154+219.160783161181i | EO5: 37.2031742940694-219.750963925236i | EP5: 142.205347904892-634.01095404583i | EQ5: -110.242915360146+635.24152459099i | ER5: -140.031356427503+613.252874132252i | ES5: 104.852546177032-614.625224598728i | ET5: 22.9806559292835+126.109177217308i | EU5: -114.133226381957-3.80769226725124i | EV5: 112.92120028003-3.80769231782705i | EW5: -328.019842337074-8.08755405537687i | EX5: 325.445493953058-8.08755390912108i | EY5: 0.0692677535689938+0.00197274011253956i | EZ5: -0.0686398373370025+0.00197259862425003i | FA5: 21.6136214725332-8.55743809694786i | FB5: -250.37511883126-8.02743023848256i | FC5: 247.819908426003-8.02743023757754i | FD5: 155.508572068912+3.68459292309028i | FE5: -154.335729715472+3.68459292047307i | FF5: 0.0527380694605394+0.00131799443954629i | FG5: -0.0523185383232463+0.00131799697143388i | FH5: -21.5870884314352+8.54693293811967i | FI5: 121.61968894118-134.732066508309i | FJ5: -110.773756366712+141.314048324529i | FK5: -347.332932724805+392.414687975234i | FL5: 324.750077262412-406.113895129289i | FM5: 337.67879232389-378.571157987712i | FN5: -312.484859785041+393.8566713387i | FO5: 32.8729622844491-98.0132371803003i | FP5: 143.194898769293-166.519910074664i | FQ5: -130.666890275947+173.719504037369i | FR5: -409.053262640426+485.015269535976i | FS5: 382.992307236831-499.685766187146i | FT5: 397.642223429977-467.900018550751i | FU5: -368.561116256071+484.439891903294i | FV5: 36.9466330033911-119.563104990193i | FW5: 143.0807863813-166.46048520156i | FX5: -131.543680175565+173.077062375173i | FY5: -408.977588020509+484.925704545807i | FZ5: 380.785646398742-501.208927905139i | GA5: 397.631598016614-467.89593171637i | GB5: -368.550975528909+484.435149483179i | GC5: 36.9449704950333-119.561485697129i | GD5: 121.417595185916-134.631301209915i | GE5: -112.660149974759+139.936915936909i | GF5: -347.37376932738+392.460853122268i | GG5: 325.762924091825-405.395322794318i | GH5: 337.669045995635-378.564236762256i | GI5: -312.475600214026+393.849305840713i | GJ5: 32.8716943896406-98.0111623060727i | GK5: 0.9605911152041-0.0710316981240169i | GL5: 179.62109365713-1267.43812869412i | GM5: -116.21946423363+1264.80314023847i | GN5: -90.3710127350256+614.758666697704i | GO5: 55.6212711922834-613.385973706841i | GP5: 44.1373633494296+166.054918318476i | GQ5: 0.975584816397799+0.0064373432120135i | GR5: 284.456902551005-1264.98321788795i | GS5: -220.232707488014+1267.48100774365i | GT5: -140.061907673+613.386013915721i | GU5: 104.875228321616-614.758673482594i | GV5: 31.1800309357113+171.193619516527i | GW5: -0.987168861459207+0.0662955722705536i | GX5: 2.87317448617638-0.0249936877150389i | GY5: -2.84592109556797+0.165805754010596i | GZ5: -0.000606803879386564+2.95954418749451E-06i | HA5: 0.000600156424440952-0.0000373056097309109i | HB5: -0.186662713187171+0.081205031701443i | HC5: 0.125204350112+0.64690237868267i | HD5: 875.080610552802+20.4910031421749i | HE5: -868.214556326151+22.352795224885i | HF5: -0.0992142814826436-0.00281208514303964i | HG5: 0.0982451659431197-0.00320468566863867i | HH5: -68.9746551540356+27.3802304918288i | HI5: 0.353274044012991+0.247900749753001i | HJ5: -693.400068811801+782.563148462123i | HK5: 648.530763779715-809.715969682179i | HL5: 337.752192877445-378.653273867191i | HM5: -312.552824360806+393.942068750644i | HN5: 44.6339016671814-133.038820964044i | HO5: -0.348877823939006-0.156953761460983i | HP5: -816.315245704226+967.034995185112i | HQ5: 762.903731174376-997.330829261627i | HR5: 397.728621827027-468.00148726981i | HS5: -368.640843467737+484.545171870132i | HT5: 50.1535267456951-162.274309498459i | HU5: -1.33437631372098-0.733167893266994i | HV5: -815.913191529291+966.771840076306i | HW5: 760.382168469924-998.665951989119i | HX5: 397.717927345694-467.997364038465i | HY5: -368.630636472173+484.540389528765i | HZ5: 50.1353893080905-162.252331297266i | IA5: -1.72593993320399-1.016361351819i | IB5: -692.862773289336+782.314746256511i | IC5: 648.985175194018-808.677118951335i | ID5: 337.742324216135-378.646290898855i | IE5: -312.543447261036+393.934635238485i | IF5: 44.6030930529476-133.00152593602i | IG5: 0.0757943174009768-0.523143030749907i | IH5: -0.0491784970200086+0.522108481209898i | II5: -90.3499466415634+614.615110975859i | IJ5: 55.6091060073124-613.242794970411i | IK5: 16.19448112426+61.232074420891i | IL5: 0.117343330219967-0.522108467110002i | IM5: -0.090398201173997+0.52314302758009i | IN5: -140.028960288749+613.24279495186i | IO5: 104.851297901159-614.615110972764i | IP5: 11.4971282491701+63.091887989364i | IQ5: 196.084437033608-1300.09735380981i | IR5: -130.942943003829+1297.97240997434i | IS5: -0.0232409995658116+0.147310778257688i | IT5: 0.0140891233361752-0.147019660189025i | IU5: 27.7877037641038+107.94439803042i | IV5: 282.890898566258-1297.97240992539i | IW5: -217.073013900856+1300.09735380244i | IX5: -0.0328018311521611+0.147019631809713i | IY5: 0.0235572858941447-0.147310775802676i | IZ5: 20.9057354345751+110.669162043464i | JA5: -1115.10641414199+1170.97424488088i | JB5: 1047.51213400608-1215.19405657339i | JC5: 337.800227189941-378.697080488534i | JD5: -312.597664990228+393.988269955303i | JE5: 64.6834162122545-177.317910875037i | JF5: -513.899232589913+558.601995890526i | JG5: 483.116600504-577.826119601583i | JH5: 397.694102711332-467.95534375137i | JI5: -368.60950387273+484.497475811858i | JJ5: 40.0771329714975-120.383059255017i | JK5: 513.201420188449-557.805275465244i | JL5: -482.464557556736+577.002198169371i | JM5: 397.566367285435-467.825233773567i | JN5: -368.49119865671+484.361092964448i | JO5: -3.1075688921252+0.749391198645981i | JP5: 1114.59891846166-1170.38829214665i | JQ5: -1047.03851192536+1214.58819917743i | JR5: 337.536285154137-378.425882358802i | JS5: -312.353067821361+393.704328402872i | JT5: -31.7947224666926+79.254581736073i | JU5: 0.000229125326517199-0.0000375811803640103i | JV5: -90.3315210786821+614.450243247143i | JW5: 55.6002924563165-613.078617885328i | JX5: 16.1781838740945+61.1725625861648i | JY5: 0.000234324955219911-0.0000191664334260322i | JZ5: -139.997491586266+613.077826933637i | KA5: 104.829584841072-614.450089637687i | KB5: 11.4853249598912+63.0305483895386i | KC5: -0.503519522093995-0.0267515444500077i | KD5: 48.1897849145027-409.655348332375i | KE5: -24.2813681298784+408.076809643217i | KF5: -11.8873229817258-40.312713013435i | KG5: -0.506069562251014-0.0609585330500977i | KH5: 75.4302886316488-409.876625800846i | KI5: -51.221233411322+409.851685183402i | KJ5: -9.3819673239605-41.41052333786i | KK5: -0.990975993755091+0.0491313563406398i | KL5: -0.313667192359269+0.010224025821343i | KM5: 0.309766870313737-0.028032520039456i | KN5: -0.106998775517311+0.0466548302930399i | KO5: 1.299671510922+0.983614709165067i | KP5: 242.21193449911-287.486105030537i | KQ5: -225.079568580603+297.055193258005i | KR5: 11.1520256647169-36.6374482089989i | KS5: -1.29999994653502-0.983720856433024i | KT5: 552.837800331097-648.037432983495i | KU5: -511.827308866457+671.537016485519i | KV5: 25.7800441983905-82.8784154182706i | KW5: -0.00050530283988337-0.000258351750062502i | KX5: 675.183318394779-756.933980049395i | KY5: -624.80995319476+787.496863230712i | KZ5: 32.8617298545615-97.97695578905i | LA5: -90.325626981459+614.503468571214i | LB5: 55.5917286439549-613.13101430368i | LC5: 16.1808706523582+61.1773106466549i | LD5: -139.995901461678+613.132027889093i | LE5: 104.8252323964-614.503672630189i | LF5: 11.487647809487+63.0355604436492i | LG5: 60.420119980028-525.304001924393i | LH5: -30.4631043674734+523.207677939671i | LI5: -15.3805041699168-51.6335675374679i | LJ5: 95.5699448916767-525.700312002802i | LK5: -65.225035983349+525.561244273184i | LL5: -12.1414736792616-53.0650030149671i | LM5: 0.314534156448882-228.824473876626i | LN5: 11.416657500895+226.573940636731i | LO5: -9.22646107367957-21.4085423514058i | LP5: 12.0529472899309-230.320937835552i | LQ5: -0.12860039247781+228.65907577279i | LR5: -8.10916459541313-22.0526143668237i | LS5: 795.078141385643-935.597904225015i | LT5: -736.931191220195+968.667295876667i | LU5: 36.9317473494288-119.523967256855i | LV5: 675.248912600639-757.047247973342i | LW5: -624.869092649297+787.612372086929i | LX5: 32.8633296021775-97.9901940545812i | LY5: -0.923758215810999-0.0258897836889673i | LZ5: -0.0120020725175998-0.0000496419988991192i | MA5: -0.930095400967005-0.0972658698819941i | MB5: 0.00185426327979954-0.00602559603479591i | MC5: 1.225009503836-0.00198353668793061i | MD5: 0.0347769186319997-0.0102745982129946i | ME5: 1.2351355732203+0.0777499295189727i | MF5: -0.00238481462189988+0.00554939111070496i | MG5: -0.520795635627898+0.0537813886550111i | MH5: -0.0759341742134687+0.0355081500648993i | MI5: -0.526817153646481+0.0292842517140173i | MJ5: 0.00199146629623925+0.00251513814949789i | MK5: -0.989856192570584+0.0535292248750584i | ML5: 0.0936588278756363-0.0401180242845679i | MM5: 3.00607263718894+2.09891472276001i | MN5: -0.00845219753649928+0.00361611091869918i
